Workbook

Sheet Version History
C3: Version History
C5: Version 6
C6: Date: January 2006
C7: Status: First released to British Universities Lifesaving Association to be downloadable from the website.
C8: Written By: Simon Harrison
C10: Version 7
C11: Date: 25th February 2006
C12: Change Requested By: Steven Tedds (Birmingham)
C13: Problem / Change Request: Stu Richardson has come across something with regard to the competition scoresheet. Apparently at the moment it places any team that has been disqualified into last place. So, if there is only one team has been disqualified then this is fine. However, if more than one team is disqualified they are all awarded last place - for example at Nottingham, 3 teams were disqualified for one of the events and were all awarded 27th place - but these 3 should all have been given joint 25th (rather than having no team come 25th or 26th and then 3 teams with 27th) - does this makes sense?
C14: Status: This problem has been fixed in Version 7.
C15: Ammended By: Simon Harrison
C17: Version 8
C18: Date: 27th February 2006
C19: Change Requested By: Steven Tedds (Birmingham)
C20: Problem / Change Request: There is a problem with the swim event scoresheets and the rope throw scoresheet. The problem is concerning the allocation of DQ places and DNF places. If there is more than one team occupying a place just before the DNF/DQ places, then the DNF/DQ places are allocated wrong. For example, if the final three teams that finished an event have the same time (after allocation of any penalties) and occupied joint 10th place, then one would expect the next DQ/DNF team(s) to be in 13th place. However, the scoresheet is placing the next DQ/DNF team in 11th place, which is incorrect.
C21: Status: This problem has been fixed in Version 8.
C22: Ammended By: Simon Harrison
C24: Version 9
C25: Date: 12th October 2008
C26: Change Requested By: Dom Roberton (Southampton) and Oliver Coleman (Birmingham)
C27: Changes: The "Teams" worksheet has been updated to allow users to enter a website number (for the database) and a team class i.e. student, fresher or old boys. These are copied onto every other sheet automatically. The incident sheets have been completely overhauled to allow more information to be entered from the judges sheet. The method in which the places for the incidents are calculated has been simplified. Macros are no longer used on these sheets and instead built in excel functions are used. Swim&Tow, SpeedEvent1 and SpeedEvent2 sheets have been updated to make the place calculation more simple. Macros are no longer used. Provision for old boys and freshers teams has been included. Several new results and places spreadsheets have been created for this purpose.
C28: Ammended By: Simon Harrison
C30: Version 9.1
C31: Date: 2nd February 2009
C32: Change Requested By: Laura Thompson (Birmingham)
C33: Changes: To allow for 3 speed to be run in the same competition. The sorting and place calculation method calls were altered to accommodate this.
C34: Amended By: Oliver Coleman
C36: Version 9.2
C37: Date: 2nd February 2009
C38: Change Requested By: Oliver Coleman (Birmingham, Web Officer 2008/2009)
C39: Changes: Provision for Non-Student and Non-Counting Student Teams has now been allowed for, Changed from anusing if's to using vlookup instead
C40: Amended By: Oliver Coleman
C42: Version 9.3
C43: Date: 1st April 2009
C44: Change Requested By: Helen Killingley (Championships Co-Ordinator 2008/2009)
C45: Changes: To amend the dry weighting calculation as it was linked ot the wet weighting not the dry. Discovered at the 2009 BULSCA championships.
C46: Amended By: Oliver Coleman
C48: Version 10.0
C49: Date: 3rd May 2009
C50: Change Requested By: BULSCA General Committee
C51: Changes: Change Scoring to reflect the new League Scoring System as of the 2009/2010 Season. Also to incorporate the Swim and tow time Penalties for out side of the percentage errors
C52: Amended By: Oliver Coleman
C54: Change Requested By: Oliver Coleman (Birmingham, Web Officer 2009/2010)
C55: Changes: Have a Set up sheet with the details of weightings for different Event included on it
C56: Amended By: Oliver Coleman
C58: Change Requested By: Oliver Coleman (Birmingham, Web Officer 2009/2010)
C59: Changes: Remove the need to click sheet to run nessessary macros all now built in
C60: Amended By: Oliver Coleman
C61: Change Requested By: Oliver Coleman (Birmingham, Web Officer 2009/2010)
C62: Changes: Prevent Accidental Deletion by Locking sheet as they are Opened
C63: Amended By: Oliver Coleman

Sheet Instructions
C3: British Universities Competition Scoresheet Instructions
C5: When opening this spreadsheet ensure you select the 'ENABLE MACRO'S' option.
C7: General
C8: Enter data in white cells only. All coloured cells (yellow or green) are updated automatically.
C9: During a competition remember to save this file regularly to both your hard disk and a floppy disk/USB pejn.
C10: Never Copy and Paste opn any sheets.
C12: Set Up Sheet
C13: Enter the Club Name,Team Letter, website number, Swim Tow Time and the class of the teams in this sheet. These are automatically copied from here onto every other sheet.
C14: In all of the sheets, any scores or times that are entered in cells that do not the above are ignored.
C15: Enter the weighting for each of the events at the side of the sheet. These are copied to the relevent palces automatically.
C17: Incident Sheets
C18: For each judge, enter a description of what they are marking, their mark categories and the associated weightings in the white boxes provided.
C19: Enter each of the judges scores into this sheet.
C20: A blank cell is treated as a zero. However, for a team to be given a score and a position, one of the judges score cells must contain a number, even if it is a zero.
C21: The judges scores are added up automatically to give the total score.
C23: RopeThrow Sheet
C24: Assuming a team has finished, the seconds and the 1/100 second cells under the stopwatch time must be filled in. The minutes cell is optional.
C25: If a team did not finish or were disqualified, leave the stopwatch time empty.
C26: Next select the finish status from the pull down list:
C27: Finished - All persons successfully pulled in
C28: DNF3 Persons In - Did not finish in time, 3 persons pulled in
C29: DNF2 Persons In - Did not finish in time, 2 persons pulled in
C30: DNF1 Persons In - Did not finish in time, 1 person pulled in
C31: DNF0 Persons In - Did not finish in time, no one pulled in
C32: Disqualified - The team was completely disqualified and will be placed last in this event.
C33: Finally enter the number of penalties the team received in the penalties cell. A blank cell is treated as zero.
C34: Each penalty will result in the team being penalised by discounting one of the “casualties” successfully pulled in.
C35: Penalties are not taken into consideration for teams who were disqualified.
C36: If a team fails to finish within the allotted time, they will be ranked according to the median position of all teams that had successfully pulled in the same number of competitors, after the application of any penalties.
C37: The positions are calculated automatically when opening the sheet i.e. clicking on the tab at the bottom or by entering the Places or Results Sheets
C39: Swim & Tow, Meldey,Manikin Carry and Obstacle Sheets
C40: Enter the penalty size and The Swim and Tow margin Allowed into the top of the sheet.
C41: Agree with the judges the number of seconds per penalty and insert this into the penalty time cell at the top of the sheet.
C42: The seconds and the 1/100 second cells under the stopwatch time must be filled in. The minutes cell is optional.
C43: Select the finish status from the pull down list. This must be filled in.
C44: Finally enter the number of penalties the team received in the penalties cell. A blank cell is treated as zero.
C45: The number of penalties is multiplied by the penalty time and added onto the stopwatch time to give the total time.
C46: Penalties are not taken into consideration for teams who were disqualified.
C48: Competition Results and League Results Sheets
C49: Competition Results = The results are based on all classes of team i.e. Student, Fresher and Old Boys.
C50: League Results = This sheet is only for Calculations
C52: Enter the weighting for each of the events at the top of the sheet. The weightings must be decided before the start of the competition and declared to all competing teams.
C53: All other information is automatically copied from the other sheets. Therefore it is imperative to ensure all the other sheets are up to date.
C54: The final positions are calculated automatically when opening the sheet i.e. clicking on the tab at the bottom.
C55: If teams have an equal sum of total positions, then the wet incident score is taken into account to determine the final results.
C57: Places Sheet
C58: This sheet automatically sorts the teams into final place order from the information contained in the results sheet.
C61: Competition Places = Students, Freshers and Old Boys and Non-Counting Teams
C62: A League Places = A Team that are also Students or Freshers
C63: B League Places = Non-A Team that are also Students or Freshers
C64: Freshers Places = Freshers Only who where also not A Teams
C66: Copyright Simon Harrison 2008, Oliver Coleman 2009

Sheet Set UP
C3: Teams | Q3: Scoring
C5: Website Number | D5: Club | E5: Team | F5: Class (F, S, OB,NS,NC) | G5: Swim and Tow | I5: Time in Seconds | L5: Class | N5: must be in aphabetically order | Q5: Event | R5: League Weighting | S5: Compettion Weighting
G6: mins | H6: secs | Q6: Wet Incident | R6: 2 | S6: 2
B7: 1 | C7: 537 | D7: Heanor | E7: A | F7: NS | G7: 0 | H7: 0 | I7: =G7*60+H7 -> 0 | K7: =IF(OR(F7=0,E7=0,D7=0,C7=0),-1,VLOOKUP(F7,N$7:O$11,2)+IF(OR(E7="A",E7="a",VLOOKUP(F7,N$7:O$11,2)=0),0,1)) -> 0 | L7: F = Fresher | N7: F | O7: 1 | Q7: Dry Incident | R7: 2 | S7: 2
B8: 2 | C8: 483 | D8: University of Cambridge | E8: C | F8: S | G8: 9 | H8: 0 | I8: =G8*60+H8 -> 540 | K8: =IF(OR(F8=0,E8=0,D8=0,C8=0),-1,VLOOKUP(F8,N$7:O$11,2)+IF(OR(E8="A",E8="a",VLOOKUP(F8,N$7:O$11,2)=0),0,1)) -> 2 | L8: S = Student | N8: NC | O8: 0 | Q8: Rope Throw | R8: 1 | S8: 1
B9: 3 | C9: 474 | D9: University of Cambridge | E9: B | F9: S | G9: 8 | H9: 40 | I9: 520 | K9: 2 | L9: OB = Old Boys | N9: NS | O9: 0 | Q9: Swim and Tow | R9: 1 | S9: 1
B10: 4 | C10: 513 | D10: University of Warwick | E10: D | F10: S | G10: 8 | H10: 30 | I10: 510 | K10: 2 | L10: NS=Non Student Team | N10: OB | O10: 0 | Q10: Medley | R10: 1 | S10: 1
B11: 5 | C11: 499 | D11: University of St Andrews | E11: B | F11: NC | G11: 8 | H11: 30 | I11: 510 | K11: 0 | L11: NC=Non -Counting Student Team | N11: S | O11: 1 | Q11: Manikin Carry | R11: 0 | S11: 0
B12: 6 | C12: 507 | D12: University of Plymouth | E12: C | F12: S | G12: 8 | H12: 30 | I12: 510 | K12: 2 | Q12: Obstacle | R12: 0 | S12: 0
B13: 7 | C13: 519 | D13: University of Aberdeen | E13: B | F13: NC | G13: 8 | H13: 30 | I13: 510 | K13: 0 | Q13: Extra Event | R13: 0 | S13: 1
B14: 8 | C14: 532 | D14: University of London Union | E14: E | F14: S | G14: 8 | H14: 10 | I14: 490 | K14: 2
B15: 9 | C15: 530 | D15: University of London Union | E15: C | F15: S | G15: 8 | H15: 10 | I15: 490 | K15: 2
B16: 10 | C16: 506 | D16: University of Plymouth | E16: B | F16: S | G16: 8 | H16: 0 | I16: 480 | K16: 2
B17: 11 | C17: 518 | D17: University of Aberdeen | E17: A | F17: S | G17: 7 | H17: 55 | I17: 475 | K17: 1
B18: 12 | C18: 538 | D18: University of Southampton | E18: C | F18: S | G18: 7 | H18: 45 | I18: 465 | K18: 2
B19: 13 | C19: 515 | D19: Loughborough University | E19: C | F19: S | G19: 7 | H19: 50 | I19: 470 | K19: 2
B20: 14 | C20: 520 | D20: Loughborough University | E20: D | F20: NS | G20: 8 | H20: 0 | I20: 480 | K20: 0
B21: 15 | C21: 512 | D21: University of Warwick | E21: C | F21: NC | G21: 8 | H21: 10 | I21: 490 | K21: 0
B22: 16 | C22: 531 | D22: University of London Union | E22: D | F22: NC | G22: 8 | H22: 10 | I22: 490 | K22: 0
B23: 17 | C23: 471 | D23: University of Cambridge | E23: A | F23: S | G23: 7 | H23: 40 | I23: 460 | K23: 1
B24: 18 | C24: 522 | D24: University of Birmingham | E24: B | F24: S | G24: 7 | H24: 24 | I24: 444 | K24: 2
B25: 19 | C25: 498 | D25: University of St Andrews | E25: A | F25: S | G25: 7 | H25: 20 | I25: 440 | K25: 1
B26: 20 | C26: 535 | D26: University of Birmingham | E26: A | F26: S | G26: 7 | H26: 5 | I26: 425 | K26: 1
B27: 21 | C27: 508 | D27: University of Nottingham | E27: A | F27: S | G27: 7 | H27: 10 | I27: 430 | K27: 1
B28: 22 | C28: 528 | D28: University of London Union | E28: B | F28: S | G28: 7 | H28: 20 | I28: 440 | K28: 2
B29: 23 | C29: 511 | D29: University of Warwick | E29: B | F29: S | G29: 7 | H29: 30 | I29: 450 | K29: 2
B30: 24 | C30: 509 | D30: University of Nottingham | E30: B | F30: S | G30: 7 | H30: 45 | I30: 465 | K30: 2
B31: 25 | C31: 517 | D31: Loughborough University | E31: B | F31: S | G31: 6 | H31: 50 | I31: 410 | K31: 2
B32: 26 | C32: 534 | D32: University of Southampton | E32: B | F32: S | G32: 6 | H32: 50 | I32: 410 | K32: 2
B33: 27 | C33: 479 | D33: Loughborough University | E33: A | F33: S | G33: 6 | H33: 10 | I33: 370 | K33: 1
B34: 28 | C34: 545 | D34: Colwick Park | E34: A | F34: NS | G34: 5 | H34: 59 | I34: 359 | K34: 0
B35: 29 | C35: 533 | D35: University of Southampton | E35: A | F35: S | G35: 6 | H35: 0 | I35: 360 | K35: 1
B36: 30 | C36: 523 | D36: University of London Union | E36: A | F36: S | G36: 6 | H36: 50 | I36: 410 | K36: 1
B37: 31 | C37: 505 | D37: University of Plymouth | E37: A | F37: S | G37: 6 | H37: 50 | I37: 410 | K37: 1
B38: 32 | C38: 510 | D38: University of Warwick | E38: A | F38: S | G38: 7 | H38: 0 | I38: 420 | K38: 1
B39: 33 | I39: 0 | K39: -1
B40: 34 | I40: 0 | K40: -1
B41: 35 | I41: 0 | K41: -1
B42: 36 | I42: 0 | K42: -1
B43: 37 | I43: 0 | K43: -1
B44: 38 | I44: 0 | K44: -1
B45: 39 | I45: 0 | K45: -1
B46: 40 | I46: 0 | K46: -1

Sheet Wet Incident
D3: ='Set UP'!Q6 -> Wet Incident
F4: JUDGE 1 | Q4: JUDGE 2 | AB4: JUDGE 3 | AM4: JUDGE 4 | AX4: JUDGE 5 | BI4: JUDGE 6 | BX4: ¬ OVERALL TOTAL | BY4: ¬ POSITION (COMPETITION) | BZ4: ¬ OVERALL (A LEAGUE RANK) | CA4: ¬ POSITION ( A LEAGUE) | CB4: ¬ OVERALL (B LEAGUE RANK) | CC4: POSITION ( BLEAGUE)
F5: Captaincy & Overall | Q5: Casualty No. 1 (hand injury) & Casualty No. 2 (hyperventilation) | AB5: Casualty No. 3 (heart attack) & Casualty No. 4 (unconscious non breathing child) | AM5: Casualty No. 6 (weak swimmer) , Casualty No. 9 (non-swimmer) & Casualty No. 5 (lifeguard) | AX5: Casualty No. 7 (head injury) & Casualty No. 8 (arm injury) | BI5: Phone
F6: Effective control of the scenario | G6: Effective communication | H6: Effective prioritisation of the casualties | I6: Effective captaincy | J6: Effective teamwork | P6: ¬ JUDGE 1 TOTAL | Q6: Identification & assessment of casualty No.1 | R6: Early Treatment (pressure/elevate) | S6: Use of gloves (one glove or two gloves, completely on, etc.) | T6: Quality of treatment (including use of bandages/sling) | U6: Aftercare | V6: Initial assessment & reassessment of casualty No. 2 | W6: Effective Treatment | X6: Aftercare | AA6: ¬ JUDGE 2 TOTAL | AB6: Information gathered from casualty No. 3 | AC6: Reassurance of casualty No. 3 | AD6: Fast and effective treatment of heart attack (time to treatment after chest pains occur) | AE6: Relaying requirement for an ambulance (phone) Yes (10) or no(0)? | AF6: Heart attack triggered? Yes (0) or no(10)? (Award zero marks (0) if casualty No. 3 was ignored | AG6: Identification & effective rescue of casualty No.4 | AH6: Assessment of casualty No.4 | AI6: Early CPR (time to first breath) | AJ6: Effective of CPR of casualty No.4 (including rescue breaths, continued CPR and use of pocket mask) | AL6: ¬ JUDGE 3 TOTAL | AM6: Identification & speed of rescue of casualty No.6 | AN6: Safe and effective rescue (including use of aids) | AO6: Aftercare | AP6: Identification & speed of rescue of casualty No.9 | AQ6: Safe and effective rescue (including use of aids) | AR6: Aftercare | AS6: Recognition of lifeguard (No. 5) (including communication with the lifeguard) | AT6: Averting danger to competitor through use of lifeguard in a rescue (e.g. non-swimmer (high danger), phone (low danger)) | AW6: ¬ JUDGE 4 TOTAL | AX6: Identification & speed of rescue of casualty No.7 | AY6: Safe and effective rescue (including use of aids) | AZ6: Treatment | BA6: Aftercare | BB6: Identification & speed of rescue of casualty No.8 | BC6: Safe and effective rescue (including use of aids) | BD6: Treatment | BE6: Aftercare | BH6: ¬ JUDGE 5 TOTAL | BI6: Sending for a phone? (10 if Yes, 0 if No) | BJ6: What is the service you require? | BK6: What is the exact location of the incident? | BL6: What has happened? | BM6: How many people are involved? | BN6: What is the condition of the casualties? | BO6: How many trained rescuer’s are there? | BP6: What work has been undertaken to help the casualties? | BQ6: Are the any dangers or hazards present? | BR6: What is your name? | BS6: Any other useful info? | BT6: ¬ JUDGE 6 TOTAL
E7: MARK WEIGHTING → | F7: 1 | G7: 2.5 | H7: 3 | I7: 1 | J7: 1 | Q7: 1 | R7: 1 | S7: 1 | T7: 2 | U7: 0.5 | V7: 1.5 | W7: 2 | X7: 0.5 | AB7: 1 | AC7: 2 | AD7: 2.5 | AE7: 0.5 | AF7: 0.5 | AG7: 1 | AH7: 1 | AI7: 1 | AJ7: 3 | AM7: 2 | AN7: 2.5 | AO7: 0.5 | AP7: 2.5 | AQ7: 3 | AR7: 0.5 | AS7: 0.5 | AT7: 1 | AX7: 1 | AY7: 2 | AZ7: 1 | BA7: 1 | BB7: 0.5 | BC7: 1.5 | BD7: 0.5 | BE7: 0.5 | BI7: 1 | BJ7: 0.5 | BK7: 1 | BL7: 1 | BM7: 1 | BN7: 3 | BO7: 0.5 | BP7: 1 | BQ7: 0.5 | BS7: 0.5
C8: WEB | D8: TEAM | E8: CLASS
B9: 1 | C9: =IF(OR('Set UP'!$C7=0,'Set UP'!$D7=0,'Set UP'!$E7=0,'Set UP'!F7=0)," --",'Set UP'!C7) -> 537 | D9: =IF(OR('Set UP'!$C7=0,'Set UP'!$D7=0,'Set UP'!$E7=0,'Set UP'!F7=0)," --",'Set UP'!D7&" "&'Set UP'!E7) -> Heanor A | E9: =IF(OR('Set UP'!$C7=0,'Set UP'!$D7=0,'Set UP'!$E7=0,'Set UP'!F7=0)," --",'Set UP'!F7) -> NS | F9: 4 | G9: 4 | H9: 4 | I9: 5 | J9: 3 | P9: =IF(OR('Set UP'!$C7=0,'Set UP'!$D7=0,'Set UP'!$E7=0),"",(F$7*F9)+(G$7*G9)+(H$7*H9)+(I$7*I9)+(J$7*J9)+(K$7*K9)+(L$7*L9)+(M$7*M9)+(N$7*N9)+(O$7*O9)) -> 34 | Q9: 5 | R9: 6 | S9: 0 | T9: 2 | U9: 0 | V9: 4 | W9: 6 | X9: 3 | AA9: =IF(OR('Set UP'!$C7=0,'Set UP'!$D7=0,'Set UP'!$E7=0),"",(Q$7*Q9)+(R$7*R9)+(S$7*S9)+(T$7*T9)+(U$7*U9)+(V$7*V9)+(W$7*W9)+(X$7*X9)+(Y$7*Y9)+(Z$7*Z9)) -> 34.5 | AB9: 4 | AC9: 2 | AD9: 4 | AE9: 0 | AF9: 0 | AG9: 8 | AH9: 6 | AI9: 0 | AJ9: 0 | AL9: =IF(OR('Set UP'!$C7=0,'Set UP'!$D7=0,'Set UP'!$E7=0),"",(AB$7*AB9)+(AC$7*AC9)+(AD$7*AD9)+(AE$7*AE9)+(AF$7*AF9)+(AG$7*AG9)+(AH$7*AH9)+(AI$7*AI9)+(AJ$7*AJ9)+(AK$7*AK9)) -> 32 | AM9: 5 | AN9: 6 | AO9: 0 | AP9: 5 | AQ9: 6 | AR9: 0 | AS9: 0 | AT9: 0 | AW9: =IF(OR('Set UP'!$C7=0,'Set UP'!$D7=0,'Set UP'!$E7=0),"",(AM$7*AM9)+(AN$7*AN9)+(AO$7*AO9)+(AP$7*AP9)+(AQ$7*AQ9)+(AR$7*AR9)+(AS$7*AS9)+(AT$7*AT9)+(AU$7*AU9)+(AV$7*AV9)) -> 55.5 | AX9: 9 | AY9: 8 | AZ9: 4 | BA9: 0 | BB9: 8 | BC9: 8 | BD9: 6 | BE9: 0 | BH9: =IF(OR('Set UP'!$C7=0,'Set UP'!$D7=0,'Set UP'!$E7=0),"",(AX$7*AX9)+(AY$7*AY9)+(AZ$7*AZ9)+(BA$7*BA9)+(BB$7*BB9)+(BC$7*BC9)+(BD$7*BD9)+(BE$7*BE9)+(BF$7*BF9)+(BG$7*BG9)) -> 48 | BI9: 0 | BT9: =IF(OR('Set UP'!$C7=0,'Set UP'!$D7=0,'Set UP'!$E7=0),"",(BI$7*BI9)+(BJ$7*BJ9)+(BK$7*BK9)+(BL$7*BL9)+(BM$7*BM9)+(BN$7*BN9)+(BO$7*BO9)+(BP$7*BP9)+(BQ$7*BQ9)+(BR$7*BR9)+(BS$7*BS9)) -> 0 | BX9: =IF(OR('Set UP'!$C7=0,'Set UP'!$D7=0,'Set UP'!$E7=0),"",(P9+AA9+AL9+AW9+BH9+BT9)) -> 204 | BY9: =IF(OR('Set UP'!$C7=0,'Set UP'!$D7=0,'Set UP'!$E7=0),"",RANK(BX9,$BX$9:$BX$48,0)) -> 10 | BZ9: =IF(OR('Set UP'!K7<>1,'Set UP'!C7=0,'Set UP'!D7=0,'Set UP'!E7=0,'Set UP'!F7=0),"",$BX9) ->  | CA9: =IF(OR('Set UP'!K7<>1,'Set UP'!C7=0,'Set UP'!D7=0,'Set UP'!E7=0,'Set UP'!F7=0),"",RANK(BZ9,$BZ$9:$BZ$48,0)) ->  | CB9: =IF(OR('Set UP'!K7<>2,'Set UP'!C7=0,'Set UP'!D7=0,'Set UP'!E7=0,'Set UP'!F7=0),"",$BX9) ->  | CC9: =IF(OR('Set UP'!K7<>2,'Set UP'!C7=0,'Set UP'!D7=0,'Set UP'!E7=0,'Set UP'!F7=0),"",RANK(CB9,$CB$9:$CB$48,0)) -> 
B10: 2 | C10: =IF(OR('Set UP'!$C8=0,'Set UP'!$D8=0,'Set UP'!$E8=0,'Set UP'!F8=0)," --",'Set UP'!C8) -> 483 | D10: =IF(OR('Set UP'!$C8=0,'Set UP'!$D8=0,'Set UP'!$E8=0,'Set UP'!F8=0)," --",'Set UP'!D8&" "&'Set UP'!E8) -> University of Cambridge C | E10: =IF(OR('Set UP'!$C8=0,'Set UP'!$D8=0,'Set UP'!$E8=0,'Set UP'!F8=0)," --",'Set UP'!F8) -> S | F10: 5 | G10: 1 | H10: 2 | I10: 1 | J10: 4 | P10: =IF(OR('Set UP'!$C8=0,'Set UP'!$D8=0,'Set UP'!$E8=0),"",(F$7*F10)+(G$7*G10)+(H$7*H10)+(I$7*I10)+(J$7*J10)+(K$7*K10)+(L$7*L10)+(M$7*M10)+(N$7*N10)+(O$7*O10)) -> 18.5 | Q10: 3 | R10: 2 | S10: 0 | T10: 1 | U10: 0 | V10: 4 | W10: 5 | X10: 0 | AA10: =IF(OR('Set UP'!$C8=0,'Set UP'!$D8=0,'Set UP'!$E8=0),"",(Q$7*Q10)+(R$7*R10)+(S$7*S10)+(T$7*T10)+(U$7*U10)+(V$7*V10)+(W$7*W10)+(X$7*X10)+(Y$7*Y10)+(Z$7*Z10)) -> 23 | AB10: 0 | AC10: 0 | AD10: 0 | AE10: 0 | AF10: 0 | AG10: 0 | AH10: 0 | AI10: 0 | AJ10: 0 | AL10: =IF(OR('Set UP'!$C8=0,'Set UP'!$D8=0,'Set UP'!$E8=0),"",(AB$7*AB10)+(AC$7*AC10)+(AD$7*AD10)+(AE$7*AE10)+(AF$7*AF10)+(AG$7*AG10)+(AH$7*AH10)+(AI$7*AI10)+(AJ$7*AJ10)+(AK$7*AK10)) -> 0 | AM10: 5 | AN10: 5 | AO10: 2 | AP10: 5 | AQ10: 6 | AR10: 3 | AS10: 3 | AT10: 6 | AW10: =IF(OR('Set UP'!$C8=0,'Set UP'!$D8=0,'Set UP'!$E8=0),"",(AM$7*AM10)+(AN$7*AN10)+(AO$7*AO10)+(AP$7*AP10)+(AQ$7*AQ10)+(AR$7*AR10)+(AS$7*AS10)+(AT$7*AT10)+(AU$7*AU10)+(AV$7*AV10)) -> 63 | AX10: 5 | AY10: 4 | AZ10: 8 | BA10: 5 | BB10: 5 | BC10: 6 | BD10: 0 | BE10: 0 | BH10: =IF(OR('Set UP'!$C8=0,'Set UP'!$D8=0,'Set UP'!$E8=0),"",(AX$7*AX10)+(AY$7*AY10)+(AZ$7*AZ10)+(BA$7*BA10)+(BB$7*BB10)+(BC$7*BC10)+(BD$7*BD10)+(BE$7*BE10)+(BF$7*BF10)+(BG$7*BG10)) -> 37.5 | BI10: 0 | BT10: =IF(OR('Set UP'!$C8=0,'Set UP'!$D8=0,'Set UP'!$E8=0),"",(BI$7*BI10)+(BJ$7*BJ10)+(BK$7*BK10)+(BL$7*BL10)+(BM$7*BM10)+(BN$7*BN10)+(BO$7*BO10)+(BP$7*BP10)+(BQ$7*BQ10)+(BR$7*BR10)+(BS$7*BS10)) -> 0 | BX10: =IF(OR('Set UP'!$C8=0,'Set UP'!$D8=0,'Set UP'!$E8=0),"",(P10+AA10+AL10+AW10+BH10+BT10)) -> 142 | BY10: =IF(OR('Set UP'!$C8=0,'Set UP'!$D8=0,'Set UP'!$E8=0),"",RANK(BX10,$BX$9:$BX$48,0)) -> 29 | BZ10: =IF(OR('Set UP'!K8<>1,'Set UP'!C8=0,'Set UP'!D8=0,'Set UP'!E8=0,'Set UP'!F8=0),"",$BX10) ->  | CA10: =IF(OR('Set UP'!K8<>1,'Set UP'!C8=0,'Set UP'!D8=0,'Set UP'!E8=0,'Set UP'!F8=0),"",RANK(BZ10,$BZ$9:$BZ$48,0)) ->  | CB10: =IF(OR('Set UP'!K8<>2,'Set UP'!C8=0,'Set UP'!D8=0,'Set UP'!E8=0,'Set UP'!F8=0),"",$BX10) -> 142 | CC10: =IF(OR('Set UP'!K8<>2,'Set UP'!C8=0,'Set UP'!D8=0,'Set UP'!E8=0,'Set UP'!F8=0),"",RANK(CB10,$CB$9:$CB$48,0)) -> 14
B11: 3 | C11: =IF(OR('Set UP'!$C9=0,'Set UP'!$D9=0,'Set UP'!$E9=0,'Set UP'!F9=0)," --",'Set UP'!C9) -> 474 | D11: =IF(OR('Set UP'!$C9=0,'Set UP'!$D9=0,'Set UP'!$E9=0,'Set UP'!F9=0)," --",'Set UP'!D9&" "&'Set UP'!E9) -> University of Cambridge B | E11: =IF(OR('Set UP'!$C9=0,'Set UP'!$D9=0,'Set UP'!$E9=0,'Set UP'!F9=0)," --",'Set UP'!F9) -> S | F11: 3 | G11: 1 | H11: 1 | I11: 2 | J11: 1 | P11: =IF(OR('Set UP'!$C9=0,'Set UP'!$D9=0,'Set UP'!$E9=0),"",(F$7*F11)+(G$7*G11)+(H$7*H11)+(I$7*I11)+(J$7*J11)+(K$7*K11)+(L$7*L11)+(M$7*M11)+(N$7*N11)+(O$7*O11)) -> 11.5 | Q11: 4 | R11: 4 | S11: 0 | T11: 1 | U11: 0 | V11: 4 | W11: 2 | X11: 0 | AA11: =IF(OR('Set UP'!$C9=0,'Set UP'!$D9=0,'Set UP'!$E9=0),"",(Q$7*Q11)+(R$7*R11)+(S$7*S11)+(T$7*T11)+(U$7*U11)+(V$7*V11)+(W$7*W11)+(X$7*X11)+(Y$7*Y11)+(Z$7*Z11)) -> 20 | AB11: 2 | AC11: 1 | AD11: 0 | AE11: 0 | AF11: 0 | AG11: 0 | AH11: 0 | AI11: 0 | AJ11: 0 | AL11: =IF(OR('Set UP'!$C9=0,'Set UP'!$D9=0,'Set UP'!$E9=0),"",(AB$7*AB11)+(AC$7*AC11)+(AD$7*AD11)+(AE$7*AE11)+(AF$7*AF11)+(AG$7*AG11)+(AH$7*AH11)+(AI$7*AI11)+(AJ$7*AJ11)+(AK$7*AK11)) -> 4 | AM11: 7 | AN11: 5 | AO11: 0 | AP11: 6 | AQ11: 5 | AR11: 0 | AS11: 5 | AT11: 7 | AW11: =IF(OR('Set UP'!$C9=0,'Set UP'!$D9=0,'Set UP'!$E9=0),"",(AM$7*AM11)+(AN$7*AN11)+(AO$7*AO11)+(AP$7*AP11)+(AQ$7*AQ11)+(AR$7*AR11)+(AS$7*AS11)+(AT$7*AT11)+(AU$7*AU11)+(AV$7*AV11)) -> 66 | AX11: 5 | AY11: 8 | AZ11: 4 | BA11: 3 | BB11: 5 | BC11: 6 | BD11: 8 | BE11: 3 | BH11: =IF(OR('Set UP'!$C9=0,'Set UP'!$D9=0,'Set UP'!$E9=0),"",(AX$7*AX11)+(AY$7*AY11)+(AZ$7*AZ11)+(BA$7*BA11)+(BB$7*BB11)+(BC$7*BC11)+(BD$7*BD11)+(BE$7*BE11)+(BF$7*BF11)+(BG$7*BG11)) -> 45 | BI11: 0 | BT11: =IF(OR('Set UP'!$C9=0,'Set UP'!$D9=0,'Set UP'!$E9=0),"",(BI$7*BI11)+(BJ$7*BJ11)+(BK$7*BK11)+(BL$7*BL11)+(BM$7*BM11)+(BN$7*BN11)+(BO$7*BO11)+(BP$7*BP11)+(BQ$7*BQ11)+(BR$7*BR11)+(BS$7*BS11)) -> 0 | BX11: =IF(OR('Set UP'!$C9=0,'Set UP'!$D9=0,'Set UP'!$E9=0),"",(P11+AA11+AL11+AW11+BH11+BT11)) -> 146.5 | BY11: =IF(OR('Set UP'!$C9=0,'Set UP'!$D9=0,'Set UP'!$E9=0),"",RANK(BX11,$BX$9:$BX$48,0)) -> 27 | BZ11: =IF(OR('Set UP'!K9<>1,'Set UP'!C9=0,'Set UP'!D9=0,'Set UP'!E9=0,'Set UP'!F9=0),"",$BX11) ->  | CA11: =IF(OR('Set UP'!K9<>1,'Set UP'!C9=0,'Set UP'!D9=0,'Set UP'!E9=0,'Set UP'!F9=0),"",RANK(BZ11,$BZ$9:$BZ$48,0)) ->  | CB11: =IF(OR('Set UP'!K9<>2,'Set UP'!C9=0,'Set UP'!D9=0,'Set UP'!E9=0,'Set UP'!F9=0),"",$BX11) -> 146.5 | CC11: =IF(OR('Set UP'!K9<>2,'Set UP'!C9=0,'Set UP'!D9=0,'Set UP'!E9=0,'Set UP'!F9=0),"",RANK(CB11,$CB$9:$CB$48,0)) -> 13
B12: 4 | C12: =IF(OR('Set UP'!$C10=0,'Set UP'!$D10=0,'Set UP'!$E10=0,'Set UP'!F10=0)," --",'Set UP'!C10) -> 513 | D12: =IF(OR('Set UP'!$C10=0,'Set UP'!$D10=0,'Set UP'!$E10=0,'Set UP'!F10=0)," --",'Set UP'!D10&" "&'Set UP'!E10) -> University of Warwick D | E12: =IF(OR('Set UP'!$C10=0,'Set UP'!$D10=0,'Set UP'!$E10=0,'Set UP'!F10=0)," --",'Set UP'!F10) -> S | P12: =IF(OR('Set UP'!$C10=0,'Set UP'!$D10=0,'Set UP'!$E10=0),"",(F$7*F12)+(G$7*G12)+(H$7*H12)+(I$7*I12)+(J$7*J12)+(K$7*K12)+(L$7*L12)+(M$7*M12)+(N$7*N12)+(O$7*O12)) -> 0 | AA12: =IF(OR('Set UP'!$C10=0,'Set UP'!$D10=0,'Set UP'!$E10=0),"",(Q$7*Q12)+(R$7*R12)+(S$7*S12)+(T$7*T12)+(U$7*U12)+(V$7*V12)+(W$7*W12)+(X$7*X12)+(Y$7*Y12)+(Z$7*Z12)) -> 0 | AL12: =IF(OR('Set UP'!$C10=0,'Set UP'!$D10=0,'Set UP'!$E10=0),"",(AB$7*AB12)+(AC$7*AC12)+(AD$7*AD12)+(AE$7*AE12)+(AF$7*AF12)+(AG$7*AG12)+(AH$7*AH12)+(AI$7*AI12)+(AJ$7*AJ12)+(AK$7*AK12)) -> 0 | AW12: =IF(OR('Set UP'!$C10=0,'Set UP'!$D10=0,'Set UP'!$E10=0),"",(AM$7*AM12)+(AN$7*AN12)+(AO$7*AO12)+(AP$7*AP12)+(AQ$7*AQ12)+(AR$7*AR12)+(AS$7*AS12)+(AT$7*AT12)+(AU$7*AU12)+(AV$7*AV12)) -> 0 | BH12: =IF(OR('Set UP'!$C10=0,'Set UP'!$D10=0,'Set UP'!$E10=0),"",(AX$7*AX12)+(AY$7*AY12)+(AZ$7*AZ12)+(BA$7*BA12)+(BB$7*BB12)+(BC$7*BC12)+(BD$7*BD12)+(BE$7*BE12)+(BF$7*BF12)+(BG$7*BG12)) -> 0 | BT12: =IF(OR('Set UP'!$C10=0,'Set UP'!$D10=0,'Set UP'!$E10=0),"",(BI$7*BI12)+(BJ$7*BJ12)+(BK$7*BK12)+(BL$7*BL12)+(BM$7*BM12)+(BN$7*BN12)+(BO$7*BO12)+(BP$7*BP12)+(BQ$7*BQ12)+(BR$7*BR12)+(BS$7*BS12)) -> 0 | BX12: =IF(OR('Set UP'!$C10=0,'Set UP'!$D10=0,'Set UP'!$E10=0),"",(P12+AA12+AL12+AW12+BH12+BT12)) -> 0 | BY12: =IF(OR('Set UP'!$C10=0,'Set UP'!$D10=0,'Set UP'!$E10=0),"",RANK(BX12,$BX$9:$BX$48,0)) -> 31 | BZ12: =IF(OR('Set UP'!K10<>1,'Set UP'!C10=0,'Set UP'!D10=0,'Set UP'!E10=0,'Set UP'!F10=0),"",$BX12) ->  | CA12: =IF(OR('Set UP'!K10<>1,'Set UP'!C10=0,'Set UP'!D10=0,'Set UP'!E10=0,'Set UP'!F10=0),"",RANK(BZ12,$BZ$9:$BZ$48,0)) ->  | CB12: =IF(OR('Set UP'!K10<>2,'Set UP'!C10=0,'Set UP'!D10=0,'Set UP'!E10=0,'Set UP'!F10=0),"",$BX12) -> 0 | CC12: =IF(OR('Set UP'!K10<>2,'Set UP'!C10=0,'Set UP'!D10=0,'Set UP'!E10=0,'Set UP'!F10=0),"",RANK(CB12,$CB$9:$CB$48,0)) -> 15
B13: 5 | C13: =IF(OR('Set UP'!$C11=0,'Set UP'!$D11=0,'Set UP'!$E11=0,'Set UP'!F11=0)," --",'Set UP'!C11) -> 499 | D13: =IF(OR('Set UP'!$C11=0,'Set UP'!$D11=0,'Set UP'!$E11=0,'Set UP'!F11=0)," --",'Set UP'!D11&" "&'Set UP'!E11) -> University of St Andrews B | E13: =IF(OR('Set UP'!$C11=0,'Set UP'!$D11=0,'Set UP'!$E11=0,'Set UP'!F11=0)," --",'Set UP'!F11) -> NC | P13: =IF(OR('Set UP'!$C11=0,'Set UP'!$D11=0,'Set UP'!$E11=0),"",(F$7*F13)+(G$7*G13)+(H$7*H13)+(I$7*I13)+(J$7*J13)+(K$7*K13)+(L$7*L13)+(M$7*M13)+(N$7*N13)+(O$7*O13)) -> 0 | AA13: =IF(OR('Set UP'!$C11=0,'Set UP'!$D11=0,'Set UP'!$E11=0),"",(Q$7*Q13)+(R$7*R13)+(S$7*S13)+(T$7*T13)+(U$7*U13)+(V$7*V13)+(W$7*W13)+(X$7*X13)+(Y$7*Y13)+(Z$7*Z13)) -> 0 | AL13: =IF(OR('Set UP'!$C11=0,'Set UP'!$D11=0,'Set UP'!$E11=0),"",(AB$7*AB13)+(AC$7*AC13)+(AD$7*AD13)+(AE$7*AE13)+(AF$7*AF13)+(AG$7*AG13)+(AH$7*AH13)+(AI$7*AI13)+(AJ$7*AJ13)+(AK$7*AK13)) -> 0 | AW13: =IF(OR('Set UP'!$C11=0,'Set UP'!$D11=0,'Set UP'!$E11=0),"",(AM$7*AM13)+(AN$7*AN13)+(AO$7*AO13)+(AP$7*AP13)+(AQ$7*AQ13)+(AR$7*AR13)+(AS$7*AS13)+(AT$7*AT13)+(AU$7*AU13)+(AV$7*AV13)) -> 0 | BH13: =IF(OR('Set UP'!$C11=0,'Set UP'!$D11=0,'Set UP'!$E11=0),"",(AX$7*AX13)+(AY$7*AY13)+(AZ$7*AZ13)+(BA$7*BA13)+(BB$7*BB13)+(BC$7*BC13)+(BD$7*BD13)+(BE$7*BE13)+(BF$7*BF13)+(BG$7*BG13)) -> 0 | BT13: =IF(OR('Set UP'!$C11=0,'Set UP'!$D11=0,'Set UP'!$E11=0),"",(BI$7*BI13)+(BJ$7*BJ13)+(BK$7*BK13)+(BL$7*BL13)+(BM$7*BM13)+(BN$7*BN13)+(BO$7*BO13)+(BP$7*BP13)+(BQ$7*BQ13)+(BR$7*BR13)+(BS$7*BS13)) -> 0 | BX13: =IF(OR('Set UP'!$C11=0,'Set UP'!$D11=0,'Set UP'!$E11=0),"",(P13+AA13+AL13+AW13+BH13+BT13)) -> 0 | BY13: =IF(OR('Set UP'!$C11=0,'Set UP'!$D11=0,'Set UP'!$E11=0),"",RANK(BX13,$BX$9:$BX$48,0)) -> 31 | BZ13: =IF(OR('Set UP'!K11<>1,'Set UP'!C11=0,'Set UP'!D11=0,'Set UP'!E11=0,'Set UP'!F11=0),"",$BX13) ->  | CA13: =IF(OR('Set UP'!K11<>1,'Set UP'!C11=0,'Set UP'!D11=0,'Set UP'!E11=0,'Set UP'!F11=0),"",RANK(BZ13,$BZ$9:$BZ$48,0)) ->  | CB13: =IF(OR('Set UP'!K11<>2,'Set UP'!C11=0,'Set UP'!D11=0,'Set UP'!E11=0,'Set UP'!F11=0),"",$BX13) ->  | CC13: =IF(OR('Set UP'!K11<>2,'Set UP'!C11=0,'Set UP'!D11=0,'Set UP'!E11=0,'Set UP'!F11=0),"",RANK(CB13,$CB$9:$CB$48,0)) -> 
B14: 6 | C14: =IF(OR('Set UP'!$C12=0,'Set UP'!$D12=0,'Set UP'!$E12=0,'Set UP'!F12=0)," --",'Set UP'!C12) -> 507 | D14: =IF(OR('Set UP'!$C12=0,'Set UP'!$D12=0,'Set UP'!$E12=0,'Set UP'!F12=0)," --",'Set UP'!D12&" "&'Set UP'!E12) -> University of Plymouth C | E14: =IF(OR('Set UP'!$C12=0,'Set UP'!$D12=0,'Set UP'!$E12=0,'Set UP'!F12=0)," --",'Set UP'!F12) -> S | F14: 6 | G14: 1 | H14: 5 | I14: 1 | J14: 1 | P14: =IF(OR('Set UP'!$C12=0,'Set UP'!$D12=0,'Set UP'!$E12=0),"",(F$7*F14)+(G$7*G14)+(H$7*H14)+(I$7*I14)+(J$7*J14)+(K$7*K14)+(L$7*L14)+(M$7*M14)+(N$7*N14)+(O$7*O14)) -> 25.5 | Q14: 4 | R14: 6 | S14: 0 | T14: 1 | U14: 0 | V14: 0 | W14: 0 | X14: 0 | AA14: =IF(OR('Set UP'!$C12=0,'Set UP'!$D12=0,'Set UP'!$E12=0),"",(Q$7*Q14)+(R$7*R14)+(S$7*S14)+(T$7*T14)+(U$7*U14)+(V$7*V14)+(W$7*W14)+(X$7*X14)+(Y$7*Y14)+(Z$7*Z14)) -> 12 | AB14: 3 | AC14: 2 | AD14: 4 | AE14: 0 | AF14: 0 | AG14: 0 | AH14: 0 | AI14: 0 | AJ14: 0 | AL14: =IF(OR('Set UP'!$C12=0,'Set UP'!$D12=0,'Set UP'!$E12=0),"",(AB$7*AB14)+(AC$7*AC14)+(AD$7*AD14)+(AE$7*AE14)+(AF$7*AF14)+(AG$7*AG14)+(AH$7*AH14)+(AI$7*AI14)+(AJ$7*AJ14)+(AK$7*AK14)) -> 17 | AM14: 4 | AN14: 5 | AO14: 0 | AP14: 5 | AQ14: 4 | AR14: 0 | AS14: 4 | AT14: 5 | AW14: =IF(OR('Set UP'!$C12=0,'Set UP'!$D12=0,'Set UP'!$E12=0),"",(AM$7*AM14)+(AN$7*AN14)+(AO$7*AO14)+(AP$7*AP14)+(AQ$7*AQ14)+(AR$7*AR14)+(AS$7*AS14)+(AT$7*AT14)+(AU$7*AU14)+(AV$7*AV14)) -> 52 | AX14: 4 | AY14: 4 | AZ14: 0 | BA14: 0 | BB14: 4 | BC14: 8 | BD14: 0 | BE14: 0 | BH14: =IF(OR('Set UP'!$C12=0,'Set UP'!$D12=0,'Set UP'!$E12=0),"",(AX$7*AX14)+(AY$7*AY14)+(AZ$7*AZ14)+(BA$7*BA14)+(BB$7*BB14)+(BC$7*BC14)+(BD$7*BD14)+(BE$7*BE14)+(BF$7*BF14)+(BG$7*BG14)) -> 26 | BI14: 10 | BJ14: 10 | BK14: 0 | BL14: 7 | BM14: 3 | BT14: =IF(OR('Set UP'!$C12=0,'Set UP'!$D12=0,'Set UP'!$E12=0),"",(BI$7*BI14)+(BJ$7*BJ14)+(BK$7*BK14)+(BL$7*BL14)+(BM$7*BM14)+(BN$7*BN14)+(BO$7*BO14)+(BP$7*BP14)+(BQ$7*BQ14)+(BR$7*BR14)+(BS$7*BS14)) -> 25 | BX14: =IF(OR('Set UP'!$C12=0,'Set UP'!$D12=0,'Set UP'!$E12=0),"",(P14+AA14+AL14+AW14+BH14+BT14)) -> 157.5 | BY14: =IF(OR('Set UP'!$C12=0,'Set UP'!$D12=0,'Set UP'!$E12=0),"",RANK(BX14,$BX$9:$BX$48,0)) -> 24 | BZ14: =IF(OR('Set UP'!K12<>1,'Set UP'!C12=0,'Set UP'!D12=0,'Set UP'!E12=0,'Set UP'!F12=0),"",$BX14) ->  | CA14: =IF(OR('Set UP'!K12<>1,'Set UP'!C12=0,'Set UP'!D12=0,'Set UP'!E12=0,'Set UP'!F12=0),"",RANK(BZ14,$BZ$9:$BZ$48,0)) ->  | CB14: =IF(OR('Set UP'!K12<>2,'Set UP'!C12=0,'Set UP'!D12=0,'Set UP'!E12=0,'Set UP'!F12=0),"",$BX14) -> 157.5 | CC14: =IF(OR('Set UP'!K12<>2,'Set UP'!C12=0,'Set UP'!D12=0,'Set UP'!E12=0,'Set UP'!F12=0),"",RANK(CB14,$CB$9:$CB$48,0)) -> 11
B15: 7 | C15: =IF(OR('Set UP'!$C13=0,'Set UP'!$D13=0,'Set UP'!$E13=0,'Set UP'!F13=0)," --",'Set UP'!C13) -> 519 | D15: =IF(OR('Set UP'!$C13=0,'Set UP'!$D13=0,'Set UP'!$E13=0,'Set UP'!F13=0)," --",'Set UP'!D13&" "&'Set UP'!E13) -> University of Aberdeen B | E15: =IF(OR('Set UP'!$C13=0,'Set UP'!$D13=0,'Set UP'!$E13=0,'Set UP'!F13=0)," --",'Set UP'!F13) -> NC | F15: 6 | G15: 8 | H15: 1 | I15: 8 | J15: 6 | P15: =IF(OR('Set UP'!$C13=0,'Set UP'!$D13=0,'Set UP'!$E13=0),"",(F$7*F15)+(G$7*G15)+(H$7*H15)+(I$7*I15)+(J$7*J15)+(K$7*K15)+(L$7*L15)+(M$7*M15)+(N$7*N15)+(O$7*O15)) -> 43 | Q15: 1 | R15: 0 | S15: 0 | T15: 0 | U15: 0 | V15: 1 | W15: 0 | X15: 0 | AA15: =IF(OR('Set UP'!$C13=0,'Set UP'!$D13=0,'Set UP'!$E13=0),"",(Q$7*Q15)+(R$7*R15)+(S$7*S15)+(T$7*T15)+(U$7*U15)+(V$7*V15)+(W$7*W15)+(X$7*X15)+(Y$7*Y15)+(Z$7*Z15)) -> 2.5 | AB15: 2 | AC15: 2 | AD15: 0 | AE15: 0 | AF15: 0 | AG15: 0 | AH15: 0 | AI15: 0 | AJ15: 0 | AL15: =IF(OR('Set UP'!$C13=0,'Set UP'!$D13=0,'Set UP'!$E13=0),"",(AB$7*AB15)+(AC$7*AC15)+(AD$7*AD15)+(AE$7*AE15)+(AF$7*AF15)+(AG$7*AG15)+(AH$7*AH15)+(AI$7*AI15)+(AJ$7*AJ15)+(AK$7*AK15)) -> 6 | AM15: 5 | AN15: 3 | AO15: 0 | AP15: 5 | AQ15: 3 | AR15: 0 | AS15: 1 | AT15: 0 | AW15: =IF(OR('Set UP'!$C13=0,'Set UP'!$D13=0,'Set UP'!$E13=0),"",(AM$7*AM15)+(AN$7*AN15)+(AO$7*AO15)+(AP$7*AP15)+(AQ$7*AQ15)+(AR$7*AR15)+(AS$7*AS15)+(AT$7*AT15)+(AU$7*AU15)+(AV$7*AV15)) -> 39.5 | AX15: 4 | AY15: 5 | AZ15: 0 | BA15: 0 | BB15: 5 | BC15: 5 | BD15: 0 | BE15: 0 | BH15: =IF(OR('Set UP'!$C13=0,'Set UP'!$D13=0,'Set UP'!$E13=0),"",(AX$7*AX15)+(AY$7*AY15)+(AZ$7*AZ15)+(BA$7*BA15)+(BB$7*BB15)+(BC$7*BC15)+(BD$7*BD15)+(BE$7*BE15)+(BF$7*BF15)+(BG$7*BG15)) -> 24 | BI15: 0 | BS15: 5 | BT15: =IF(OR('Set UP'!$C13=0,'Set UP'!$D13=0,'Set UP'!$E13=0),"",(BI$7*BI15)+(BJ$7*BJ15)+(BK$7*BK15)+(BL$7*BL15)+(BM$7*BM15)+(BN$7*BN15)+(BO$7*BO15)+(BP$7*BP15)+(BQ$7*BQ15)+(BR$7*BR15)+(BS$7*BS15)) -> 2.5 | BX15: =IF(OR('Set UP'!$C13=0,'Set UP'!$D13=0,'Set UP'!$E13=0),"",(P15+AA15+AL15+AW15+BH15+BT15)) -> 117.5 | BY15: =IF(OR('Set UP'!$C13=0,'Set UP'!$D13=0,'Set UP'!$E13=0),"",RANK(BX15,$BX$9:$BX$48,0)) -> 30 | BZ15: =IF(OR('Set UP'!K13<>1,'Set UP'!C13=0,'Set UP'!D13=0,'Set UP'!E13=0,'Set UP'!F13=0),"",$BX15) ->  | CA15: =IF(OR('Set UP'!K13<>1,'Set UP'!C13=0,'Set UP'!D13=0,'Set UP'!E13=0,'Set UP'!F13=0),"",RANK(BZ15,$BZ$9:$BZ$48,0)) ->  | CB15: =IF(OR('Set UP'!K13<>2,'Set UP'!C13=0,'Set UP'!D13=0,'Set UP'!E13=0,'Set UP'!F13=0),"",$BX15) ->  | CC15: =IF(OR('Set UP'!K13<>2,'Set UP'!C13=0,'Set UP'!D13=0,'Set UP'!E13=0,'Set UP'!F13=0),"",RANK(CB15,$CB$9:$CB$48,0)) -> 
B16: 8 | C16: =IF(OR('Set UP'!$C14=0,'Set UP'!$D14=0,'Set UP'!$E14=0,'Set UP'!F14=0)," --",'Set UP'!C14) -> 532 | D16: =IF(OR('Set UP'!$C14=0,'Set UP'!$D14=0,'Set UP'!$E14=0,'Set UP'!F14=0)," --",'Set UP'!D14&" "&'Set UP'!E14) -> University of London Union E | E16: =IF(OR('Set UP'!$C14=0,'Set UP'!$D14=0,'Set UP'!$E14=0,'Set UP'!F14=0)," --",'Set UP'!F14) -> S | F16: 4 | G16: 3 | H16: 1 | I16: 4 | J16: 4 | P16: =IF(OR('Set UP'!$C14=0,'Set UP'!$D14=0,'Set UP'!$E14=0),"",(F$7*F16)+(G$7*G16)+(H$7*H16)+(I$7*I16)+(J$7*J16)+(K$7*K16)+(L$7*L16)+(M$7*M16)+(N$7*N16)+(O$7*O16)) -> 22.5 | Q16: 5 | R16: 5 | S16: 0 | T16: 2 | U16: 0 | V16: 3 | W16: 2 | X16: 0 | AA16: =IF(OR('Set UP'!$C14=0,'Set UP'!$D14=0,'Set UP'!$E14=0),"",(Q$7*Q16)+(R$7*R16)+(S$7*S16)+(T$7*T16)+(U$7*U16)+(V$7*V16)+(W$7*W16)+(X$7*X16)+(Y$7*Y16)+(Z$7*Z16)) -> 22.5 | AB16: 1 | AC16: 0 | AD16: 0 | AE16: 0 | AF16: 0 | AG16: 0 | AH16: 0 | AI16: 0 | AJ16: 0 | AL16: =IF(OR('Set UP'!$C14=0,'Set UP'!$D14=0,'Set UP'!$E14=0),"",(AB$7*AB16)+(AC$7*AC16)+(AD$7*AD16)+(AE$7*AE16)+(AF$7*AF16)+(AG$7*AG16)+(AH$7*AH16)+(AI$7*AI16)+(AJ$7*AJ16)+(AK$7*AK16)) -> 1 | AM16: 6 | AN16: 7 | AO16: 2 | AP16: 8 | AQ16: 7 | AR16: 3 | AS16: 3 | AT16: 7 | AW16: =IF(OR('Set UP'!$C14=0,'Set UP'!$D14=0,'Set UP'!$E14=0),"",(AM$7*AM16)+(AN$7*AN16)+(AO$7*AO16)+(AP$7*AP16)+(AQ$7*AQ16)+(AR$7*AR16)+(AS$7*AS16)+(AT$7*AT16)+(AU$7*AU16)+(AV$7*AV16)) -> 81.5 | AX16: 5 | AY16: 8 | AZ16: 6 | BA16: 0 | BB16: 5 | BC16: 8 | BD16: 6 | BE16: 0 | BH16: =IF(OR('Set UP'!$C14=0,'Set UP'!$D14=0,'Set UP'!$E14=0),"",(AX$7*AX16)+(AY$7*AY16)+(AZ$7*AZ16)+(BA$7*BA16)+(BB$7*BB16)+(BC$7*BC16)+(BD$7*BD16)+(BE$7*BE16)+(BF$7*BF16)+(BG$7*BG16)) -> 44.5 | BI16: 0 | BT16: =IF(OR('Set UP'!$C14=0,'Set UP'!$D14=0,'Set UP'!$E14=0),"",(BI$7*BI16)+(BJ$7*BJ16)+(BK$7*BK16)+(BL$7*BL16)+(BM$7*BM16)+(BN$7*BN16)+(BO$7*BO16)+(BP$7*BP16)+(BQ$7*BQ16)+(BR$7*BR16)+(BS$7*BS16)) -> 0 | BX16: =IF(OR('Set UP'!$C14=0,'Set UP'!$D14=0,'Set UP'!$E14=0),"",(P16+AA16+AL16+AW16+BH16+BT16)) -> 172 | BY16: =IF(OR('Set UP'!$C14=0,'Set UP'!$D14=0,'Set UP'!$E14=0),"",RANK(BX16,$BX$9:$BX$48,0)) -> 19 | BZ16: =IF(OR('Set UP'!K14<>1,'Set UP'!C14=0,'Set UP'!D14=0,'Set UP'!E14=0,'Set UP'!F14=0),"",$BX16) ->  | CA16: =IF(OR('Set UP'!K14<>1,'Set UP'!C14=0,'Set UP'!D14=0,'Set UP'!E14=0,'Set UP'!F14=0),"",RANK(BZ16,$BZ$9:$BZ$48,0)) ->  | CB16: =IF(OR('Set UP'!K14<>2,'Set UP'!C14=0,'Set UP'!D14=0,'Set UP'!E14=0,'Set UP'!F14=0),"",$BX16) -> 172 | CC16: =IF(OR('Set UP'!K14<>2,'Set UP'!C14=0,'Set UP'!D14=0,'Set UP'!E14=0,'Set UP'!F14=0),"",RANK(CB16,$CB$9:$CB$48,0)) -> 8
B17: 9 | C17: =IF(OR('Set UP'!$C15=0,'Set UP'!$D15=0,'Set UP'!$E15=0,'Set UP'!F15=0)," --",'Set UP'!C15) -> 530 | D17: =IF(OR('Set UP'!$C15=0,'Set UP'!$D15=0,'Set UP'!$E15=0,'Set UP'!F15=0)," --",'Set UP'!D15&" "&'Set UP'!E15) -> University of London Union C | E17: =IF(OR('Set UP'!$C15=0,'Set UP'!$D15=0,'Set UP'!$E15=0,'Set UP'!F15=0)," --",'Set UP'!F15) -> S | F17: 8 | G17: 8 | H17: 9 | I17: 7 | J17: 6 | P17: =IF(OR('Set UP'!$C15=0,'Set UP'!$D15=0,'Set UP'!$E15=0),"",(F$7*F17)+(G$7*G17)+(H$7*H17)+(I$7*I17)+(J$7*J17)+(K$7*K17)+(L$7*L17)+(M$7*M17)+(N$7*N17)+(O$7*O17)) -> 68 | Q17: 6 | R17: 6 | S17: 0 | T17: 4 | U17: 0 | V17: 6 | W17: 7 | X17: 4 | AA17: =IF(OR('Set UP'!$C15=0,'Set UP'!$D15=0,'Set UP'!$E15=0),"",(Q$7*Q17)+(R$7*R17)+(S$7*S17)+(T$7*T17)+(U$7*U17)+(V$7*V17)+(W$7*W17)+(X$7*X17)+(Y$7*Y17)+(Z$7*Z17)) -> 45 | AB17: 4 | AC17: 2 | AD17: 0 | AE17: 0 | AF17: 0 | AG17: 0 | AH17: 0 | AI17: 0 | AJ17: 0 | AL17: =IF(OR('Set UP'!$C15=0,'Set UP'!$D15=0,'Set UP'!$E15=0),"",(AB$7*AB17)+(AC$7*AC17)+(AD$7*AD17)+(AE$7*AE17)+(AF$7*AF17)+(AG$7*AG17)+(AH$7*AH17)+(AI$7*AI17)+(AJ$7*AJ17)+(AK$7*AK17)) -> 8 | AM17: 8 | AN17: 7 | AO17: 2 | AP17: 6 | AQ17: 5 | AR17: 2 | AS17: 1 | AT17: 0 | AW17: =IF(OR('Set UP'!$C15=0,'Set UP'!$D15=0,'Set UP'!$E15=0),"",(AM$7*AM17)+(AN$7*AN17)+(AO$7*AO17)+(AP$7*AP17)+(AQ$7*AQ17)+(AR$7*AR17)+(AS$7*AS17)+(AT$7*AT17)+(AU$7*AU17)+(AV$7*AV17)) -> 66 | AX17: 7 | AY17: 7 | AZ17: 3 | BA17: 0 | BB17: 6 | BC17: 7 | BD17: 3 | BE17: 0 | BH17: =IF(OR('Set UP'!$C15=0,'Set UP'!$D15=0,'Set UP'!$E15=0),"",(AX$7*AX17)+(AY$7*AY17)+(AZ$7*AZ17)+(BA$7*BA17)+(BB$7*BB17)+(BC$7*BC17)+(BD$7*BD17)+(BE$7*BE17)+(BF$7*BF17)+(BG$7*BG17)) -> 39 | BI17: 0 | BT17: =IF(OR('Set UP'!$C15=0,'Set UP'!$D15=0,'Set UP'!$E15=0),"",(BI$7*BI17)+(BJ$7*BJ17)+(BK$7*BK17)+(BL$7*BL17)+(BM$7*BM17)+(BN$7*BN17)+(BO$7*BO17)+(BP$7*BP17)+(BQ$7*BQ17)+(BR$7*BR17)+(BS$7*BS17)) -> 0 | BX17: =IF(OR('Set UP'!$C15=0,'Set UP'!$D15=0,'Set UP'!$E15=0),"",(P17+AA17+AL17+AW17+BH17+BT17)) -> 226 | BY17: =IF(OR('Set UP'!$C15=0,'Set UP'!$D15=0,'Set UP'!$E15=0),"",RANK(BX17,$BX$9:$BX$48,0)) -> 4 | BZ17: =IF(OR('Set UP'!K15<>1,'Set UP'!C15=0,'Set UP'!D15=0,'Set UP'!E15=0,'Set UP'!F15=0),"",$BX17) ->  | CA17: =IF(OR('Set UP'!K15<>1,'Set UP'!C15=0,'Set UP'!D15=0,'Set UP'!E15=0,'Set UP'!F15=0),"",RANK(BZ17,$BZ$9:$BZ$48,0)) ->  | CB17: =IF(OR('Set UP'!K15<>2,'Set UP'!C15=0,'Set UP'!D15=0,'Set UP'!E15=0,'Set UP'!F15=0),"",$BX17) -> 226 | CC17: =IF(OR('Set UP'!K15<>2,'Set UP'!C15=0,'Set UP'!D15=0,'Set UP'!E15=0,'Set UP'!F15=0),"",RANK(CB17,$CB$9:$CB$48,0)) -> 1
B18: 10 | C18: =IF(OR('Set UP'!$C16=0,'Set UP'!$D16=0,'Set UP'!$E16=0,'Set UP'!F16=0)," --",'Set UP'!C16) -> 506 | D18: =IF(OR('Set UP'!$C16=0,'Set UP'!$D16=0,'Set UP'!$E16=0,'Set UP'!F16=0)," --",'Set UP'!D16&" "&'Set UP'!E16) -> University of Plymouth B | E18: =IF(OR('Set UP'!$C16=0,'Set UP'!$D16=0,'Set UP'!$E16=0,'Set UP'!F16=0)," --",'Set UP'!F16) -> S | F18: 5 | G18: 2 | H18: 6 | I18: 1 | J18: 0 | P18: =IF(OR('Set UP'!$C16=0,'Set UP'!$D16=0,'Set UP'!$E16=0),"",(F$7*F18)+(G$7*G18)+(H$7*H18)+(I$7*I18)+(J$7*J18)+(K$7*K18)+(L$7*L18)+(M$7*M18)+(N$7*N18)+(O$7*O18)) -> 29 | Q18: 5 | R18: 6 | S18: 0 | T18: 2 | U18: 0 | V18: 7 | W18: 6 | X18: 0 | AA18: =IF(OR('Set UP'!$C16=0,'Set UP'!$D16=0,'Set UP'!$E16=0),"",(Q$7*Q18)+(R$7*R18)+(S$7*S18)+(T$7*T18)+(U$7*U18)+(V$7*V18)+(W$7*W18)+(X$7*X18)+(Y$7*Y18)+(Z$7*Z18)) -> 37.5 | AB18: 2 | AC18: 4 | AD18: 0 | AE18: 0 | AF18: 0 | AG18: 3 | AH18: 0 | AI18: 0 | AJ18: 0 | AL18: =IF(OR('Set UP'!$C16=0,'Set UP'!$D16=0,'Set UP'!$E16=0),"",(AB$7*AB18)+(AC$7*AC18)+(AD$7*AD18)+(AE$7*AE18)+(AF$7*AF18)+(AG$7*AG18)+(AH$7*AH18)+(AI$7*AI18)+(AJ$7*AJ18)+(AK$7*AK18)) -> 13 | AM18: 5 | AN18: 4 | AO18: 2 | AP18: 7 | AQ18: 5 | AR18: 2 | AS18: 4 | AT18: 0 | AW18: =IF(OR('Set UP'!$C16=0,'Set UP'!$D16=0,'Set UP'!$E16=0),"",(AM$7*AM18)+(AN$7*AN18)+(AO$7*AO18)+(AP$7*AP18)+(AQ$7*AQ18)+(AR$7*AR18)+(AS$7*AS18)+(AT$7*AT18)+(AU$7*AU18)+(AV$7*AV18)) -> 56.5 | AX18: 1 | AY18: 3 | AZ18: 0 | BA18: 0 | BB18: 5 | BC18: 7 | BD18: 5 | BE18: 0 | BH18: =IF(OR('Set UP'!$C16=0,'Set UP'!$D16=0,'Set UP'!$E16=0),"",(AX$7*AX18)+(AY$7*AY18)+(AZ$7*AZ18)+(BA$7*BA18)+(BB$7*BB18)+(BC$7*BC18)+(BD$7*BD18)+(BE$7*BE18)+(BF$7*BF18)+(BG$7*BG18)) -> 22.5 | BI18: 10 | BJ18: 0 | BK18: 0 | BL18: 0 | BM18: 0 | BT18: =IF(OR('Set UP'!$C16=0,'Set UP'!$D16=0,'Set UP'!$E16=0),"",(BI$7*BI18)+(BJ$7*BJ18)+(BK$7*BK18)+(BL$7*BL18)+(BM$7*BM18)+(BN$7*BN18)+(BO$7*BO18)+(BP$7*BP18)+(BQ$7*BQ18)+(BR$7*BR18)+(BS$7*BS18)) -> 10 | BX18: =IF(OR('Set UP'!$C16=0,'Set UP'!$D16=0,'Set UP'!$E16=0),"",(P18+AA18+AL18+AW18+BH18+BT18)) -> 168.5 | BY18: =IF(OR('Set UP'!$C16=0,'Set UP'!$D16=0,'Set UP'!$E16=0),"",RANK(BX18,$BX$9:$BX$48,0)) -> 22 | BZ18: =IF(OR('Set UP'!K16<>1,'Set UP'!C16=0,'Set UP'!D16=0,'Set UP'!E16=0,'Set UP'!F16=0),"",$BX18) ->  | CA18: =IF(OR('Set UP'!K16<>1,'Set UP'!C16=0,'Set UP'!D16=0,'Set UP'!E16=0,'Set UP'!F16=0),"",RANK(BZ18,$BZ$9:$BZ$48,0)) ->  | CB18: =IF(OR('Set UP'!K16<>2,'Set UP'!C16=0,'Set UP'!D16=0,'Set UP'!E16=0,'Set UP'!F16=0),"",$BX18) -> 168.5 | CC18: =IF(OR('Set UP'!K16<>2,'Set UP'!C16=0,'Set UP'!D16=0,'Set UP'!E16=0,'Set UP'!F16=0),"",RANK(CB18,$CB$9:$CB$48,0)) -> 10
B19: 11 | C19: =IF(OR('Set UP'!$C17=0,'Set UP'!$D17=0,'Set UP'!$E17=0,'Set UP'!F17=0)," --",'Set UP'!C17) -> 518 | D19: =IF(OR('Set UP'!$C17=0,'Set UP'!$D17=0,'Set UP'!$E17=0,'Set UP'!F17=0)," --",'Set UP'!D17&" "&'Set UP'!E17) -> University of Aberdeen A | E19: =IF(OR('Set UP'!$C17=0,'Set UP'!$D17=0,'Set UP'!$E17=0,'Set UP'!F17=0)," --",'Set UP'!F17) -> S | F19: 7 | G19: 3 | H19: 3 | I19: 2 | J19: 5 | P19: =IF(OR('Set UP'!$C17=0,'Set UP'!$D17=0,'Set UP'!$E17=0),"",(F$7*F19)+(G$7*G19)+(H$7*H19)+(I$7*I19)+(J$7*J19)+(K$7*K19)+(L$7*L19)+(M$7*M19)+(N$7*N19)+(O$7*O19)) -> 30.5 | Q19: 5 | R19: 4 | S19: 6 | T19: 5 | U19: 5 | V19: 5 | W19: 5 | X19: 0 | AA19: =IF(OR('Set UP'!$C17=0,'Set UP'!$D17=0,'Set UP'!$E17=0),"",(Q$7*Q19)+(R$7*R19)+(S$7*S19)+(T$7*T19)+(U$7*U19)+(V$7*V19)+(W$7*W19)+(X$7*X19)+(Y$7*Y19)+(Z$7*Z19)) -> 45 | AB19: 5 | AC19: 4 | AD19: 8 | AE19: 0 | AF19: 0 | AG19: 10 | AH19: 4 | AI19: 0 | AJ19: 0 | AL19: =IF(OR('Set UP'!$C17=0,'Set UP'!$D17=0,'Set UP'!$E17=0),"",(AB$7*AB19)+(AC$7*AC19)+(AD$7*AD19)+(AE$7*AE19)+(AF$7*AF19)+(AG$7*AG19)+(AH$7*AH19)+(AI$7*AI19)+(AJ$7*AJ19)+(AK$7*AK19)) -> 47 | AM19: 6 | AN19: 5 | AO19: 0 | AP19: 5 | AQ19: 4 | AR19: 0 | AS19: 3 | AT19: 3 | AW19: =IF(OR('Set UP'!$C17=0,'Set UP'!$D17=0,'Set UP'!$E17=0),"",(AM$7*AM19)+(AN$7*AN19)+(AO$7*AO19)+(AP$7*AP19)+(AQ$7*AQ19)+(AR$7*AR19)+(AS$7*AS19)+(AT$7*AT19)+(AU$7*AU19)+(AV$7*AV19)) -> 53.5 | AX19: 3 | AY19: 6 | AZ19: 0 | BA19: 0 | BB19: 3 | BC19: 6 | BD19: 0 | BE19: 0 | BH19: =IF(OR('Set UP'!$C17=0,'Set UP'!$D17=0,'Set UP'!$E17=0),"",(AX$7*AX19)+(AY$7*AY19)+(AZ$7*AZ19)+(BA$7*BA19)+(BB$7*BB19)+(BC$7*BC19)+(BD$7*BD19)+(BE$7*BE19)+(BF$7*BF19)+(BG$7*BG19)) -> 25.5 | BI19: 0 | BT19: =IF(OR('Set UP'!$C17=0,'Set UP'!$D17=0,'Set UP'!$E17=0),"",(BI$7*BI19)+(BJ$7*BJ19)+(BK$7*BK19)+(BL$7*BL19)+(BM$7*BM19)+(BN$7*BN19)+(BO$7*BO19)+(BP$7*BP19)+(BQ$7*BQ19)+(BR$7*BR19)+(BS$7*BS19)) -> 0 | BX19: =IF(OR('Set UP'!$C17=0,'Set UP'!$D17=0,'Set UP'!$E17=0),"",(P19+AA19+AL19+AW19+BH19+BT19)) -> 201.5 | BY19: =IF(OR('Set UP'!$C17=0,'Set UP'!$D17=0,'Set UP'!$E17=0),"",RANK(BX19,$BX$9:$BX$48,0)) -> 12 | BZ19: =IF(OR('Set UP'!K17<>1,'Set UP'!C17=0,'Set UP'!D17=0,'Set UP'!E17=0,'Set UP'!F17=0),"",$BX19) -> 201.5 | CA19: =IF(OR('Set UP'!K17<>1,'Set UP'!C17=0,'Set UP'!D17=0,'Set UP'!E17=0,'Set UP'!F17=0),"",RANK(BZ19,$BZ$9:$BZ$48,0)) -> 7 | CB19: =IF(OR('Set UP'!K17<>2,'Set UP'!C17=0,'Set UP'!D17=0,'Set UP'!E17=0,'Set UP'!F17=0),"",$BX19) ->  | CC19: =IF(OR('Set UP'!K17<>2,'Set UP'!C17=0,'Set UP'!D17=0,'Set UP'!E17=0,'Set UP'!F17=0),"",RANK(CB19,$CB$9:$CB$48,0)) -> 
B20: 12 | C20: =IF(OR('Set UP'!$C18=0,'Set UP'!$D18=0,'Set UP'!$E18=0,'Set UP'!F18=0)," --",'Set UP'!C18) -> 538 | D20: =IF(OR('Set UP'!$C18=0,'Set UP'!$D18=0,'Set UP'!$E18=0,'Set UP'!F18=0)," --",'Set UP'!D18&" "&'Set UP'!E18) -> University of Southampton C | E20: =IF(OR('Set UP'!$C18=0,'Set UP'!$D18=0,'Set UP'!$E18=0,'Set UP'!F18=0)," --",'Set UP'!F18) -> S | F20: 5 | G20: 3 | H20: 5 | I20: 2 | J20: 0 | P20: =IF(OR('Set UP'!$C18=0,'Set UP'!$D18=0,'Set UP'!$E18=0),"",(F$7*F20)+(G$7*G20)+(H$7*H20)+(I$7*I20)+(J$7*J20)+(K$7*K20)+(L$7*L20)+(M$7*M20)+(N$7*N20)+(O$7*O20)) -> 29.5 | Q20: 5 | R20: 2 | S20: 0 | T20: 1 | U20: 0 | V20: 5 | W20: 5 | X20: 0 | AA20: =IF(OR('Set UP'!$C18=0,'Set UP'!$D18=0,'Set UP'!$E18=0),"",(Q$7*Q20)+(R$7*R20)+(S$7*S20)+(T$7*T20)+(U$7*U20)+(V$7*V20)+(W$7*W20)+(X$7*X20)+(Y$7*Y20)+(Z$7*Z20)) -> 26.5 | AB20: 8 | AC20: 8 | AD20: 7 | AE20: 0 | AF20: 0 | AG20: 2 | AH20: 0 | AI20: 0 | AJ20: 0 | AL20: =IF(OR('Set UP'!$C18=0,'Set UP'!$D18=0,'Set UP'!$E18=0),"",(AB$7*AB20)+(AC$7*AC20)+(AD$7*AD20)+(AE$7*AE20)+(AF$7*AF20)+(AG$7*AG20)+(AH$7*AH20)+(AI$7*AI20)+(AJ$7*AJ20)+(AK$7*AK20)) -> 43.5 | AM20: 6 | AN20: 4 | AO20: 0 | AP20: 8 | AQ20: 2 | AR20: 0 | AS20: 0 | AT20: 0 | AW20: =IF(OR('Set UP'!$C18=0,'Set UP'!$D18=0,'Set UP'!$E18=0),"",(AM$7*AM20)+(AN$7*AN20)+(AO$7*AO20)+(AP$7*AP20)+(AQ$7*AQ20)+(AR$7*AR20)+(AS$7*AS20)+(AT$7*AT20)+(AU$7*AU20)+(AV$7*AV20)) -> 48 | AX20: 5 | AY20: 4 | AZ20: 0 | BA20: 0 | BB20: 5 | BC20: 4 | BD20: 0 | BE20: 0 | BH20: =IF(OR('Set UP'!$C18=0,'Set UP'!$D18=0,'Set UP'!$E18=0),"",(AX$7*AX20)+(AY$7*AY20)+(AZ$7*AZ20)+(BA$7*BA20)+(BB$7*BB20)+(BC$7*BC20)+(BD$7*BD20)+(BE$7*BE20)+(BF$7*BF20)+(BG$7*BG20)) -> 21.5 | BI20: 0 | BT20: =IF(OR('Set UP'!$C18=0,'Set UP'!$D18=0,'Set UP'!$E18=0),"",(BI$7*BI20)+(BJ$7*BJ20)+(BK$7*BK20)+(BL$7*BL20)+(BM$7*BM20)+(BN$7*BN20)+(BO$7*BO20)+(BP$7*BP20)+(BQ$7*BQ20)+(BR$7*BR20)+(BS$7*BS20)) -> 0 | BX20: =IF(OR('Set UP'!$C18=0,'Set UP'!$D18=0,'Set UP'!$E18=0),"",(P20+AA20+AL20+AW20+BH20+BT20)) -> 169 | BY20: =IF(OR('Set UP'!$C18=0,'Set UP'!$D18=0,'Set UP'!$E18=0),"",RANK(BX20,$BX$9:$BX$48,0)) -> 21 | BZ20: =IF(OR('Set UP'!K18<>1,'Set UP'!C18=0,'Set UP'!D18=0,'Set UP'!E18=0,'Set UP'!F18=0),"",$BX20) ->  | CA20: =IF(OR('Set UP'!K18<>1,'Set UP'!C18=0,'Set UP'!D18=0,'Set UP'!E18=0,'Set UP'!F18=0),"",RANK(BZ20,$BZ$9:$BZ$48,0)) ->  | CB20: =IF(OR('Set UP'!K18<>2,'Set UP'!C18=0,'Set UP'!D18=0,'Set UP'!E18=0,'Set UP'!F18=0),"",$BX20) -> 169 | CC20: =IF(OR('Set UP'!K18<>2,'Set UP'!C18=0,'Set UP'!D18=0,'Set UP'!E18=0,'Set UP'!F18=0),"",RANK(CB20,$CB$9:$CB$48,0)) -> 9
B21: 13 | C21: =IF(OR('Set UP'!$C19=0,'Set UP'!$D19=0,'Set UP'!$E19=0,'Set UP'!F19=0)," --",'Set UP'!C19) -> 515 | D21: =IF(OR('Set UP'!$C19=0,'Set UP'!$D19=0,'Set UP'!$E19=0,'Set UP'!F19=0)," --",'Set UP'!D19&" "&'Set UP'!E19) -> Loughborough University C | E21: =IF(OR('Set UP'!$C19=0,'Set UP'!$D19=0,'Set UP'!$E19=0,'Set UP'!F19=0)," --",'Set UP'!F19) -> S | F21: 6 | G21: 6 | H21: 6 | I21: 6 | J21: 5 | P21: =IF(OR('Set UP'!$C19=0,'Set UP'!$D19=0,'Set UP'!$E19=0),"",(F$7*F21)+(G$7*G21)+(H$7*H21)+(I$7*I21)+(J$7*J21)+(K$7*K21)+(L$7*L21)+(M$7*M21)+(N$7*N21)+(O$7*O21)) -> 50 | Q21: 6 | R21: 2 | S21: 0 | T21: 1 | U21: 0 | V21: 4 | W21: 4 | X21: 0 | AA21: =IF(OR('Set UP'!$C19=0,'Set UP'!$D19=0,'Set UP'!$E19=0),"",(Q$7*Q21)+(R$7*R21)+(S$7*S21)+(T$7*T21)+(U$7*U21)+(V$7*V21)+(W$7*W21)+(X$7*X21)+(Y$7*Y21)+(Z$7*Z21)) -> 24 | AB21: 0 | AC21: 0 | AD21: 0 | AE21: 0 | AF21: 0 | AG21: 0 | AH21: 0 | AI21: 0 | AJ21: 0 | AL21: =IF(OR('Set UP'!$C19=0,'Set UP'!$D19=0,'Set UP'!$E19=0),"",(AB$7*AB21)+(AC$7*AC21)+(AD$7*AD21)+(AE$7*AE21)+(AF$7*AF21)+(AG$7*AG21)+(AH$7*AH21)+(AI$7*AI21)+(AJ$7*AJ21)+(AK$7*AK21)) -> 0 | AM21: 6 | AN21: 6 | AO21: 4 | AP21: 6 | AQ21: 6 | AR21: 4 | AS21: 3 | AT21: 3 | AW21: =IF(OR('Set UP'!$C19=0,'Set UP'!$D19=0,'Set UP'!$E19=0),"",(AM$7*AM21)+(AN$7*AN21)+(AO$7*AO21)+(AP$7*AP21)+(AQ$7*AQ21)+(AR$7*AR21)+(AS$7*AS21)+(AT$7*AT21)+(AU$7*AU21)+(AV$7*AV21)) -> 68.5 | AX21: 5 | AY21: 6 | AZ21: 2 | BA21: 0 | BB21: 4 | BC21: 7 | BD21: 0 | BE21: 0 | BH21: =IF(OR('Set UP'!$C19=0,'Set UP'!$D19=0,'Set UP'!$E19=0),"",(AX$7*AX21)+(AY$7*AY21)+(AZ$7*AZ21)+(BA$7*BA21)+(BB$7*BB21)+(BC$7*BC21)+(BD$7*BD21)+(BE$7*BE21)+(BF$7*BF21)+(BG$7*BG21)) -> 31.5 | BI21: 0 | BT21: =IF(OR('Set UP'!$C19=0,'Set UP'!$D19=0,'Set UP'!$E19=0),"",(BI$7*BI21)+(BJ$7*BJ21)+(BK$7*BK21)+(BL$7*BL21)+(BM$7*BM21)+(BN$7*BN21)+(BO$7*BO21)+(BP$7*BP21)+(BQ$7*BQ21)+(BR$7*BR21)+(BS$7*BS21)) -> 0 | BX21: =IF(OR('Set UP'!$C19=0,'Set UP'!$D19=0,'Set UP'!$E19=0),"",(P21+AA21+AL21+AW21+BH21+BT21)) -> 174 | BY21: =IF(OR('Set UP'!$C19=0,'Set UP'!$D19=0,'Set UP'!$E19=0),"",RANK(BX21,$BX$9:$BX$48,0)) -> 17 | BZ21: =IF(OR('Set UP'!K19<>1,'Set UP'!C19=0,'Set UP'!D19=0,'Set UP'!E19=0,'Set UP'!F19=0),"",$BX21) ->  | CA21: =IF(OR('Set UP'!K19<>1,'Set UP'!C19=0,'Set UP'!D19=0,'Set UP'!E19=0,'Set UP'!F19=0),"",RANK(BZ21,$BZ$9:$BZ$48,0)) ->  | CB21: =IF(OR('Set UP'!K19<>2,'Set UP'!C19=0,'Set UP'!D19=0,'Set UP'!E19=0,'Set UP'!F19=0),"",$BX21) -> 174 | CC21: =IF(OR('Set UP'!K19<>2,'Set UP'!C19=0,'Set UP'!D19=0,'Set UP'!E19=0,'Set UP'!F19=0),"",RANK(CB21,$CB$9:$CB$48,0)) -> 7
B22: 14 | C22: =IF(OR('Set UP'!$C20=0,'Set UP'!$D20=0,'Set UP'!$E20=0,'Set UP'!F20=0)," --",'Set UP'!C20) -> 520 | D22: =IF(OR('Set UP'!$C20=0,'Set UP'!$D20=0,'Set UP'!$E20=0,'Set UP'!F20=0)," --",'Set UP'!D20&" "&'Set UP'!E20) -> Loughborough University D | E22: =IF(OR('Set UP'!$C20=0,'Set UP'!$D20=0,'Set UP'!$E20=0,'Set UP'!F20=0)," --",'Set UP'!F20) -> NS | F22: 6 | G22: 3 | H22: 0 | I22: 2 | J22: 3 | P22: =IF(OR('Set UP'!$C20=0,'Set UP'!$D20=0,'Set UP'!$E20=0),"",(F$7*F22)+(G$7*G22)+(H$7*H22)+(I$7*I22)+(J$7*J22)+(K$7*K22)+(L$7*L22)+(M$7*M22)+(N$7*N22)+(O$7*O22)) -> 18.5 | Q22: 2 | R22: 0 | S22: 6 | T22: 3 | U22: 0 | V22: 2 | W22: 1 | X22: 0 | AA22: =IF(OR('Set UP'!$C20=0,'Set UP'!$D20=0,'Set UP'!$E20=0),"",(Q$7*Q22)+(R$7*R22)+(S$7*S22)+(T$7*T22)+(U$7*U22)+(V$7*V22)+(W$7*W22)+(X$7*X22)+(Y$7*Y22)+(Z$7*Z22)) -> 19 | AB22: 8 | AC22: 7 | AD22: 3 | AE22: 0 | AF22: 0 | AG22: 6 | AH22: 0 | AI22: 0 | AJ22: 0 | AL22: =IF(OR('Set UP'!$C20=0,'Set UP'!$D20=0,'Set UP'!$E20=0),"",(AB$7*AB22)+(AC$7*AC22)+(AD$7*AD22)+(AE$7*AE22)+(AF$7*AF22)+(AG$7*AG22)+(AH$7*AH22)+(AI$7*AI22)+(AJ$7*AJ22)+(AK$7*AK22)) -> 35.5 | AM22: 5 | AN22: 6 | AO22: 5 | AP22: 6 | AQ22: 6 | AR22: 4 | AS22: 3 | AT22: 0 | AW22: =IF(OR('Set UP'!$C20=0,'Set UP'!$D20=0,'Set UP'!$E20=0),"",(AM$7*AM22)+(AN$7*AN22)+(AO$7*AO22)+(AP$7*AP22)+(AQ$7*AQ22)+(AR$7*AR22)+(AS$7*AS22)+(AT$7*AT22)+(AU$7*AU22)+(AV$7*AV22)) -> 64 | AX22: 3 | AY22: 6 | AZ22: 2 | BA22: 0 | BB22: 4 | BC22: 7 | BD22: 0 | BE22: 0 | BH22: =IF(OR('Set UP'!$C20=0,'Set UP'!$D20=0,'Set UP'!$E20=0),"",(AX$7*AX22)+(AY$7*AY22)+(AZ$7*AZ22)+(BA$7*BA22)+(BB$7*BB22)+(BC$7*BC22)+(BD$7*BD22)+(BE$7*BE22)+(BF$7*BF22)+(BG$7*BG22)) -> 29.5 | BI22: 0 | BT22: =IF(OR('Set UP'!$C20=0,'Set UP'!$D20=0,'Set UP'!$E20=0),"",(BI$7*BI22)+(BJ$7*BJ22)+(BK$7*BK22)+(BL$7*BL22)+(BM$7*BM22)+(BN$7*BN22)+(BO$7*BO22)+(BP$7*BP22)+(BQ$7*BQ22)+(BR$7*BR22)+(BS$7*BS22)) -> 0 | BX22: =IF(OR('Set UP'!$C20=0,'Set UP'!$D20=0,'Set UP'!$E20=0),"",(P22+AA22+AL22+AW22+BH22+BT22)) -> 166.5 | BY22: =IF(OR('Set UP'!$C20=0,'Set UP'!$D20=0,'Set UP'!$E20=0),"",RANK(BX22,$BX$9:$BX$48,0)) -> 23 | BZ22: =IF(OR('Set UP'!K20<>1,'Set UP'!C20=0,'Set UP'!D20=0,'Set UP'!E20=0,'Set UP'!F20=0),"",$BX22) ->  | CA22: =IF(OR('Set UP'!K20<>1,'Set UP'!C20=0,'Set UP'!D20=0,'Set UP'!E20=0,'Set UP'!F20=0),"",RANK(BZ22,$BZ$9:$BZ$48,0)) ->  | CB22: =IF(OR('Set UP'!K20<>2,'Set UP'!C20=0,'Set UP'!D20=0,'Set UP'!E20=0,'Set UP'!F20=0),"",$BX22) ->  | CC22: =IF(OR('Set UP'!K20<>2,'Set UP'!C20=0,'Set UP'!D20=0,'Set UP'!E20=0,'Set UP'!F20=0),"",RANK(CB22,$CB$9:$CB$48,0)) -> 
B23: 15 | C23: =IF(OR('Set UP'!$C21=0,'Set UP'!$D21=0,'Set UP'!$E21=0,'Set UP'!F21=0)," --",'Set UP'!C21) -> 512 | D23: =IF(OR('Set UP'!$C21=0,'Set UP'!$D21=0,'Set UP'!$E21=0,'Set UP'!F21=0)," --",'Set UP'!D21&" "&'Set UP'!E21) -> University of Warwick C | E23: =IF(OR('Set UP'!$C21=0,'Set UP'!$D21=0,'Set UP'!$E21=0,'Set UP'!F21=0)," --",'Set UP'!F21) -> NC | F23: 2 | G23: 3 | H23: 2 | I23: 4 | J23: 2 | P23: =IF(OR('Set UP'!$C21=0,'Set UP'!$D21=0,'Set UP'!$E21=0),"",(F$7*F23)+(G$7*G23)+(H$7*H23)+(I$7*I23)+(J$7*J23)+(K$7*K23)+(L$7*L23)+(M$7*M23)+(N$7*N23)+(O$7*O23)) -> 21.5 | Q23: 6 | R23: 6 | S23: 6 | T23: 6 | U23: 5 | V23: 4 | W23: 4 | X23: 0 | AA23: =IF(OR('Set UP'!$C21=0,'Set UP'!$D21=0,'Set UP'!$E21=0),"",(Q$7*Q23)+(R$7*R23)+(S$7*S23)+(T$7*T23)+(U$7*U23)+(V$7*V23)+(W$7*W23)+(X$7*X23)+(Y$7*Y23)+(Z$7*Z23)) -> 46.5 | AB23: 2 | AC23: 1 | AD23: 0 | AE23: 0 | AF23: 0 | AG23: 0 | AH23: 0 | AI23: 0 | AJ23: 0 | AL23: =IF(OR('Set UP'!$C21=0,'Set UP'!$D21=0,'Set UP'!$E21=0),"",(AB$7*AB23)+(AC$7*AC23)+(AD$7*AD23)+(AE$7*AE23)+(AF$7*AF23)+(AG$7*AG23)+(AH$7*AH23)+(AI$7*AI23)+(AJ$7*AJ23)+(AK$7*AK23)) -> 4 | AM23: 6 | AN23: 5 | AO23: 4 | AP23: 4 | AQ23: 4 | AR23: 0 | AS23: 0 | AT23: 0 | AW23: =IF(OR('Set UP'!$C21=0,'Set UP'!$D21=0,'Set UP'!$E21=0),"",(AM$7*AM23)+(AN$7*AN23)+(AO$7*AO23)+(AP$7*AP23)+(AQ$7*AQ23)+(AR$7*AR23)+(AS$7*AS23)+(AT$7*AT23)+(AU$7*AU23)+(AV$7*AV23)) -> 48.5 | AX23: 9 | AY23: 7 | AZ23: 9 | BA23: 4 | BB23: 5 | BC23: 7 | BD23: 6 | BE23: 2 | BH23: =IF(OR('Set UP'!$C21=0,'Set UP'!$D21=0,'Set UP'!$E21=0),"",(AX$7*AX23)+(AY$7*AY23)+(AZ$7*AZ23)+(BA$7*BA23)+(BB$7*BB23)+(BC$7*BC23)+(BD$7*BD23)+(BE$7*BE23)+(BF$7*BF23)+(BG$7*BG23)) -> 53 | BI23: 0 | BT23: =IF(OR('Set UP'!$C21=0,'Set UP'!$D21=0,'Set UP'!$E21=0),"",(BI$7*BI23)+(BJ$7*BJ23)+(BK$7*BK23)+(BL$7*BL23)+(BM$7*BM23)+(BN$7*BN23)+(BO$7*BO23)+(BP$7*BP23)+(BQ$7*BQ23)+(BR$7*BR23)+(BS$7*BS23)) -> 0 | BX23: =IF(OR('Set UP'!$C21=0,'Set UP'!$D21=0,'Set UP'!$E21=0),"",(P23+AA23+AL23+AW23+BH23+BT23)) -> 173.5 | BY23: =IF(OR('Set UP'!$C21=0,'Set UP'!$D21=0,'Set UP'!$E21=0),"",RANK(BX23,$BX$9:$BX$48,0)) -> 18 | BZ23: =IF(OR('Set UP'!K21<>1,'Set UP'!C21=0,'Set UP'!D21=0,'Set UP'!E21=0,'Set UP'!F21=0),"",$BX23) ->  | CA23: =IF(OR('Set UP'!K21<>1,'Set UP'!C21=0,'Set UP'!D21=0,'Set UP'!E21=0,'Set UP'!F21=0),"",RANK(BZ23,$BZ$9:$BZ$48,0)) ->  | CB23: =IF(OR('Set UP'!K21<>2,'Set UP'!C21=0,'Set UP'!D21=0,'Set UP'!E21=0,'Set UP'!F21=0),"",$BX23) ->  | CC23: =IF(OR('Set UP'!K21<>2,'Set UP'!C21=0,'Set UP'!D21=0,'Set UP'!E21=0,'Set UP'!F21=0),"",RANK(CB23,$CB$9:$CB$48,0)) -> 
B24: 16 | C24: =IF(OR('Set UP'!$C22=0,'Set UP'!$D22=0,'Set UP'!$E22=0,'Set UP'!F22=0)," --",'Set UP'!C22) -> 531 | D24: =IF(OR('Set UP'!$C22=0,'Set UP'!$D22=0,'Set UP'!$E22=0,'Set UP'!F22=0)," --",'Set UP'!D22&" "&'Set UP'!E22) -> University of London Union D | E24: =IF(OR('Set UP'!$C22=0,'Set UP'!$D22=0,'Set UP'!$E22=0,'Set UP'!F22=0)," --",'Set UP'!F22) -> NC | F24: 5 | G24: 4 | H24: 6 | I24: 5 | J24: 5 | P24: =IF(OR('Set UP'!$C22=0,'Set UP'!$D22=0,'Set UP'!$E22=0),"",(F$7*F24)+(G$7*G24)+(H$7*H24)+(I$7*I24)+(J$7*J24)+(K$7*K24)+(L$7*L24)+(M$7*M24)+(N$7*N24)+(O$7*O24)) -> 43 | Q24: 6 | R24: 6 | S24: 0 | T24: 2 | U24: 0 | V24: 6 | W24: 5 | X24: 0 | AA24: =IF(OR('Set UP'!$C22=0,'Set UP'!$D22=0,'Set UP'!$E22=0),"",(Q$7*Q24)+(R$7*R24)+(S$7*S24)+(T$7*T24)+(U$7*U24)+(V$7*V24)+(W$7*W24)+(X$7*X24)+(Y$7*Y24)+(Z$7*Z24)) -> 35 | AB24: 1 | AC24: 1 | AD24: 0 | AE24: 0 | AF24: 0 | AG24: 4 | AH24: 0 | AI24: 0 | AJ24: 0 | AL24: =IF(OR('Set UP'!$C22=0,'Set UP'!$D22=0,'Set UP'!$E22=0),"",(AB$7*AB24)+(AC$7*AC24)+(AD$7*AD24)+(AE$7*AE24)+(AF$7*AF24)+(AG$7*AG24)+(AH$7*AH24)+(AI$7*AI24)+(AJ$7*AJ24)+(AK$7*AK24)) -> 7 | AM24: 7 | AN24: 6 | AO24: 1 | AP24: 8 | AQ24: 6 | AR24: 1 | AS24: 3 | AT24: 8 | AW24: =IF(OR('Set UP'!$C22=0,'Set UP'!$D22=0,'Set UP'!$E22=0),"",(AM$7*AM24)+(AN$7*AN24)+(AO$7*AO24)+(AP$7*AP24)+(AQ$7*AQ24)+(AR$7*AR24)+(AS$7*AS24)+(AT$7*AT24)+(AU$7*AU24)+(AV$7*AV24)) -> 77.5 | AX24: 7 | AY24: 8 | AZ24: 9 | BA24: 0 | BB24: 7 | BC24: 8 | BD24: 4 | BE24: 0 | BH24: =IF(OR('Set UP'!$C22=0,'Set UP'!$D22=0,'Set UP'!$E22=0),"",(AX$7*AX24)+(AY$7*AY24)+(AZ$7*AZ24)+(BA$7*BA24)+(BB$7*BB24)+(BC$7*BC24)+(BD$7*BD24)+(BE$7*BE24)+(BF$7*BF24)+(BG$7*BG24)) -> 49.5 | BI24: 0 | BT24: =IF(OR('Set UP'!$C22=0,'Set UP'!$D22=0,'Set UP'!$E22=0),"",(BI$7*BI24)+(BJ$7*BJ24)+(BK$7*BK24)+(BL$7*BL24)+(BM$7*BM24)+(BN$7*BN24)+(BO$7*BO24)+(BP$7*BP24)+(BQ$7*BQ24)+(BR$7*BR24)+(BS$7*BS24)) -> 0 | BX24: =IF(OR('Set UP'!$C22=0,'Set UP'!$D22=0,'Set UP'!$E22=0),"",(P24+AA24+AL24+AW24+BH24+BT24)) -> 212 | BY24: =IF(OR('Set UP'!$C22=0,'Set UP'!$D22=0,'Set UP'!$E22=0),"",RANK(BX24,$BX$9:$BX$48,0)) -> 8 | BZ24: =IF(OR('Set UP'!K22<>1,'Set UP'!C22=0,'Set UP'!D22=0,'Set UP'!E22=0,'Set UP'!F22=0),"",$BX24) ->  | CA24: =IF(OR('Set UP'!K22<>1,'Set UP'!C22=0,'Set UP'!D22=0,'Set UP'!E22=0,'Set UP'!F22=0),"",RANK(BZ24,$BZ$9:$BZ$48,0)) ->  | CB24: =IF(OR('Set UP'!K22<>2,'Set UP'!C22=0,'Set UP'!D22=0,'Set UP'!E22=0,'Set UP'!F22=0),"",$BX24) ->  | CC24: =IF(OR('Set UP'!K22<>2,'Set UP'!C22=0,'Set UP'!D22=0,'Set UP'!E22=0,'Set UP'!F22=0),"",RANK(CB24,$CB$9:$CB$48,0)) -> 
B25: 17 | C25: =IF(OR('Set UP'!$C23=0,'Set UP'!$D23=0,'Set UP'!$E23=0,'Set UP'!F23=0)," --",'Set UP'!C23) -> 471 | D25: =IF(OR('Set UP'!$C23=0,'Set UP'!$D23=0,'Set UP'!$E23=0,'Set UP'!F23=0)," --",'Set UP'!D23&" "&'Set UP'!E23) -> University of Cambridge A | E25: =IF(OR('Set UP'!$C23=0,'Set UP'!$D23=0,'Set UP'!$E23=0,'Set UP'!F23=0)," --",'Set UP'!F23) -> S | F25: 5 | G25: 7 | H25: 5 | I25: 4 | J25: 5 | P25: =IF(OR('Set UP'!$C23=0,'Set UP'!$D23=0,'Set UP'!$E23=0),"",(F$7*F25)+(G$7*G25)+(H$7*H25)+(I$7*I25)+(J$7*J25)+(K$7*K25)+(L$7*L25)+(M$7*M25)+(N$7*N25)+(O$7*O25)) -> 46.5 | Q25: 4 | R25: 2 | S25: 0 | T25: 2 | U25: 0 | V25: 4 | W25: 5 | X25: 0 | AA25: =IF(OR('Set UP'!$C23=0,'Set UP'!$D23=0,'Set UP'!$E23=0),"",(Q$7*Q25)+(R$7*R25)+(S$7*S25)+(T$7*T25)+(U$7*U25)+(V$7*V25)+(W$7*W25)+(X$7*X25)+(Y$7*Y25)+(Z$7*Z25)) -> 26 | AB25: 7 | AC25: 7 | AD25: 5 | AE25: 0 | AF25: 0 | AG25: 0 | AH25: 0 | AI25: 0 | AJ25: 0 | AL25: =IF(OR('Set UP'!$C23=0,'Set UP'!$D23=0,'Set UP'!$E23=0),"",(AB$7*AB25)+(AC$7*AC25)+(AD$7*AD25)+(AE$7*AE25)+(AF$7*AF25)+(AG$7*AG25)+(AH$7*AH25)+(AI$7*AI25)+(AJ$7*AJ25)+(AK$7*AK25)) -> 33.5 | AM25: 6 | AN25: 7 | AO25: 0 | AP25: 7 | AQ25: 6 | AR25: 0 | AS25: 3 | AT25: 8 | AW25: =IF(OR('Set UP'!$C23=0,'Set UP'!$D23=0,'Set UP'!$E23=0),"",(AM$7*AM25)+(AN$7*AN25)+(AO$7*AO25)+(AP$7*AP25)+(AQ$7*AQ25)+(AR$7*AR25)+(AS$7*AS25)+(AT$7*AT25)+(AU$7*AU25)+(AV$7*AV25)) -> 74.5 | AX25: 7 | AY25: 5 | AZ25: 0 | BA25: 0 | BB25: 6 | BC25: 6 | BD25: 0 | BE25: 0 | BH25: =IF(OR('Set UP'!$C23=0,'Set UP'!$D23=0,'Set UP'!$E23=0),"",(AX$7*AX25)+(AY$7*AY25)+(AZ$7*AZ25)+(BA$7*BA25)+(BB$7*BB25)+(BC$7*BC25)+(BD$7*BD25)+(BE$7*BE25)+(BF$7*BF25)+(BG$7*BG25)) -> 29 | BI25: 10 | BJ25: 10 | BK25: 0 | BL25: 10 | BM25: 0 | BN25: 7 | BT25: =IF(OR('Set UP'!$C23=0,'Set UP'!$D23=0,'Set UP'!$E23=0),"",(BI$7*BI25)+(BJ$7*BJ25)+(BK$7*BK25)+(BL$7*BL25)+(BM$7*BM25)+(BN$7*BN25)+(BO$7*BO25)+(BP$7*BP25)+(BQ$7*BQ25)+(BR$7*BR25)+(BS$7*BS25)) -> 46 | BX25: =IF(OR('Set UP'!$C23=0,'Set UP'!$D23=0,'Set UP'!$E23=0),"",(P25+AA25+AL25+AW25+BH25+BT25)) -> 255.5 | BY25: =IF(OR('Set UP'!$C23=0,'Set UP'!$D23=0,'Set UP'!$E23=0),"",RANK(BX25,$BX$9:$BX$48,0)) -> 2 | BZ25: =IF(OR('Set UP'!K23<>1,'Set UP'!C23=0,'Set UP'!D23=0,'Set UP'!E23=0,'Set UP'!F23=0),"",$BX25) -> 255.5 | CA25: =IF(OR('Set UP'!K23<>1,'Set UP'!C23=0,'Set UP'!D23=0,'Set UP'!E23=0,'Set UP'!F23=0),"",RANK(BZ25,$BZ$9:$BZ$48,0)) -> 2 | CB25: =IF(OR('Set UP'!K23<>2,'Set UP'!C23=0,'Set UP'!D23=0,'Set UP'!E23=0,'Set UP'!F23=0),"",$BX25) ->  | CC25: =IF(OR('Set UP'!K23<>2,'Set UP'!C23=0,'Set UP'!D23=0,'Set UP'!E23=0,'Set UP'!F23=0),"",RANK(CB25,$CB$9:$CB$48,0)) -> 
B26: 18 | C26: =IF(OR('Set UP'!$C24=0,'Set UP'!$D24=0,'Set UP'!$E24=0,'Set UP'!F24=0)," --",'Set UP'!C24) -> 522 | D26: =IF(OR('Set UP'!$C24=0,'Set UP'!$D24=0,'Set UP'!$E24=0,'Set UP'!F24=0)," --",'Set UP'!D24&" "&'Set UP'!E24) -> University of Birmingham B | E26: =IF(OR('Set UP'!$C24=0,'Set UP'!$D24=0,'Set UP'!$E24=0,'Set UP'!F24=0)," --",'Set UP'!F24) -> S | F26: 6 | G26: 1 | H26: 6 | I26: 4 | J26: 5 | P26: =IF(OR('Set UP'!$C24=0,'Set UP'!$D24=0,'Set UP'!$E24=0),"",(F$7*F26)+(G$7*G26)+(H$7*H26)+(I$7*I26)+(J$7*J26)+(K$7*K26)+(L$7*L26)+(M$7*M26)+(N$7*N26)+(O$7*O26)) -> 35.5 | Q26: 6 | R26: 5 | S26: 0 | T26: 3 | U26: 0 | V26: 8 | W26: 6 | X26: 5 | AA26: =IF(OR('Set UP'!$C24=0,'Set UP'!$D24=0,'Set UP'!$E24=0),"",(Q$7*Q26)+(R$7*R26)+(S$7*S26)+(T$7*T26)+(U$7*U26)+(V$7*V26)+(W$7*W26)+(X$7*X26)+(Y$7*Y26)+(Z$7*Z26)) -> 43.5 | AB26: 5 | AC26: 4 | AD26: 0 | AE26: 0 | AF26: 0 | AG26: 6 | AH26: 4 | AI26: 0 | AJ26: 0 | AL26: =IF(OR('Set UP'!$C24=0,'Set UP'!$D24=0,'Set UP'!$E24=0),"",(AB$7*AB26)+(AC$7*AC26)+(AD$7*AD26)+(AE$7*AE26)+(AF$7*AF26)+(AG$7*AG26)+(AH$7*AH26)+(AI$7*AI26)+(AJ$7*AJ26)+(AK$7*AK26)) -> 23 | AM26: 5 | AN26: 3 | AO26: 2 | AP26: 5 | AQ26: 5 | AR26: 3 | AS26: 1 | AT26: 0 | AW26: =IF(OR('Set UP'!$C24=0,'Set UP'!$D24=0,'Set UP'!$E24=0),"",(AM$7*AM26)+(AN$7*AN26)+(AO$7*AO26)+(AP$7*AP26)+(AQ$7*AQ26)+(AR$7*AR26)+(AS$7*AS26)+(AT$7*AT26)+(AU$7*AU26)+(AV$7*AV26)) -> 48 | AX26: 6 | AY26: 8 | AZ26: 8 | BA26: 0 | BB26: 4 | BC26: 7 | BD26: 6 | BE26: 0 | BH26: =IF(OR('Set UP'!$C24=0,'Set UP'!$D24=0,'Set UP'!$E24=0),"",(AX$7*AX26)+(AY$7*AY26)+(AZ$7*AZ26)+(BA$7*BA26)+(BB$7*BB26)+(BC$7*BC26)+(BD$7*BD26)+(BE$7*BE26)+(BF$7*BF26)+(BG$7*BG26)) -> 45.5 | BI26: 0 | BT26: =IF(OR('Set UP'!$C24=0,'Set UP'!$D24=0,'Set UP'!$E24=0),"",(BI$7*BI26)+(BJ$7*BJ26)+(BK$7*BK26)+(BL$7*BL26)+(BM$7*BM26)+(BN$7*BN26)+(BO$7*BO26)+(BP$7*BP26)+(BQ$7*BQ26)+(BR$7*BR26)+(BS$7*BS26)) -> 0 | BX26: =IF(OR('Set UP'!$C24=0,'Set UP'!$D24=0,'Set UP'!$E24=0),"",(P26+AA26+AL26+AW26+BH26+BT26)) -> 195.5 | BY26: =IF(OR('Set UP'!$C24=0,'Set UP'!$D24=0,'Set UP'!$E24=0),"",RANK(BX26,$BX$9:$BX$48,0)) -> 13 | BZ26: =IF(OR('Set UP'!K24<>1,'Set UP'!C24=0,'Set UP'!D24=0,'Set UP'!E24=0,'Set UP'!F24=0),"",$BX26) ->  | CA26: =IF(OR('Set UP'!K24<>1,'Set UP'!C24=0,'Set UP'!D24=0,'Set UP'!E24=0,'Set UP'!F24=0),"",RANK(BZ26,$BZ$9:$BZ$48,0)) ->  | CB26: =IF(OR('Set UP'!K24<>2,'Set UP'!C24=0,'Set UP'!D24=0,'Set UP'!E24=0,'Set UP'!F24=0),"",$BX26) -> 195.5 | CC26: =IF(OR('Set UP'!K24<>2,'Set UP'!C24=0,'Set UP'!D24=0,'Set UP'!E24=0,'Set UP'!F24=0),"",RANK(CB26,$CB$9:$CB$48,0)) -> 4
B27: 19 | C27: =IF(OR('Set UP'!$C25=0,'Set UP'!$D25=0,'Set UP'!$E25=0,'Set UP'!F25=0)," --",'Set UP'!C25) -> 498 | D27: =IF(OR('Set UP'!$C25=0,'Set UP'!$D25=0,'Set UP'!$E25=0,'Set UP'!F25=0)," --",'Set UP'!D25&" "&'Set UP'!E25) -> University of St Andrews A | E27: =IF(OR('Set UP'!$C25=0,'Set UP'!$D25=0,'Set UP'!$E25=0,'Set UP'!F25=0)," --",'Set UP'!F25) -> S | F27: 5 | G27: 5 | H27: 4 | I27: 7 | J27: 7 | P27: =IF(OR('Set UP'!$C25=0,'Set UP'!$D25=0,'Set UP'!$E25=0),"",(F$7*F27)+(G$7*G27)+(H$7*H27)+(I$7*I27)+(J$7*J27)+(K$7*K27)+(L$7*L27)+(M$7*M27)+(N$7*N27)+(O$7*O27)) -> 43.5 | Q27: 5 | R27: 5 | S27: 0 | T27: 0 | U27: 0 | V27: 3 | W27: 5 | X27: 0 | AA27: =IF(OR('Set UP'!$C25=0,'Set UP'!$D25=0,'Set UP'!$E25=0),"",(Q$7*Q27)+(R$7*R27)+(S$7*S27)+(T$7*T27)+(U$7*U27)+(V$7*V27)+(W$7*W27)+(X$7*X27)+(Y$7*Y27)+(Z$7*Z27)) -> 24.5 | AB27: 7 | AC27: 5 | AD27: 5 | AE27: 0 | AF27: 0 | AG27: 0 | AH27: 0 | AI27: 0 | AJ27: 0 | AL27: =IF(OR('Set UP'!$C25=0,'Set UP'!$D25=0,'Set UP'!$E25=0),"",(AB$7*AB27)+(AC$7*AC27)+(AD$7*AD27)+(AE$7*AE27)+(AF$7*AF27)+(AG$7*AG27)+(AH$7*AH27)+(AI$7*AI27)+(AJ$7*AJ27)+(AK$7*AK27)) -> 29.5 | AM27: 6 | AN27: 4 | AO27: 2 | AP27: 7 | AQ27: 4 | AR27: 1 | AS27: 3 | AT27: 4 | AW27: =IF(OR('Set UP'!$C25=0,'Set UP'!$D25=0,'Set UP'!$E25=0),"",(AM$7*AM27)+(AN$7*AN27)+(AO$7*AO27)+(AP$7*AP27)+(AQ$7*AQ27)+(AR$7*AR27)+(AS$7*AS27)+(AT$7*AT27)+(AU$7*AU27)+(AV$7*AV27)) -> 58.5 | AX27: 6 | AY27: 4 | AZ27: 0 | BA27: 0 | BB27: 6 | BC27: 4 | BD27: 0 | BE27: 0 | BH27: =IF(OR('Set UP'!$C25=0,'Set UP'!$D25=0,'Set UP'!$E25=0),"",(AX$7*AX27)+(AY$7*AY27)+(AZ$7*AZ27)+(BA$7*BA27)+(BB$7*BB27)+(BC$7*BC27)+(BD$7*BD27)+(BE$7*BE27)+(BF$7*BF27)+(BG$7*BG27)) -> 23 | BI27: 0 | BT27: =IF(OR('Set UP'!$C25=0,'Set UP'!$D25=0,'Set UP'!$E25=0),"",(BI$7*BI27)+(BJ$7*BJ27)+(BK$7*BK27)+(BL$7*BL27)+(BM$7*BM27)+(BN$7*BN27)+(BO$7*BO27)+(BP$7*BP27)+(BQ$7*BQ27)+(BR$7*BR27)+(BS$7*BS27)) -> 0 | BX27: =IF(OR('Set UP'!$C25=0,'Set UP'!$D25=0,'Set UP'!$E25=0),"",(P27+AA27+AL27+AW27+BH27+BT27)) -> 179 | BY27: =IF(OR('Set UP'!$C25=0,'Set UP'!$D25=0,'Set UP'!$E25=0),"",RANK(BX27,$BX$9:$BX$48,0)) -> 15 | BZ27: =IF(OR('Set UP'!K25<>1,'Set UP'!C25=0,'Set UP'!D25=0,'Set UP'!E25=0,'Set UP'!F25=0),"",$BX27) -> 179 | CA27: =IF(OR('Set UP'!K25<>1,'Set UP'!C25=0,'Set UP'!D25=0,'Set UP'!E25=0,'Set UP'!F25=0),"",RANK(BZ27,$BZ$9:$BZ$48,0)) -> 8 | CB27: =IF(OR('Set UP'!K25<>2,'Set UP'!C25=0,'Set UP'!D25=0,'Set UP'!E25=0,'Set UP'!F25=0),"",$BX27) ->  | CC27: =IF(OR('Set UP'!K25<>2,'Set UP'!C25=0,'Set UP'!D25=0,'Set UP'!E25=0,'Set UP'!F25=0),"",RANK(CB27,$CB$9:$CB$48,0)) -> 
B28: 20 | C28: =IF(OR('Set UP'!$C26=0,'Set UP'!$D26=0,'Set UP'!$E26=0,'Set UP'!F26=0)," --",'Set UP'!C26) -> 535 | D28: =IF(OR('Set UP'!$C26=0,'Set UP'!$D26=0,'Set UP'!$E26=0,'Set UP'!F26=0)," --",'Set UP'!D26&" "&'Set UP'!E26) -> University of Birmingham A | E28: =IF(OR('Set UP'!$C26=0,'Set UP'!$D26=0,'Set UP'!$E26=0,'Set UP'!F26=0)," --",'Set UP'!F26) -> S | F28: 6 | G28: 9 | H28: 7 | I28: 8 | J28: 9 | P28: =IF(OR('Set UP'!$C26=0,'Set UP'!$D26=0,'Set UP'!$E26=0),"",(F$7*F28)+(G$7*G28)+(H$7*H28)+(I$7*I28)+(J$7*J28)+(K$7*K28)+(L$7*L28)+(M$7*M28)+(N$7*N28)+(O$7*O28)) -> 66.5 | Q28: 7 | R28: 6 | S28: 6 | T28: 7 | U28: 5 | V28: 5 | W28: 7 | X28: 7 | AA28: =IF(OR('Set UP'!$C26=0,'Set UP'!$D26=0,'Set UP'!$E26=0),"",(Q$7*Q28)+(R$7*R28)+(S$7*S28)+(T$7*T28)+(U$7*U28)+(V$7*V28)+(W$7*W28)+(X$7*X28)+(Y$7*Y28)+(Z$7*Z28)) -> 60.5 | AB28: 8 | AC28: 5 | AD28: 3 | AE28: 0 | AF28: 0 | AG28: 0 | AH28: 0 | AI28: 0 | AJ28: 0 | AL28: =IF(OR('Set UP'!$C26=0,'Set UP'!$D26=0,'Set UP'!$E26=0),"",(AB$7*AB28)+(AC$7*AC28)+(AD$7*AD28)+(AE$7*AE28)+(AF$7*AF28)+(AG$7*AG28)+(AH$7*AH28)+(AI$7*AI28)+(AJ$7*AJ28)+(AK$7*AK28)) -> 25.5 | AM28: 7 | AN28: 4 | AO28: 3 | AP28: 7 | AQ28: 3 | AR28: 0 | AS28: 4 | AT28: 2 | AW28: =IF(OR('Set UP'!$C26=0,'Set UP'!$D26=0,'Set UP'!$E26=0),"",(AM$7*AM28)+(AN$7*AN28)+(AO$7*AO28)+(AP$7*AP28)+(AQ$7*AQ28)+(AR$7*AR28)+(AS$7*AS28)+(AT$7*AT28)+(AU$7*AU28)+(AV$7*AV28)) -> 56 | AX28: 5 | AY28: 5 | AZ28: 0 | BA28: 0 | BB28: 5 | BC28: 5 | BD28: 0 | BE28: 0 | BH28: =IF(OR('Set UP'!$C26=0,'Set UP'!$D26=0,'Set UP'!$E26=0),"",(AX$7*AX28)+(AY$7*AY28)+(AZ$7*AZ28)+(BA$7*BA28)+(BB$7*BB28)+(BC$7*BC28)+(BD$7*BD28)+(BE$7*BE28)+(BF$7*BF28)+(BG$7*BG28)) -> 25 | BI28: 10 | BJ28: 10 | BK28: 10 | BL28: 5 | BM28: 9 | BN28: 9 | BO28: 8 | BP28: 0 | BQ28: 0 | BR28: 0 | BS28: 0 | BT28: =IF(OR('Set UP'!$C26=0,'Set UP'!$D26=0,'Set UP'!$E26=0),"",(BI$7*BI28)+(BJ$7*BJ28)+(BK$7*BK28)+(BL$7*BL28)+(BM$7*BM28)+(BN$7*BN28)+(BO$7*BO28)+(BP$7*BP28)+(BQ$7*BQ28)+(BR$7*BR28)+(BS$7*BS28)) -> 70 | BX28: =IF(OR('Set UP'!$C26=0,'Set UP'!$D26=0,'Set UP'!$E26=0),"",(P28+AA28+AL28+AW28+BH28+BT28)) -> 303.5 | BY28: =IF(OR('Set UP'!$C26=0,'Set UP'!$D26=0,'Set UP'!$E26=0),"",RANK(BX28,$BX$9:$BX$48,0)) -> 1 | BZ28: =IF(OR('Set UP'!K26<>1,'Set UP'!C26=0,'Set UP'!D26=0,'Set UP'!E26=0,'Set UP'!F26=0),"",$BX28) -> 303.5 | CA28: =IF(OR('Set UP'!K26<>1,'Set UP'!C26=0,'Set UP'!D26=0,'Set UP'!E26=0,'Set UP'!F26=0),"",RANK(BZ28,$BZ$9:$BZ$48,0)) -> 1 | CB28: =IF(OR('Set UP'!K26<>2,'Set UP'!C26=0,'Set UP'!D26=0,'Set UP'!E26=0,'Set UP'!F26=0),"",$BX28) ->  | CC28: =IF(OR('Set UP'!K26<>2,'Set UP'!C26=0,'Set UP'!D26=0,'Set UP'!E26=0,'Set UP'!F26=0),"",RANK(CB28,$CB$9:$CB$48,0)) -> 
B29: 21 | C29: =IF(OR('Set UP'!$C27=0,'Set UP'!$D27=0,'Set UP'!$E27=0,'Set UP'!F27=0)," --",'Set UP'!C27) -> 508 | D29: =IF(OR('Set UP'!$C27=0,'Set UP'!$D27=0,'Set UP'!$E27=0,'Set UP'!F27=0)," --",'Set UP'!D27&" "&'Set UP'!E27) -> University of Nottingham A | E29: =IF(OR('Set UP'!$C27=0,'Set UP'!$D27=0,'Set UP'!$E27=0,'Set UP'!F27=0)," --",'Set UP'!F27) -> S | F29: 3 | G29: 6 | H29: 6 | I29: 5 | J29: 5 | P29: =IF(OR('Set UP'!$C27=0,'Set UP'!$D27=0,'Set UP'!$E27=0),"",(F$7*F29)+(G$7*G29)+(H$7*H29)+(I$7*I29)+(J$7*J29)+(K$7*K29)+(L$7*L29)+(M$7*M29)+(N$7*N29)+(O$7*O29)) -> 46 | Q29: 5 | R29: 7 | S29: 0 | T29: 3 | U29: 0 | V29: 4 | W29: 4 | X29: 0 | AA29: =IF(OR('Set UP'!$C27=0,'Set UP'!$D27=0,'Set UP'!$E27=0),"",(Q$7*Q29)+(R$7*R29)+(S$7*S29)+(T$7*T29)+(U$7*U29)+(V$7*V29)+(W$7*W29)+(X$7*X29)+(Y$7*Y29)+(Z$7*Z29)) -> 32 | AB29: 5 | AC29: 4 | AD29: 5 | AE29: 0 | AF29: 0 | AG29: 0 | AH29: 0 | AI29: 0 | AJ29: 0 | AL29: =IF(OR('Set UP'!$C27=0,'Set UP'!$D27=0,'Set UP'!$E27=0),"",(AB$7*AB29)+(AC$7*AC29)+(AD$7*AD29)+(AE$7*AE29)+(AF$7*AF29)+(AG$7*AG29)+(AH$7*AH29)+(AI$7*AI29)+(AJ$7*AJ29)+(AK$7*AK29)) -> 25.5 | AM29: 7 | AN29: 7 | AO29: 4 | AP29: 8 | AQ29: 7 | AR29: 4 | AS29: 5 | AT29: 6 | AW29: =IF(OR('Set UP'!$C27=0,'Set UP'!$D27=0,'Set UP'!$E27=0),"",(AM$7*AM29)+(AN$7*AN29)+(AO$7*AO29)+(AP$7*AP29)+(AQ$7*AQ29)+(AR$7*AR29)+(AS$7*AS29)+(AT$7*AT29)+(AU$7*AU29)+(AV$7*AV29)) -> 85 | AX29: 6 | AY29: 6 | AZ29: 0 | BA29: 0 | BB29: 6 | BC29: 6 | BD29: 0 | BE29: 0 | BH29: =IF(OR('Set UP'!$C27=0,'Set UP'!$D27=0,'Set UP'!$E27=0),"",(AX$7*AX29)+(AY$7*AY29)+(AZ$7*AZ29)+(BA$7*BA29)+(BB$7*BB29)+(BC$7*BC29)+(BD$7*BD29)+(BE$7*BE29)+(BF$7*BF29)+(BG$7*BG29)) -> 30 | BI29: 0 | BT29: =IF(OR('Set UP'!$C27=0,'Set UP'!$D27=0,'Set UP'!$E27=0),"",(BI$7*BI29)+(BJ$7*BJ29)+(BK$7*BK29)+(BL$7*BL29)+(BM$7*BM29)+(BN$7*BN29)+(BO$7*BO29)+(BP$7*BP29)+(BQ$7*BQ29)+(BR$7*BR29)+(BS$7*BS29)) -> 0 | BX29: =IF(OR('Set UP'!$C27=0,'Set UP'!$D27=0,'Set UP'!$E27=0),"",(P29+AA29+AL29+AW29+BH29+BT29)) -> 218.5 | BY29: =IF(OR('Set UP'!$C27=0,'Set UP'!$D27=0,'Set UP'!$E27=0),"",RANK(BX29,$BX$9:$BX$48,0)) -> 7 | BZ29: =IF(OR('Set UP'!K27<>1,'Set UP'!C27=0,'Set UP'!D27=0,'Set UP'!E27=0,'Set UP'!F27=0),"",$BX29) -> 218.5 | CA29: =IF(OR('Set UP'!K27<>1,'Set UP'!C27=0,'Set UP'!D27=0,'Set UP'!E27=0,'Set UP'!F27=0),"",RANK(BZ29,$BZ$9:$BZ$48,0)) -> 5 | CB29: =IF(OR('Set UP'!K27<>2,'Set UP'!C27=0,'Set UP'!D27=0,'Set UP'!E27=0,'Set UP'!F27=0),"",$BX29) ->  | CC29: =IF(OR('Set UP'!K27<>2,'Set UP'!C27=0,'Set UP'!D27=0,'Set UP'!E27=0,'Set UP'!F27=0),"",RANK(CB29,$CB$9:$CB$48,0)) -> 
B30: 22 | C30: =IF(OR('Set UP'!$C28=0,'Set UP'!$D28=0,'Set UP'!$E28=0,'Set UP'!F28=0)," --",'Set UP'!C28) -> 528 | D30: =IF(OR('Set UP'!$C28=0,'Set UP'!$D28=0,'Set UP'!$E28=0,'Set UP'!F28=0)," --",'Set UP'!D28&" "&'Set UP'!E28) -> University of London Union B | E30: =IF(OR('Set UP'!$C28=0,'Set UP'!$D28=0,'Set UP'!$E28=0,'Set UP'!F28=0)," --",'Set UP'!F28) -> S | F30: 5 | G30: 7 | H30: 6 | I30: 5 | J30: 4 | P30: =IF(OR('Set UP'!$C28=0,'Set UP'!$D28=0,'Set UP'!$E28=0),"",(F$7*F30)+(G$7*G30)+(H$7*H30)+(I$7*I30)+(J$7*J30)+(K$7*K30)+(L$7*L30)+(M$7*M30)+(N$7*N30)+(O$7*O30)) -> 49.5 | Q30: 5 | R30: 4 | S30: 0 | T30: 1 | U30: 0 | V30: 3 | W30: 4 | X30: 0 | AA30: =IF(OR('Set UP'!$C28=0,'Set UP'!$D28=0,'Set UP'!$E28=0),"",(Q$7*Q30)+(R$7*R30)+(S$7*S30)+(T$7*T30)+(U$7*U30)+(V$7*V30)+(W$7*W30)+(X$7*X30)+(Y$7*Y30)+(Z$7*Z30)) -> 23.5 | AB30: 8 | AC30: 4 | AD30: 5 | AE30: 0 | AF30: 0 | AG30: 0 | AH30: 0 | AI30: 0 | AJ30: 0 | AL30: =IF(OR('Set UP'!$C28=0,'Set UP'!$D28=0,'Set UP'!$E28=0),"",(AB$7*AB30)+(AC$7*AC30)+(AD$7*AD30)+(AE$7*AE30)+(AF$7*AF30)+(AG$7*AG30)+(AH$7*AH30)+(AI$7*AI30)+(AJ$7*AJ30)+(AK$7*AK30)) -> 28.5 | AM30: 6 | AN30: 7 | AO30: 2 | AP30: 7 | AQ30: 7 | AR30: 2 | AS30: 3 | AT30: 0 | AW30: =IF(OR('Set UP'!$C28=0,'Set UP'!$D28=0,'Set UP'!$E28=0),"",(AM$7*AM30)+(AN$7*AN30)+(AO$7*AO30)+(AP$7*AP30)+(AQ$7*AQ30)+(AR$7*AR30)+(AS$7*AS30)+(AT$7*AT30)+(AU$7*AU30)+(AV$7*AV30)) -> 71.5 | AX30: 3 | AY30: 7 | AZ30: 2 | BA30: 0 | BB30: 3 | BC30: 6 | BD30: 2 | BE30: 0 | BH30: =IF(OR('Set UP'!$C28=0,'Set UP'!$D28=0,'Set UP'!$E28=0),"",(AX$7*AX30)+(AY$7*AY30)+(AZ$7*AZ30)+(BA$7*BA30)+(BB$7*BB30)+(BC$7*BC30)+(BD$7*BD30)+(BE$7*BE30)+(BF$7*BF30)+(BG$7*BG30)) -> 30.5 | BI30: 0 | BT30: =IF(OR('Set UP'!$C28=0,'Set UP'!$D28=0,'Set UP'!$E28=0),"",(BI$7*BI30)+(BJ$7*BJ30)+(BK$7*BK30)+(BL$7*BL30)+(BM$7*BM30)+(BN$7*BN30)+(BO$7*BO30)+(BP$7*BP30)+(BQ$7*BQ30)+(BR$7*BR30)+(BS$7*BS30)) -> 0 | BX30: =IF(OR('Set UP'!$C28=0,'Set UP'!$D28=0,'Set UP'!$E28=0),"",(P30+AA30+AL30+AW30+BH30+BT30)) -> 203.5 | BY30: =IF(OR('Set UP'!$C28=0,'Set UP'!$D28=0,'Set UP'!$E28=0),"",RANK(BX30,$BX$9:$BX$48,0)) -> 11 | BZ30: =IF(OR('Set UP'!K28<>1,'Set UP'!C28=0,'Set UP'!D28=0,'Set UP'!E28=0,'Set UP'!F28=0),"",$BX30) ->  | CA30: =IF(OR('Set UP'!K28<>1,'Set UP'!C28=0,'Set UP'!D28=0,'Set UP'!E28=0,'Set UP'!F28=0),"",RANK(BZ30,$BZ$9:$BZ$48,0)) ->  | CB30: =IF(OR('Set UP'!K28<>2,'Set UP'!C28=0,'Set UP'!D28=0,'Set UP'!E28=0,'Set UP'!F28=0),"",$BX30) -> 203.5 | CC30: =IF(OR('Set UP'!K28<>2,'Set UP'!C28=0,'Set UP'!D28=0,'Set UP'!E28=0,'Set UP'!F28=0),"",RANK(CB30,$CB$9:$CB$48,0)) -> 3
B31: 23 | C31: =IF(OR('Set UP'!$C29=0,'Set UP'!$D29=0,'Set UP'!$E29=0,'Set UP'!F29=0)," --",'Set UP'!C29) -> 511 | D31: =IF(OR('Set UP'!$C29=0,'Set UP'!$D29=0,'Set UP'!$E29=0,'Set UP'!F29=0)," --",'Set UP'!D29&" "&'Set UP'!E29) -> University of Warwick B | E31: =IF(OR('Set UP'!$C29=0,'Set UP'!$D29=0,'Set UP'!$E29=0,'Set UP'!F29=0)," --",'Set UP'!F29) -> S | F31: 3 | G31: 9 | H31: 6 | I31: 7 | J31: 7 | P31: =IF(OR('Set UP'!$C29=0,'Set UP'!$D29=0,'Set UP'!$E29=0),"",(F$7*F31)+(G$7*G31)+(H$7*H31)+(I$7*I31)+(J$7*J31)+(K$7*K31)+(L$7*L31)+(M$7*M31)+(N$7*N31)+(O$7*O31)) -> 57.5 | Q31: 6 | R31: 5 | S31: 5 | T31: 5 | U31: 0 | V31: 5 | W31: 6 | X31: 0 | AA31: =IF(OR('Set UP'!$C29=0,'Set UP'!$D29=0,'Set UP'!$E29=0),"",(Q$7*Q31)+(R$7*R31)+(S$7*S31)+(T$7*T31)+(U$7*U31)+(V$7*V31)+(W$7*W31)+(X$7*X31)+(Y$7*Y31)+(Z$7*Z31)) -> 45.5 | AB31: 2 | AC31: 4 | AD31: 2 | AE31: 10 | AF31: 0 | AG31: 0 | AH31: 0 | AI31: 0 | AJ31: 0 | AL31: =IF(OR('Set UP'!$C29=0,'Set UP'!$D29=0,'Set UP'!$E29=0),"",(AB$7*AB31)+(AC$7*AC31)+(AD$7*AD31)+(AE$7*AE31)+(AF$7*AF31)+(AG$7*AG31)+(AH$7*AH31)+(AI$7*AI31)+(AJ$7*AJ31)+(AK$7*AK31)) -> 20 | AM31: 4 | AN31: 4 | AO31: 0 | AP31: 7 | AQ31: 6 | AR31: 0 | AS31: 0 | AT31: 0 | AW31: =IF(OR('Set UP'!$C29=0,'Set UP'!$D29=0,'Set UP'!$E29=0),"",(AM$7*AM31)+(AN$7*AN31)+(AO$7*AO31)+(AP$7*AP31)+(AQ$7*AQ31)+(AR$7*AR31)+(AS$7*AS31)+(AT$7*AT31)+(AU$7*AU31)+(AV$7*AV31)) -> 53.5 | AX31: 7 | AY31: 5 | AZ31: 6 | BA31: 0 | BB31: 7 | BC31: 7 | BD31: 8 | BE31: 4 | BH31: =IF(OR('Set UP'!$C29=0,'Set UP'!$D29=0,'Set UP'!$E29=0),"",(AX$7*AX31)+(AY$7*AY31)+(AZ$7*AZ31)+(BA$7*BA31)+(BB$7*BB31)+(BC$7*BC31)+(BD$7*BD31)+(BE$7*BE31)+(BF$7*BF31)+(BG$7*BG31)) -> 43 | BI31: 0 | BT31: =IF(OR('Set UP'!$C29=0,'Set UP'!$D29=0,'Set UP'!$E29=0),"",(BI$7*BI31)+(BJ$7*BJ31)+(BK$7*BK31)+(BL$7*BL31)+(BM$7*BM31)+(BN$7*BN31)+(BO$7*BO31)+(BP$7*BP31)+(BQ$7*BQ31)+(BR$7*BR31)+(BS$7*BS31)) -> 0 | BX31: =IF(OR('Set UP'!$C29=0,'Set UP'!$D29=0,'Set UP'!$E29=0),"",(P31+AA31+AL31+AW31+BH31+BT31)) -> 219.5 | BY31: =IF(OR('Set UP'!$C29=0,'Set UP'!$D29=0,'Set UP'!$E29=0),"",RANK(BX31,$BX$9:$BX$48,0)) -> 6 | BZ31: =IF(OR('Set UP'!K29<>1,'Set UP'!C29=0,'Set UP'!D29=0,'Set UP'!E29=0,'Set UP'!F29=0),"",$BX31) ->  | CA31: =IF(OR('Set UP'!K29<>1,'Set UP'!C29=0,'Set UP'!D29=0,'Set UP'!E29=0,'Set UP'!F29=0),"",RANK(BZ31,$BZ$9:$BZ$48,0)) ->  | CB31: =IF(OR('Set UP'!K29<>2,'Set UP'!C29=0,'Set UP'!D29=0,'Set UP'!E29=0,'Set UP'!F29=0),"",$BX31) -> 219.5 | CC31: =IF(OR('Set UP'!K29<>2,'Set UP'!C29=0,'Set UP'!D29=0,'Set UP'!E29=0,'Set UP'!F29=0),"",RANK(CB31,$CB$9:$CB$48,0)) -> 2
B32: 24 | C32: =IF(OR('Set UP'!$C30=0,'Set UP'!$D30=0,'Set UP'!$E30=0,'Set UP'!F30=0)," --",'Set UP'!C30) -> 509 | D32: =IF(OR('Set UP'!$C30=0,'Set UP'!$D30=0,'Set UP'!$E30=0,'Set UP'!F30=0)," --",'Set UP'!D30&" "&'Set UP'!E30) -> University of Nottingham B | E32: =IF(OR('Set UP'!$C30=0,'Set UP'!$D30=0,'Set UP'!$E30=0,'Set UP'!F30=0)," --",'Set UP'!F30) -> S | F32: 6 | G32: 2 | H32: 6 | I32: 2 | J32: 8 | P32: =IF(OR('Set UP'!$C30=0,'Set UP'!$D30=0,'Set UP'!$E30=0),"",(F$7*F32)+(G$7*G32)+(H$7*H32)+(I$7*I32)+(J$7*J32)+(K$7*K32)+(L$7*L32)+(M$7*M32)+(N$7*N32)+(O$7*O32)) -> 39 | Q32: 4 | R32: 4 | S32: 0 | T32: 1 | U32: 0 | V32: 4 | W32: 3 | X32: 0 | AA32: =IF(OR('Set UP'!$C30=0,'Set UP'!$D30=0,'Set UP'!$E30=0),"",(Q$7*Q32)+(R$7*R32)+(S$7*S32)+(T$7*T32)+(U$7*U32)+(V$7*V32)+(W$7*W32)+(X$7*X32)+(Y$7*Y32)+(Z$7*Z32)) -> 22 | AB32: 6 | AC32: 1 | AD32: 0 | AE32: 0 | AF32: 0 | AG32: 0 | AH32: 0 | AI32: 0 | AJ32: 0 | AL32: =IF(OR('Set UP'!$C30=0,'Set UP'!$D30=0,'Set UP'!$E30=0),"",(AB$7*AB32)+(AC$7*AC32)+(AD$7*AD32)+(AE$7*AE32)+(AF$7*AF32)+(AG$7*AG32)+(AH$7*AH32)+(AI$7*AI32)+(AJ$7*AJ32)+(AK$7*AK32)) -> 8 | AM32: 5 | AN32: 6 | AO32: 3 | AP32: 7 | AQ32: 6 | AR32: 3 | AS32: 3 | AT32: 4 | AW32: =IF(OR('Set UP'!$C30=0,'Set UP'!$D30=0,'Set UP'!$E30=0),"",(AM$7*AM32)+(AN$7*AN32)+(AO$7*AO32)+(AP$7*AP32)+(AQ$7*AQ32)+(AR$7*AR32)+(AS$7*AS32)+(AT$7*AT32)+(AU$7*AU32)+(AV$7*AV32)) -> 69 | AX32: 6 | AY32: 3 | AZ32: 0 | BA32: 0 | BB32: 6 | BC32: 3 | BD32: 0 | BE32: 0 | BH32: =IF(OR('Set UP'!$C30=0,'Set UP'!$D30=0,'Set UP'!$E30=0),"",(AX$7*AX32)+(AY$7*AY32)+(AZ$7*AZ32)+(BA$7*BA32)+(BB$7*BB32)+(BC$7*BC32)+(BD$7*BD32)+(BE$7*BE32)+(BF$7*BF32)+(BG$7*BG32)) -> 19.5 | BI32: 0 | BT32: =IF(OR('Set UP'!$C30=0,'Set UP'!$D30=0,'Set UP'!$E30=0),"",(BI$7*BI32)+(BJ$7*BJ32)+(BK$7*BK32)+(BL$7*BL32)+(BM$7*BM32)+(BN$7*BN32)+(BO$7*BO32)+(BP$7*BP32)+(BQ$7*BQ32)+(BR$7*BR32)+(BS$7*BS32)) -> 0 | BX32: =IF(OR('Set UP'!$C30=0,'Set UP'!$D30=0,'Set UP'!$E30=0),"",(P32+AA32+AL32+AW32+BH32+BT32)) -> 157.5 | BY32: =IF(OR('Set UP'!$C30=0,'Set UP'!$D30=0,'Set UP'!$E30=0),"",RANK(BX32,$BX$9:$BX$48,0)) -> 24 | BZ32: =IF(OR('Set UP'!K30<>1,'Set UP'!C30=0,'Set UP'!D30=0,'Set UP'!E30=0,'Set UP'!F30=0),"",$BX32) ->  | CA32: =IF(OR('Set UP'!K30<>1,'Set UP'!C30=0,'Set UP'!D30=0,'Set UP'!E30=0,'Set UP'!F30=0),"",RANK(BZ32,$BZ$9:$BZ$48,0)) ->  | CB32: =IF(OR('Set UP'!K30<>2,'Set UP'!C30=0,'Set UP'!D30=0,'Set UP'!E30=0,'Set UP'!F30=0),"",$BX32) -> 157.5 | CC32: =IF(OR('Set UP'!K30<>2,'Set UP'!C30=0,'Set UP'!D30=0,'Set UP'!E30=0,'Set UP'!F30=0),"",RANK(CB32,$CB$9:$CB$48,0)) -> 11
B33: 25 | C33: =IF(OR('Set UP'!$C31=0,'Set UP'!$D31=0,'Set UP'!$E31=0,'Set UP'!F31=0)," --",'Set UP'!C31) -> 517 | D33: =IF(OR('Set UP'!$C31=0,'Set UP'!$D31=0,'Set UP'!$E31=0,'Set UP'!F31=0)," --",'Set UP'!D31&" "&'Set UP'!E31) -> Loughborough University B | E33: =IF(OR('Set UP'!$C31=0,'Set UP'!$D31=0,'Set UP'!$E31=0,'Set UP'!F31=0)," --",'Set UP'!F31) -> S | F33: 7 | G33: 4 | H33: 2 | I33: 4 | J33: 3 | P33: =IF(OR('Set UP'!$C31=0,'Set UP'!$D31=0,'Set UP'!$E31=0),"",(F$7*F33)+(G$7*G33)+(H$7*H33)+(I$7*I33)+(J$7*J33)+(K$7*K33)+(L$7*L33)+(M$7*M33)+(N$7*N33)+(O$7*O33)) -> 30 | Q33: 6 | R33: 6 | S33: 4 | T33: 4 | U33: 0 | V33: 5 | W33: 6 | X33: 5 | AA33: =IF(OR('Set UP'!$C31=0,'Set UP'!$D31=0,'Set UP'!$E31=0),"",(Q$7*Q33)+(R$7*R33)+(S$7*S33)+(T$7*T33)+(U$7*U33)+(V$7*V33)+(W$7*W33)+(X$7*X33)+(Y$7*Y33)+(Z$7*Z33)) -> 46 | AB33: 8 | AC33: 8 | AD33: 2 | AE33: 0 | AF33: 0 | AG33: 0 | AH33: 0 | AI33: 0 | AJ33: 0 | AL33: =IF(OR('Set UP'!$C31=0,'Set UP'!$D31=0,'Set UP'!$E31=0),"",(AB$7*AB33)+(AC$7*AC33)+(AD$7*AD33)+(AE$7*AE33)+(AF$7*AF33)+(AG$7*AG33)+(AH$7*AH33)+(AI$7*AI33)+(AJ$7*AJ33)+(AK$7*AK33)) -> 29 | AM33: 7 | AN33: 5 | AO33: 6 | AP33: 7 | AQ33: 6 | AR33: 6 | AS33: 3 | AT33: 0 | AW33: =IF(OR('Set UP'!$C31=0,'Set UP'!$D31=0,'Set UP'!$E31=0),"",(AM$7*AM33)+(AN$7*AN33)+(AO$7*AO33)+(AP$7*AP33)+(AQ$7*AQ33)+(AR$7*AR33)+(AS$7*AS33)+(AT$7*AT33)+(AU$7*AU33)+(AV$7*AV33)) -> 69.5 | AX33: 2 | AY33: 0 | AZ33: 0 | BA33: 0 | BB33: 2 | BC33: 0 | BD33: 0 | BE33: 0 | BH33: =IF(OR('Set UP'!$C31=0,'Set UP'!$D31=0,'Set UP'!$E31=0),"",(AX$7*AX33)+(AY$7*AY33)+(AZ$7*AZ33)+(BA$7*BA33)+(BB$7*BB33)+(BC$7*BC33)+(BD$7*BD33)+(BE$7*BE33)+(BF$7*BF33)+(BG$7*BG33)) -> 3 | BI33: 0 | BT33: =IF(OR('Set UP'!$C31=0,'Set UP'!$D31=0,'Set UP'!$E31=0),"",(BI$7*BI33)+(BJ$7*BJ33)+(BK$7*BK33)+(BL$7*BL33)+(BM$7*BM33)+(BN$7*BN33)+(BO$7*BO33)+(BP$7*BP33)+(BQ$7*BQ33)+(BR$7*BR33)+(BS$7*BS33)) -> 0 | BX33: =IF(OR('Set UP'!$C31=0,'Set UP'!$D31=0,'Set UP'!$E31=0),"",(P33+AA33+AL33+AW33+BH33+BT33)) -> 177.5 | BY33: =IF(OR('Set UP'!$C31=0,'Set UP'!$D31=0,'Set UP'!$E31=0),"",RANK(BX33,$BX$9:$BX$48,0)) -> 16 | BZ33: =IF(OR('Set UP'!K31<>1,'Set UP'!C31=0,'Set UP'!D31=0,'Set UP'!E31=0,'Set UP'!F31=0),"",$BX33) ->  | CA33: =IF(OR('Set UP'!K31<>1,'Set UP'!C31=0,'Set UP'!D31=0,'Set UP'!E31=0,'Set UP'!F31=0),"",RANK(BZ33,$BZ$9:$BZ$48,0)) ->  | CB33: =IF(OR('Set UP'!K31<>2,'Set UP'!C31=0,'Set UP'!D31=0,'Set UP'!E31=0,'Set UP'!F31=0),"",$BX33) -> 177.5 | CC33: =IF(OR('Set UP'!K31<>2,'Set UP'!C31=0,'Set UP'!D31=0,'Set UP'!E31=0,'Set UP'!F31=0),"",RANK(CB33,$CB$9:$CB$48,0)) -> 6
B34: 26 | C34: =IF(OR('Set UP'!$C32=0,'Set UP'!$D32=0,'Set UP'!$E32=0,'Set UP'!F32=0)," --",'Set UP'!C32) -> 534 | D34: =IF(OR('Set UP'!$C32=0,'Set UP'!$D32=0,'Set UP'!$E32=0,'Set UP'!F32=0)," --",'Set UP'!D32&" "&'Set UP'!E32) -> University of Southampton B | E34: =IF(OR('Set UP'!$C32=0,'Set UP'!$D32=0,'Set UP'!$E32=0,'Set UP'!F32=0)," --",'Set UP'!F32) -> S | F34: 7 | G34: 4 | H34: 5 | I34: 5 | J34: 5 | P34: =IF(OR('Set UP'!$C32=0,'Set UP'!$D32=0,'Set UP'!$E32=0),"",(F$7*F34)+(G$7*G34)+(H$7*H34)+(I$7*I34)+(J$7*J34)+(K$7*K34)+(L$7*L34)+(M$7*M34)+(N$7*N34)+(O$7*O34)) -> 42 | Q34: 6 | R34: 5 | S34: 6 | T34: 0 | U34: 0 | V34: 4 | W34: 3 | X34: 0 | AA34: =IF(OR('Set UP'!$C32=0,'Set UP'!$D32=0,'Set UP'!$E32=0),"",(Q$7*Q34)+(R$7*R34)+(S$7*S34)+(T$7*T34)+(U$7*U34)+(V$7*V34)+(W$7*W34)+(X$7*X34)+(Y$7*Y34)+(Z$7*Z34)) -> 29 | AB34: 3 | AC34: 3 | AD34: 2 | AE34: 0 | AF34: 0 | AG34: 1 | AH34: 0 | AI34: 0 | AJ34: 0 | AL34: =IF(OR('Set UP'!$C32=0,'Set UP'!$D32=0,'Set UP'!$E32=0),"",(AB$7*AB34)+(AC$7*AC34)+(AD$7*AD34)+(AE$7*AE34)+(AF$7*AF34)+(AG$7*AG34)+(AH$7*AH34)+(AI$7*AI34)+(AJ$7*AJ34)+(AK$7*AK34)) -> 15 | AM34: 6 | AN34: 6 | AO34: 3 | AP34: 7 | AQ34: 4 | AR34: 3 | AS34: 5 | AT34: 0 | AW34: =IF(OR('Set UP'!$C32=0,'Set UP'!$D32=0,'Set UP'!$E32=0),"",(AM$7*AM34)+(AN$7*AN34)+(AO$7*AO34)+(AP$7*AP34)+(AQ$7*AQ34)+(AR$7*AR34)+(AS$7*AS34)+(AT$7*AT34)+(AU$7*AU34)+(AV$7*AV34)) -> 62 | AX34: 7 | AY34: 6 | AZ34: 4 | BA34: 2 | BB34: 7 | BC34: 6 | BD34: 6 | BE34: 2 | BH34: =IF(OR('Set UP'!$C32=0,'Set UP'!$D32=0,'Set UP'!$E32=0),"",(AX$7*AX34)+(AY$7*AY34)+(AZ$7*AZ34)+(BA$7*BA34)+(BB$7*BB34)+(BC$7*BC34)+(BD$7*BD34)+(BE$7*BE34)+(BF$7*BF34)+(BG$7*BG34)) -> 41.5 | BI34: 0 | BT34: =IF(OR('Set UP'!$C32=0,'Set UP'!$D32=0,'Set UP'!$E32=0),"",(BI$7*BI34)+(BJ$7*BJ34)+(BK$7*BK34)+(BL$7*BL34)+(BM$7*BM34)+(BN$7*BN34)+(BO$7*BO34)+(BP$7*BP34)+(BQ$7*BQ34)+(BR$7*BR34)+(BS$7*BS34)) -> 0 | BX34: =IF(OR('Set UP'!$C32=0,'Set UP'!$D32=0,'Set UP'!$E32=0),"",(P34+AA34+AL34+AW34+BH34+BT34)) -> 189.5 | BY34: =IF(OR('Set UP'!$C32=0,'Set UP'!$D32=0,'Set UP'!$E32=0),"",RANK(BX34,$BX$9:$BX$48,0)) -> 14 | BZ34: =IF(OR('Set UP'!K32<>1,'Set UP'!C32=0,'Set UP'!D32=0,'Set UP'!E32=0,'Set UP'!F32=0),"",$BX34) ->  | CA34: =IF(OR('Set UP'!K32<>1,'Set UP'!C32=0,'Set UP'!D32=0,'Set UP'!E32=0,'Set UP'!F32=0),"",RANK(BZ34,$BZ$9:$BZ$48,0)) ->  | CB34: =IF(OR('Set UP'!K32<>2,'Set UP'!C32=0,'Set UP'!D32=0,'Set UP'!E32=0,'Set UP'!F32=0),"",$BX34) -> 189.5 | CC34: =IF(OR('Set UP'!K32<>2,'Set UP'!C32=0,'Set UP'!D32=0,'Set UP'!E32=0,'Set UP'!F32=0),"",RANK(CB34,$CB$9:$CB$48,0)) -> 5
B35: 27 | C35: =IF(OR('Set UP'!$C33=0,'Set UP'!$D33=0,'Set UP'!$E33=0,'Set UP'!F33=0)," --",'Set UP'!C33) -> 479 | D35: =IF(OR('Set UP'!$C33=0,'Set UP'!$D33=0,'Set UP'!$E33=0,'Set UP'!F33=0)," --",'Set UP'!D33&" "&'Set UP'!E33) -> Loughborough University A | E35: =IF(OR('Set UP'!$C33=0,'Set UP'!$D33=0,'Set UP'!$E33=0,'Set UP'!F33=0)," --",'Set UP'!F33) -> S | F35: 2 | G35: 5 | H35: 1 | I35: 4 | J35: 4 | P35: =IF(OR('Set UP'!$C33=0,'Set UP'!$D33=0,'Set UP'!$E33=0),"",(F$7*F35)+(G$7*G35)+(H$7*H35)+(I$7*I35)+(J$7*J35)+(K$7*K35)+(L$7*L35)+(M$7*M35)+(N$7*N35)+(O$7*O35)) -> 25.5 | Q35: 6 | R35: 6 | S35: 4 | T35: 5 | U35: 0 | V35: 5 | W35: 5 | X35: 0 | AA35: =IF(OR('Set UP'!$C33=0,'Set UP'!$D33=0,'Set UP'!$E33=0),"",(Q$7*Q35)+(R$7*R35)+(S$7*S35)+(T$7*T35)+(U$7*U35)+(V$7*V35)+(W$7*W35)+(X$7*X35)+(Y$7*Y35)+(Z$7*Z35)) -> 43.5 | AB35: 2 | AC35: 2 | AD35: 0 | AE35: 0 | AF35: 0 | AG35: 0 | AH35: 0 | AI35: 0 | AJ35: 0 | AL35: =IF(OR('Set UP'!$C33=0,'Set UP'!$D33=0,'Set UP'!$E33=0),"",(AB$7*AB35)+(AC$7*AC35)+(AD$7*AD35)+(AE$7*AE35)+(AF$7*AF35)+(AG$7*AG35)+(AH$7*AH35)+(AI$7*AI35)+(AJ$7*AJ35)+(AK$7*AK35)) -> 6 | AM35: 4 | AN35: 4 | AO35: 0 | AP35: 4 | AQ35: 4 | AR35: 0 | AS35: 0 | AT35: 0 | AW35: =IF(OR('Set UP'!$C33=0,'Set UP'!$D33=0,'Set UP'!$E33=0),"",(AM$7*AM35)+(AN$7*AN35)+(AO$7*AO35)+(AP$7*AP35)+(AQ$7*AQ35)+(AR$7*AR35)+(AS$7*AS35)+(AT$7*AT35)+(AU$7*AU35)+(AV$7*AV35)) -> 40 | AX35: 6 | AY35: 6 | AZ35: 6 | BA35: 0 | BB35: 6 | BC35: 6 | BD35: 7 | BE35: 0 | BH35: =IF(OR('Set UP'!$C33=0,'Set UP'!$D33=0,'Set UP'!$E33=0),"",(AX$7*AX35)+(AY$7*AY35)+(AZ$7*AZ35)+(BA$7*BA35)+(BB$7*BB35)+(BC$7*BC35)+(BD$7*BD35)+(BE$7*BE35)+(BF$7*BF35)+(BG$7*BG35)) -> 39.5 | BI35: 0 | BT35: =IF(OR('Set UP'!$C33=0,'Set UP'!$D33=0,'Set UP'!$E33=0),"",(BI$7*BI35)+(BJ$7*BJ35)+(BK$7*BK35)+(BL$7*BL35)+(BM$7*BM35)+(BN$7*BN35)+(BO$7*BO35)+(BP$7*BP35)+(BQ$7*BQ35)+(BR$7*BR35)+(BS$7*BS35)) -> 0 | BX35: =IF(OR('Set UP'!$C33=0,'Set UP'!$D33=0,'Set UP'!$E33=0),"",(P35+AA35+AL35+AW35+BH35+BT35)) -> 154.5 | BY35: =IF(OR('Set UP'!$C33=0,'Set UP'!$D33=0,'Set UP'!$E33=0),"",RANK(BX35,$BX$9:$BX$48,0)) -> 26 | BZ35: =IF(OR('Set UP'!K33<>1,'Set UP'!C33=0,'Set UP'!D33=0,'Set UP'!E33=0,'Set UP'!F33=0),"",$BX35) -> 154.5 | CA35: =IF(OR('Set UP'!K33<>1,'Set UP'!C33=0,'Set UP'!D33=0,'Set UP'!E33=0,'Set UP'!F33=0),"",RANK(BZ35,$BZ$9:$BZ$48,0)) -> 9 | CB35: =IF(OR('Set UP'!K33<>2,'Set UP'!C33=0,'Set UP'!D33=0,'Set UP'!E33=0,'Set UP'!F33=0),"",$BX35) ->  | CC35: =IF(OR('Set UP'!K33<>2,'Set UP'!C33=0,'Set UP'!D33=0,'Set UP'!E33=0,'Set UP'!F33=0),"",RANK(CB35,$CB$9:$CB$48,0)) -> 
B36: 28 | C36: =IF(OR('Set UP'!$C34=0,'Set UP'!$D34=0,'Set UP'!$E34=0,'Set UP'!F34=0)," --",'Set UP'!C34) -> 545 | D36: =IF(OR('Set UP'!$C34=0,'Set UP'!$D34=0,'Set UP'!$E34=0,'Set UP'!F34=0)," --",'Set UP'!D34&" "&'Set UP'!E34) -> Colwick Park A | E36: =IF(OR('Set UP'!$C34=0,'Set UP'!$D34=0,'Set UP'!$E34=0,'Set UP'!F34=0)," --",'Set UP'!F34) -> NS | F36: 4 | G36: 2 | H36: 6 | I36: 1 | J36: 0 | P36: =IF(OR('Set UP'!$C34=0,'Set UP'!$D34=0,'Set UP'!$E34=0),"",(F$7*F36)+(G$7*G36)+(H$7*H36)+(I$7*I36)+(J$7*J36)+(K$7*K36)+(L$7*L36)+(M$7*M36)+(N$7*N36)+(O$7*O36)) -> 28 | Q36: 3 | R36: 2 | S36: 0 | T36: 0 | U36: 0 | V36: 3 | W36: 3 | X36: 0 | AA36: =IF(OR('Set UP'!$C34=0,'Set UP'!$D34=0,'Set UP'!$E34=0),"",(Q$7*Q36)+(R$7*R36)+(S$7*S36)+(T$7*T36)+(U$7*U36)+(V$7*V36)+(W$7*W36)+(X$7*X36)+(Y$7*Y36)+(Z$7*Z36)) -> 15.5 | AB36: 4 | AC36: 3 | AD36: 0 | AE36: 0 | AF36: 0 | AG36: 10 | AH36: 10 | AI36: 7 | AJ36: 0 | AL36: =IF(OR('Set UP'!$C34=0,'Set UP'!$D34=0,'Set UP'!$E34=0),"",(AB$7*AB36)+(AC$7*AC36)+(AD$7*AD36)+(AE$7*AE36)+(AF$7*AF36)+(AG$7*AG36)+(AH$7*AH36)+(AI$7*AI36)+(AJ$7*AJ36)+(AK$7*AK36)) -> 37 | AM36: 7 | AN36: 6 | AO36: 3 | AP36: 7 | AQ36: 7 | AR36: 3 | AS36: 0 | AT36: 0 | AW36: =IF(OR('Set UP'!$C34=0,'Set UP'!$D34=0,'Set UP'!$E34=0),"",(AM$7*AM36)+(AN$7*AN36)+(AO$7*AO36)+(AP$7*AP36)+(AQ$7*AQ36)+(AR$7*AR36)+(AS$7*AS36)+(AT$7*AT36)+(AU$7*AU36)+(AV$7*AV36)) -> 70.5 | AX36: 1 | AY36: 5 | AZ36: 0 | BA36: 0 | BB36: 1 | BC36: 5 | BD36: 0 | BE36: 0 | BH36: =IF(OR('Set UP'!$C34=0,'Set UP'!$D34=0,'Set UP'!$E34=0),"",(AX$7*AX36)+(AY$7*AY36)+(AZ$7*AZ36)+(BA$7*BA36)+(BB$7*BB36)+(BC$7*BC36)+(BD$7*BD36)+(BE$7*BE36)+(BF$7*BF36)+(BG$7*BG36)) -> 19 | BI36: 0 | BT36: =IF(OR('Set UP'!$C34=0,'Set UP'!$D34=0,'Set UP'!$E34=0),"",(BI$7*BI36)+(BJ$7*BJ36)+(BK$7*BK36)+(BL$7*BL36)+(BM$7*BM36)+(BN$7*BN36)+(BO$7*BO36)+(BP$7*BP36)+(BQ$7*BQ36)+(BR$7*BR36)+(BS$7*BS36)) -> 0 | BX36: =IF(OR('Set UP'!$C34=0,'Set UP'!$D34=0,'Set UP'!$E34=0),"",(P36+AA36+AL36+AW36+BH36+BT36)) -> 170 | BY36: =IF(OR('Set UP'!$C34=0,'Set UP'!$D34=0,'Set UP'!$E34=0),"",RANK(BX36,$BX$9:$BX$48,0)) -> 20 | BZ36: =IF(OR('Set UP'!K34<>1,'Set UP'!C34=0,'Set UP'!D34=0,'Set UP'!E34=0,'Set UP'!F34=0),"",$BX36) ->  | CA36: =IF(OR('Set UP'!K34<>1,'Set UP'!C34=0,'Set UP'!D34=0,'Set UP'!E34=0,'Set UP'!F34=0),"",RANK(BZ36,$BZ$9:$BZ$48,0)) ->  | CB36: =IF(OR('Set UP'!K34<>2,'Set UP'!C34=0,'Set UP'!D34=0,'Set UP'!E34=0,'Set UP'!F34=0),"",$BX36) ->  | CC36: =IF(OR('Set UP'!K34<>2,'Set UP'!C34=0,'Set UP'!D34=0,'Set UP'!E34=0,'Set UP'!F34=0),"",RANK(CB36,$CB$9:$CB$48,0)) -> 
B37: 29 | C37: =IF(OR('Set UP'!$C35=0,'Set UP'!$D35=0,'Set UP'!$E35=0,'Set UP'!F35=0)," --",'Set UP'!C35) -> 533 | D37: =IF(OR('Set UP'!$C35=0,'Set UP'!$D35=0,'Set UP'!$E35=0,'Set UP'!F35=0)," --",'Set UP'!D35&" "&'Set UP'!E35) -> University of Southampton A | E37: =IF(OR('Set UP'!$C35=0,'Set UP'!$D35=0,'Set UP'!$E35=0,'Set UP'!F35=0)," --",'Set UP'!F35) -> S | F37: 1 | G37: 7 | H37: 6 | I37: 8 | J37: 7 | P37: =IF(OR('Set UP'!$C35=0,'Set UP'!$D35=0,'Set UP'!$E35=0),"",(F$7*F37)+(G$7*G37)+(H$7*H37)+(I$7*I37)+(J$7*J37)+(K$7*K37)+(L$7*L37)+(M$7*M37)+(N$7*N37)+(O$7*O37)) -> 51.5 | Q37: 6 | R37: 6 | S37: 0 | T37: 4 | U37: 0 | V37: 6 | W37: 7 | X37: 0 | AA37: =IF(OR('Set UP'!$C35=0,'Set UP'!$D35=0,'Set UP'!$E35=0),"",(Q$7*Q37)+(R$7*R37)+(S$7*S37)+(T$7*T37)+(U$7*U37)+(V$7*V37)+(W$7*W37)+(X$7*X37)+(Y$7*Y37)+(Z$7*Z37)) -> 43 | AB37: 4 | AC37: 5 | AD37: 7 | AE37: 10 | AF37: 0 | AG37: 0 | AH37: 0 | AI37: 0 | AJ37: 0 | AL37: =IF(OR('Set UP'!$C35=0,'Set UP'!$D35=0,'Set UP'!$E35=0),"",(AB$7*AB37)+(AC$7*AC37)+(AD$7*AD37)+(AE$7*AE37)+(AF$7*AF37)+(AG$7*AG37)+(AH$7*AH37)+(AI$7*AI37)+(AJ$7*AJ37)+(AK$7*AK37)) -> 36.5 | AM37: 8 | AN37: 5 | AO37: 2 | AP37: 6 | AQ37: 5 | AR37: 2 | AS37: 0 | AT37: 0 | AW37: =IF(OR('Set UP'!$C35=0,'Set UP'!$D35=0,'Set UP'!$E35=0),"",(AM$7*AM37)+(AN$7*AN37)+(AO$7*AO37)+(AP$7*AP37)+(AQ$7*AQ37)+(AR$7*AR37)+(AS$7*AS37)+(AT$7*AT37)+(AU$7*AU37)+(AV$7*AV37)) -> 60.5 | AX37: 8 | AY37: 6 | AZ37: 1 | BA37: 0 | BB37: 6 | BC37: 4 | BD37: 2 | BE37: 0 | BH37: =IF(OR('Set UP'!$C35=0,'Set UP'!$D35=0,'Set UP'!$E35=0),"",(AX$7*AX37)+(AY$7*AY37)+(AZ$7*AZ37)+(BA$7*BA37)+(BB$7*BB37)+(BC$7*BC37)+(BD$7*BD37)+(BE$7*BE37)+(BF$7*BF37)+(BG$7*BG37)) -> 31 | BI37: 0 | BT37: =IF(OR('Set UP'!$C35=0,'Set UP'!$D35=0,'Set UP'!$E35=0),"",(BI$7*BI37)+(BJ$7*BJ37)+(BK$7*BK37)+(BL$7*BL37)+(BM$7*BM37)+(BN$7*BN37)+(BO$7*BO37)+(BP$7*BP37)+(BQ$7*BQ37)+(BR$7*BR37)+(BS$7*BS37)) -> 0 | BX37: =IF(OR('Set UP'!$C35=0,'Set UP'!$D35=0,'Set UP'!$E35=0),"",(P37+AA37+AL37+AW37+BH37+BT37)) -> 222.5 | BY37: =IF(OR('Set UP'!$C35=0,'Set UP'!$D35=0,'Set UP'!$E35=0),"",RANK(BX37,$BX$9:$BX$48,0)) -> 5 | BZ37: =IF(OR('Set UP'!K35<>1,'Set UP'!C35=0,'Set UP'!D35=0,'Set UP'!E35=0,'Set UP'!F35=0),"",$BX37) -> 222.5 | CA37: =IF(OR('Set UP'!K35<>1,'Set UP'!C35=0,'Set UP'!D35=0,'Set UP'!E35=0,'Set UP'!F35=0),"",RANK(BZ37,$BZ$9:$BZ$48,0)) -> 4 | CB37: =IF(OR('Set UP'!K35<>2,'Set UP'!C35=0,'Set UP'!D35=0,'Set UP'!E35=0,'Set UP'!F35=0),"",$BX37) ->  | CC37: =IF(OR('Set UP'!K35<>2,'Set UP'!C35=0,'Set UP'!D35=0,'Set UP'!E35=0,'Set UP'!F35=0),"",RANK(CB37,$CB$9:$CB$48,0)) -> 
B38: 30 | C38: =IF(OR('Set UP'!$C36=0,'Set UP'!$D36=0,'Set UP'!$E36=0,'Set UP'!F36=0)," --",'Set UP'!C36) -> 523 | D38: =IF(OR('Set UP'!$C36=0,'Set UP'!$D36=0,'Set UP'!$E36=0,'Set UP'!F36=0)," --",'Set UP'!D36&" "&'Set UP'!E36) -> University of London Union A | E38: =IF(OR('Set UP'!$C36=0,'Set UP'!$D36=0,'Set UP'!$E36=0,'Set UP'!F36=0)," --",'Set UP'!F36) -> S | F38: 7 | G38: 7 | H38: 2 | I38: 5 | J38: 5 | P38: =IF(OR('Set UP'!$C36=0,'Set UP'!$D36=0,'Set UP'!$E36=0),"",(F$7*F38)+(G$7*G38)+(H$7*H38)+(I$7*I38)+(J$7*J38)+(K$7*K38)+(L$7*L38)+(M$7*M38)+(N$7*N38)+(O$7*O38)) -> 40.5 | Q38: 7 | R38: 6 | S38: 6 | T38: 4 | U38: 5 | V38: 7 | W38: 7 | X38: 5 | AA38: =IF(OR('Set UP'!$C36=0,'Set UP'!$D36=0,'Set UP'!$E36=0),"",(Q$7*Q38)+(R$7*R38)+(S$7*S38)+(T$7*T38)+(U$7*U38)+(V$7*V38)+(W$7*W38)+(X$7*X38)+(Y$7*Y38)+(Z$7*Z38)) -> 56.5 | AB38: 2 | AC38: 2 | AD38: 0 | AE38: 0 | AF38: 0 | AG38: 0 | AH38: 0 | AI38: 0 | AJ38: 0 | AL38: =IF(OR('Set UP'!$C36=0,'Set UP'!$D36=0,'Set UP'!$E36=0),"",(AB$7*AB38)+(AC$7*AC38)+(AD$7*AD38)+(AE$7*AE38)+(AF$7*AF38)+(AG$7*AG38)+(AH$7*AH38)+(AI$7*AI38)+(AJ$7*AJ38)+(AK$7*AK38)) -> 6 | AM38: 7 | AN38: 7 | AO38: 4 | AP38: 7 | AQ38: 7 | AR38: 4 | AS38: 3 | AT38: 3 | AW38: =IF(OR('Set UP'!$C36=0,'Set UP'!$D36=0,'Set UP'!$E36=0),"",(AM$7*AM38)+(AN$7*AN38)+(AO$7*AO38)+(AP$7*AP38)+(AQ$7*AQ38)+(AR$7*AR38)+(AS$7*AS38)+(AT$7*AT38)+(AU$7*AU38)+(AV$7*AV38)) -> 78.5 | AX38: 3 | AY38: 5 | AZ38: 4 | BA38: 0 | BB38: 3 | BC38: 5 | BD38: 0 | BE38: 0 | BH38: =IF(OR('Set UP'!$C36=0,'Set UP'!$D36=0,'Set UP'!$E36=0),"",(AX$7*AX38)+(AY$7*AY38)+(AZ$7*AZ38)+(BA$7*BA38)+(BB$7*BB38)+(BC$7*BC38)+(BD$7*BD38)+(BE$7*BE38)+(BF$7*BF38)+(BG$7*BG38)) -> 26 | BI38: 0 | BT38: =IF(OR('Set UP'!$C36=0,'Set UP'!$D36=0,'Set UP'!$E36=0),"",(BI$7*BI38)+(BJ$7*BJ38)+(BK$7*BK38)+(BL$7*BL38)+(BM$7*BM38)+(BN$7*BN38)+(BO$7*BO38)+(BP$7*BP38)+(BQ$7*BQ38)+(BR$7*BR38)+(BS$7*BS38)) -> 0 | BX38: =IF(OR('Set UP'!$C36=0,'Set UP'!$D36=0,'Set UP'!$E36=0),"",(P38+AA38+AL38+AW38+BH38+BT38)) -> 207.5 | BY38: =IF(OR('Set UP'!$C36=0,'Set UP'!$D36=0,'Set UP'!$E36=0),"",RANK(BX38,$BX$9:$BX$48,0)) -> 9 | BZ38: =IF(OR('Set UP'!K36<>1,'Set UP'!C36=0,'Set UP'!D36=0,'Set UP'!E36=0,'Set UP'!F36=0),"",$BX38) -> 207.5 | CA38: =IF(OR('Set UP'!K36<>1,'Set UP'!C36=0,'Set UP'!D36=0,'Set UP'!E36=0,'Set UP'!F36=0),"",RANK(BZ38,$BZ$9:$BZ$48,0)) -> 6 | CB38: =IF(OR('Set UP'!K36<>2,'Set UP'!C36=0,'Set UP'!D36=0,'Set UP'!E36=0,'Set UP'!F36=0),"",$BX38) ->  | CC38: =IF(OR('Set UP'!K36<>2,'Set UP'!C36=0,'Set UP'!D36=0,'Set UP'!E36=0,'Set UP'!F36=0),"",RANK(CB38,$CB$9:$CB$48,0)) -> 
B39: 31 | C39: =IF(OR('Set UP'!$C37=0,'Set UP'!$D37=0,'Set UP'!$E37=0,'Set UP'!F37=0)," --",'Set UP'!C37) -> 505 | D39: =IF(OR('Set UP'!$C37=0,'Set UP'!$D37=0,'Set UP'!$E37=0,'Set UP'!F37=0)," --",'Set UP'!D37&" "&'Set UP'!E37) -> University of Plymouth A | E39: =IF(OR('Set UP'!$C37=0,'Set UP'!$D37=0,'Set UP'!$E37=0,'Set UP'!F37=0)," --",'Set UP'!F37) -> S | F39: 6 | G39: 2 | H39: 6 | I39: 1 | J39: 1 | P39: =IF(OR('Set UP'!$C37=0,'Set UP'!$D37=0,'Set UP'!$E37=0),"",(F$7*F39)+(G$7*G39)+(H$7*H39)+(I$7*I39)+(J$7*J39)+(K$7*K39)+(L$7*L39)+(M$7*M39)+(N$7*N39)+(O$7*O39)) -> 31 | Q39: 5 | R39: 6 | S39: 0 | T39: 3 | U39: 0 | V39: 4 | W39: 7 | X39: 0 | AA39: =IF(OR('Set UP'!$C37=0,'Set UP'!$D37=0,'Set UP'!$E37=0),"",(Q$7*Q39)+(R$7*R39)+(S$7*S39)+(T$7*T39)+(U$7*U39)+(V$7*V39)+(W$7*W39)+(X$7*X39)+(Y$7*Y39)+(Z$7*Z39)) -> 37 | AB39: 3 | AC39: 2 | AD39: 0 | AE39: 0 | AF39: 0 | AG39: 0 | AH39: 0 | AI39: 0 | AJ39: 0 | AL39: =IF(OR('Set UP'!$C37=0,'Set UP'!$D37=0,'Set UP'!$E37=0),"",(AB$7*AB39)+(AC$7*AC39)+(AD$7*AD39)+(AE$7*AE39)+(AF$7*AF39)+(AG$7*AG39)+(AH$7*AH39)+(AI$7*AI39)+(AJ$7*AJ39)+(AK$7*AK39)) -> 7 | AM39: 6 | AN39: 4 | AO39: 2 | AP39: 6 | AQ39: 5 | AR39: 2 | AS39: 0 | AT39: 0 | AW39: =IF(OR('Set UP'!$C37=0,'Set UP'!$D37=0,'Set UP'!$E37=0),"",(AM$7*AM39)+(AN$7*AN39)+(AO$7*AO39)+(AP$7*AP39)+(AQ$7*AQ39)+(AR$7*AR39)+(AS$7*AS39)+(AT$7*AT39)+(AU$7*AU39)+(AV$7*AV39)) -> 54 | AX39: 3 | AY39: 4 | AZ39: 0 | BA39: 0 | BB39: 4 | BC39: 3 | BD39: 0 | BE39: 0 | BH39: =IF(OR('Set UP'!$C37=0,'Set UP'!$D37=0,'Set UP'!$E37=0),"",(AX$7*AX39)+(AY$7*AY39)+(AZ$7*AZ39)+(BA$7*BA39)+(BB$7*BB39)+(BC$7*BC39)+(BD$7*BD39)+(BE$7*BE39)+(BF$7*BF39)+(BG$7*BG39)) -> 17.5 | BI39: 0 | BT39: =IF(OR('Set UP'!$C37=0,'Set UP'!$D37=0,'Set UP'!$E37=0),"",(BI$7*BI39)+(BJ$7*BJ39)+(BK$7*BK39)+(BL$7*BL39)+(BM$7*BM39)+(BN$7*BN39)+(BO$7*BO39)+(BP$7*BP39)+(BQ$7*BQ39)+(BR$7*BR39)+(BS$7*BS39)) -> 0 | BX39: =IF(OR('Set UP'!$C37=0,'Set UP'!$D37=0,'Set UP'!$E37=0),"",(P39+AA39+AL39+AW39+BH39+BT39)) -> 146.5 | BY39: =IF(OR('Set UP'!$C37=0,'Set UP'!$D37=0,'Set UP'!$E37=0),"",RANK(BX39,$BX$9:$BX$48,0)) -> 27 | BZ39: =IF(OR('Set UP'!K37<>1,'Set UP'!C37=0,'Set UP'!D37=0,'Set UP'!E37=0,'Set UP'!F37=0),"",$BX39) -> 146.5 | CA39: =IF(OR('Set UP'!K37<>1,'Set UP'!C37=0,'Set UP'!D37=0,'Set UP'!E37=0,'Set UP'!F37=0),"",RANK(BZ39,$BZ$9:$BZ$48,0)) -> 10 | CB39: =IF(OR('Set UP'!K37<>2,'Set UP'!C37=0,'Set UP'!D37=0,'Set UP'!E37=0,'Set UP'!F37=0),"",$BX39) ->  | CC39: =IF(OR('Set UP'!K37<>2,'Set UP'!C37=0,'Set UP'!D37=0,'Set UP'!E37=0,'Set UP'!F37=0),"",RANK(CB39,$CB$9:$CB$48,0)) -> 
B40: 32 | C40: =IF(OR('Set UP'!$C38=0,'Set UP'!$D38=0,'Set UP'!$E38=0,'Set UP'!F38=0)," --",'Set UP'!C38) -> 510 | D40: =IF(OR('Set UP'!$C38=0,'Set UP'!$D38=0,'Set UP'!$E38=0,'Set UP'!F38=0)," --",'Set UP'!D38&" "&'Set UP'!E38) -> University of Warwick A | E40: =IF(OR('Set UP'!$C38=0,'Set UP'!$D38=0,'Set UP'!$E38=0,'Set UP'!F38=0)," --",'Set UP'!F38) -> S | F40: 8 | G40: 9 | H40: 6 | I40: 7 | J40: 7 | P40: =IF(OR('Set UP'!$C38=0,'Set UP'!$D38=0,'Set UP'!$E38=0),"",(F$7*F40)+(G$7*G40)+(H$7*H40)+(I$7*I40)+(J$7*J40)+(K$7*K40)+(L$7*L40)+(M$7*M40)+(N$7*N40)+(O$7*O40)) -> 62.5 | Q40: 7 | R40: 6 | S40: 4 | T40: 7 | U40: 6 | V40: 7 | W40: 5 | X40: 5 | AA40: =IF(OR('Set UP'!$C38=0,'Set UP'!$D38=0,'Set UP'!$E38=0),"",(Q$7*Q40)+(R$7*R40)+(S$7*S40)+(T$7*T40)+(U$7*U40)+(V$7*V40)+(W$7*W40)+(X$7*X40)+(Y$7*Y40)+(Z$7*Z40)) -> 57 | AB40: 8 | AC40: 6 | AD40: 8 | AE40: 0 | AF40: 0 | AG40: 0 | AH40: 0 | AI40: 0 | AJ40: 0 | AL40: =IF(OR('Set UP'!$C38=0,'Set UP'!$D38=0,'Set UP'!$E38=0),"",(AB$7*AB40)+(AC$7*AC40)+(AD$7*AD40)+(AE$7*AE40)+(AF$7*AF40)+(AG$7*AG40)+(AH$7*AH40)+(AI$7*AI40)+(AJ$7*AJ40)+(AK$7*AK40)) -> 40 | AM40: 6 | AN40: 4 | AO40: 4 | AP40: 5 | AQ40: 5 | AR40: 4 | AS40: 4 | AT40: 0 | AW40: =IF(OR('Set UP'!$C38=0,'Set UP'!$D38=0,'Set UP'!$E38=0),"",(AM$7*AM40)+(AN$7*AN40)+(AO$7*AO40)+(AP$7*AP40)+(AQ$7*AQ40)+(AR$7*AR40)+(AS$7*AS40)+(AT$7*AT40)+(AU$7*AU40)+(AV$7*AV40)) -> 55.5 | AX40: 4 | AY40: 5 | AZ40: 0 | BA40: 0 | BB40: 4 | BC40: 5 | BD40: 0 | BE40: 0 | BH40: =IF(OR('Set UP'!$C38=0,'Set UP'!$D38=0,'Set UP'!$E38=0),"",(AX$7*AX40)+(AY$7*AY40)+(AZ$7*AZ40)+(BA$7*BA40)+(BB$7*BB40)+(BC$7*BC40)+(BD$7*BD40)+(BE$7*BE40)+(BF$7*BF40)+(BG$7*BG40)) -> 23.5 | BI40: 0 | BT40: =IF(OR('Set UP'!$C38=0,'Set UP'!$D38=0,'Set UP'!$E38=0),"",(BI$7*BI40)+(BJ$7*BJ40)+(BK$7*BK40)+(BL$7*BL40)+(BM$7*BM40)+(BN$7*BN40)+(BO$7*BO40)+(BP$7*BP40)+(BQ$7*BQ40)+(BR$7*BR40)+(BS$7*BS40)) -> 0 | BX40: =IF(OR('Set UP'!$C38=0,'Set UP'!$D38=0,'Set UP'!$E38=0),"",(P40+AA40+AL40+AW40+BH40+BT40)) -> 238.5 | BY40: =IF(OR('Set UP'!$C38=0,'Set UP'!$D38=0,'Set UP'!$E38=0),"",RANK(BX40,$BX$9:$BX$48,0)) -> 3 | BZ40: =IF(OR('Set UP'!K38<>1,'Set UP'!C38=0,'Set UP'!D38=0,'Set UP'!E38=0,'Set UP'!F38=0),"",$BX40) -> 238.5 | CA40: =IF(OR('Set UP'!K38<>1,'Set UP'!C38=0,'Set UP'!D38=0,'Set UP'!E38=0,'Set UP'!F38=0),"",RANK(BZ40,$BZ$9:$BZ$48,0)) -> 3 | CB40: =IF(OR('Set UP'!K38<>2,'Set UP'!C38=0,'Set UP'!D38=0,'Set UP'!E38=0,'Set UP'!F38=0),"",$BX40) ->  | CC40: =IF(OR('Set UP'!K38<>2,'Set UP'!C38=0,'Set UP'!D38=0,'Set UP'!E38=0,'Set UP'!F38=0),"",RANK(CB40,$CB$9:$CB$48,0)) -> 
B41: 33 | C41: =IF(OR('Set UP'!$C39=0,'Set UP'!$D39=0,'Set UP'!$E39=0,'Set UP'!F39=0)," --",'Set UP'!C39) -> -- | D41: =IF(OR('Set UP'!$C39=0,'Set UP'!$D39=0,'Set UP'!$E39=0,'Set UP'!F39=0)," --",'Set UP'!D39&" "&'Set UP'!E39) -> -- | E41: =IF(OR('Set UP'!$C39=0,'Set UP'!$D39=0,'Set UP'!$E39=0,'Set UP'!F39=0)," --",'Set UP'!F39) -> -- | P41: =IF(OR('Set UP'!$C39=0,'Set UP'!$D39=0,'Set UP'!$E39=0),"",(F$7*F41)+(G$7*G41)+(H$7*H41)+(I$7*I41)+(J$7*J41)+(K$7*K41)+(L$7*L41)+(M$7*M41)+(N$7*N41)+(O$7*O41)) ->  | AA41: =IF(OR('Set UP'!$C39=0,'Set UP'!$D39=0,'Set UP'!$E39=0),"",(Q$7*Q41)+(R$7*R41)+(S$7*S41)+(T$7*T41)+(U$7*U41)+(V$7*V41)+(W$7*W41)+(X$7*X41)+(Y$7*Y41)+(Z$7*Z41)) ->  | AL41: =IF(OR('Set UP'!$C39=0,'Set UP'!$D39=0,'Set UP'!$E39=0),"",(AB$7*AB41)+(AC$7*AC41)+(AD$7*AD41)+(AE$7*AE41)+(AF$7*AF41)+(AG$7*AG41)+(AH$7*AH41)+(AI$7*AI41)+(AJ$7*AJ41)+(AK$7*AK41)) ->  | AW41: =IF(OR('Set UP'!$C39=0,'Set UP'!$D39=0,'Set UP'!$E39=0),"",(AM$7*AM41)+(AN$7*AN41)+(AO$7*AO41)+(AP$7*AP41)+(AQ$7*AQ41)+(AR$7*AR41)+(AS$7*AS41)+(AT$7*AT41)+(AU$7*AU41)+(AV$7*AV41)) ->  | BH41: =IF(OR('Set UP'!$C39=0,'Set UP'!$D39=0,'Set UP'!$E39=0),"",(AX$7*AX41)+(AY$7*AY41)+(AZ$7*AZ41)+(BA$7*BA41)+(BB$7*BB41)+(BC$7*BC41)+(BD$7*BD41)+(BE$7*BE41)+(BF$7*BF41)+(BG$7*BG41)) ->  | BT41: =IF(OR('Set UP'!$C39=0,'Set UP'!$D39=0,'Set UP'!$E39=0),"",(BI$7*BI41)+(BJ$7*BJ41)+(BK$7*BK41)+(BL$7*BL41)+(BM$7*BM41)+(BN$7*BN41)+(BO$7*BO41)+(BP$7*BP41)+(BQ$7*BQ41)+(BR$7*BR41)+(BS$7*BS41)) ->  | BX41: =IF(OR('Set UP'!$C39=0,'Set UP'!$D39=0,'Set UP'!$E39=0),"",(P41+AA41+AL41+AW41+BH41+BT41)) ->  | BY41: =IF(OR('Set UP'!$C39=0,'Set UP'!$D39=0,'Set UP'!$E39=0),"",RANK(BX41,$BX$9:$BX$48,0)) ->  | BZ41: =IF(OR('Set UP'!K39<>1,'Set UP'!C39=0,'Set UP'!D39=0,'Set UP'!E39=0,'Set UP'!F39=0),"",$BX41) ->  | CA41: =IF(OR('Set UP'!K39<>1,'Set UP'!C39=0,'Set UP'!D39=0,'Set UP'!E39=0,'Set UP'!F39=0),"",RANK(BZ41,$BZ$9:$BZ$48,0)) ->  | CB41: =IF(OR('Set UP'!K39<>2,'Set UP'!C39=0,'Set UP'!D39=0,'Set UP'!E39=0,'Set UP'!F39=0),"",$BX41) ->  | CC41: =IF(OR('Set UP'!K39<>2,'Set UP'!C39=0,'Set UP'!D39=0,'Set UP'!E39=0,'Set UP'!F39=0),"",RANK(CB41,$CB$9:$CB$48,0)) -> 
B42: 34 | C42: =IF(OR('Set UP'!$C40=0,'Set UP'!$D40=0,'Set UP'!$E40=0,'Set UP'!F40=0)," --",'Set UP'!C40) -> -- | D42: =IF(OR('Set UP'!$C40=0,'Set UP'!$D40=0,'Set UP'!$E40=0,'Set UP'!F40=0)," --",'Set UP'!D40&" "&'Set UP'!E40) -> -- | E42: =IF(OR('Set UP'!$C40=0,'Set UP'!$D40=0,'Set UP'!$E40=0,'Set UP'!F40=0)," --",'Set UP'!F40) -> -- | P42: =IF(OR('Set UP'!$C40=0,'Set UP'!$D40=0,'Set UP'!$E40=0),"",(F$7*F42)+(G$7*G42)+(H$7*H42)+(I$7*I42)+(J$7*J42)+(K$7*K42)+(L$7*L42)+(M$7*M42)+(N$7*N42)+(O$7*O42)) ->  | AA42: =IF(OR('Set UP'!$C40=0,'Set UP'!$D40=0,'Set UP'!$E40=0),"",(Q$7*Q42)+(R$7*R42)+(S$7*S42)+(T$7*T42)+(U$7*U42)+(V$7*V42)+(W$7*W42)+(X$7*X42)+(Y$7*Y42)+(Z$7*Z42)) ->  | AL42: =IF(OR('Set UP'!$C40=0,'Set UP'!$D40=0,'Set UP'!$E40=0),"",(AB$7*AB42)+(AC$7*AC42)+(AD$7*AD42)+(AE$7*AE42)+(AF$7*AF42)+(AG$7*AG42)+(AH$7*AH42)+(AI$7*AI42)+(AJ$7*AJ42)+(AK$7*AK42)) ->  | AW42: =IF(OR('Set UP'!$C40=0,'Set UP'!$D40=0,'Set UP'!$E40=0),"",(AM$7*AM42)+(AN$7*AN42)+(AO$7*AO42)+(AP$7*AP42)+(AQ$7*AQ42)+(AR$7*AR42)+(AS$7*AS42)+(AT$7*AT42)+(AU$7*AU42)+(AV$7*AV42)) ->  | BH42: =IF(OR('Set UP'!$C40=0,'Set UP'!$D40=0,'Set UP'!$E40=0),"",(AX$7*AX42)+(AY$7*AY42)+(AZ$7*AZ42)+(BA$7*BA42)+(BB$7*BB42)+(BC$7*BC42)+(BD$7*BD42)+(BE$7*BE42)+(BF$7*BF42)+(BG$7*BG42)) ->  | BT42: =IF(OR('Set UP'!$C40=0,'Set UP'!$D40=0,'Set UP'!$E40=0),"",(BI$7*BI42)+(BJ$7*BJ42)+(BK$7*BK42)+(BL$7*BL42)+(BM$7*BM42)+(BN$7*BN42)+(BO$7*BO42)+(BP$7*BP42)+(BQ$7*BQ42)+(BR$7*BR42)+(BS$7*BS42)) ->  | BX42: =IF(OR('Set UP'!$C40=0,'Set UP'!$D40=0,'Set UP'!$E40=0),"",(P42+AA42+AL42+AW42+BH42+BT42)) ->  | BY42: =IF(OR('Set UP'!$C40=0,'Set UP'!$D40=0,'Set UP'!$E40=0),"",RANK(BX42,$BX$9:$BX$48,0)) ->  | BZ42: =IF(OR('Set UP'!K40<>1,'Set UP'!C40=0,'Set UP'!D40=0,'Set UP'!E40=0,'Set UP'!F40=0),"",$BX42) ->  | CA42: =IF(OR('Set UP'!K40<>1,'Set UP'!C40=0,'Set UP'!D40=0,'Set UP'!E40=0,'Set UP'!F40=0),"",RANK(BZ42,$BZ$9:$BZ$48,0)) ->  | CB42: =IF(OR('Set UP'!K40<>2,'Set UP'!C40=0,'Set UP'!D40=0,'Set UP'!E40=0,'Set UP'!F40=0),"",$BX42) ->  | CC42: =IF(OR('Set UP'!K40<>2,'Set UP'!C40=0,'Set UP'!D40=0,'Set UP'!E40=0,'Set UP'!F40=0),"",RANK(CB42,$CB$9:$CB$48,0)) -> 
B43: 35 | C43: =IF(OR('Set UP'!$C41=0,'Set UP'!$D41=0,'Set UP'!$E41=0,'Set UP'!F41=0)," --",'Set UP'!C41) -> -- | D43: =IF(OR('Set UP'!$C41=0,'Set UP'!$D41=0,'Set UP'!$E41=0,'Set UP'!F41=0)," --",'Set UP'!D41&" "&'Set UP'!E41) -> -- | E43: =IF(OR('Set UP'!$C41=0,'Set UP'!$D41=0,'Set UP'!$E41=0,'Set UP'!F41=0)," --",'Set UP'!F41) -> -- | P43: =IF(OR('Set UP'!$C41=0,'Set UP'!$D41=0,'Set UP'!$E41=0),"",(F$7*F43)+(G$7*G43)+(H$7*H43)+(I$7*I43)+(J$7*J43)+(K$7*K43)+(L$7*L43)+(M$7*M43)+(N$7*N43)+(O$7*O43)) ->  | AA43: =IF(OR('Set UP'!$C41=0,'Set UP'!$D41=0,'Set UP'!$E41=0),"",(Q$7*Q43)+(R$7*R43)+(S$7*S43)+(T$7*T43)+(U$7*U43)+(V$7*V43)+(W$7*W43)+(X$7*X43)+(Y$7*Y43)+(Z$7*Z43)) ->  | AL43: =IF(OR('Set UP'!$C41=0,'Set UP'!$D41=0,'Set UP'!$E41=0),"",(AB$7*AB43)+(AC$7*AC43)+(AD$7*AD43)+(AE$7*AE43)+(AF$7*AF43)+(AG$7*AG43)+(AH$7*AH43)+(AI$7*AI43)+(AJ$7*AJ43)+(AK$7*AK43)) ->  | AW43: =IF(OR('Set UP'!$C41=0,'Set UP'!$D41=0,'Set UP'!$E41=0),"",(AM$7*AM43)+(AN$7*AN43)+(AO$7*AO43)+(AP$7*AP43)+(AQ$7*AQ43)+(AR$7*AR43)+(AS$7*AS43)+(AT$7*AT43)+(AU$7*AU43)+(AV$7*AV43)) ->  | BH43: =IF(OR('Set UP'!$C41=0,'Set UP'!$D41=0,'Set UP'!$E41=0),"",(AX$7*AX43)+(AY$7*AY43)+(AZ$7*AZ43)+(BA$7*BA43)+(BB$7*BB43)+(BC$7*BC43)+(BD$7*BD43)+(BE$7*BE43)+(BF$7*BF43)+(BG$7*BG43)) ->  | BT43: =IF(OR('Set UP'!$C41=0,'Set UP'!$D41=0,'Set UP'!$E41=0),"",(BI$7*BI43)+(BJ$7*BJ43)+(BK$7*BK43)+(BL$7*BL43)+(BM$7*BM43)+(BN$7*BN43)+(BO$7*BO43)+(BP$7*BP43)+(BQ$7*BQ43)+(BR$7*BR43)+(BS$7*BS43)) ->  | BX43: =IF(OR('Set UP'!$C41=0,'Set UP'!$D41=0,'Set UP'!$E41=0),"",(P43+AA43+AL43+AW43+BH43+BT43)) ->  | BY43: =IF(OR('Set UP'!$C41=0,'Set UP'!$D41=0,'Set UP'!$E41=0),"",RANK(BX43,$BX$9:$BX$48,0)) ->  | BZ43: =IF(OR('Set UP'!K41<>1,'Set UP'!C41=0,'Set UP'!D41=0,'Set UP'!E41=0,'Set UP'!F41=0),"",$BX43) ->  | CA43: =IF(OR('Set UP'!K41<>1,'Set UP'!C41=0,'Set UP'!D41=0,'Set UP'!E41=0,'Set UP'!F41=0),"",RANK(BZ43,$BZ$9:$BZ$48,0)) ->  | CB43: =IF(OR('Set UP'!K41<>2,'Set UP'!C41=0,'Set UP'!D41=0,'Set UP'!E41=0,'Set UP'!F41=0),"",$BX43) ->  | CC43: =IF(OR('Set UP'!K41<>2,'Set UP'!C41=0,'Set UP'!D41=0,'Set UP'!E41=0,'Set UP'!F41=0),"",RANK(CB43,$CB$9:$CB$48,0)) -> 
B44: 36 | C44: =IF(OR('Set UP'!$C42=0,'Set UP'!$D42=0,'Set UP'!$E42=0,'Set UP'!F42=0)," --",'Set UP'!C42) -> -- | D44: =IF(OR('Set UP'!$C42=0,'Set UP'!$D42=0,'Set UP'!$E42=0,'Set UP'!F42=0)," --",'Set UP'!D42&" "&'Set UP'!E42) -> -- | E44: =IF(OR('Set UP'!$C42=0,'Set UP'!$D42=0,'Set UP'!$E42=0,'Set UP'!F42=0)," --",'Set UP'!F42) -> -- | P44: =IF(OR('Set UP'!$C42=0,'Set UP'!$D42=0,'Set UP'!$E42=0),"",(F$7*F44)+(G$7*G44)+(H$7*H44)+(I$7*I44)+(J$7*J44)+(K$7*K44)+(L$7*L44)+(M$7*M44)+(N$7*N44)+(O$7*O44)) ->  | AA44: =IF(OR('Set UP'!$C42=0,'Set UP'!$D42=0,'Set UP'!$E42=0),"",(Q$7*Q44)+(R$7*R44)+(S$7*S44)+(T$7*T44)+(U$7*U44)+(V$7*V44)+(W$7*W44)+(X$7*X44)+(Y$7*Y44)+(Z$7*Z44)) ->  | AL44: =IF(OR('Set UP'!$C42=0,'Set UP'!$D42=0,'Set UP'!$E42=0),"",(AB$7*AB44)+(AC$7*AC44)+(AD$7*AD44)+(AE$7*AE44)+(AF$7*AF44)+(AG$7*AG44)+(AH$7*AH44)+(AI$7*AI44)+(AJ$7*AJ44)+(AK$7*AK44)) ->  | AW44: =IF(OR('Set UP'!$C42=0,'Set UP'!$D42=0,'Set UP'!$E42=0),"",(AM$7*AM44)+(AN$7*AN44)+(AO$7*AO44)+(AP$7*AP44)+(AQ$7*AQ44)+(AR$7*AR44)+(AS$7*AS44)+(AT$7*AT44)+(AU$7*AU44)+(AV$7*AV44)) ->  | BH44: =IF(OR('Set UP'!$C42=0,'Set UP'!$D42=0,'Set UP'!$E42=0),"",(AX$7*AX44)+(AY$7*AY44)+(AZ$7*AZ44)+(BA$7*BA44)+(BB$7*BB44)+(BC$7*BC44)+(BD$7*BD44)+(BE$7*BE44)+(BF$7*BF44)+(BG$7*BG44)) ->  | BT44: =IF(OR('Set UP'!$C42=0,'Set UP'!$D42=0,'Set UP'!$E42=0),"",(BI$7*BI44)+(BJ$7*BJ44)+(BK$7*BK44)+(BL$7*BL44)+(BM$7*BM44)+(BN$7*BN44)+(BO$7*BO44)+(BP$7*BP44)+(BQ$7*BQ44)+(BR$7*BR44)+(BS$7*BS44)) ->  | BX44: =IF(OR('Set UP'!$C42=0,'Set UP'!$D42=0,'Set UP'!$E42=0),"",(P44+AA44+AL44+AW44+BH44+BT44)) ->  | BY44: =IF(OR('Set UP'!$C42=0,'Set UP'!$D42=0,'Set UP'!$E42=0),"",RANK(BX44,$BX$9:$BX$48,0)) ->  | BZ44: =IF(OR('Set UP'!K42<>1,'Set UP'!C42=0,'Set UP'!D42=0,'Set UP'!E42=0,'Set UP'!F42=0),"",$BX44) ->  | CA44: =IF(OR('Set UP'!K42<>1,'Set UP'!C42=0,'Set UP'!D42=0,'Set UP'!E42=0,'Set UP'!F42=0),"",RANK(BZ44,$BZ$9:$BZ$48,0)) ->  | CB44: =IF(OR('Set UP'!K42<>2,'Set UP'!C42=0,'Set UP'!D42=0,'Set UP'!E42=0,'Set UP'!F42=0),"",$BX44) ->  | CC44: =IF(OR('Set UP'!K42<>2,'Set UP'!C42=0,'Set UP'!D42=0,'Set UP'!E42=0,'Set UP'!F42=0),"",RANK(CB44,$CB$9:$CB$48,0)) -> 
B45: 37 | C45: =IF(OR('Set UP'!$C43=0,'Set UP'!$D43=0,'Set UP'!$E43=0,'Set UP'!F43=0)," --",'Set UP'!C43) -> -- | D45: =IF(OR('Set UP'!$C43=0,'Set UP'!$D43=0,'Set UP'!$E43=0,'Set UP'!F43=0)," --",'Set UP'!D43&" "&'Set UP'!E43) -> -- | E45: =IF(OR('Set UP'!$C43=0,'Set UP'!$D43=0,'Set UP'!$E43=0,'Set UP'!F43=0)," --",'Set UP'!F43) -> -- | P45: =IF(OR('Set UP'!$C43=0,'Set UP'!$D43=0,'Set UP'!$E43=0),"",(F$7*F45)+(G$7*G45)+(H$7*H45)+(I$7*I45)+(J$7*J45)+(K$7*K45)+(L$7*L45)+(M$7*M45)+(N$7*N45)+(O$7*O45)) ->  | AA45: =IF(OR('Set UP'!$C43=0,'Set UP'!$D43=0,'Set UP'!$E43=0),"",(Q$7*Q45)+(R$7*R45)+(S$7*S45)+(T$7*T45)+(U$7*U45)+(V$7*V45)+(W$7*W45)+(X$7*X45)+(Y$7*Y45)+(Z$7*Z45)) ->  | AL45: =IF(OR('Set UP'!$C43=0,'Set UP'!$D43=0,'Set UP'!$E43=0),"",(AB$7*AB45)+(AC$7*AC45)+(AD$7*AD45)+(AE$7*AE45)+(AF$7*AF45)+(AG$7*AG45)+(AH$7*AH45)+(AI$7*AI45)+(AJ$7*AJ45)+(AK$7*AK45)) ->  | AW45: =IF(OR('Set UP'!$C43=0,'Set UP'!$D43=0,'Set UP'!$E43=0),"",(AM$7*AM45)+(AN$7*AN45)+(AO$7*AO45)+(AP$7*AP45)+(AQ$7*AQ45)+(AR$7*AR45)+(AS$7*AS45)+(AT$7*AT45)+(AU$7*AU45)+(AV$7*AV45)) ->  | BH45: =IF(OR('Set UP'!$C43=0,'Set UP'!$D43=0,'Set UP'!$E43=0),"",(AX$7*AX45)+(AY$7*AY45)+(AZ$7*AZ45)+(BA$7*BA45)+(BB$7*BB45)+(BC$7*BC45)+(BD$7*BD45)+(BE$7*BE45)+(BF$7*BF45)+(BG$7*BG45)) ->  | BT45: =IF(OR('Set UP'!$C43=0,'Set UP'!$D43=0,'Set UP'!$E43=0),"",(BI$7*BI45)+(BJ$7*BJ45)+(BK$7*BK45)+(BL$7*BL45)+(BM$7*BM45)+(BN$7*BN45)+(BO$7*BO45)+(BP$7*BP45)+(BQ$7*BQ45)+(BR$7*BR45)+(BS$7*BS45)) ->  | BX45: =IF(OR('Set UP'!$C43=0,'Set UP'!$D43=0,'Set UP'!$E43=0),"",(P45+AA45+AL45+AW45+BH45+BT45)) ->  | BY45: =IF(OR('Set UP'!$C43=0,'Set UP'!$D43=0,'Set UP'!$E43=0),"",RANK(BX45,$BX$9:$BX$48,0)) ->  | BZ45: =IF(OR('Set UP'!K43<>1,'Set UP'!C43=0,'Set UP'!D43=0,'Set UP'!E43=0,'Set UP'!F43=0),"",$BX45) ->  | CA45: =IF(OR('Set UP'!K43<>1,'Set UP'!C43=0,'Set UP'!D43=0,'Set UP'!E43=0,'Set UP'!F43=0),"",RANK(BZ45,$BZ$9:$BZ$48,0)) ->  | CB45: =IF(OR('Set UP'!K43<>2,'Set UP'!C43=0,'Set UP'!D43=0,'Set UP'!E43=0,'Set UP'!F43=0),"",$BX45) ->  | CC45: =IF(OR('Set UP'!K43<>2,'Set UP'!C43=0,'Set UP'!D43=0,'Set UP'!E43=0,'Set UP'!F43=0),"",RANK(CB45,$CB$9:$CB$48,0)) -> 
B46: 38 | C46: =IF(OR('Set UP'!$C44=0,'Set UP'!$D44=0,'Set UP'!$E44=0,'Set UP'!F44=0)," --",'Set UP'!C44) -> -- | D46: =IF(OR('Set UP'!$C44=0,'Set UP'!$D44=0,'Set UP'!$E44=0,'Set UP'!F44=0)," --",'Set UP'!D44&" "&'Set UP'!E44) -> -- | E46: =IF(OR('Set UP'!$C44=0,'Set UP'!$D44=0,'Set UP'!$E44=0,'Set UP'!F44=0)," --",'Set UP'!F44) -> -- | P46: =IF(OR('Set UP'!$C44=0,'Set UP'!$D44=0,'Set UP'!$E44=0),"",(F$7*F46)+(G$7*G46)+(H$7*H46)+(I$7*I46)+(J$7*J46)+(K$7*K46)+(L$7*L46)+(M$7*M46)+(N$7*N46)+(O$7*O46)) ->  | AA46: =IF(OR('Set UP'!$C44=0,'Set UP'!$D44=0,'Set UP'!$E44=0),"",(Q$7*Q46)+(R$7*R46)+(S$7*S46)+(T$7*T46)+(U$7*U46)+(V$7*V46)+(W$7*W46)+(X$7*X46)+(Y$7*Y46)+(Z$7*Z46)) ->  | AL46: =IF(OR('Set UP'!$C44=0,'Set UP'!$D44=0,'Set UP'!$E44=0),"",(AB$7*AB46)+(AC$7*AC46)+(AD$7*AD46)+(AE$7*AE46)+(AF$7*AF46)+(AG$7*AG46)+(AH$7*AH46)+(AI$7*AI46)+(AJ$7*AJ46)+(AK$7*AK46)) ->  | AW46: =IF(OR('Set UP'!$C44=0,'Set UP'!$D44=0,'Set UP'!$E44=0),"",(AM$7*AM46)+(AN$7*AN46)+(AO$7*AO46)+(AP$7*AP46)+(AQ$7*AQ46)+(AR$7*AR46)+(AS$7*AS46)+(AT$7*AT46)+(AU$7*AU46)+(AV$7*AV46)) ->  | BH46: =IF(OR('Set UP'!$C44=0,'Set UP'!$D44=0,'Set UP'!$E44=0),"",(AX$7*AX46)+(AY$7*AY46)+(AZ$7*AZ46)+(BA$7*BA46)+(BB$7*BB46)+(BC$7*BC46)+(BD$7*BD46)+(BE$7*BE46)+(BF$7*BF46)+(BG$7*BG46)) ->  | BT46: =IF(OR('Set UP'!$C44=0,'Set UP'!$D44=0,'Set UP'!$E44=0),"",(BI$7*BI46)+(BJ$7*BJ46)+(BK$7*BK46)+(BL$7*BL46)+(BM$7*BM46)+(BN$7*BN46)+(BO$7*BO46)+(BP$7*BP46)+(BQ$7*BQ46)+(BR$7*BR46)+(BS$7*BS46)) ->  | BX46: =IF(OR('Set UP'!$C44=0,'Set UP'!$D44=0,'Set UP'!$E44=0),"",(P46+AA46+AL46+AW46+BH46+BT46)) ->  | BY46: =IF(OR('Set UP'!$C44=0,'Set UP'!$D44=0,'Set UP'!$E44=0),"",RANK(BX46,$BX$9:$BX$48,0)) ->  | BZ46: =IF(OR('Set UP'!K44<>1,'Set UP'!C44=0,'Set UP'!D44=0,'Set UP'!E44=0,'Set UP'!F44=0),"",$BX46) ->  | CA46: =IF(OR('Set UP'!K44<>1,'Set UP'!C44=0,'Set UP'!D44=0,'Set UP'!E44=0,'Set UP'!F44=0),"",RANK(BZ46,$BZ$9:$BZ$48,0)) ->  | CB46: =IF(OR('Set UP'!K44<>2,'Set UP'!C44=0,'Set UP'!D44=0,'Set UP'!E44=0,'Set UP'!F44=0),"",$BX46) ->  | CC46: =IF(OR('Set UP'!K44<>2,'Set UP'!C44=0,'Set UP'!D44=0,'Set UP'!E44=0,'Set UP'!F44=0),"",RANK(CB46,$CB$9:$CB$48,0)) -> 
B47: 39 | C47: =IF(OR('Set UP'!$C45=0,'Set UP'!$D45=0,'Set UP'!$E45=0,'Set UP'!F45=0)," --",'Set UP'!C45) -> -- | D47: =IF(OR('Set UP'!$C45=0,'Set UP'!$D45=0,'Set UP'!$E45=0,'Set UP'!F45=0)," --",'Set UP'!D45&" "&'Set UP'!E45) -> -- | E47: =IF(OR('Set UP'!$C45=0,'Set UP'!$D45=0,'Set UP'!$E45=0,'Set UP'!F45=0)," --",'Set UP'!F45) -> -- | P47: =IF(OR('Set UP'!$C45=0,'Set UP'!$D45=0,'Set UP'!$E45=0),"",(F$7*F47)+(G$7*G47)+(H$7*H47)+(I$7*I47)+(J$7*J47)+(K$7*K47)+(L$7*L47)+(M$7*M47)+(N$7*N47)+(O$7*O47)) ->  | AA47: =IF(OR('Set UP'!$C45=0,'Set UP'!$D45=0,'Set UP'!$E45=0),"",(Q$7*Q47)+(R$7*R47)+(S$7*S47)+(T$7*T47)+(U$7*U47)+(V$7*V47)+(W$7*W47)+(X$7*X47)+(Y$7*Y47)+(Z$7*Z47)) ->  | AL47: =IF(OR('Set UP'!$C45=0,'Set UP'!$D45=0,'Set UP'!$E45=0),"",(AB$7*AB47)+(AC$7*AC47)+(AD$7*AD47)+(AE$7*AE47)+(AF$7*AF47)+(AG$7*AG47)+(AH$7*AH47)+(AI$7*AI47)+(AJ$7*AJ47)+(AK$7*AK47)) ->  | AW47: =IF(OR('Set UP'!$C45=0,'Set UP'!$D45=0,'Set UP'!$E45=0),"",(AM$7*AM47)+(AN$7*AN47)+(AO$7*AO47)+(AP$7*AP47)+(AQ$7*AQ47)+(AR$7*AR47)+(AS$7*AS47)+(AT$7*AT47)+(AU$7*AU47)+(AV$7*AV47)) ->  | BH47: =IF(OR('Set UP'!$C45=0,'Set UP'!$D45=0,'Set UP'!$E45=0),"",(AX$7*AX47)+(AY$7*AY47)+(AZ$7*AZ47)+(BA$7*BA47)+(BB$7*BB47)+(BC$7*BC47)+(BD$7*BD47)+(BE$7*BE47)+(BF$7*BF47)+(BG$7*BG47)) ->  | BT47: =IF(OR('Set UP'!$C45=0,'Set UP'!$D45=0,'Set UP'!$E45=0),"",(BI$7*BI47)+(BJ$7*BJ47)+(BK$7*BK47)+(BL$7*BL47)+(BM$7*BM47)+(BN$7*BN47)+(BO$7*BO47)+(BP$7*BP47)+(BQ$7*BQ47)+(BR$7*BR47)+(BS$7*BS47)) ->  | BX47: =IF(OR('Set UP'!$C45=0,'Set UP'!$D45=0,'Set UP'!$E45=0),"",(P47+AA47+AL47+AW47+BH47+BT47)) ->  | BY47: =IF(OR('Set UP'!$C45=0,'Set UP'!$D45=0,'Set UP'!$E45=0),"",RANK(BX47,$BX$9:$BX$48,0)) ->  | BZ47: =IF(OR('Set UP'!K45<>1,'Set UP'!C45=0,'Set UP'!D45=0,'Set UP'!E45=0,'Set UP'!F45=0),"",$BX47) ->  | CA47: =IF(OR('Set UP'!K45<>1,'Set UP'!C45=0,'Set UP'!D45=0,'Set UP'!E45=0,'Set UP'!F45=0),"",RANK(BZ47,$BZ$9:$BZ$48,0)) ->  | CB47: =IF(OR('Set UP'!K45<>2,'Set UP'!C45=0,'Set UP'!D45=0,'Set UP'!E45=0,'Set UP'!F45=0),"",$BX47) ->  | CC47: =IF(OR('Set UP'!K45<>2,'Set UP'!C45=0,'Set UP'!D45=0,'Set UP'!E45=0,'Set UP'!F45=0),"",RANK(CB47,$CB$9:$CB$48,0)) -> 
B48: 40 | C48: =IF(OR('Set UP'!$C46=0,'Set UP'!$D46=0,'Set UP'!$E46=0,'Set UP'!F46=0)," --",'Set UP'!C46) -> -- | D48: =IF(OR('Set UP'!$C46=0,'Set UP'!$D46=0,'Set UP'!$E46=0,'Set UP'!F46=0)," --",'Set UP'!D46&" "&'Set UP'!E46) -> -- | E48: =IF(OR('Set UP'!$C46=0,'Set UP'!$D46=0,'Set UP'!$E46=0,'Set UP'!F46=0)," --",'Set UP'!F46) -> -- | P48: =IF(OR('Set UP'!$C46=0,'Set UP'!$D46=0,'Set UP'!$E46=0),"",(F$7*F48)+(G$7*G48)+(H$7*H48)+(I$7*I48)+(J$7*J48)+(K$7*K48)+(L$7*L48)+(M$7*M48)+(N$7*N48)+(O$7*O48)) ->  | AA48: =IF(OR('Set UP'!$C46=0,'Set UP'!$D46=0,'Set UP'!$E46=0),"",(Q$7*Q48)+(R$7*R48)+(S$7*S48)+(T$7*T48)+(U$7*U48)+(V$7*V48)+(W$7*W48)+(X$7*X48)+(Y$7*Y48)+(Z$7*Z48)) ->  | AL48: =IF(OR('Set UP'!$C46=0,'Set UP'!$D46=0,'Set UP'!$E46=0),"",(AB$7*AB48)+(AC$7*AC48)+(AD$7*AD48)+(AE$7*AE48)+(AF$7*AF48)+(AG$7*AG48)+(AH$7*AH48)+(AI$7*AI48)+(AJ$7*AJ48)+(AK$7*AK48)) ->  | AW48: =IF(OR('Set UP'!$C46=0,'Set UP'!$D46=0,'Set UP'!$E46=0),"",(AM$7*AM48)+(AN$7*AN48)+(AO$7*AO48)+(AP$7*AP48)+(AQ$7*AQ48)+(AR$7*AR48)+(AS$7*AS48)+(AT$7*AT48)+(AU$7*AU48)+(AV$7*AV48)) ->  | BH48: =IF(OR('Set UP'!$C46=0,'Set UP'!$D46=0,'Set UP'!$E46=0),"",(AX$7*AX48)+(AY$7*AY48)+(AZ$7*AZ48)+(BA$7*BA48)+(BB$7*BB48)+(BC$7*BC48)+(BD$7*BD48)+(BE$7*BE48)+(BF$7*BF48)+(BG$7*BG48)) ->  | BT48: =IF(OR('Set UP'!$C46=0,'Set UP'!$D46=0,'Set UP'!$E46=0),"",(BI$7*BI48)+(BJ$7*BJ48)+(BK$7*BK48)+(BL$7*BL48)+(BM$7*BM48)+(BN$7*BN48)+(BO$7*BO48)+(BP$7*BP48)+(BQ$7*BQ48)+(BR$7*BR48)+(BS$7*BS48)) ->  | BX48: =IF(OR('Set UP'!$C46=0,'Set UP'!$D46=0,'Set UP'!$E46=0),"",(P48+AA48+AL48+AW48+BH48+BT48)) ->  | BY48: =IF(OR('Set UP'!$C46=0,'Set UP'!$D46=0,'Set UP'!$E46=0),"",RANK(BX48,$BX$9:$BX$48,0)) ->  | BZ48: =IF(OR('Set UP'!K46<>1,'Set UP'!C46=0,'Set UP'!D46=0,'Set UP'!E46=0,'Set UP'!F46=0),"",$BX48) ->  | CA48: =IF(OR('Set UP'!K46<>1,'Set UP'!C46=0,'Set UP'!D46=0,'Set UP'!E46=0,'Set UP'!F46=0),"",RANK(BZ48,$BZ$9:$BZ$48,0)) ->  | CB48: =IF(OR('Set UP'!K46<>2,'Set UP'!C46=0,'Set UP'!D46=0,'Set UP'!E46=0,'Set UP'!F46=0),"",$BX48) ->  | CC48: =IF(OR('Set UP'!K46<>2,'Set UP'!C46=0,'Set UP'!D46=0,'Set UP'!E46=0,'Set UP'!F46=0),"",RANK(CB48,$CB$9:$CB$48,0)) -> 

Sheet Dry Incident
D3: ='Set UP'!Q7 -> Dry Incident
F4: JUDGE 1 | Q4: JUDGE 2 | AB4: JUDGE 3 | AM4: JUDGE 4 | AX4: JUDGE 5 | BI4: JUDGE 6 | BW4: ¬ OVERALL TOTAL | BX4: ¬ POSITION (COMPETITION) | BY4: ¬ OVERALL (A LEAGUE RANK) | BZ4: ¬ POSITION ( A LEAGUE) | CA4: ¬ OVERALL (B LEAGUE RANK) | CB4: POSITION ( BLEAGUE)
F5: Judge 1 Overall | Q5: Judge 2 Anaphylactic and Broken Arm | AB5: Judge 3 Choking and Asthmatic | AM5: Judge 4 Burns/Unc non-breathing and Back wound/Shock
F6: Assessment and prioritisation | G6: Communication and teamwork | H6: Captaincy | I6: Control of the scenario | J6: Phone | K6: Phone details | P6: ¬ JUDGE 1 TOTAL | Q6: Anaphylactic Casualty assessment | R6: Anaphylactic Casualty treatment - conscious only | S6: Anaphylactic Aftercare - conscious only | T6: Anaphylactic treatment if unconscious | U6: Broken Arm Casualty assessment | V6: Broken Arm Casualty treatment | W6: Broken Arm Casualty aftercare | AA6: ¬ JUDGE 2 TOTAL | AB6: Choking Casualty assessment | AC6: Choking Casualty treatment | AD6: ChokingCasualty aftercare | AE6: Asthmatic Casualty assessment | AF6: Asthmatic Casualty treatment | AG6: Asthmatic Casualty aftercare | AL6: ¬ JUDGE 3 TOTAL | AM6: Unc Casualty assessment | AN6: Unc - use of equipment | AO6: Unc Casualty treatment | AP6: Unc Burns | AQ6: Back wound Casualty assessment | AR6: Back wound Casualty treatment | AS6: Back wound Casualty treatment of bleeding wound | AT6: Back wound Casualty aftercare - conscious only | AU6: Back wound UNC treatment | AW6: ¬ JUDGE 4 TOTAL
E7: MARK WEIGHTING → | F7: 2 | G7: 1.5 | H7: 1 | I7: 1 | J7: 2 | K7: 2 | Q7: 2 | R7: 2 | S7: 1 | T7: 1 | U7: 1 | V7: 1 | W7: 1 | AB7: 1 | AC7: 2 | AD7: 1 | AE7: 1 | AF7: 2 | AG7: 1 | AM7: 2 | AN7: 2 | AO7: 2 | AP7: 1 | AQ7: 2 | AR7: 1.5 | AS7: 2 | AT7: 1.5 | AU7: 1
C8: WEB | D8: TEAM | E8: CLASS
B9: 1 | C9: =IF(OR('Set UP'!$C7=0,'Set UP'!$D7=0,'Set UP'!$E7=0,'Set UP'!F7=0)," --",'Set UP'!C7) -> 537 | D9: =IF(OR('Set UP'!$C7=0,'Set UP'!$D7=0,'Set UP'!$E7=0,'Set UP'!F7=0)," --",'Set UP'!D7&" "&'Set UP'!E7) -> Heanor A | E9: =IF(OR('Set UP'!$C7=0,'Set UP'!$D7=0,'Set UP'!$E7=0,'Set UP'!F7=0)," --",'Set UP'!F7) -> NS | F9: 4 | G9: 3 | H9: 5 | I9: 3 | J9: 0 | K9: 0 | P9: =IF(OR('Set UP'!$C7=0,'Set UP'!$D7=0,'Set UP'!$E7=0),"",(F$7*F9)+(G$7*G9)+(H$7*H9)+(I$7*I9)+(J$7*J9)+(K$7*K9)+(L$7*L9)+(M$7*M9)+(N$7*N9)+(O$7*O9)) -> 20.5 | Q9: 0 | R9: 0 | S9: 0 | T9: 0 | U9: 2 | V9: 0 | W9: 0 | AA9: =IF(OR('Set UP'!$C7=0,'Set UP'!$D7=0,'Set UP'!$E7=0),"",(Q$7*Q9)+(R$7*R9)+(S$7*S9)+(T$7*T9)+(U$7*U9)+(V$7*V9)+(W$7*W9)+(X$7*X9)+(Y$7*Y9)+(Z$7*Z9)) -> 2 | AB9: 3 | AC9: 3 | AD9: 3 | AE9: 0 | AF9: 0 | AG9: 0 | AL9: =IF(OR('Set UP'!$C7=0,'Set UP'!$D7=0,'Set UP'!$E7=0),"",(AB$7*AB9)+(AC$7*AC9)+(AD$7*AD9)+(AE$7*AE9)+(AF$7*AF9)+(AG$7*AG9)+(AH$7*AH9)+(AI$7*AI9)+(AJ$7*AJ9)+(AK$7*AK9)) -> 12 | AM9: 8 | AN9: 0 | AO9: 6 | AP9: 0 | AQ9: 1 | AR9: 0 | AS9: 0 | AT9: 0 | AU9: 0 | AW9: =IF(OR('Set UP'!$C7=0,'Set UP'!$D7=0,'Set UP'!$E7=0),"",(AM$7*AM9)+(AN$7*AN9)+(AO$7*AO9)+(AP$7*AP9)+(AQ$7*AQ9)+(AR$7*AR9)+(AS$7*AS9)+(AT$7*AT9)+(AU$7*AU9)+(AV$7*AV9)) -> 30 | BH9: =IF(OR('Set UP'!$C7=0,'Set UP'!$D7=0,'Set UP'!$E7=0),"",(AX$7*AX9)+(AY$7*AY9)+(AZ$7*AZ9)+(BA$7*BA9)+(BB$7*BB9)+(BC$7*BC9)+(BD$7*BD9)+(BE$7*BE9)+(BF$7*BF9)+(BG$7*BG9)) -> 0 | BS9: =IF(OR('Set UP'!$C7=0,'Set UP'!$D7=0,'Set UP'!$E7=0),"",(BI$7*BI9)+(BJ$7*BJ9)+(BK$7*BK9)+(BL$7*BL9)+(BM$7*BM9)+(BN$7*BN9)+(BO$7*BO9)+(BP$7*BP9)+(BQ$7*BQ9)+(BR$7*BR9)) -> 0 | BW9: =IF(OR('Set UP'!$C7=0,'Set UP'!$D7=0,'Set UP'!$E7=0),"",(P9+AA9+AL9+AW9+BH9+BS9)) -> 64.5 | BX9: =IF(OR('Set UP'!$C7=0,'Set UP'!$D7=0,'Set UP'!$E7=0),"",RANK(BW9,$BW$9:$BW$48,0)) -> 30 | BY9: =IF(OR('Set UP'!K7<>1,'Set UP'!C7=0,'Set UP'!D7=0,'Set UP'!E7=0,'Set UP'!F7=0),"",$BW9) ->  | BZ9: =IF(OR('Set UP'!K7<>1,'Set UP'!C7=0,'Set UP'!D7=0,'Set UP'!E7=0,'Set UP'!F7=0),"",RANK(BY9,$BY$9:$BY$48,0)) ->  | CA9: =IF(OR('Set UP'!K7<>2,'Set UP'!C7=0,'Set UP'!D7=0,'Set UP'!E7=0,'Set UP'!F7=0),"",$BW9) ->  | CB9: =IF(OR('Set UP'!K7<>2,'Set UP'!C7=0,'Set UP'!D7=0,'Set UP'!E7=0,'Set UP'!F7=0),"",RANK(CA9,$CA$9:$CA$48,0)) -> 
B10: 2 | C10: =IF(OR('Set UP'!$C8=0,'Set UP'!$D8=0,'Set UP'!$E8=0,'Set UP'!F8=0)," --",'Set UP'!C8) -> 483 | D10: =IF(OR('Set UP'!$C8=0,'Set UP'!$D8=0,'Set UP'!$E8=0,'Set UP'!F8=0)," --",'Set UP'!D8&" "&'Set UP'!E8) -> University of Cambridge C | E10: =IF(OR('Set UP'!$C8=0,'Set UP'!$D8=0,'Set UP'!$E8=0,'Set UP'!F8=0)," --",'Set UP'!F8) -> S | F10: 5 | G10: 4 | H10: 3 | I10: 3 | J10: 0 | K10: 0 | P10: =IF(OR('Set UP'!$C8=0,'Set UP'!$D8=0,'Set UP'!$E8=0),"",(F$7*F10)+(G$7*G10)+(H$7*H10)+(I$7*I10)+(J$7*J10)+(K$7*K10)+(L$7*L10)+(M$7*M10)+(N$7*N10)+(O$7*O10)) -> 22 | Q10: 0 | R10: 0 | S10: 0 | T10: 0 | U10: 5 | V10: 0 | W10: 0 | AA10: =IF(OR('Set UP'!$C8=0,'Set UP'!$D8=0,'Set UP'!$E8=0),"",(Q$7*Q10)+(R$7*R10)+(S$7*S10)+(T$7*T10)+(U$7*U10)+(V$7*V10)+(W$7*W10)+(X$7*X10)+(Y$7*Y10)+(Z$7*Z10)) -> 5 | AB10: 8 | AC10: 7 | AD10: 4 | AE10: 3 | AF10: 0 | AG10: 0 | AL10: =IF(OR('Set UP'!$C8=0,'Set UP'!$D8=0,'Set UP'!$E8=0),"",(AB$7*AB10)+(AC$7*AC10)+(AD$7*AD10)+(AE$7*AE10)+(AF$7*AF10)+(AG$7*AG10)+(AH$7*AH10)+(AI$7*AI10)+(AJ$7*AJ10)+(AK$7*AK10)) -> 29 | AM10: 5 | AN10: 0 | AO10: 5 | AP10: 0 | AQ10: 2 | AR10: 0 | AS10: 0 | AT10: 0 | AU10: 0 | AW10: =IF(OR('Set UP'!$C8=0,'Set UP'!$D8=0,'Set UP'!$E8=0),"",(AM$7*AM10)+(AN$7*AN10)+(AO$7*AO10)+(AP$7*AP10)+(AQ$7*AQ10)+(AR$7*AR10)+(AS$7*AS10)+(AT$7*AT10)+(AU$7*AU10)+(AV$7*AV10)) -> 24 | BH10: =IF(OR('Set UP'!$C8=0,'Set UP'!$D8=0,'Set UP'!$E8=0),"",(AX$7*AX10)+(AY$7*AY10)+(AZ$7*AZ10)+(BA$7*BA10)+(BB$7*BB10)+(BC$7*BC10)+(BD$7*BD10)+(BE$7*BE10)+(BF$7*BF10)+(BG$7*BG10)) -> 0 | BS10: =IF(OR('Set UP'!$C8=0,'Set UP'!$D8=0,'Set UP'!$E8=0),"",(BI$7*BI10)+(BJ$7*BJ10)+(BK$7*BK10)+(BL$7*BL10)+(BM$7*BM10)+(BN$7*BN10)+(BO$7*BO10)+(BP$7*BP10)+(BQ$7*BQ10)+(BR$7*BR10)) -> 0 | BW10: =IF(OR('Set UP'!$C8=0,'Set UP'!$D8=0,'Set UP'!$E8=0),"",(P10+AA10+AL10+AW10+BH10+BS10)) -> 80 | BX10: =IF(OR('Set UP'!$C8=0,'Set UP'!$D8=0,'Set UP'!$E8=0),"",RANK(BW10,$BW$9:$BW$48,0)) -> 28 | BY10: =IF(OR('Set UP'!K8<>1,'Set UP'!C8=0,'Set UP'!D8=0,'Set UP'!E8=0,'Set UP'!F8=0),"",$BW10) ->  | BZ10: =IF(OR('Set UP'!K8<>1,'Set UP'!C8=0,'Set UP'!D8=0,'Set UP'!E8=0,'Set UP'!F8=0),"",RANK(BY10,$BY$9:$BY$48,0)) ->  | CA10: =IF(OR('Set UP'!K8<>2,'Set UP'!C8=0,'Set UP'!D8=0,'Set UP'!E8=0,'Set UP'!F8=0),"",$BW10) -> 80 | CB10: =IF(OR('Set UP'!K8<>2,'Set UP'!C8=0,'Set UP'!D8=0,'Set UP'!E8=0,'Set UP'!F8=0),"",RANK(CA10,$CA$9:$CA$48,0)) -> 14
B11: 3 | C11: =IF(OR('Set UP'!$C9=0,'Set UP'!$D9=0,'Set UP'!$E9=0,'Set UP'!F9=0)," --",'Set UP'!C9) -> 474 | D11: =IF(OR('Set UP'!$C9=0,'Set UP'!$D9=0,'Set UP'!$E9=0,'Set UP'!F9=0)," --",'Set UP'!D9&" "&'Set UP'!E9) -> University of Cambridge B | E11: =IF(OR('Set UP'!$C9=0,'Set UP'!$D9=0,'Set UP'!$E9=0,'Set UP'!F9=0)," --",'Set UP'!F9) -> S | F11: 6 | G11: 6 | H11: 7 | I11: 7 | J11: 4 | K11: 0 | P11: =IF(OR('Set UP'!$C9=0,'Set UP'!$D9=0,'Set UP'!$E9=0),"",(F$7*F11)+(G$7*G11)+(H$7*H11)+(I$7*I11)+(J$7*J11)+(K$7*K11)+(L$7*L11)+(M$7*M11)+(N$7*N11)+(O$7*O11)) -> 43 | Q11: 8 | R11: 8 | S11: 0 | T11: 0 | U11: 0 | V11: 0 | W11: 0 | AA11: =IF(OR('Set UP'!$C9=0,'Set UP'!$D9=0,'Set UP'!$E9=0),"",(Q$7*Q11)+(R$7*R11)+(S$7*S11)+(T$7*T11)+(U$7*U11)+(V$7*V11)+(W$7*W11)+(X$7*X11)+(Y$7*Y11)+(Z$7*Z11)) -> 32 | AB11: 7 | AC11: 6 | AD11: 7 | AE11: 7 | AF11: 7 | AG11: 8 | AL11: =IF(OR('Set UP'!$C9=0,'Set UP'!$D9=0,'Set UP'!$E9=0),"",(AB$7*AB11)+(AC$7*AC11)+(AD$7*AD11)+(AE$7*AE11)+(AF$7*AF11)+(AG$7*AG11)+(AH$7*AH11)+(AI$7*AI11)+(AJ$7*AJ11)+(AK$7*AK11)) -> 55 | AM11: 6 | AN11: 3 | AO11: 8 | AP11: 0 | AQ11: 4 | AR11: 2 | AS11: 3 | AT11: 0 | AU11: 0 | AW11: =IF(OR('Set UP'!$C9=0,'Set UP'!$D9=0,'Set UP'!$E9=0),"",(AM$7*AM11)+(AN$7*AN11)+(AO$7*AO11)+(AP$7*AP11)+(AQ$7*AQ11)+(AR$7*AR11)+(AS$7*AS11)+(AT$7*AT11)+(AU$7*AU11)+(AV$7*AV11)) -> 51 | BH11: =IF(OR('Set UP'!$C9=0,'Set UP'!$D9=0,'Set UP'!$E9=0),"",(AX$7*AX11)+(AY$7*AY11)+(AZ$7*AZ11)+(BA$7*BA11)+(BB$7*BB11)+(BC$7*BC11)+(BD$7*BD11)+(BE$7*BE11)+(BF$7*BF11)+(BG$7*BG11)) -> 0 | BS11: =IF(OR('Set UP'!$C9=0,'Set UP'!$D9=0,'Set UP'!$E9=0),"",(BI$7*BI11)+(BJ$7*BJ11)+(BK$7*BK11)+(BL$7*BL11)+(BM$7*BM11)+(BN$7*BN11)+(BO$7*BO11)+(BP$7*BP11)+(BQ$7*BQ11)+(BR$7*BR11)) -> 0 | BW11: =IF(OR('Set UP'!$C9=0,'Set UP'!$D9=0,'Set UP'!$E9=0),"",(P11+AA11+AL11+AW11+BH11+BS11)) -> 181 | BX11: =IF(OR('Set UP'!$C9=0,'Set UP'!$D9=0,'Set UP'!$E9=0),"",RANK(BW11,$BW$9:$BW$48,0)) -> 8 | BY11: =IF(OR('Set UP'!K9<>1,'Set UP'!C9=0,'Set UP'!D9=0,'Set UP'!E9=0,'Set UP'!F9=0),"",$BW11) ->  | BZ11: =IF(OR('Set UP'!K9<>1,'Set UP'!C9=0,'Set UP'!D9=0,'Set UP'!E9=0,'Set UP'!F9=0),"",RANK(BY11,$BY$9:$BY$48,0)) ->  | CA11: =IF(OR('Set UP'!K9<>2,'Set UP'!C9=0,'Set UP'!D9=0,'Set UP'!E9=0,'Set UP'!F9=0),"",$BW11) -> 181 | CB11: =IF(OR('Set UP'!K9<>2,'Set UP'!C9=0,'Set UP'!D9=0,'Set UP'!E9=0,'Set UP'!F9=0),"",RANK(CA11,$CA$9:$CA$48,0)) -> 2
B12: 4 | C12: =IF(OR('Set UP'!$C10=0,'Set UP'!$D10=0,'Set UP'!$E10=0,'Set UP'!F10=0)," --",'Set UP'!C10) -> 513 | D12: =IF(OR('Set UP'!$C10=0,'Set UP'!$D10=0,'Set UP'!$E10=0,'Set UP'!F10=0)," --",'Set UP'!D10&" "&'Set UP'!E10) -> University of Warwick D | E12: =IF(OR('Set UP'!$C10=0,'Set UP'!$D10=0,'Set UP'!$E10=0,'Set UP'!F10=0)," --",'Set UP'!F10) -> S | P12: =IF(OR('Set UP'!$C10=0,'Set UP'!$D10=0,'Set UP'!$E10=0),"",(F$7*F12)+(G$7*G12)+(H$7*H12)+(I$7*I12)+(J$7*J12)+(K$7*K12)+(L$7*L12)+(M$7*M12)+(N$7*N12)+(O$7*O12)) -> 0 | AA12: =IF(OR('Set UP'!$C10=0,'Set UP'!$D10=0,'Set UP'!$E10=0),"",(Q$7*Q12)+(R$7*R12)+(S$7*S12)+(T$7*T12)+(U$7*U12)+(V$7*V12)+(W$7*W12)+(X$7*X12)+(Y$7*Y12)+(Z$7*Z12)) -> 0 | AL12: =IF(OR('Set UP'!$C10=0,'Set UP'!$D10=0,'Set UP'!$E10=0),"",(AB$7*AB12)+(AC$7*AC12)+(AD$7*AD12)+(AE$7*AE12)+(AF$7*AF12)+(AG$7*AG12)+(AH$7*AH12)+(AI$7*AI12)+(AJ$7*AJ12)+(AK$7*AK12)) -> 0 | AW12: =IF(OR('Set UP'!$C10=0,'Set UP'!$D10=0,'Set UP'!$E10=0),"",(AM$7*AM12)+(AN$7*AN12)+(AO$7*AO12)+(AP$7*AP12)+(AQ$7*AQ12)+(AR$7*AR12)+(AS$7*AS12)+(AT$7*AT12)+(AU$7*AU12)+(AV$7*AV12)) -> 0 | BH12: =IF(OR('Set UP'!$C10=0,'Set UP'!$D10=0,'Set UP'!$E10=0),"",(AX$7*AX12)+(AY$7*AY12)+(AZ$7*AZ12)+(BA$7*BA12)+(BB$7*BB12)+(BC$7*BC12)+(BD$7*BD12)+(BE$7*BE12)+(BF$7*BF12)+(BG$7*BG12)) -> 0 | BS12: =IF(OR('Set UP'!$C10=0,'Set UP'!$D10=0,'Set UP'!$E10=0),"",(BI$7*BI12)+(BJ$7*BJ12)+(BK$7*BK12)+(BL$7*BL12)+(BM$7*BM12)+(BN$7*BN12)+(BO$7*BO12)+(BP$7*BP12)+(BQ$7*BQ12)+(BR$7*BR12)) -> 0 | BW12: =IF(OR('Set UP'!$C10=0,'Set UP'!$D10=0,'Set UP'!$E10=0),"",(P12+AA12+AL12+AW12+BH12+BS12)) -> 0 | BX12: =IF(OR('Set UP'!$C10=0,'Set UP'!$D10=0,'Set UP'!$E10=0),"",RANK(BW12,$BW$9:$BW$48,0)) -> 31 | BY12: =IF(OR('Set UP'!K10<>1,'Set UP'!C10=0,'Set UP'!D10=0,'Set UP'!E10=0,'Set UP'!F10=0),"",$BW12) ->  | BZ12: =IF(OR('Set UP'!K10<>1,'Set UP'!C10=0,'Set UP'!D10=0,'Set UP'!E10=0,'Set UP'!F10=0),"",RANK(BY12,$BY$9:$BY$48,0)) ->  | CA12: =IF(OR('Set UP'!K10<>2,'Set UP'!C10=0,'Set UP'!D10=0,'Set UP'!E10=0,'Set UP'!F10=0),"",$BW12) -> 0 | CB12: =IF(OR('Set UP'!K10<>2,'Set UP'!C10=0,'Set UP'!D10=0,'Set UP'!E10=0,'Set UP'!F10=0),"",RANK(CA12,$CA$9:$CA$48,0)) -> 15
B13: 5 | C13: =IF(OR('Set UP'!$C11=0,'Set UP'!$D11=0,'Set UP'!$E11=0,'Set UP'!F11=0)," --",'Set UP'!C11) -> 499 | D13: =IF(OR('Set UP'!$C11=0,'Set UP'!$D11=0,'Set UP'!$E11=0,'Set UP'!F11=0)," --",'Set UP'!D11&" "&'Set UP'!E11) -> University of St Andrews B | E13: =IF(OR('Set UP'!$C11=0,'Set UP'!$D11=0,'Set UP'!$E11=0,'Set UP'!F11=0)," --",'Set UP'!F11) -> NC | P13: =IF(OR('Set UP'!$C11=0,'Set UP'!$D11=0,'Set UP'!$E11=0),"",(F$7*F13)+(G$7*G13)+(H$7*H13)+(I$7*I13)+(J$7*J13)+(K$7*K13)+(L$7*L13)+(M$7*M13)+(N$7*N13)+(O$7*O13)) -> 0 | AA13: =IF(OR('Set UP'!$C11=0,'Set UP'!$D11=0,'Set UP'!$E11=0),"",(Q$7*Q13)+(R$7*R13)+(S$7*S13)+(T$7*T13)+(U$7*U13)+(V$7*V13)+(W$7*W13)+(X$7*X13)+(Y$7*Y13)+(Z$7*Z13)) -> 0 | AL13: =IF(OR('Set UP'!$C11=0,'Set UP'!$D11=0,'Set UP'!$E11=0),"",(AB$7*AB13)+(AC$7*AC13)+(AD$7*AD13)+(AE$7*AE13)+(AF$7*AF13)+(AG$7*AG13)+(AH$7*AH13)+(AI$7*AI13)+(AJ$7*AJ13)+(AK$7*AK13)) -> 0 | AW13: =IF(OR('Set UP'!$C11=0,'Set UP'!$D11=0,'Set UP'!$E11=0),"",(AM$7*AM13)+(AN$7*AN13)+(AO$7*AO13)+(AP$7*AP13)+(AQ$7*AQ13)+(AR$7*AR13)+(AS$7*AS13)+(AT$7*AT13)+(AU$7*AU13)+(AV$7*AV13)) -> 0 | BH13: =IF(OR('Set UP'!$C11=0,'Set UP'!$D11=0,'Set UP'!$E11=0),"",(AX$7*AX13)+(AY$7*AY13)+(AZ$7*AZ13)+(BA$7*BA13)+(BB$7*BB13)+(BC$7*BC13)+(BD$7*BD13)+(BE$7*BE13)+(BF$7*BF13)+(BG$7*BG13)) -> 0 | BS13: =IF(OR('Set UP'!$C11=0,'Set UP'!$D11=0,'Set UP'!$E11=0),"",(BI$7*BI13)+(BJ$7*BJ13)+(BK$7*BK13)+(BL$7*BL13)+(BM$7*BM13)+(BN$7*BN13)+(BO$7*BO13)+(BP$7*BP13)+(BQ$7*BQ13)+(BR$7*BR13)) -> 0 | BW13: =IF(OR('Set UP'!$C11=0,'Set UP'!$D11=0,'Set UP'!$E11=0),"",(P13+AA13+AL13+AW13+BH13+BS13)) -> 0 | BX13: =IF(OR('Set UP'!$C11=0,'Set UP'!$D11=0,'Set UP'!$E11=0),"",RANK(BW13,$BW$9:$BW$48,0)) -> 31 | BY13: =IF(OR('Set UP'!K11<>1,'Set UP'!C11=0,'Set UP'!D11=0,'Set UP'!E11=0,'Set UP'!F11=0),"",$BW13) ->  | BZ13: =IF(OR('Set UP'!K11<>1,'Set UP'!C11=0,'Set UP'!D11=0,'Set UP'!E11=0,'Set UP'!F11=0),"",RANK(BY13,$BY$9:$BY$48,0)) ->  | CA13: =IF(OR('Set UP'!K11<>2,'Set UP'!C11=0,'Set UP'!D11=0,'Set UP'!E11=0,'Set UP'!F11=0),"",$BW13) ->  | CB13: =IF(OR('Set UP'!K11<>2,'Set UP'!C11=0,'Set UP'!D11=0,'Set UP'!E11=0,'Set UP'!F11=0),"",RANK(CA13,$CA$9:$CA$48,0)) -> 
B14: 6 | C14: =IF(OR('Set UP'!$C12=0,'Set UP'!$D12=0,'Set UP'!$E12=0,'Set UP'!F12=0)," --",'Set UP'!C12) -> 507 | D14: =IF(OR('Set UP'!$C12=0,'Set UP'!$D12=0,'Set UP'!$E12=0,'Set UP'!F12=0)," --",'Set UP'!D12&" "&'Set UP'!E12) -> University of Plymouth C | E14: =IF(OR('Set UP'!$C12=0,'Set UP'!$D12=0,'Set UP'!$E12=0,'Set UP'!F12=0)," --",'Set UP'!F12) -> S | F14: 5 | G14: 5 | H14: 5 | I14: 4 | J14: 7 | K14: 5 | P14: =IF(OR('Set UP'!$C12=0,'Set UP'!$D12=0,'Set UP'!$E12=0),"",(F$7*F14)+(G$7*G14)+(H$7*H14)+(I$7*I14)+(J$7*J14)+(K$7*K14)+(L$7*L14)+(M$7*M14)+(N$7*N14)+(O$7*O14)) -> 50.5 | Q14: 7 | R14: 8 | S14: 4 | T14: 0 | U14: 3 | V14: 0 | W14: 0 | AA14: =IF(OR('Set UP'!$C12=0,'Set UP'!$D12=0,'Set UP'!$E12=0),"",(Q$7*Q14)+(R$7*R14)+(S$7*S14)+(T$7*T14)+(U$7*U14)+(V$7*V14)+(W$7*W14)+(X$7*X14)+(Y$7*Y14)+(Z$7*Z14)) -> 37 | AB14: 7 | AC14: 6 | AD14: 6 | AE14: 7 | AF14: 3 | AG14: 5 | AL14: =IF(OR('Set UP'!$C12=0,'Set UP'!$D12=0,'Set UP'!$E12=0),"",(AB$7*AB14)+(AC$7*AC14)+(AD$7*AD14)+(AE$7*AE14)+(AF$7*AF14)+(AG$7*AG14)+(AH$7*AH14)+(AI$7*AI14)+(AJ$7*AJ14)+(AK$7*AK14)) -> 43 | AM14: 6 | AN14: 0 | AO14: 4 | AP14: 0 | AQ14: 3 | AR14: 0 | AS14: 0 | AT14: 0 | AU14: 0 | AW14: =IF(OR('Set UP'!$C12=0,'Set UP'!$D12=0,'Set UP'!$E12=0),"",(AM$7*AM14)+(AN$7*AN14)+(AO$7*AO14)+(AP$7*AP14)+(AQ$7*AQ14)+(AR$7*AR14)+(AS$7*AS14)+(AT$7*AT14)+(AU$7*AU14)+(AV$7*AV14)) -> 26 | BH14: =IF(OR('Set UP'!$C12=0,'Set UP'!$D12=0,'Set UP'!$E12=0),"",(AX$7*AX14)+(AY$7*AY14)+(AZ$7*AZ14)+(BA$7*BA14)+(BB$7*BB14)+(BC$7*BC14)+(BD$7*BD14)+(BE$7*BE14)+(BF$7*BF14)+(BG$7*BG14)) -> 0 | BS14: =IF(OR('Set UP'!$C12=0,'Set UP'!$D12=0,'Set UP'!$E12=0),"",(BI$7*BI14)+(BJ$7*BJ14)+(BK$7*BK14)+(BL$7*BL14)+(BM$7*BM14)+(BN$7*BN14)+(BO$7*BO14)+(BP$7*BP14)+(BQ$7*BQ14)+(BR$7*BR14)) -> 0 | BW14: =IF(OR('Set UP'!$C12=0,'Set UP'!$D12=0,'Set UP'!$E12=0),"",(P14+AA14+AL14+AW14+BH14+BS14)) -> 156.5 | BX14: =IF(OR('Set UP'!$C12=0,'Set UP'!$D12=0,'Set UP'!$E12=0),"",RANK(BW14,$BW$9:$BW$48,0)) -> 15 | BY14: =IF(OR('Set UP'!K12<>1,'Set UP'!C12=0,'Set UP'!D12=0,'Set UP'!E12=0,'Set UP'!F12=0),"",$BW14) ->  | BZ14: =IF(OR('Set UP'!K12<>1,'Set UP'!C12=0,'Set UP'!D12=0,'Set UP'!E12=0,'Set UP'!F12=0),"",RANK(BY14,$BY$9:$BY$48,0)) ->  | CA14: =IF(OR('Set UP'!K12<>2,'Set UP'!C12=0,'Set UP'!D12=0,'Set UP'!E12=0,'Set UP'!F12=0),"",$BW14) -> 156.5 | CB14: =IF(OR('Set UP'!K12<>2,'Set UP'!C12=0,'Set UP'!D12=0,'Set UP'!E12=0,'Set UP'!F12=0),"",RANK(CA14,$CA$9:$CA$48,0)) -> 4
B15: 7 | C15: =IF(OR('Set UP'!$C13=0,'Set UP'!$D13=0,'Set UP'!$E13=0,'Set UP'!F13=0)," --",'Set UP'!C13) -> 519 | D15: =IF(OR('Set UP'!$C13=0,'Set UP'!$D13=0,'Set UP'!$E13=0,'Set UP'!F13=0)," --",'Set UP'!D13&" "&'Set UP'!E13) -> University of Aberdeen B | E15: =IF(OR('Set UP'!$C13=0,'Set UP'!$D13=0,'Set UP'!$E13=0,'Set UP'!F13=0)," --",'Set UP'!F13) -> NC | F15: 4 | G15: 4 | H15: 4 | I15: 5 | J15: 0 | K15: 0 | P15: =IF(OR('Set UP'!$C13=0,'Set UP'!$D13=0,'Set UP'!$E13=0),"",(F$7*F15)+(G$7*G15)+(H$7*H15)+(I$7*I15)+(J$7*J15)+(K$7*K15)+(L$7*L15)+(M$7*M15)+(N$7*N15)+(O$7*O15)) -> 23 | Q15: 2 | R15: 0 | S15: 0 | T15: 0 | U15: 2 | V15: 0 | W15: 0 | AA15: =IF(OR('Set UP'!$C13=0,'Set UP'!$D13=0,'Set UP'!$E13=0),"",(Q$7*Q15)+(R$7*R15)+(S$7*S15)+(T$7*T15)+(U$7*U15)+(V$7*V15)+(W$7*W15)+(X$7*X15)+(Y$7*Y15)+(Z$7*Z15)) -> 6 | AB15: 6 | AC15: 8 | AD15: 7 | AE15: 5 | AF15: 4 | AG15: 4 | AL15: =IF(OR('Set UP'!$C13=0,'Set UP'!$D13=0,'Set UP'!$E13=0),"",(AB$7*AB15)+(AC$7*AC15)+(AD$7*AD15)+(AE$7*AE15)+(AF$7*AF15)+(AG$7*AG15)+(AH$7*AH15)+(AI$7*AI15)+(AJ$7*AJ15)+(AK$7*AK15)) -> 46 | AM15: 1 | AN15: 0 | AO15: 0 | AP15: 0 | AQ15: 1 | AR15: 0 | AS15: 0 | AT15: 0 | AU15: 3 | AW15: =IF(OR('Set UP'!$C13=0,'Set UP'!$D13=0,'Set UP'!$E13=0),"",(AM$7*AM15)+(AN$7*AN15)+(AO$7*AO15)+(AP$7*AP15)+(AQ$7*AQ15)+(AR$7*AR15)+(AS$7*AS15)+(AT$7*AT15)+(AU$7*AU15)+(AV$7*AV15)) -> 7 | BH15: =IF(OR('Set UP'!$C13=0,'Set UP'!$D13=0,'Set UP'!$E13=0),"",(AX$7*AX15)+(AY$7*AY15)+(AZ$7*AZ15)+(BA$7*BA15)+(BB$7*BB15)+(BC$7*BC15)+(BD$7*BD15)+(BE$7*BE15)+(BF$7*BF15)+(BG$7*BG15)) -> 0 | BS15: =IF(OR('Set UP'!$C13=0,'Set UP'!$D13=0,'Set UP'!$E13=0),"",(BI$7*BI15)+(BJ$7*BJ15)+(BK$7*BK15)+(BL$7*BL15)+(BM$7*BM15)+(BN$7*BN15)+(BO$7*BO15)+(BP$7*BP15)+(BQ$7*BQ15)+(BR$7*BR15)) -> 0 | BW15: =IF(OR('Set UP'!$C13=0,'Set UP'!$D13=0,'Set UP'!$E13=0),"",(P15+AA15+AL15+AW15+BH15+BS15)) -> 82 | BX15: =IF(OR('Set UP'!$C13=0,'Set UP'!$D13=0,'Set UP'!$E13=0),"",RANK(BW15,$BW$9:$BW$48,0)) -> 27 | BY15: =IF(OR('Set UP'!K13<>1,'Set UP'!C13=0,'Set UP'!D13=0,'Set UP'!E13=0,'Set UP'!F13=0),"",$BW15) ->  | BZ15: =IF(OR('Set UP'!K13<>1,'Set UP'!C13=0,'Set UP'!D13=0,'Set UP'!E13=0,'Set UP'!F13=0),"",RANK(BY15,$BY$9:$BY$48,0)) ->  | CA15: =IF(OR('Set UP'!K13<>2,'Set UP'!C13=0,'Set UP'!D13=0,'Set UP'!E13=0,'Set UP'!F13=0),"",$BW15) ->  | CB15: =IF(OR('Set UP'!K13<>2,'Set UP'!C13=0,'Set UP'!D13=0,'Set UP'!E13=0,'Set UP'!F13=0),"",RANK(CA15,$CA$9:$CA$48,0)) -> 
B16: 8 | C16: =IF(OR('Set UP'!$C14=0,'Set UP'!$D14=0,'Set UP'!$E14=0,'Set UP'!F14=0)," --",'Set UP'!C14) -> 532 | D16: =IF(OR('Set UP'!$C14=0,'Set UP'!$D14=0,'Set UP'!$E14=0,'Set UP'!F14=0)," --",'Set UP'!D14&" "&'Set UP'!E14) -> University of London Union E | E16: =IF(OR('Set UP'!$C14=0,'Set UP'!$D14=0,'Set UP'!$E14=0,'Set UP'!F14=0)," --",'Set UP'!F14) -> S | F16: 5 | G16: 5 | H16: 5 | I16: 7 | J16: 4 | K16: 4 | P16: =IF(OR('Set UP'!$C14=0,'Set UP'!$D14=0,'Set UP'!$E14=0),"",(F$7*F16)+(G$7*G16)+(H$7*H16)+(I$7*I16)+(J$7*J16)+(K$7*K16)+(L$7*L16)+(M$7*M16)+(N$7*N16)+(O$7*O16)) -> 45.5 | Q16: 5 | R16: 5 | S16: 1 | T16: 0 | U16: 2 | V16: 0 | W16: 0 | AA16: =IF(OR('Set UP'!$C14=0,'Set UP'!$D14=0,'Set UP'!$E14=0),"",(Q$7*Q16)+(R$7*R16)+(S$7*S16)+(T$7*T16)+(U$7*U16)+(V$7*V16)+(W$7*W16)+(X$7*X16)+(Y$7*Y16)+(Z$7*Z16)) -> 23 | AB16: 6 | AC16: 6 | AD16: 5 | AE16: 2 | AF16: 0 | AG16: 0 | AL16: =IF(OR('Set UP'!$C14=0,'Set UP'!$D14=0,'Set UP'!$E14=0),"",(AB$7*AB16)+(AC$7*AC16)+(AD$7*AD16)+(AE$7*AE16)+(AF$7*AF16)+(AG$7*AG16)+(AH$7*AH16)+(AI$7*AI16)+(AJ$7*AJ16)+(AK$7*AK16)) -> 25 | AM16: 4 | AN16: 1 | AO16: 0 | AP16: 0 | AQ16: 3 | AR16: 1 | AS16: 0 | AT16: 0 | AU16: 1 | AW16: =IF(OR('Set UP'!$C14=0,'Set UP'!$D14=0,'Set UP'!$E14=0),"",(AM$7*AM16)+(AN$7*AN16)+(AO$7*AO16)+(AP$7*AP16)+(AQ$7*AQ16)+(AR$7*AR16)+(AS$7*AS16)+(AT$7*AT16)+(AU$7*AU16)+(AV$7*AV16)) -> 18.5 | BH16: =IF(OR('Set UP'!$C14=0,'Set UP'!$D14=0,'Set UP'!$E14=0),"",(AX$7*AX16)+(AY$7*AY16)+(AZ$7*AZ16)+(BA$7*BA16)+(BB$7*BB16)+(BC$7*BC16)+(BD$7*BD16)+(BE$7*BE16)+(BF$7*BF16)+(BG$7*BG16)) -> 0 | BS16: =IF(OR('Set UP'!$C14=0,'Set UP'!$D14=0,'Set UP'!$E14=0),"",(BI$7*BI16)+(BJ$7*BJ16)+(BK$7*BK16)+(BL$7*BL16)+(BM$7*BM16)+(BN$7*BN16)+(BO$7*BO16)+(BP$7*BP16)+(BQ$7*BQ16)+(BR$7*BR16)) -> 0 | BW16: =IF(OR('Set UP'!$C14=0,'Set UP'!$D14=0,'Set UP'!$E14=0),"",(P16+AA16+AL16+AW16+BH16+BS16)) -> 112 | BX16: =IF(OR('Set UP'!$C14=0,'Set UP'!$D14=0,'Set UP'!$E14=0),"",RANK(BW16,$BW$9:$BW$48,0)) -> 24 | BY16: =IF(OR('Set UP'!K14<>1,'Set UP'!C14=0,'Set UP'!D14=0,'Set UP'!E14=0,'Set UP'!F14=0),"",$BW16) ->  | BZ16: =IF(OR('Set UP'!K14<>1,'Set UP'!C14=0,'Set UP'!D14=0,'Set UP'!E14=0,'Set UP'!F14=0),"",RANK(BY16,$BY$9:$BY$48,0)) ->  | CA16: =IF(OR('Set UP'!K14<>2,'Set UP'!C14=0,'Set UP'!D14=0,'Set UP'!E14=0,'Set UP'!F14=0),"",$BW16) -> 112 | CB16: =IF(OR('Set UP'!K14<>2,'Set UP'!C14=0,'Set UP'!D14=0,'Set UP'!E14=0,'Set UP'!F14=0),"",RANK(CA16,$CA$9:$CA$48,0)) -> 12
B17: 9 | C17: =IF(OR('Set UP'!$C15=0,'Set UP'!$D15=0,'Set UP'!$E15=0,'Set UP'!F15=0)," --",'Set UP'!C15) -> 530 | D17: =IF(OR('Set UP'!$C15=0,'Set UP'!$D15=0,'Set UP'!$E15=0,'Set UP'!F15=0)," --",'Set UP'!D15&" "&'Set UP'!E15) -> University of London Union C | E17: =IF(OR('Set UP'!$C15=0,'Set UP'!$D15=0,'Set UP'!$E15=0,'Set UP'!F15=0)," --",'Set UP'!F15) -> S | F17: 4 | G17: 5 | H17: 6 | I17: 8 | J17: 6 | K17: 5 | P17: =IF(OR('Set UP'!$C15=0,'Set UP'!$D15=0,'Set UP'!$E15=0),"",(F$7*F17)+(G$7*G17)+(H$7*H17)+(I$7*I17)+(J$7*J17)+(K$7*K17)+(L$7*L17)+(M$7*M17)+(N$7*N17)+(O$7*O17)) -> 51.5 | Q17: 5 | R17: 5 | S17: 0 | T17: 0 | U17: 2 | V17: 0 | W17: 0 | AA17: =IF(OR('Set UP'!$C15=0,'Set UP'!$D15=0,'Set UP'!$E15=0),"",(Q$7*Q17)+(R$7*R17)+(S$7*S17)+(T$7*T17)+(U$7*U17)+(V$7*V17)+(W$7*W17)+(X$7*X17)+(Y$7*Y17)+(Z$7*Z17)) -> 22 | AB17: 6 | AC17: 7 | AD17: 4 | AE17: 0 | AF17: 0 | AG17: 0 | AL17: =IF(OR('Set UP'!$C15=0,'Set UP'!$D15=0,'Set UP'!$E15=0),"",(AB$7*AB17)+(AC$7*AC17)+(AD$7*AD17)+(AE$7*AE17)+(AF$7*AF17)+(AG$7*AG17)+(AH$7*AH17)+(AI$7*AI17)+(AJ$7*AJ17)+(AK$7*AK17)) -> 24 | AM17: 4 | AN17: 2 | AO17: 2 | AP17: 1 | AQ17: 3 | AR17: 0 | AS17: 0 | AT17: 0 | AU17: 4 | AW17: =IF(OR('Set UP'!$C15=0,'Set UP'!$D15=0,'Set UP'!$E15=0),"",(AM$7*AM17)+(AN$7*AN17)+(AO$7*AO17)+(AP$7*AP17)+(AQ$7*AQ17)+(AR$7*AR17)+(AS$7*AS17)+(AT$7*AT17)+(AU$7*AU17)+(AV$7*AV17)) -> 27 | BH17: =IF(OR('Set UP'!$C15=0,'Set UP'!$D15=0,'Set UP'!$E15=0),"",(AX$7*AX17)+(AY$7*AY17)+(AZ$7*AZ17)+(BA$7*BA17)+(BB$7*BB17)+(BC$7*BC17)+(BD$7*BD17)+(BE$7*BE17)+(BF$7*BF17)+(BG$7*BG17)) -> 0 | BS17: =IF(OR('Set UP'!$C15=0,'Set UP'!$D15=0,'Set UP'!$E15=0),"",(BI$7*BI17)+(BJ$7*BJ17)+(BK$7*BK17)+(BL$7*BL17)+(BM$7*BM17)+(BN$7*BN17)+(BO$7*BO17)+(BP$7*BP17)+(BQ$7*BQ17)+(BR$7*BR17)) -> 0 | BW17: =IF(OR('Set UP'!$C15=0,'Set UP'!$D15=0,'Set UP'!$E15=0),"",(P17+AA17+AL17+AW17+BH17+BS17)) -> 124.5 | BX17: =IF(OR('Set UP'!$C15=0,'Set UP'!$D15=0,'Set UP'!$E15=0),"",RANK(BW17,$BW$9:$BW$48,0)) -> 21 | BY17: =IF(OR('Set UP'!K15<>1,'Set UP'!C15=0,'Set UP'!D15=0,'Set UP'!E15=0,'Set UP'!F15=0),"",$BW17) ->  | BZ17: =IF(OR('Set UP'!K15<>1,'Set UP'!C15=0,'Set UP'!D15=0,'Set UP'!E15=0,'Set UP'!F15=0),"",RANK(BY17,$BY$9:$BY$48,0)) ->  | CA17: =IF(OR('Set UP'!K15<>2,'Set UP'!C15=0,'Set UP'!D15=0,'Set UP'!E15=0,'Set UP'!F15=0),"",$BW17) -> 124.5 | CB17: =IF(OR('Set UP'!K15<>2,'Set UP'!C15=0,'Set UP'!D15=0,'Set UP'!E15=0,'Set UP'!F15=0),"",RANK(CA17,$CA$9:$CA$48,0)) -> 10
B18: 10 | C18: =IF(OR('Set UP'!$C16=0,'Set UP'!$D16=0,'Set UP'!$E16=0,'Set UP'!F16=0)," --",'Set UP'!C16) -> 506 | D18: =IF(OR('Set UP'!$C16=0,'Set UP'!$D16=0,'Set UP'!$E16=0,'Set UP'!F16=0)," --",'Set UP'!D16&" "&'Set UP'!E16) -> University of Plymouth B | E18: =IF(OR('Set UP'!$C16=0,'Set UP'!$D16=0,'Set UP'!$E16=0,'Set UP'!F16=0)," --",'Set UP'!F16) -> S | F18: 2 | G18: 2 | H18: 4 | I18: 0 | J18: 0 | K18: 0 | P18: =IF(OR('Set UP'!$C16=0,'Set UP'!$D16=0,'Set UP'!$E16=0),"",(F$7*F18)+(G$7*G18)+(H$7*H18)+(I$7*I18)+(J$7*J18)+(K$7*K18)+(L$7*L18)+(M$7*M18)+(N$7*N18)+(O$7*O18)) -> 11 | Q18: 0 | R18: 0 | S18: 0 | T18: 0 | U18: 2 | V18: 0 | W18: 0 | AA18: =IF(OR('Set UP'!$C16=0,'Set UP'!$D16=0,'Set UP'!$E16=0),"",(Q$7*Q18)+(R$7*R18)+(S$7*S18)+(T$7*T18)+(U$7*U18)+(V$7*V18)+(W$7*W18)+(X$7*X18)+(Y$7*Y18)+(Z$7*Z18)) -> 2 | AB18: 5 | AC18: 4 | AD18: 5 | AE18: 4 | AF18: 5 | AG18: 7 | AL18: =IF(OR('Set UP'!$C16=0,'Set UP'!$D16=0,'Set UP'!$E16=0),"",(AB$7*AB18)+(AC$7*AC18)+(AD$7*AD18)+(AE$7*AE18)+(AF$7*AF18)+(AG$7*AG18)+(AH$7*AH18)+(AI$7*AI18)+(AJ$7*AJ18)+(AK$7*AK18)) -> 39 | AM18: 5 | AN18: 6 | AO18: 3 | AP18: 0 | AQ18: 6 | AR18: 6 | AS18: 7 | AT18: 2 | AU18: 0 | AW18: =IF(OR('Set UP'!$C16=0,'Set UP'!$D16=0,'Set UP'!$E16=0),"",(AM$7*AM18)+(AN$7*AN18)+(AO$7*AO18)+(AP$7*AP18)+(AQ$7*AQ18)+(AR$7*AR18)+(AS$7*AS18)+(AT$7*AT18)+(AU$7*AU18)+(AV$7*AV18)) -> 66 | BH18: =IF(OR('Set UP'!$C16=0,'Set UP'!$D16=0,'Set UP'!$E16=0),"",(AX$7*AX18)+(AY$7*AY18)+(AZ$7*AZ18)+(BA$7*BA18)+(BB$7*BB18)+(BC$7*BC18)+(BD$7*BD18)+(BE$7*BE18)+(BF$7*BF18)+(BG$7*BG18)) -> 0 | BS18: =IF(OR('Set UP'!$C16=0,'Set UP'!$D16=0,'Set UP'!$E16=0),"",(BI$7*BI18)+(BJ$7*BJ18)+(BK$7*BK18)+(BL$7*BL18)+(BM$7*BM18)+(BN$7*BN18)+(BO$7*BO18)+(BP$7*BP18)+(BQ$7*BQ18)+(BR$7*BR18)) -> 0 | BW18: =IF(OR('Set UP'!$C16=0,'Set UP'!$D16=0,'Set UP'!$E16=0),"",(P18+AA18+AL18+AW18+BH18+BS18)) -> 118 | BX18: =IF(OR('Set UP'!$C16=0,'Set UP'!$D16=0,'Set UP'!$E16=0),"",RANK(BW18,$BW$9:$BW$48,0)) -> 22 | BY18: =IF(OR('Set UP'!K16<>1,'Set UP'!C16=0,'Set UP'!D16=0,'Set UP'!E16=0,'Set UP'!F16=0),"",$BW18) ->  | BZ18: =IF(OR('Set UP'!K16<>1,'Set UP'!C16=0,'Set UP'!D16=0,'Set UP'!E16=0,'Set UP'!F16=0),"",RANK(BY18,$BY$9:$BY$48,0)) ->  | CA18: =IF(OR('Set UP'!K16<>2,'Set UP'!C16=0,'Set UP'!D16=0,'Set UP'!E16=0,'Set UP'!F16=0),"",$BW18) -> 118 | CB18: =IF(OR('Set UP'!K16<>2,'Set UP'!C16=0,'Set UP'!D16=0,'Set UP'!E16=0,'Set UP'!F16=0),"",RANK(CA18,$CA$9:$CA$48,0)) -> 11
B19: 11 | C19: =IF(OR('Set UP'!$C17=0,'Set UP'!$D17=0,'Set UP'!$E17=0,'Set UP'!F17=0)," --",'Set UP'!C17) -> 518 | D19: =IF(OR('Set UP'!$C17=0,'Set UP'!$D17=0,'Set UP'!$E17=0,'Set UP'!F17=0)," --",'Set UP'!D17&" "&'Set UP'!E17) -> University of Aberdeen A | E19: =IF(OR('Set UP'!$C17=0,'Set UP'!$D17=0,'Set UP'!$E17=0,'Set UP'!F17=0)," --",'Set UP'!F17) -> S | F19: 5 | G19: 6 | H19: 6 | I19: 6 | J19: 4 | K19: 5 | P19: =IF(OR('Set UP'!$C17=0,'Set UP'!$D17=0,'Set UP'!$E17=0),"",(F$7*F19)+(G$7*G19)+(H$7*H19)+(I$7*I19)+(J$7*J19)+(K$7*K19)+(L$7*L19)+(M$7*M19)+(N$7*N19)+(O$7*O19)) -> 49 | Q19: 8 | R19: 8 | S19: 0 | T19: 0 | U19: 2 | V19: 2 | W19: 1 | AA19: =IF(OR('Set UP'!$C17=0,'Set UP'!$D17=0,'Set UP'!$E17=0),"",(Q$7*Q19)+(R$7*R19)+(S$7*S19)+(T$7*T19)+(U$7*U19)+(V$7*V19)+(W$7*W19)+(X$7*X19)+(Y$7*Y19)+(Z$7*Z19)) -> 37 | AB19: 7 | AC19: 8 | AD19: 7 | AE19: 8 | AF19: 6 | AG19: 7 | AL19: =IF(OR('Set UP'!$C17=0,'Set UP'!$D17=0,'Set UP'!$E17=0),"",(AB$7*AB19)+(AC$7*AC19)+(AD$7*AD19)+(AE$7*AE19)+(AF$7*AF19)+(AG$7*AG19)+(AH$7*AH19)+(AI$7*AI19)+(AJ$7*AJ19)+(AK$7*AK19)) -> 57 | AM19: 5 | AN19: 0 | AO19: 6 | AP19: 1 | AQ19: 2 | AR19: 0 | AS19: 0 | AT19: 0 | AU19: 1 | AW19: =IF(OR('Set UP'!$C17=0,'Set UP'!$D17=0,'Set UP'!$E17=0),"",(AM$7*AM19)+(AN$7*AN19)+(AO$7*AO19)+(AP$7*AP19)+(AQ$7*AQ19)+(AR$7*AR19)+(AS$7*AS19)+(AT$7*AT19)+(AU$7*AU19)+(AV$7*AV19)) -> 28 | BH19: =IF(OR('Set UP'!$C17=0,'Set UP'!$D17=0,'Set UP'!$E17=0),"",(AX$7*AX19)+(AY$7*AY19)+(AZ$7*AZ19)+(BA$7*BA19)+(BB$7*BB19)+(BC$7*BC19)+(BD$7*BD19)+(BE$7*BE19)+(BF$7*BF19)+(BG$7*BG19)) -> 0 | BS19: =IF(OR('Set UP'!$C17=0,'Set UP'!$D17=0,'Set UP'!$E17=0),"",(BI$7*BI19)+(BJ$7*BJ19)+(BK$7*BK19)+(BL$7*BL19)+(BM$7*BM19)+(BN$7*BN19)+(BO$7*BO19)+(BP$7*BP19)+(BQ$7*BQ19)+(BR$7*BR19)) -> 0 | BW19: =IF(OR('Set UP'!$C17=0,'Set UP'!$D17=0,'Set UP'!$E17=0),"",(P19+AA19+AL19+AW19+BH19+BS19)) -> 171 | BX19: =IF(OR('Set UP'!$C17=0,'Set UP'!$D17=0,'Set UP'!$E17=0),"",RANK(BW19,$BW$9:$BW$48,0)) -> 10 | BY19: =IF(OR('Set UP'!K17<>1,'Set UP'!C17=0,'Set UP'!D17=0,'Set UP'!E17=0,'Set UP'!F17=0),"",$BW19) -> 171 | BZ19: =IF(OR('Set UP'!K17<>1,'Set UP'!C17=0,'Set UP'!D17=0,'Set UP'!E17=0,'Set UP'!F17=0),"",RANK(BY19,$BY$9:$BY$48,0)) -> 6 | CA19: =IF(OR('Set UP'!K17<>2,'Set UP'!C17=0,'Set UP'!D17=0,'Set UP'!E17=0,'Set UP'!F17=0),"",$BW19) ->  | CB19: =IF(OR('Set UP'!K17<>2,'Set UP'!C17=0,'Set UP'!D17=0,'Set UP'!E17=0,'Set UP'!F17=0),"",RANK(CA19,$CA$9:$CA$48,0)) -> 
B20: 12 | C20: =IF(OR('Set UP'!$C18=0,'Set UP'!$D18=0,'Set UP'!$E18=0,'Set UP'!F18=0)," --",'Set UP'!C18) -> 538 | D20: =IF(OR('Set UP'!$C18=0,'Set UP'!$D18=0,'Set UP'!$E18=0,'Set UP'!F18=0)," --",'Set UP'!D18&" "&'Set UP'!E18) -> University of Southampton C | E20: =IF(OR('Set UP'!$C18=0,'Set UP'!$D18=0,'Set UP'!$E18=0,'Set UP'!F18=0)," --",'Set UP'!F18) -> S | F20: 5 | G20: 5 | H20: 5 | I20: 8 | J20: 7 | K20: 5 | P20: =IF(OR('Set UP'!$C18=0,'Set UP'!$D18=0,'Set UP'!$E18=0),"",(F$7*F20)+(G$7*G20)+(H$7*H20)+(I$7*I20)+(J$7*J20)+(K$7*K20)+(L$7*L20)+(M$7*M20)+(N$7*N20)+(O$7*O20)) -> 54.5 | Q20: 5 | R20: 5 | S20: 0 | T20: 0 | U20: 1 | V20: 0 | W20: 0 | AA20: =IF(OR('Set UP'!$C18=0,'Set UP'!$D18=0,'Set UP'!$E18=0),"",(Q$7*Q20)+(R$7*R20)+(S$7*S20)+(T$7*T20)+(U$7*U20)+(V$7*V20)+(W$7*W20)+(X$7*X20)+(Y$7*Y20)+(Z$7*Z20)) -> 21 | AB20: 6 | AC20: 5 | AD20: 4 | AE20: 6 | AF20: 3 | AG20: 6 | AL20: =IF(OR('Set UP'!$C18=0,'Set UP'!$D18=0,'Set UP'!$E18=0),"",(AB$7*AB20)+(AC$7*AC20)+(AD$7*AD20)+(AE$7*AE20)+(AF$7*AF20)+(AG$7*AG20)+(AH$7*AH20)+(AI$7*AI20)+(AJ$7*AJ20)+(AK$7*AK20)) -> 38 | AM20: 1 | AN20: 5 | AO20: 7 | AP20: 0 | AQ20: 2 | AR20: 0 | AS20: 0 | AT20: 0 | AU20: 1 | AW20: =IF(OR('Set UP'!$C18=0,'Set UP'!$D18=0,'Set UP'!$E18=0),"",(AM$7*AM20)+(AN$7*AN20)+(AO$7*AO20)+(AP$7*AP20)+(AQ$7*AQ20)+(AR$7*AR20)+(AS$7*AS20)+(AT$7*AT20)+(AU$7*AU20)+(AV$7*AV20)) -> 31 | BH20: =IF(OR('Set UP'!$C18=0,'Set UP'!$D18=0,'Set UP'!$E18=0),"",(AX$7*AX20)+(AY$7*AY20)+(AZ$7*AZ20)+(BA$7*BA20)+(BB$7*BB20)+(BC$7*BC20)+(BD$7*BD20)+(BE$7*BE20)+(BF$7*BF20)+(BG$7*BG20)) -> 0 | BS20: =IF(OR('Set UP'!$C18=0,'Set UP'!$D18=0,'Set UP'!$E18=0),"",(BI$7*BI20)+(BJ$7*BJ20)+(BK$7*BK20)+(BL$7*BL20)+(BM$7*BM20)+(BN$7*BN20)+(BO$7*BO20)+(BP$7*BP20)+(BQ$7*BQ20)+(BR$7*BR20)) -> 0 | BW20: =IF(OR('Set UP'!$C18=0,'Set UP'!$D18=0,'Set UP'!$E18=0),"",(P20+AA20+AL20+AW20+BH20+BS20)) -> 144.5 | BX20: =IF(OR('Set UP'!$C18=0,'Set UP'!$D18=0,'Set UP'!$E18=0),"",RANK(BW20,$BW$9:$BW$48,0)) -> 17 | BY20: =IF(OR('Set UP'!K18<>1,'Set UP'!C18=0,'Set UP'!D18=0,'Set UP'!E18=0,'Set UP'!F18=0),"",$BW20) ->  | BZ20: =IF(OR('Set UP'!K18<>1,'Set UP'!C18=0,'Set UP'!D18=0,'Set UP'!E18=0,'Set UP'!F18=0),"",RANK(BY20,$BY$9:$BY$48,0)) ->  | CA20: =IF(OR('Set UP'!K18<>2,'Set UP'!C18=0,'Set UP'!D18=0,'Set UP'!E18=0,'Set UP'!F18=0),"",$BW20) -> 144.5 | CB20: =IF(OR('Set UP'!K18<>2,'Set UP'!C18=0,'Set UP'!D18=0,'Set UP'!E18=0,'Set UP'!F18=0),"",RANK(CA20,$CA$9:$CA$48,0)) -> 6
B21: 13 | C21: =IF(OR('Set UP'!$C19=0,'Set UP'!$D19=0,'Set UP'!$E19=0,'Set UP'!F19=0)," --",'Set UP'!C19) -> 515 | D21: =IF(OR('Set UP'!$C19=0,'Set UP'!$D19=0,'Set UP'!$E19=0,'Set UP'!F19=0)," --",'Set UP'!D19&" "&'Set UP'!E19) -> Loughborough University C | E21: =IF(OR('Set UP'!$C19=0,'Set UP'!$D19=0,'Set UP'!$E19=0,'Set UP'!F19=0)," --",'Set UP'!F19) -> S | F21: 6 | G21: 7 | H21: 5 | I21: 8 | J21: 0 | K21: 0 | P21: =IF(OR('Set UP'!$C19=0,'Set UP'!$D19=0,'Set UP'!$E19=0),"",(F$7*F21)+(G$7*G21)+(H$7*H21)+(I$7*I21)+(J$7*J21)+(K$7*K21)+(L$7*L21)+(M$7*M21)+(N$7*N21)+(O$7*O21)) -> 35.5 | Q21: 4 | R21: 8 | S21: 1 | T21: 0 | U21: 10 | V21: 0 | W21: 0 | AA21: =IF(OR('Set UP'!$C19=0,'Set UP'!$D19=0,'Set UP'!$E19=0),"",(Q$7*Q21)+(R$7*R21)+(S$7*S21)+(T$7*T21)+(U$7*U21)+(V$7*V21)+(W$7*W21)+(X$7*X21)+(Y$7*Y21)+(Z$7*Z21)) -> 35 | AB21: 7 | AC21: 6 | AD21: 5 | AE21: 7 | AF21: 8 | AG21: 8 | AL21: =IF(OR('Set UP'!$C19=0,'Set UP'!$D19=0,'Set UP'!$E19=0),"",(AB$7*AB21)+(AC$7*AC21)+(AD$7*AD21)+(AE$7*AE21)+(AF$7*AF21)+(AG$7*AG21)+(AH$7*AH21)+(AI$7*AI21)+(AJ$7*AJ21)+(AK$7*AK21)) -> 55 | AM21: 3 | AN21: 0 | AO21: 0 | AP21: 0 | AQ21: 1 | AR21: 0 | AS21: 0 | AT21: 0 | AU21: 0 | AW21: =IF(OR('Set UP'!$C19=0,'Set UP'!$D19=0,'Set UP'!$E19=0),"",(AM$7*AM21)+(AN$7*AN21)+(AO$7*AO21)+(AP$7*AP21)+(AQ$7*AQ21)+(AR$7*AR21)+(AS$7*AS21)+(AT$7*AT21)+(AU$7*AU21)+(AV$7*AV21)) -> 8 | BH21: =IF(OR('Set UP'!$C19=0,'Set UP'!$D19=0,'Set UP'!$E19=0),"",(AX$7*AX21)+(AY$7*AY21)+(AZ$7*AZ21)+(BA$7*BA21)+(BB$7*BB21)+(BC$7*BC21)+(BD$7*BD21)+(BE$7*BE21)+(BF$7*BF21)+(BG$7*BG21)) -> 0 | BS21: =IF(OR('Set UP'!$C19=0,'Set UP'!$D19=0,'Set UP'!$E19=0),"",(BI$7*BI21)+(BJ$7*BJ21)+(BK$7*BK21)+(BL$7*BL21)+(BM$7*BM21)+(BN$7*BN21)+(BO$7*BO21)+(BP$7*BP21)+(BQ$7*BQ21)+(BR$7*BR21)) -> 0 | BW21: =IF(OR('Set UP'!$C19=0,'Set UP'!$D19=0,'Set UP'!$E19=0),"",(P21+AA21+AL21+AW21+BH21+BS21)) -> 133.5 | BX21: =IF(OR('Set UP'!$C19=0,'Set UP'!$D19=0,'Set UP'!$E19=0),"",RANK(BW21,$BW$9:$BW$48,0)) -> 20 | BY21: =IF(OR('Set UP'!K19<>1,'Set UP'!C19=0,'Set UP'!D19=0,'Set UP'!E19=0,'Set UP'!F19=0),"",$BW21) ->  | BZ21: =IF(OR('Set UP'!K19<>1,'Set UP'!C19=0,'Set UP'!D19=0,'Set UP'!E19=0,'Set UP'!F19=0),"",RANK(BY21,$BY$9:$BY$48,0)) ->  | CA21: =IF(OR('Set UP'!K19<>2,'Set UP'!C19=0,'Set UP'!D19=0,'Set UP'!E19=0,'Set UP'!F19=0),"",$BW21) -> 133.5 | CB21: =IF(OR('Set UP'!K19<>2,'Set UP'!C19=0,'Set UP'!D19=0,'Set UP'!E19=0,'Set UP'!F19=0),"",RANK(CA21,$CA$9:$CA$48,0)) -> 9
B22: 14 | C22: =IF(OR('Set UP'!$C20=0,'Set UP'!$D20=0,'Set UP'!$E20=0,'Set UP'!F20=0)," --",'Set UP'!C20) -> 520 | D22: =IF(OR('Set UP'!$C20=0,'Set UP'!$D20=0,'Set UP'!$E20=0,'Set UP'!F20=0)," --",'Set UP'!D20&" "&'Set UP'!E20) -> Loughborough University D | E22: =IF(OR('Set UP'!$C20=0,'Set UP'!$D20=0,'Set UP'!$E20=0,'Set UP'!F20=0)," --",'Set UP'!F20) -> NS | F22: 4 | G22: 5 | H22: 5 | I22: 6 | J22: 3 | K22: 4 | P22: =IF(OR('Set UP'!$C20=0,'Set UP'!$D20=0,'Set UP'!$E20=0),"",(F$7*F22)+(G$7*G22)+(H$7*H22)+(I$7*I22)+(J$7*J22)+(K$7*K22)+(L$7*L22)+(M$7*M22)+(N$7*N22)+(O$7*O22)) -> 40.5 | Q22: 6 | R22: 8 | S22: 0 | T22: 0 | U22: 8 | V22: 0 | W22: 0 | AA22: =IF(OR('Set UP'!$C20=0,'Set UP'!$D20=0,'Set UP'!$E20=0),"",(Q$7*Q22)+(R$7*R22)+(S$7*S22)+(T$7*T22)+(U$7*U22)+(V$7*V22)+(W$7*W22)+(X$7*X22)+(Y$7*Y22)+(Z$7*Z22)) -> 36 | AB22: 4 | AC22: 3 | AD22: 3 | AE22: 3 | AF22: 3 | AG22: 4 | AL22: =IF(OR('Set UP'!$C20=0,'Set UP'!$D20=0,'Set UP'!$E20=0),"",(AB$7*AB22)+(AC$7*AC22)+(AD$7*AD22)+(AE$7*AE22)+(AF$7*AF22)+(AG$7*AG22)+(AH$7*AH22)+(AI$7*AI22)+(AJ$7*AJ22)+(AK$7*AK22)) -> 26 | AM22: 0 | AN22: 0 | AO22: 0 | AP22: 0 | AQ22: 2 | AR22: 0 | AS22: 0 | AT22: 0 | AU22: 2 | AW22: =IF(OR('Set UP'!$C20=0,'Set UP'!$D20=0,'Set UP'!$E20=0),"",(AM$7*AM22)+(AN$7*AN22)+(AO$7*AO22)+(AP$7*AP22)+(AQ$7*AQ22)+(AR$7*AR22)+(AS$7*AS22)+(AT$7*AT22)+(AU$7*AU22)+(AV$7*AV22)) -> 6 | BH22: =IF(OR('Set UP'!$C20=0,'Set UP'!$D20=0,'Set UP'!$E20=0),"",(AX$7*AX22)+(AY$7*AY22)+(AZ$7*AZ22)+(BA$7*BA22)+(BB$7*BB22)+(BC$7*BC22)+(BD$7*BD22)+(BE$7*BE22)+(BF$7*BF22)+(BG$7*BG22)) -> 0 | BS22: =IF(OR('Set UP'!$C20=0,'Set UP'!$D20=0,'Set UP'!$E20=0),"",(BI$7*BI22)+(BJ$7*BJ22)+(BK$7*BK22)+(BL$7*BL22)+(BM$7*BM22)+(BN$7*BN22)+(BO$7*BO22)+(BP$7*BP22)+(BQ$7*BQ22)+(BR$7*BR22)) -> 0 | BW22: =IF(OR('Set UP'!$C20=0,'Set UP'!$D20=0,'Set UP'!$E20=0),"",(P22+AA22+AL22+AW22+BH22+BS22)) -> 108.5 | BX22: =IF(OR('Set UP'!$C20=0,'Set UP'!$D20=0,'Set UP'!$E20=0),"",RANK(BW22,$BW$9:$BW$48,0)) -> 25 | BY22: =IF(OR('Set UP'!K20<>1,'Set UP'!C20=0,'Set UP'!D20=0,'Set UP'!E20=0,'Set UP'!F20=0),"",$BW22) ->  | BZ22: =IF(OR('Set UP'!K20<>1,'Set UP'!C20=0,'Set UP'!D20=0,'Set UP'!E20=0,'Set UP'!F20=0),"",RANK(BY22,$BY$9:$BY$48,0)) ->  | CA22: =IF(OR('Set UP'!K20<>2,'Set UP'!C20=0,'Set UP'!D20=0,'Set UP'!E20=0,'Set UP'!F20=0),"",$BW22) ->  | CB22: =IF(OR('Set UP'!K20<>2,'Set UP'!C20=0,'Set UP'!D20=0,'Set UP'!E20=0,'Set UP'!F20=0),"",RANK(CA22,$CA$9:$CA$48,0)) -> 
B23: 15 | C23: =IF(OR('Set UP'!$C21=0,'Set UP'!$D21=0,'Set UP'!$E21=0,'Set UP'!F21=0)," --",'Set UP'!C21) -> 512 | D23: =IF(OR('Set UP'!$C21=0,'Set UP'!$D21=0,'Set UP'!$E21=0,'Set UP'!F21=0)," --",'Set UP'!D21&" "&'Set UP'!E21) -> University of Warwick C | E23: =IF(OR('Set UP'!$C21=0,'Set UP'!$D21=0,'Set UP'!$E21=0,'Set UP'!F21=0)," --",'Set UP'!F21) -> NC | F23: 7 | G23: 8 | H23: 7 | I23: 8 | J23: 5 | K23: 6 | P23: =IF(OR('Set UP'!$C21=0,'Set UP'!$D21=0,'Set UP'!$E21=0),"",(F$7*F23)+(G$7*G23)+(H$7*H23)+(I$7*I23)+(J$7*J23)+(K$7*K23)+(L$7*L23)+(M$7*M23)+(N$7*N23)+(O$7*O23)) -> 63 | Q23: 4 | R23: 4 | S23: 2 | T23: 0 | U23: 0 | V23: 0 | W23: 0 | AA23: =IF(OR('Set UP'!$C21=0,'Set UP'!$D21=0,'Set UP'!$E21=0),"",(Q$7*Q23)+(R$7*R23)+(S$7*S23)+(T$7*T23)+(U$7*U23)+(V$7*V23)+(W$7*W23)+(X$7*X23)+(Y$7*Y23)+(Z$7*Z23)) -> 18 | AB23: 8 | AC23: 8 | AD23: 8 | AE23: 7 | AF23: 8 | AG23: 8 | AL23: =IF(OR('Set UP'!$C21=0,'Set UP'!$D21=0,'Set UP'!$E21=0),"",(AB$7*AB23)+(AC$7*AC23)+(AD$7*AD23)+(AE$7*AE23)+(AF$7*AF23)+(AG$7*AG23)+(AH$7*AH23)+(AI$7*AI23)+(AJ$7*AJ23)+(AK$7*AK23)) -> 63 | AM23: 8 | AN23: 0 | AO23: 9 | AP23: 0 | AQ23: 3 | AR23: 0 | AS23: 0 | AT23: 0 | AU23: 8 | AW23: =IF(OR('Set UP'!$C21=0,'Set UP'!$D21=0,'Set UP'!$E21=0),"",(AM$7*AM23)+(AN$7*AN23)+(AO$7*AO23)+(AP$7*AP23)+(AQ$7*AQ23)+(AR$7*AR23)+(AS$7*AS23)+(AT$7*AT23)+(AU$7*AU23)+(AV$7*AV23)) -> 48 | BH23: =IF(OR('Set UP'!$C21=0,'Set UP'!$D21=0,'Set UP'!$E21=0),"",(AX$7*AX23)+(AY$7*AY23)+(AZ$7*AZ23)+(BA$7*BA23)+(BB$7*BB23)+(BC$7*BC23)+(BD$7*BD23)+(BE$7*BE23)+(BF$7*BF23)+(BG$7*BG23)) -> 0 | BS23: =IF(OR('Set UP'!$C21=0,'Set UP'!$D21=0,'Set UP'!$E21=0),"",(BI$7*BI23)+(BJ$7*BJ23)+(BK$7*BK23)+(BL$7*BL23)+(BM$7*BM23)+(BN$7*BN23)+(BO$7*BO23)+(BP$7*BP23)+(BQ$7*BQ23)+(BR$7*BR23)) -> 0 | BW23: =IF(OR('Set UP'!$C21=0,'Set UP'!$D21=0,'Set UP'!$E21=0),"",(P23+AA23+AL23+AW23+BH23+BS23)) -> 192 | BX23: =IF(OR('Set UP'!$C21=0,'Set UP'!$D21=0,'Set UP'!$E21=0),"",RANK(BW23,$BW$9:$BW$48,0)) -> 7 | BY23: =IF(OR('Set UP'!K21<>1,'Set UP'!C21=0,'Set UP'!D21=0,'Set UP'!E21=0,'Set UP'!F21=0),"",$BW23) ->  | BZ23: =IF(OR('Set UP'!K21<>1,'Set UP'!C21=0,'Set UP'!D21=0,'Set UP'!E21=0,'Set UP'!F21=0),"",RANK(BY23,$BY$9:$BY$48,0)) ->  | CA23: =IF(OR('Set UP'!K21<>2,'Set UP'!C21=0,'Set UP'!D21=0,'Set UP'!E21=0,'Set UP'!F21=0),"",$BW23) ->  | CB23: =IF(OR('Set UP'!K21<>2,'Set UP'!C21=0,'Set UP'!D21=0,'Set UP'!E21=0,'Set UP'!F21=0),"",RANK(CA23,$CA$9:$CA$48,0)) -> 
B24: 16 | C24: =IF(OR('Set UP'!$C22=0,'Set UP'!$D22=0,'Set UP'!$E22=0,'Set UP'!F22=0)," --",'Set UP'!C22) -> 531 | D24: =IF(OR('Set UP'!$C22=0,'Set UP'!$D22=0,'Set UP'!$E22=0,'Set UP'!F22=0)," --",'Set UP'!D22&" "&'Set UP'!E22) -> University of London Union D | E24: =IF(OR('Set UP'!$C22=0,'Set UP'!$D22=0,'Set UP'!$E22=0,'Set UP'!F22=0)," --",'Set UP'!F22) -> NC | F24: 7 | G24: 5 | H24: 5 | I24: 4 | J24: 5 | K24: 6 | P24: =IF(OR('Set UP'!$C22=0,'Set UP'!$D22=0,'Set UP'!$E22=0),"",(F$7*F24)+(G$7*G24)+(H$7*H24)+(I$7*I24)+(J$7*J24)+(K$7*K24)+(L$7*L24)+(M$7*M24)+(N$7*N24)+(O$7*O24)) -> 52.5 | Q24: 8 | R24: 8 | S24: 1 | T24: 0 | U24: 2 | V24: 0 | W24: 0 | AA24: =IF(OR('Set UP'!$C22=0,'Set UP'!$D22=0,'Set UP'!$E22=0),"",(Q$7*Q24)+(R$7*R24)+(S$7*S24)+(T$7*T24)+(U$7*U24)+(V$7*V24)+(W$7*W24)+(X$7*X24)+(Y$7*Y24)+(Z$7*Z24)) -> 35 | AB24: 9 | AC24: 8 | AD24: 6 | AE24: 8 | AF24: 8 | AG24: 6 | AL24: =IF(OR('Set UP'!$C22=0,'Set UP'!$D22=0,'Set UP'!$E22=0),"",(AB$7*AB24)+(AC$7*AC24)+(AD$7*AD24)+(AE$7*AE24)+(AF$7*AF24)+(AG$7*AG24)+(AH$7*AH24)+(AI$7*AI24)+(AJ$7*AJ24)+(AK$7*AK24)) -> 61 | AM24: 7 | AN24: 7 | AO24: 7 | AP24: 0 | AQ24: 2 | AR24: 0 | AS24: 0 | AT24: 0 | AU24: 3 | AW24: =IF(OR('Set UP'!$C22=0,'Set UP'!$D22=0,'Set UP'!$E22=0),"",(AM$7*AM24)+(AN$7*AN24)+(AO$7*AO24)+(AP$7*AP24)+(AQ$7*AQ24)+(AR$7*AR24)+(AS$7*AS24)+(AT$7*AT24)+(AU$7*AU24)+(AV$7*AV24)) -> 49 | BH24: =IF(OR('Set UP'!$C22=0,'Set UP'!$D22=0,'Set UP'!$E22=0),"",(AX$7*AX24)+(AY$7*AY24)+(AZ$7*AZ24)+(BA$7*BA24)+(BB$7*BB24)+(BC$7*BC24)+(BD$7*BD24)+(BE$7*BE24)+(BF$7*BF24)+(BG$7*BG24)) -> 0 | BS24: =IF(OR('Set UP'!$C22=0,'Set UP'!$D22=0,'Set UP'!$E22=0),"",(BI$7*BI24)+(BJ$7*BJ24)+(BK$7*BK24)+(BL$7*BL24)+(BM$7*BM24)+(BN$7*BN24)+(BO$7*BO24)+(BP$7*BP24)+(BQ$7*BQ24)+(BR$7*BR24)) -> 0 | BW24: =IF(OR('Set UP'!$C22=0,'Set UP'!$D22=0,'Set UP'!$E22=0),"",(P24+AA24+AL24+AW24+BH24+BS24)) -> 197.5 | BX24: =IF(OR('Set UP'!$C22=0,'Set UP'!$D22=0,'Set UP'!$E22=0),"",RANK(BW24,$BW$9:$BW$48,0)) -> 6 | BY24: =IF(OR('Set UP'!K22<>1,'Set UP'!C22=0,'Set UP'!D22=0,'Set UP'!E22=0,'Set UP'!F22=0),"",$BW24) ->  | BZ24: =IF(OR('Set UP'!K22<>1,'Set UP'!C22=0,'Set UP'!D22=0,'Set UP'!E22=0,'Set UP'!F22=0),"",RANK(BY24,$BY$9:$BY$48,0)) ->  | CA24: =IF(OR('Set UP'!K22<>2,'Set UP'!C22=0,'Set UP'!D22=0,'Set UP'!E22=0,'Set UP'!F22=0),"",$BW24) ->  | CB24: =IF(OR('Set UP'!K22<>2,'Set UP'!C22=0,'Set UP'!D22=0,'Set UP'!E22=0,'Set UP'!F22=0),"",RANK(CA24,$CA$9:$CA$48,0)) -> 
B25: 17 | C25: =IF(OR('Set UP'!$C23=0,'Set UP'!$D23=0,'Set UP'!$E23=0,'Set UP'!F23=0)," --",'Set UP'!C23) -> 471 | D25: =IF(OR('Set UP'!$C23=0,'Set UP'!$D23=0,'Set UP'!$E23=0,'Set UP'!F23=0)," --",'Set UP'!D23&" "&'Set UP'!E23) -> University of Cambridge A | E25: =IF(OR('Set UP'!$C23=0,'Set UP'!$D23=0,'Set UP'!$E23=0,'Set UP'!F23=0)," --",'Set UP'!F23) -> S | F25: 8 | G25: 8 | H25: 8 | I25: 8 | J25: 7 | K25: 4 | P25: =IF(OR('Set UP'!$C23=0,'Set UP'!$D23=0,'Set UP'!$E23=0),"",(F$7*F25)+(G$7*G25)+(H$7*H25)+(I$7*I25)+(J$7*J25)+(K$7*K25)+(L$7*L25)+(M$7*M25)+(N$7*N25)+(O$7*O25)) -> 66 | Q25: 5 | R25: 5 | S25: 2 | T25: 0 | U25: 1 | V25: 0 | W25: 0 | AA25: =IF(OR('Set UP'!$C23=0,'Set UP'!$D23=0,'Set UP'!$E23=0),"",(Q$7*Q25)+(R$7*R25)+(S$7*S25)+(T$7*T25)+(U$7*U25)+(V$7*V25)+(W$7*W25)+(X$7*X25)+(Y$7*Y25)+(Z$7*Z25)) -> 23 | AB25: 5 | AC25: 5 | AD25: 6 | AE25: 7 | AF25: 8 | AG25: 7 | AL25: =IF(OR('Set UP'!$C23=0,'Set UP'!$D23=0,'Set UP'!$E23=0),"",(AB$7*AB25)+(AC$7*AC25)+(AD$7*AD25)+(AE$7*AE25)+(AF$7*AF25)+(AG$7*AG25)+(AH$7*AH25)+(AI$7*AI25)+(AJ$7*AJ25)+(AK$7*AK25)) -> 51 | AM25: 2 | AN25: 3 | AO25: 4 | AP25: 0 | AQ25: 4 | AR25: 0 | AS25: 0 | AT25: 0 | AU25: 0 | AW25: =IF(OR('Set UP'!$C23=0,'Set UP'!$D23=0,'Set UP'!$E23=0),"",(AM$7*AM25)+(AN$7*AN25)+(AO$7*AO25)+(AP$7*AP25)+(AQ$7*AQ25)+(AR$7*AR25)+(AS$7*AS25)+(AT$7*AT25)+(AU$7*AU25)+(AV$7*AV25)) -> 26 | BH25: =IF(OR('Set UP'!$C23=0,'Set UP'!$D23=0,'Set UP'!$E23=0),"",(AX$7*AX25)+(AY$7*AY25)+(AZ$7*AZ25)+(BA$7*BA25)+(BB$7*BB25)+(BC$7*BC25)+(BD$7*BD25)+(BE$7*BE25)+(BF$7*BF25)+(BG$7*BG25)) -> 0 | BS25: =IF(OR('Set UP'!$C23=0,'Set UP'!$D23=0,'Set UP'!$E23=0),"",(BI$7*BI25)+(BJ$7*BJ25)+(BK$7*BK25)+(BL$7*BL25)+(BM$7*BM25)+(BN$7*BN25)+(BO$7*BO25)+(BP$7*BP25)+(BQ$7*BQ25)+(BR$7*BR25)) -> 0 | BW25: =IF(OR('Set UP'!$C23=0,'Set UP'!$D23=0,'Set UP'!$E23=0),"",(P25+AA25+AL25+AW25+BH25+BS25)) -> 166 | BX25: =IF(OR('Set UP'!$C23=0,'Set UP'!$D23=0,'Set UP'!$E23=0),"",RANK(BW25,$BW$9:$BW$48,0)) -> 12 | BY25: =IF(OR('Set UP'!K23<>1,'Set UP'!C23=0,'Set UP'!D23=0,'Set UP'!E23=0,'Set UP'!F23=0),"",$BW25) -> 166 | BZ25: =IF(OR('Set UP'!K23<>1,'Set UP'!C23=0,'Set UP'!D23=0,'Set UP'!E23=0,'Set UP'!F23=0),"",RANK(BY25,$BY$9:$BY$48,0)) -> 8 | CA25: =IF(OR('Set UP'!K23<>2,'Set UP'!C23=0,'Set UP'!D23=0,'Set UP'!E23=0,'Set UP'!F23=0),"",$BW25) ->  | CB25: =IF(OR('Set UP'!K23<>2,'Set UP'!C23=0,'Set UP'!D23=0,'Set UP'!E23=0,'Set UP'!F23=0),"",RANK(CA25,$CA$9:$CA$48,0)) -> 
B26: 18 | C26: =IF(OR('Set UP'!$C24=0,'Set UP'!$D24=0,'Set UP'!$E24=0,'Set UP'!F24=0)," --",'Set UP'!C24) -> 522 | D26: =IF(OR('Set UP'!$C24=0,'Set UP'!$D24=0,'Set UP'!$E24=0,'Set UP'!F24=0)," --",'Set UP'!D24&" "&'Set UP'!E24) -> University of Birmingham B | E26: =IF(OR('Set UP'!$C24=0,'Set UP'!$D24=0,'Set UP'!$E24=0,'Set UP'!F24=0)," --",'Set UP'!F24) -> S | F26: 5 | G26: 6 | H26: 5 | I26: 6 | J26: 7 | K26: 5 | P26: =IF(OR('Set UP'!$C24=0,'Set UP'!$D24=0,'Set UP'!$E24=0),"",(F$7*F26)+(G$7*G26)+(H$7*H26)+(I$7*I26)+(J$7*J26)+(K$7*K26)+(L$7*L26)+(M$7*M26)+(N$7*N26)+(O$7*O26)) -> 54 | Q26: 6 | R26: 8 | S26: 4 | T26: 0 | U26: 8 | V26: 5 | W26: 2 | AA26: =IF(OR('Set UP'!$C24=0,'Set UP'!$D24=0,'Set UP'!$E24=0),"",(Q$7*Q26)+(R$7*R26)+(S$7*S26)+(T$7*T26)+(U$7*U26)+(V$7*V26)+(W$7*W26)+(X$7*X26)+(Y$7*Y26)+(Z$7*Z26)) -> 47 | AB26: 5 | AC26: 5 | AD26: 5 | AE26: 0 | AF26: 0 | AG26: 0 | AL26: =IF(OR('Set UP'!$C24=0,'Set UP'!$D24=0,'Set UP'!$E24=0),"",(AB$7*AB26)+(AC$7*AC26)+(AD$7*AD26)+(AE$7*AE26)+(AF$7*AF26)+(AG$7*AG26)+(AH$7*AH26)+(AI$7*AI26)+(AJ$7*AJ26)+(AK$7*AK26)) -> 20 | AM26: 3 | AN26: 2 | AO26: 3 | AP26: 0 | AQ26: 7 | AR26: 4 | AS26: 1 | AT26: 0 | AU26: 4 | AW26: =IF(OR('Set UP'!$C24=0,'Set UP'!$D24=0,'Set UP'!$E24=0),"",(AM$7*AM26)+(AN$7*AN26)+(AO$7*AO26)+(AP$7*AP26)+(AQ$7*AQ26)+(AR$7*AR26)+(AS$7*AS26)+(AT$7*AT26)+(AU$7*AU26)+(AV$7*AV26)) -> 42 | BH26: =IF(OR('Set UP'!$C24=0,'Set UP'!$D24=0,'Set UP'!$E24=0),"",(AX$7*AX26)+(AY$7*AY26)+(AZ$7*AZ26)+(BA$7*BA26)+(BB$7*BB26)+(BC$7*BC26)+(BD$7*BD26)+(BE$7*BE26)+(BF$7*BF26)+(BG$7*BG26)) -> 0 | BS26: =IF(OR('Set UP'!$C24=0,'Set UP'!$D24=0,'Set UP'!$E24=0),"",(BI$7*BI26)+(BJ$7*BJ26)+(BK$7*BK26)+(BL$7*BL26)+(BM$7*BM26)+(BN$7*BN26)+(BO$7*BO26)+(BP$7*BP26)+(BQ$7*BQ26)+(BR$7*BR26)) -> 0 | BW26: =IF(OR('Set UP'!$C24=0,'Set UP'!$D24=0,'Set UP'!$E24=0),"",(P26+AA26+AL26+AW26+BH26+BS26)) -> 163 | BX26: =IF(OR('Set UP'!$C24=0,'Set UP'!$D24=0,'Set UP'!$E24=0),"",RANK(BW26,$BW$9:$BW$48,0)) -> 13 | BY26: =IF(OR('Set UP'!K24<>1,'Set UP'!C24=0,'Set UP'!D24=0,'Set UP'!E24=0,'Set UP'!F24=0),"",$BW26) ->  | BZ26: =IF(OR('Set UP'!K24<>1,'Set UP'!C24=0,'Set UP'!D24=0,'Set UP'!E24=0,'Set UP'!F24=0),"",RANK(BY26,$BY$9:$BY$48,0)) ->  | CA26: =IF(OR('Set UP'!K24<>2,'Set UP'!C24=0,'Set UP'!D24=0,'Set UP'!E24=0,'Set UP'!F24=0),"",$BW26) -> 163 | CB26: =IF(OR('Set UP'!K24<>2,'Set UP'!C24=0,'Set UP'!D24=0,'Set UP'!E24=0,'Set UP'!F24=0),"",RANK(CA26,$CA$9:$CA$48,0)) -> 3
B27: 19 | C27: =IF(OR('Set UP'!$C25=0,'Set UP'!$D25=0,'Set UP'!$E25=0,'Set UP'!F25=0)," --",'Set UP'!C25) -> 498 | D27: =IF(OR('Set UP'!$C25=0,'Set UP'!$D25=0,'Set UP'!$E25=0,'Set UP'!F25=0)," --",'Set UP'!D25&" "&'Set UP'!E25) -> University of St Andrews A | E27: =IF(OR('Set UP'!$C25=0,'Set UP'!$D25=0,'Set UP'!$E25=0,'Set UP'!F25=0)," --",'Set UP'!F25) -> S | F27: 8 | G27: 8 | H27: 7 | I27: 8 | J27: 0 | K27: 0 | P27: =IF(OR('Set UP'!$C25=0,'Set UP'!$D25=0,'Set UP'!$E25=0),"",(F$7*F27)+(G$7*G27)+(H$7*H27)+(I$7*I27)+(J$7*J27)+(K$7*K27)+(L$7*L27)+(M$7*M27)+(N$7*N27)+(O$7*O27)) -> 43 | Q27: 8 | R27: 8 | S27: 2 | T27: 0 | U27: 9 | V27: 0 | W27: 0 | AA27: =IF(OR('Set UP'!$C25=0,'Set UP'!$D25=0,'Set UP'!$E25=0),"",(Q$7*Q27)+(R$7*R27)+(S$7*S27)+(T$7*T27)+(U$7*U27)+(V$7*V27)+(W$7*W27)+(X$7*X27)+(Y$7*Y27)+(Z$7*Z27)) -> 43 | AB27: 8 | AC27: 8 | AD27: 8 | AE27: 7 | AF27: 6 | AG27: 8 | AL27: =IF(OR('Set UP'!$C25=0,'Set UP'!$D25=0,'Set UP'!$E25=0),"",(AB$7*AB27)+(AC$7*AC27)+(AD$7*AD27)+(AE$7*AE27)+(AF$7*AF27)+(AG$7*AG27)+(AH$7*AH27)+(AI$7*AI27)+(AJ$7*AJ27)+(AK$7*AK27)) -> 59 | AM27: 8 | AN27: 7 | AO27: 8 | AP27: 0 | AQ27: 10 | AR27: 7 | AS27: 3 | AT27: 0 | AU27: 0 | AW27: =IF(OR('Set UP'!$C25=0,'Set UP'!$D25=0,'Set UP'!$E25=0),"",(AM$7*AM27)+(AN$7*AN27)+(AO$7*AO27)+(AP$7*AP27)+(AQ$7*AQ27)+(AR$7*AR27)+(AS$7*AS27)+(AT$7*AT27)+(AU$7*AU27)+(AV$7*AV27)) -> 82.5 | BH27: =IF(OR('Set UP'!$C25=0,'Set UP'!$D25=0,'Set UP'!$E25=0),"",(AX$7*AX27)+(AY$7*AY27)+(AZ$7*AZ27)+(BA$7*BA27)+(BB$7*BB27)+(BC$7*BC27)+(BD$7*BD27)+(BE$7*BE27)+(BF$7*BF27)+(BG$7*BG27)) -> 0 | BS27: =IF(OR('Set UP'!$C25=0,'Set UP'!$D25=0,'Set UP'!$E25=0),"",(BI$7*BI27)+(BJ$7*BJ27)+(BK$7*BK27)+(BL$7*BL27)+(BM$7*BM27)+(BN$7*BN27)+(BO$7*BO27)+(BP$7*BP27)+(BQ$7*BQ27)+(BR$7*BR27)) -> 0 | BW27: =IF(OR('Set UP'!$C25=0,'Set UP'!$D25=0,'Set UP'!$E25=0),"",(P27+AA27+AL27+AW27+BH27+BS27)) -> 227.5 | BX27: =IF(OR('Set UP'!$C25=0,'Set UP'!$D25=0,'Set UP'!$E25=0),"",RANK(BW27,$BW$9:$BW$48,0)) -> 2 | BY27: =IF(OR('Set UP'!K25<>1,'Set UP'!C25=0,'Set UP'!D25=0,'Set UP'!E25=0,'Set UP'!F25=0),"",$BW27) -> 227.5 | BZ27: =IF(OR('Set UP'!K25<>1,'Set UP'!C25=0,'Set UP'!D25=0,'Set UP'!E25=0,'Set UP'!F25=0),"",RANK(BY27,$BY$9:$BY$48,0)) -> 2 | CA27: =IF(OR('Set UP'!K25<>2,'Set UP'!C25=0,'Set UP'!D25=0,'Set UP'!E25=0,'Set UP'!F25=0),"",$BW27) ->  | CB27: =IF(OR('Set UP'!K25<>2,'Set UP'!C25=0,'Set UP'!D25=0,'Set UP'!E25=0,'Set UP'!F25=0),"",RANK(CA27,$CA$9:$CA$48,0)) -> 
B28: 20 | C28: =IF(OR('Set UP'!$C26=0,'Set UP'!$D26=0,'Set UP'!$E26=0,'Set UP'!F26=0)," --",'Set UP'!C26) -> 535 | D28: =IF(OR('Set UP'!$C26=0,'Set UP'!$D26=0,'Set UP'!$E26=0,'Set UP'!F26=0)," --",'Set UP'!D26&" "&'Set UP'!E26) -> University of Birmingham A | E28: =IF(OR('Set UP'!$C26=0,'Set UP'!$D26=0,'Set UP'!$E26=0,'Set UP'!F26=0)," --",'Set UP'!F26) -> S | F28: 8 | G28: 8 | H28: 8 | I28: 9 | J28: 5 | K28: 6 | P28: =IF(OR('Set UP'!$C26=0,'Set UP'!$D26=0,'Set UP'!$E26=0),"",(F$7*F28)+(G$7*G28)+(H$7*H28)+(I$7*I28)+(J$7*J28)+(K$7*K28)+(L$7*L28)+(M$7*M28)+(N$7*N28)+(O$7*O28)) -> 67 | Q28: 9 | R28: 9 | S28: 0 | T28: 0 | U28: 1 | V28: 0 | W28: 0 | AA28: =IF(OR('Set UP'!$C26=0,'Set UP'!$D26=0,'Set UP'!$E26=0),"",(Q$7*Q28)+(R$7*R28)+(S$7*S28)+(T$7*T28)+(U$7*U28)+(V$7*V28)+(W$7*W28)+(X$7*X28)+(Y$7*Y28)+(Z$7*Z28)) -> 37 | AB28: 8 | AC28: 6 | AD28: 4 | AE28: 5 | AF28: 5 | AG28: 4 | AL28: =IF(OR('Set UP'!$C26=0,'Set UP'!$D26=0,'Set UP'!$E26=0),"",(AB$7*AB28)+(AC$7*AC28)+(AD$7*AD28)+(AE$7*AE28)+(AF$7*AF28)+(AG$7*AG28)+(AH$7*AH28)+(AI$7*AI28)+(AJ$7*AJ28)+(AK$7*AK28)) -> 43 | AM28: 3 | AN28: 0 | AO28: 0 | AP28: 0 | AQ28: 3 | AR28: 0 | AS28: 0 | AT28: 0 | AU28: 1 | AW28: =IF(OR('Set UP'!$C26=0,'Set UP'!$D26=0,'Set UP'!$E26=0),"",(AM$7*AM28)+(AN$7*AN28)+(AO$7*AO28)+(AP$7*AP28)+(AQ$7*AQ28)+(AR$7*AR28)+(AS$7*AS28)+(AT$7*AT28)+(AU$7*AU28)+(AV$7*AV28)) -> 13 | BH28: =IF(OR('Set UP'!$C26=0,'Set UP'!$D26=0,'Set UP'!$E26=0),"",(AX$7*AX28)+(AY$7*AY28)+(AZ$7*AZ28)+(BA$7*BA28)+(BB$7*BB28)+(BC$7*BC28)+(BD$7*BD28)+(BE$7*BE28)+(BF$7*BF28)+(BG$7*BG28)) -> 0 | BS28: =IF(OR('Set UP'!$C26=0,'Set UP'!$D26=0,'Set UP'!$E26=0),"",(BI$7*BI28)+(BJ$7*BJ28)+(BK$7*BK28)+(BL$7*BL28)+(BM$7*BM28)+(BN$7*BN28)+(BO$7*BO28)+(BP$7*BP28)+(BQ$7*BQ28)+(BR$7*BR28)) -> 0 | BW28: =IF(OR('Set UP'!$C26=0,'Set UP'!$D26=0,'Set UP'!$E26=0),"",(P28+AA28+AL28+AW28+BH28+BS28)) -> 160 | BX28: =IF(OR('Set UP'!$C26=0,'Set UP'!$D26=0,'Set UP'!$E26=0),"",RANK(BW28,$BW$9:$BW$48,0)) -> 14 | BY28: =IF(OR('Set UP'!K26<>1,'Set UP'!C26=0,'Set UP'!D26=0,'Set UP'!E26=0,'Set UP'!F26=0),"",$BW28) -> 160 | BZ28: =IF(OR('Set UP'!K26<>1,'Set UP'!C26=0,'Set UP'!D26=0,'Set UP'!E26=0,'Set UP'!F26=0),"",RANK(BY28,$BY$9:$BY$48,0)) -> 9 | CA28: =IF(OR('Set UP'!K26<>2,'Set UP'!C26=0,'Set UP'!D26=0,'Set UP'!E26=0,'Set UP'!F26=0),"",$BW28) ->  | CB28: =IF(OR('Set UP'!K26<>2,'Set UP'!C26=0,'Set UP'!D26=0,'Set UP'!E26=0,'Set UP'!F26=0),"",RANK(CA28,$CA$9:$CA$48,0)) -> 
B29: 21 | C29: =IF(OR('Set UP'!$C27=0,'Set UP'!$D27=0,'Set UP'!$E27=0,'Set UP'!F27=0)," --",'Set UP'!C27) -> 508 | D29: =IF(OR('Set UP'!$C27=0,'Set UP'!$D27=0,'Set UP'!$E27=0,'Set UP'!F27=0)," --",'Set UP'!D27&" "&'Set UP'!E27) -> University of Nottingham A | E29: =IF(OR('Set UP'!$C27=0,'Set UP'!$D27=0,'Set UP'!$E27=0,'Set UP'!F27=0)," --",'Set UP'!F27) -> S | F29: 6 | G29: 6 | H29: 5 | I29: 5 | J29: 4 | K29: 6 | P29: =IF(OR('Set UP'!$C27=0,'Set UP'!$D27=0,'Set UP'!$E27=0),"",(F$7*F29)+(G$7*G29)+(H$7*H29)+(I$7*I29)+(J$7*J29)+(K$7*K29)+(L$7*L29)+(M$7*M29)+(N$7*N29)+(O$7*O29)) -> 51 | Q29: 9 | R29: 10 | S29: 5 | T29: 0 | U29: 9 | V29: 0 | W29: 0 | AA29: =IF(OR('Set UP'!$C27=0,'Set UP'!$D27=0,'Set UP'!$E27=0),"",(Q$7*Q29)+(R$7*R29)+(S$7*S29)+(T$7*T29)+(U$7*U29)+(V$7*V29)+(W$7*W29)+(X$7*X29)+(Y$7*Y29)+(Z$7*Z29)) -> 52 | AB29: 6 | AC29: 8 | AD29: 5 | AE29: 5 | AF29: 5 | AG29: 5 | AL29: =IF(OR('Set UP'!$C27=0,'Set UP'!$D27=0,'Set UP'!$E27=0),"",(AB$7*AB29)+(AC$7*AC29)+(AD$7*AD29)+(AE$7*AE29)+(AF$7*AF29)+(AG$7*AG29)+(AH$7*AH29)+(AI$7*AI29)+(AJ$7*AJ29)+(AK$7*AK29)) -> 47 | AM29: 7 | AN29: 2 | AO29: 0 | AP29: 1 | AQ29: 5 | AR29: 0 | AS29: 0 | AT29: 0 | AU29: 0 | AW29: =IF(OR('Set UP'!$C27=0,'Set UP'!$D27=0,'Set UP'!$E27=0),"",(AM$7*AM29)+(AN$7*AN29)+(AO$7*AO29)+(AP$7*AP29)+(AQ$7*AQ29)+(AR$7*AR29)+(AS$7*AS29)+(AT$7*AT29)+(AU$7*AU29)+(AV$7*AV29)) -> 29 | BH29: =IF(OR('Set UP'!$C27=0,'Set UP'!$D27=0,'Set UP'!$E27=0),"",(AX$7*AX29)+(AY$7*AY29)+(AZ$7*AZ29)+(BA$7*BA29)+(BB$7*BB29)+(BC$7*BC29)+(BD$7*BD29)+(BE$7*BE29)+(BF$7*BF29)+(BG$7*BG29)) -> 0 | BS29: =IF(OR('Set UP'!$C27=0,'Set UP'!$D27=0,'Set UP'!$E27=0),"",(BI$7*BI29)+(BJ$7*BJ29)+(BK$7*BK29)+(BL$7*BL29)+(BM$7*BM29)+(BN$7*BN29)+(BO$7*BO29)+(BP$7*BP29)+(BQ$7*BQ29)+(BR$7*BR29)) -> 0 | BW29: =IF(OR('Set UP'!$C27=0,'Set UP'!$D27=0,'Set UP'!$E27=0),"",(P29+AA29+AL29+AW29+BH29+BS29)) -> 179 | BX29: =IF(OR('Set UP'!$C27=0,'Set UP'!$D27=0,'Set UP'!$E27=0),"",RANK(BW29,$BW$9:$BW$48,0)) -> 9 | BY29: =IF(OR('Set UP'!K27<>1,'Set UP'!C27=0,'Set UP'!D27=0,'Set UP'!E27=0,'Set UP'!F27=0),"",$BW29) -> 179 | BZ29: =IF(OR('Set UP'!K27<>1,'Set UP'!C27=0,'Set UP'!D27=0,'Set UP'!E27=0,'Set UP'!F27=0),"",RANK(BY29,$BY$9:$BY$48,0)) -> 5 | CA29: =IF(OR('Set UP'!K27<>2,'Set UP'!C27=0,'Set UP'!D27=0,'Set UP'!E27=0,'Set UP'!F27=0),"",$BW29) ->  | CB29: =IF(OR('Set UP'!K27<>2,'Set UP'!C27=0,'Set UP'!D27=0,'Set UP'!E27=0,'Set UP'!F27=0),"",RANK(CA29,$CA$9:$CA$48,0)) -> 
B30: 22 | C30: =IF(OR('Set UP'!$C28=0,'Set UP'!$D28=0,'Set UP'!$E28=0,'Set UP'!F28=0)," --",'Set UP'!C28) -> 528 | D30: =IF(OR('Set UP'!$C28=0,'Set UP'!$D28=0,'Set UP'!$E28=0,'Set UP'!F28=0)," --",'Set UP'!D28&" "&'Set UP'!E28) -> University of London Union B | E30: =IF(OR('Set UP'!$C28=0,'Set UP'!$D28=0,'Set UP'!$E28=0,'Set UP'!F28=0)," --",'Set UP'!F28) -> S | F30: 5 | G30: 5 | H30: 5 | I30: 5 | J30: 0 | K30: 0 | P30: =IF(OR('Set UP'!$C28=0,'Set UP'!$D28=0,'Set UP'!$E28=0),"",(F$7*F30)+(G$7*G30)+(H$7*H30)+(I$7*I30)+(J$7*J30)+(K$7*K30)+(L$7*L30)+(M$7*M30)+(N$7*N30)+(O$7*O30)) -> 27.5 | Q30: 2 | R30: 0 | S30: 0 | T30: 0 | U30: 1 | V30: 0 | W30: 0 | AA30: =IF(OR('Set UP'!$C28=0,'Set UP'!$D28=0,'Set UP'!$E28=0),"",(Q$7*Q30)+(R$7*R30)+(S$7*S30)+(T$7*T30)+(U$7*U30)+(V$7*V30)+(W$7*W30)+(X$7*X30)+(Y$7*Y30)+(Z$7*Z30)) -> 5 | AB30: 6 | AC30: 6 | AD30: 7 | AE30: 1 | AF30: 0 | AG30: 0 | AL30: =IF(OR('Set UP'!$C28=0,'Set UP'!$D28=0,'Set UP'!$E28=0),"",(AB$7*AB30)+(AC$7*AC30)+(AD$7*AD30)+(AE$7*AE30)+(AF$7*AF30)+(AG$7*AG30)+(AH$7*AH30)+(AI$7*AI30)+(AJ$7*AJ30)+(AK$7*AK30)) -> 26 | AM30: 5 | AN30: 0 | AO30: 8 | AP30: 0 | AQ30: 3 | AR30: 0 | AS30: 0 | AT30: 0 | AU30: 5 | AW30: =IF(OR('Set UP'!$C28=0,'Set UP'!$D28=0,'Set UP'!$E28=0),"",(AM$7*AM30)+(AN$7*AN30)+(AO$7*AO30)+(AP$7*AP30)+(AQ$7*AQ30)+(AR$7*AR30)+(AS$7*AS30)+(AT$7*AT30)+(AU$7*AU30)+(AV$7*AV30)) -> 37 | BH30: =IF(OR('Set UP'!$C28=0,'Set UP'!$D28=0,'Set UP'!$E28=0),"",(AX$7*AX30)+(AY$7*AY30)+(AZ$7*AZ30)+(BA$7*BA30)+(BB$7*BB30)+(BC$7*BC30)+(BD$7*BD30)+(BE$7*BE30)+(BF$7*BF30)+(BG$7*BG30)) -> 0 | BS30: =IF(OR('Set UP'!$C28=0,'Set UP'!$D28=0,'Set UP'!$E28=0),"",(BI$7*BI30)+(BJ$7*BJ30)+(BK$7*BK30)+(BL$7*BL30)+(BM$7*BM30)+(BN$7*BN30)+(BO$7*BO30)+(BP$7*BP30)+(BQ$7*BQ30)+(BR$7*BR30)) -> 0 | BW30: =IF(OR('Set UP'!$C28=0,'Set UP'!$D28=0,'Set UP'!$E28=0),"",(P30+AA30+AL30+AW30+BH30+BS30)) -> 95.5 | BX30: =IF(OR('Set UP'!$C28=0,'Set UP'!$D28=0,'Set UP'!$E28=0),"",RANK(BW30,$BW$9:$BW$48,0)) -> 26 | BY30: =IF(OR('Set UP'!K28<>1,'Set UP'!C28=0,'Set UP'!D28=0,'Set UP'!E28=0,'Set UP'!F28=0),"",$BW30) ->  | BZ30: =IF(OR('Set UP'!K28<>1,'Set UP'!C28=0,'Set UP'!D28=0,'Set UP'!E28=0,'Set UP'!F28=0),"",RANK(BY30,$BY$9:$BY$48,0)) ->  | CA30: =IF(OR('Set UP'!K28<>2,'Set UP'!C28=0,'Set UP'!D28=0,'Set UP'!E28=0,'Set UP'!F28=0),"",$BW30) -> 95.5 | CB30: =IF(OR('Set UP'!K28<>2,'Set UP'!C28=0,'Set UP'!D28=0,'Set UP'!E28=0,'Set UP'!F28=0),"",RANK(CA30,$CA$9:$CA$48,0)) -> 13
B31: 23 | C31: =IF(OR('Set UP'!$C29=0,'Set UP'!$D29=0,'Set UP'!$E29=0,'Set UP'!F29=0)," --",'Set UP'!C29) -> 511 | D31: =IF(OR('Set UP'!$C29=0,'Set UP'!$D29=0,'Set UP'!$E29=0,'Set UP'!F29=0)," --",'Set UP'!D29&" "&'Set UP'!E29) -> University of Warwick B | E31: =IF(OR('Set UP'!$C29=0,'Set UP'!$D29=0,'Set UP'!$E29=0,'Set UP'!F29=0)," --",'Set UP'!F29) -> S | F31: 5 | G31: 4 | H31: 5 | I31: 7 | J31: 4 | K31: 3 | P31: =IF(OR('Set UP'!$C29=0,'Set UP'!$D29=0,'Set UP'!$E29=0),"",(F$7*F31)+(G$7*G31)+(H$7*H31)+(I$7*I31)+(J$7*J31)+(K$7*K31)+(L$7*L31)+(M$7*M31)+(N$7*N31)+(O$7*O31)) -> 42 | Q31: 5 | R31: 5 | S31: 1 | T31: 0 | U31: 0 | V31: 0 | W31: 0 | AA31: =IF(OR('Set UP'!$C29=0,'Set UP'!$D29=0,'Set UP'!$E29=0),"",(Q$7*Q31)+(R$7*R31)+(S$7*S31)+(T$7*T31)+(U$7*U31)+(V$7*V31)+(W$7*W31)+(X$7*X31)+(Y$7*Y31)+(Z$7*Z31)) -> 21 | AB31: 4 | AC31: 4 | AD31: 3 | AE31: 1 | AF31: 0 | AG31: 0 | AL31: =IF(OR('Set UP'!$C29=0,'Set UP'!$D29=0,'Set UP'!$E29=0),"",(AB$7*AB31)+(AC$7*AC31)+(AD$7*AD31)+(AE$7*AE31)+(AF$7*AF31)+(AG$7*AG31)+(AH$7*AH31)+(AI$7*AI31)+(AJ$7*AJ31)+(AK$7*AK31)) -> 16 | AM31: 10 | AN31: 6 | AO31: 9 | AP31: 1 | AQ31: 5 | AR31: 0 | AS31: 2 | AT31: 0 | AU31: 6 | AW31: =IF(OR('Set UP'!$C29=0,'Set UP'!$D29=0,'Set UP'!$E29=0),"",(AM$7*AM31)+(AN$7*AN31)+(AO$7*AO31)+(AP$7*AP31)+(AQ$7*AQ31)+(AR$7*AR31)+(AS$7*AS31)+(AT$7*AT31)+(AU$7*AU31)+(AV$7*AV31)) -> 71 | BH31: =IF(OR('Set UP'!$C29=0,'Set UP'!$D29=0,'Set UP'!$E29=0),"",(AX$7*AX31)+(AY$7*AY31)+(AZ$7*AZ31)+(BA$7*BA31)+(BB$7*BB31)+(BC$7*BC31)+(BD$7*BD31)+(BE$7*BE31)+(BF$7*BF31)+(BG$7*BG31)) -> 0 | BS31: =IF(OR('Set UP'!$C29=0,'Set UP'!$D29=0,'Set UP'!$E29=0),"",(BI$7*BI31)+(BJ$7*BJ31)+(BK$7*BK31)+(BL$7*BL31)+(BM$7*BM31)+(BN$7*BN31)+(BO$7*BO31)+(BP$7*BP31)+(BQ$7*BQ31)+(BR$7*BR31)) -> 0 | BW31: =IF(OR('Set UP'!$C29=0,'Set UP'!$D29=0,'Set UP'!$E29=0),"",(P31+AA31+AL31+AW31+BH31+BS31)) -> 150 | BX31: =IF(OR('Set UP'!$C29=0,'Set UP'!$D29=0,'Set UP'!$E29=0),"",RANK(BW31,$BW$9:$BW$48,0)) -> 16 | BY31: =IF(OR('Set UP'!K29<>1,'Set UP'!C29=0,'Set UP'!D29=0,'Set UP'!E29=0,'Set UP'!F29=0),"",$BW31) ->  | BZ31: =IF(OR('Set UP'!K29<>1,'Set UP'!C29=0,'Set UP'!D29=0,'Set UP'!E29=0,'Set UP'!F29=0),"",RANK(BY31,$BY$9:$BY$48,0)) ->  | CA31: =IF(OR('Set UP'!K29<>2,'Set UP'!C29=0,'Set UP'!D29=0,'Set UP'!E29=0,'Set UP'!F29=0),"",$BW31) -> 150 | CB31: =IF(OR('Set UP'!K29<>2,'Set UP'!C29=0,'Set UP'!D29=0,'Set UP'!E29=0,'Set UP'!F29=0),"",RANK(CA31,$CA$9:$CA$48,0)) -> 5
B32: 24 | C32: =IF(OR('Set UP'!$C30=0,'Set UP'!$D30=0,'Set UP'!$E30=0,'Set UP'!F30=0)," --",'Set UP'!C30) -> 509 | D32: =IF(OR('Set UP'!$C30=0,'Set UP'!$D30=0,'Set UP'!$E30=0,'Set UP'!F30=0)," --",'Set UP'!D30&" "&'Set UP'!E30) -> University of Nottingham B | E32: =IF(OR('Set UP'!$C30=0,'Set UP'!$D30=0,'Set UP'!$E30=0,'Set UP'!F30=0)," --",'Set UP'!F30) -> S | F32: 7 | G32: 6 | H32: 6 | I32: 6 | J32: 6 | K32: 7 | P32: =IF(OR('Set UP'!$C30=0,'Set UP'!$D30=0,'Set UP'!$E30=0),"",(F$7*F32)+(G$7*G32)+(H$7*H32)+(I$7*I32)+(J$7*J32)+(K$7*K32)+(L$7*L32)+(M$7*M32)+(N$7*N32)+(O$7*O32)) -> 61 | Q32: 8 | R32: 8 | S32: 5 | T32: 0 | U32: 2 | V32: 0 | W32: 0 | AA32: =IF(OR('Set UP'!$C30=0,'Set UP'!$D30=0,'Set UP'!$E30=0),"",(Q$7*Q32)+(R$7*R32)+(S$7*S32)+(T$7*T32)+(U$7*U32)+(V$7*V32)+(W$7*W32)+(X$7*X32)+(Y$7*Y32)+(Z$7*Z32)) -> 39 | AB32: 7 | AC32: 6 | AD32: 8 | AE32: 7 | AF32: 9 | AG32: 9 | AL32: =IF(OR('Set UP'!$C30=0,'Set UP'!$D30=0,'Set UP'!$E30=0),"",(AB$7*AB32)+(AC$7*AC32)+(AD$7*AD32)+(AE$7*AE32)+(AF$7*AF32)+(AG$7*AG32)+(AH$7*AH32)+(AI$7*AI32)+(AJ$7*AJ32)+(AK$7*AK32)) -> 61 | AM32: 6 | AN32: 2 | AO32: 8 | AP32: 0 | AQ32: 3 | AR32: 0 | AS32: 0 | AT32: 0 | AU32: 0 | AW32: =IF(OR('Set UP'!$C30=0,'Set UP'!$D30=0,'Set UP'!$E30=0),"",(AM$7*AM32)+(AN$7*AN32)+(AO$7*AO32)+(AP$7*AP32)+(AQ$7*AQ32)+(AR$7*AR32)+(AS$7*AS32)+(AT$7*AT32)+(AU$7*AU32)+(AV$7*AV32)) -> 38 | BH32: =IF(OR('Set UP'!$C30=0,'Set UP'!$D30=0,'Set UP'!$E30=0),"",(AX$7*AX32)+(AY$7*AY32)+(AZ$7*AZ32)+(BA$7*BA32)+(BB$7*BB32)+(BC$7*BC32)+(BD$7*BD32)+(BE$7*BE32)+(BF$7*BF32)+(BG$7*BG32)) -> 0 | BS32: =IF(OR('Set UP'!$C30=0,'Set UP'!$D30=0,'Set UP'!$E30=0),"",(BI$7*BI32)+(BJ$7*BJ32)+(BK$7*BK32)+(BL$7*BL32)+(BM$7*BM32)+(BN$7*BN32)+(BO$7*BO32)+(BP$7*BP32)+(BQ$7*BQ32)+(BR$7*BR32)) -> 0 | BW32: =IF(OR('Set UP'!$C30=0,'Set UP'!$D30=0,'Set UP'!$E30=0),"",(P32+AA32+AL32+AW32+BH32+BS32)) -> 199 | BX32: =IF(OR('Set UP'!$C30=0,'Set UP'!$D30=0,'Set UP'!$E30=0),"",RANK(BW32,$BW$9:$BW$48,0)) -> 3 | BY32: =IF(OR('Set UP'!K30<>1,'Set UP'!C30=0,'Set UP'!D30=0,'Set UP'!E30=0,'Set UP'!F30=0),"",$BW32) ->  | BZ32: =IF(OR('Set UP'!K30<>1,'Set UP'!C30=0,'Set UP'!D30=0,'Set UP'!E30=0,'Set UP'!F30=0),"",RANK(BY32,$BY$9:$BY$48,0)) ->  | CA32: =IF(OR('Set UP'!K30<>2,'Set UP'!C30=0,'Set UP'!D30=0,'Set UP'!E30=0,'Set UP'!F30=0),"",$BW32) -> 199 | CB32: =IF(OR('Set UP'!K30<>2,'Set UP'!C30=0,'Set UP'!D30=0,'Set UP'!E30=0,'Set UP'!F30=0),"",RANK(CA32,$CA$9:$CA$48,0)) -> 1
B33: 25 | C33: =IF(OR('Set UP'!$C31=0,'Set UP'!$D31=0,'Set UP'!$E31=0,'Set UP'!F31=0)," --",'Set UP'!C31) -> 517 | D33: =IF(OR('Set UP'!$C31=0,'Set UP'!$D31=0,'Set UP'!$E31=0,'Set UP'!F31=0)," --",'Set UP'!D31&" "&'Set UP'!E31) -> Loughborough University B | E33: =IF(OR('Set UP'!$C31=0,'Set UP'!$D31=0,'Set UP'!$E31=0,'Set UP'!F31=0)," --",'Set UP'!F31) -> S | F33: 8 | G33: 8 | H33: 7 | I33: 8 | J33: 8 | K33: 5 | P33: =IF(OR('Set UP'!$C31=0,'Set UP'!$D31=0,'Set UP'!$E31=0),"",(F$7*F33)+(G$7*G33)+(H$7*H33)+(I$7*I33)+(J$7*J33)+(K$7*K33)+(L$7*L33)+(M$7*M33)+(N$7*N33)+(O$7*O33)) -> 69 | Q33: 5 | R33: 0 | S33: 5 | T33: 0 | U33: 5 | V33: 0 | W33: 0 | AA33: =IF(OR('Set UP'!$C31=0,'Set UP'!$D31=0,'Set UP'!$E31=0),"",(Q$7*Q33)+(R$7*R33)+(S$7*S33)+(T$7*T33)+(U$7*U33)+(V$7*V33)+(W$7*W33)+(X$7*X33)+(Y$7*Y33)+(Z$7*Z33)) -> 20 | AB33: 4 | AC33: 4 | AD33: 3 | AE33: 5 | AF33: 4 | AG33: 3 | AL33: =IF(OR('Set UP'!$C31=0,'Set UP'!$D31=0,'Set UP'!$E31=0),"",(AB$7*AB33)+(AC$7*AC33)+(AD$7*AD33)+(AE$7*AE33)+(AF$7*AF33)+(AG$7*AG33)+(AH$7*AH33)+(AI$7*AI33)+(AJ$7*AJ33)+(AK$7*AK33)) -> 31 | AM33: 5 | AN33: 1 | AO33: 1 | AP33: 0 | AQ33: 3 | AR33: 0 | AS33: 0 | AT33: 0 | AU33: 0 | AW33: =IF(OR('Set UP'!$C31=0,'Set UP'!$D31=0,'Set UP'!$E31=0),"",(AM$7*AM33)+(AN$7*AN33)+(AO$7*AO33)+(AP$7*AP33)+(AQ$7*AQ33)+(AR$7*AR33)+(AS$7*AS33)+(AT$7*AT33)+(AU$7*AU33)+(AV$7*AV33)) -> 20 | BH33: =IF(OR('Set UP'!$C31=0,'Set UP'!$D31=0,'Set UP'!$E31=0),"",(AX$7*AX33)+(AY$7*AY33)+(AZ$7*AZ33)+(BA$7*BA33)+(BB$7*BB33)+(BC$7*BC33)+(BD$7*BD33)+(BE$7*BE33)+(BF$7*BF33)+(BG$7*BG33)) -> 0 | BS33: =IF(OR('Set UP'!$C31=0,'Set UP'!$D31=0,'Set UP'!$E31=0),"",(BI$7*BI33)+(BJ$7*BJ33)+(BK$7*BK33)+(BL$7*BL33)+(BM$7*BM33)+(BN$7*BN33)+(BO$7*BO33)+(BP$7*BP33)+(BQ$7*BQ33)+(BR$7*BR33)) -> 0 | BW33: =IF(OR('Set UP'!$C31=0,'Set UP'!$D31=0,'Set UP'!$E31=0),"",(P33+AA33+AL33+AW33+BH33+BS33)) -> 140 | BX33: =IF(OR('Set UP'!$C31=0,'Set UP'!$D31=0,'Set UP'!$E31=0),"",RANK(BW33,$BW$9:$BW$48,0)) -> 18 | BY33: =IF(OR('Set UP'!K31<>1,'Set UP'!C31=0,'Set UP'!D31=0,'Set UP'!E31=0,'Set UP'!F31=0),"",$BW33) ->  | BZ33: =IF(OR('Set UP'!K31<>1,'Set UP'!C31=0,'Set UP'!D31=0,'Set UP'!E31=0,'Set UP'!F31=0),"",RANK(BY33,$BY$9:$BY$48,0)) ->  | CA33: =IF(OR('Set UP'!K31<>2,'Set UP'!C31=0,'Set UP'!D31=0,'Set UP'!E31=0,'Set UP'!F31=0),"",$BW33) -> 140 | CB33: =IF(OR('Set UP'!K31<>2,'Set UP'!C31=0,'Set UP'!D31=0,'Set UP'!E31=0,'Set UP'!F31=0),"",RANK(CA33,$CA$9:$CA$48,0)) -> 7
B34: 26 | C34: =IF(OR('Set UP'!$C32=0,'Set UP'!$D32=0,'Set UP'!$E32=0,'Set UP'!F32=0)," --",'Set UP'!C32) -> 534 | D34: =IF(OR('Set UP'!$C32=0,'Set UP'!$D32=0,'Set UP'!$E32=0,'Set UP'!F32=0)," --",'Set UP'!D32&" "&'Set UP'!E32) -> University of Southampton B | E34: =IF(OR('Set UP'!$C32=0,'Set UP'!$D32=0,'Set UP'!$E32=0,'Set UP'!F32=0)," --",'Set UP'!F32) -> S | F34: 5 | G34: 6 | H34: 5 | I34: 5 | J34: 7 | K34: 8 | P34: =IF(OR('Set UP'!$C32=0,'Set UP'!$D32=0,'Set UP'!$E32=0),"",(F$7*F34)+(G$7*G34)+(H$7*H34)+(I$7*I34)+(J$7*J34)+(K$7*K34)+(L$7*L34)+(M$7*M34)+(N$7*N34)+(O$7*O34)) -> 59 | Q34: 2 | R34: 0 | S34: 0 | T34: 6 | U34: 4 | V34: 0 | W34: 0 | AA34: =IF(OR('Set UP'!$C32=0,'Set UP'!$D32=0,'Set UP'!$E32=0),"",(Q$7*Q34)+(R$7*R34)+(S$7*S34)+(T$7*T34)+(U$7*U34)+(V$7*V34)+(W$7*W34)+(X$7*X34)+(Y$7*Y34)+(Z$7*Z34)) -> 14 | AB34: 7 | AC34: 8 | AD34: 8 | AE34: 5 | AF34: 6 | AG34: 5 | AL34: =IF(OR('Set UP'!$C32=0,'Set UP'!$D32=0,'Set UP'!$E32=0),"",(AB$7*AB34)+(AC$7*AC34)+(AD$7*AD34)+(AE$7*AE34)+(AF$7*AF34)+(AG$7*AG34)+(AH$7*AH34)+(AI$7*AI34)+(AJ$7*AJ34)+(AK$7*AK34)) -> 53 | AM34: 1 | AN34: 0 | AO34: 1 | AP34: 0 | AQ34: 2 | AR34: 0 | AS34: 0 | AT34: 0 | AU34: 0 | AW34: =IF(OR('Set UP'!$C32=0,'Set UP'!$D32=0,'Set UP'!$E32=0),"",(AM$7*AM34)+(AN$7*AN34)+(AO$7*AO34)+(AP$7*AP34)+(AQ$7*AQ34)+(AR$7*AR34)+(AS$7*AS34)+(AT$7*AT34)+(AU$7*AU34)+(AV$7*AV34)) -> 8 | BH34: =IF(OR('Set UP'!$C32=0,'Set UP'!$D32=0,'Set UP'!$E32=0),"",(AX$7*AX34)+(AY$7*AY34)+(AZ$7*AZ34)+(BA$7*BA34)+(BB$7*BB34)+(BC$7*BC34)+(BD$7*BD34)+(BE$7*BE34)+(BF$7*BF34)+(BG$7*BG34)) -> 0 | BS34: =IF(OR('Set UP'!$C32=0,'Set UP'!$D32=0,'Set UP'!$E32=0),"",(BI$7*BI34)+(BJ$7*BJ34)+(BK$7*BK34)+(BL$7*BL34)+(BM$7*BM34)+(BN$7*BN34)+(BO$7*BO34)+(BP$7*BP34)+(BQ$7*BQ34)+(BR$7*BR34)) -> 0 | BW34: =IF(OR('Set UP'!$C32=0,'Set UP'!$D32=0,'Set UP'!$E32=0),"",(P34+AA34+AL34+AW34+BH34+BS34)) -> 134 | BX34: =IF(OR('Set UP'!$C32=0,'Set UP'!$D32=0,'Set UP'!$E32=0),"",RANK(BW34,$BW$9:$BW$48,0)) -> 19 | BY34: =IF(OR('Set UP'!K32<>1,'Set UP'!C32=0,'Set UP'!D32=0,'Set UP'!E32=0,'Set UP'!F32=0),"",$BW34) ->  | BZ34: =IF(OR('Set UP'!K32<>1,'Set UP'!C32=0,'Set UP'!D32=0,'Set UP'!E32=0,'Set UP'!F32=0),"",RANK(BY34,$BY$9:$BY$48,0)) ->  | CA34: =IF(OR('Set UP'!K32<>2,'Set UP'!C32=0,'Set UP'!D32=0,'Set UP'!E32=0,'Set UP'!F32=0),"",$BW34) -> 134 | CB34: =IF(OR('Set UP'!K32<>2,'Set UP'!C32=0,'Set UP'!D32=0,'Set UP'!E32=0,'Set UP'!F32=0),"",RANK(CA34,$CA$9:$CA$48,0)) -> 8
B35: 27 | C35: =IF(OR('Set UP'!$C33=0,'Set UP'!$D33=0,'Set UP'!$E33=0,'Set UP'!F33=0)," --",'Set UP'!C33) -> 479 | D35: =IF(OR('Set UP'!$C33=0,'Set UP'!$D33=0,'Set UP'!$E33=0,'Set UP'!F33=0)," --",'Set UP'!D33&" "&'Set UP'!E33) -> Loughborough University A | E35: =IF(OR('Set UP'!$C33=0,'Set UP'!$D33=0,'Set UP'!$E33=0,'Set UP'!F33=0)," --",'Set UP'!F33) -> S | F35: 6 | G35: 6 | H35: 5 | I35: 6 | J35: 5 | K35: 3 | P35: =IF(OR('Set UP'!$C33=0,'Set UP'!$D33=0,'Set UP'!$E33=0),"",(F$7*F35)+(G$7*G35)+(H$7*H35)+(I$7*I35)+(J$7*J35)+(K$7*K35)+(L$7*L35)+(M$7*M35)+(N$7*N35)+(O$7*O35)) -> 48 | Q35: 5 | R35: 10 | S35: 6 | T35: 0 | U35: 2 | V35: 0 | W35: 0 | AA35: =IF(OR('Set UP'!$C33=0,'Set UP'!$D33=0,'Set UP'!$E33=0),"",(Q$7*Q35)+(R$7*R35)+(S$7*S35)+(T$7*T35)+(U$7*U35)+(V$7*V35)+(W$7*W35)+(X$7*X35)+(Y$7*Y35)+(Z$7*Z35)) -> 38 | AB35: 8 | AC35: 7 | AD35: 6 | AE35: 7 | AF35: 5 | AG35: 6 | AL35: =IF(OR('Set UP'!$C33=0,'Set UP'!$D33=0,'Set UP'!$E33=0),"",(AB$7*AB35)+(AC$7*AC35)+(AD$7*AD35)+(AE$7*AE35)+(AF$7*AF35)+(AG$7*AG35)+(AH$7*AH35)+(AI$7*AI35)+(AJ$7*AJ35)+(AK$7*AK35)) -> 51 | AM35: 5 | AN35: 2 | AO35: 5 | AP35: 0 | AQ35: 2 | AR35: 0 | AS35: 0 | AT35: 0 | AU35: 2 | AW35: =IF(OR('Set UP'!$C33=0,'Set UP'!$D33=0,'Set UP'!$E33=0),"",(AM$7*AM35)+(AN$7*AN35)+(AO$7*AO35)+(AP$7*AP35)+(AQ$7*AQ35)+(AR$7*AR35)+(AS$7*AS35)+(AT$7*AT35)+(AU$7*AU35)+(AV$7*AV35)) -> 30 | BH35: =IF(OR('Set UP'!$C33=0,'Set UP'!$D33=0,'Set UP'!$E33=0),"",(AX$7*AX35)+(AY$7*AY35)+(AZ$7*AZ35)+(BA$7*BA35)+(BB$7*BB35)+(BC$7*BC35)+(BD$7*BD35)+(BE$7*BE35)+(BF$7*BF35)+(BG$7*BG35)) -> 0 | BS35: =IF(OR('Set UP'!$C33=0,'Set UP'!$D33=0,'Set UP'!$E33=0),"",(BI$7*BI35)+(BJ$7*BJ35)+(BK$7*BK35)+(BL$7*BL35)+(BM$7*BM35)+(BN$7*BN35)+(BO$7*BO35)+(BP$7*BP35)+(BQ$7*BQ35)+(BR$7*BR35)) -> 0 | BW35: =IF(OR('Set UP'!$C33=0,'Set UP'!$D33=0,'Set UP'!$E33=0),"",(P35+AA35+AL35+AW35+BH35+BS35)) -> 167 | BX35: =IF(OR('Set UP'!$C33=0,'Set UP'!$D33=0,'Set UP'!$E33=0),"",RANK(BW35,$BW$9:$BW$48,0)) -> 11 | BY35: =IF(OR('Set UP'!K33<>1,'Set UP'!C33=0,'Set UP'!D33=0,'Set UP'!E33=0,'Set UP'!F33=0),"",$BW35) -> 167 | BZ35: =IF(OR('Set UP'!K33<>1,'Set UP'!C33=0,'Set UP'!D33=0,'Set UP'!E33=0,'Set UP'!F33=0),"",RANK(BY35,$BY$9:$BY$48,0)) -> 7 | CA35: =IF(OR('Set UP'!K33<>2,'Set UP'!C33=0,'Set UP'!D33=0,'Set UP'!E33=0,'Set UP'!F33=0),"",$BW35) ->  | CB35: =IF(OR('Set UP'!K33<>2,'Set UP'!C33=0,'Set UP'!D33=0,'Set UP'!E33=0,'Set UP'!F33=0),"",RANK(CA35,$CA$9:$CA$48,0)) -> 
B36: 28 | C36: =IF(OR('Set UP'!$C34=0,'Set UP'!$D34=0,'Set UP'!$E34=0,'Set UP'!F34=0)," --",'Set UP'!C34) -> 545 | D36: =IF(OR('Set UP'!$C34=0,'Set UP'!$D34=0,'Set UP'!$E34=0,'Set UP'!F34=0)," --",'Set UP'!D34&" "&'Set UP'!E34) -> Colwick Park A | E36: =IF(OR('Set UP'!$C34=0,'Set UP'!$D34=0,'Set UP'!$E34=0,'Set UP'!F34=0)," --",'Set UP'!F34) -> NS | F36: 4 | G36: 4 | H36: 4 | I36: 4 | J36: 2 | K36: 0 | P36: =IF(OR('Set UP'!$C34=0,'Set UP'!$D34=0,'Set UP'!$E34=0),"",(F$7*F36)+(G$7*G36)+(H$7*H36)+(I$7*I36)+(J$7*J36)+(K$7*K36)+(L$7*L36)+(M$7*M36)+(N$7*N36)+(O$7*O36)) -> 26 | Q36: 1 | R36: 0 | S36: 0 | T36: 3 | U36: 0 | V36: 0 | W36: 0 | AA36: =IF(OR('Set UP'!$C34=0,'Set UP'!$D34=0,'Set UP'!$E34=0),"",(Q$7*Q36)+(R$7*R36)+(S$7*S36)+(T$7*T36)+(U$7*U36)+(V$7*V36)+(W$7*W36)+(X$7*X36)+(Y$7*Y36)+(Z$7*Z36)) -> 5 | AB36: 0 | AC36: 0 | AD36: 0 | AE36: 5 | AF36: 4 | AG36: 2 | AL36: =IF(OR('Set UP'!$C34=0,'Set UP'!$D34=0,'Set UP'!$E34=0),"",(AB$7*AB36)+(AC$7*AC36)+(AD$7*AD36)+(AE$7*AE36)+(AF$7*AF36)+(AG$7*AG36)+(AH$7*AH36)+(AI$7*AI36)+(AJ$7*AJ36)+(AK$7*AK36)) -> 15 | AM36: 5 | AN36: 0 | AO36: 4 | AP36: 0 | AQ36: 2 | AR36: 0 | AS36: 0 | AT36: 0 | AU36: 2 | AW36: =IF(OR('Set UP'!$C34=0,'Set UP'!$D34=0,'Set UP'!$E34=0),"",(AM$7*AM36)+(AN$7*AN36)+(AO$7*AO36)+(AP$7*AP36)+(AQ$7*AQ36)+(AR$7*AR36)+(AS$7*AS36)+(AT$7*AT36)+(AU$7*AU36)+(AV$7*AV36)) -> 24 | BH36: =IF(OR('Set UP'!$C34=0,'Set UP'!$D34=0,'Set UP'!$E34=0),"",(AX$7*AX36)+(AY$7*AY36)+(AZ$7*AZ36)+(BA$7*BA36)+(BB$7*BB36)+(BC$7*BC36)+(BD$7*BD36)+(BE$7*BE36)+(BF$7*BF36)+(BG$7*BG36)) -> 0 | BS36: =IF(OR('Set UP'!$C34=0,'Set UP'!$D34=0,'Set UP'!$E34=0),"",(BI$7*BI36)+(BJ$7*BJ36)+(BK$7*BK36)+(BL$7*BL36)+(BM$7*BM36)+(BN$7*BN36)+(BO$7*BO36)+(BP$7*BP36)+(BQ$7*BQ36)+(BR$7*BR36)) -> 0 | BW36: =IF(OR('Set UP'!$C34=0,'Set UP'!$D34=0,'Set UP'!$E34=0),"",(P36+AA36+AL36+AW36+BH36+BS36)) -> 70 | BX36: =IF(OR('Set UP'!$C34=0,'Set UP'!$D34=0,'Set UP'!$E34=0),"",RANK(BW36,$BW$9:$BW$48,0)) -> 29 | BY36: =IF(OR('Set UP'!K34<>1,'Set UP'!C34=0,'Set UP'!D34=0,'Set UP'!E34=0,'Set UP'!F34=0),"",$BW36) ->  | BZ36: =IF(OR('Set UP'!K34<>1,'Set UP'!C34=0,'Set UP'!D34=0,'Set UP'!E34=0,'Set UP'!F34=0),"",RANK(BY36,$BY$9:$BY$48,0)) ->  | CA36: =IF(OR('Set UP'!K34<>2,'Set UP'!C34=0,'Set UP'!D34=0,'Set UP'!E34=0,'Set UP'!F34=0),"",$BW36) ->  | CB36: =IF(OR('Set UP'!K34<>2,'Set UP'!C34=0,'Set UP'!D34=0,'Set UP'!E34=0,'Set UP'!F34=0),"",RANK(CA36,$CA$9:$CA$48,0)) -> 
B37: 29 | C37: =IF(OR('Set UP'!$C35=0,'Set UP'!$D35=0,'Set UP'!$E35=0,'Set UP'!F35=0)," --",'Set UP'!C35) -> 533 | D37: =IF(OR('Set UP'!$C35=0,'Set UP'!$D35=0,'Set UP'!$E35=0,'Set UP'!F35=0)," --",'Set UP'!D35&" "&'Set UP'!E35) -> University of Southampton A | E37: =IF(OR('Set UP'!$C35=0,'Set UP'!$D35=0,'Set UP'!$E35=0,'Set UP'!F35=0)," --",'Set UP'!F35) -> S | F37: 9 | G37: 8 | H37: 8 | I37: 7 | J37: 10 | K37: 8 | P37: =IF(OR('Set UP'!$C35=0,'Set UP'!$D35=0,'Set UP'!$E35=0),"",(F$7*F37)+(G$7*G37)+(H$7*H37)+(I$7*I37)+(J$7*J37)+(K$7*K37)+(L$7*L37)+(M$7*M37)+(N$7*N37)+(O$7*O37)) -> 81 | Q37: 2 | R37: 0 | S37: 0 | T37: 0 | U37: 0 | V37: 0 | W37: 0 | AA37: =IF(OR('Set UP'!$C35=0,'Set UP'!$D35=0,'Set UP'!$E35=0),"",(Q$7*Q37)+(R$7*R37)+(S$7*S37)+(T$7*T37)+(U$7*U37)+(V$7*V37)+(W$7*W37)+(X$7*X37)+(Y$7*Y37)+(Z$7*Z37)) -> 4 | AB37: 8 | AC37: 8 | AD37: 4 | AE37: 5 | AF37: 7 | AG37: 7 | AL37: =IF(OR('Set UP'!$C35=0,'Set UP'!$D35=0,'Set UP'!$E35=0),"",(AB$7*AB37)+(AC$7*AC37)+(AD$7*AD37)+(AE$7*AE37)+(AF$7*AF37)+(AG$7*AG37)+(AH$7*AH37)+(AI$7*AI37)+(AJ$7*AJ37)+(AK$7*AK37)) -> 54 | AM37: 7 | AN37: 6 | AO37: 5 | AP37: 2 | AQ37: 9 | AR37: 0 | AS37: 2 | AT37: 0 | AU37: 0 | AW37: =IF(OR('Set UP'!$C35=0,'Set UP'!$D35=0,'Set UP'!$E35=0),"",(AM$7*AM37)+(AN$7*AN37)+(AO$7*AO37)+(AP$7*AP37)+(AQ$7*AQ37)+(AR$7*AR37)+(AS$7*AS37)+(AT$7*AT37)+(AU$7*AU37)+(AV$7*AV37)) -> 60 | BH37: =IF(OR('Set UP'!$C35=0,'Set UP'!$D35=0,'Set UP'!$E35=0),"",(AX$7*AX37)+(AY$7*AY37)+(AZ$7*AZ37)+(BA$7*BA37)+(BB$7*BB37)+(BC$7*BC37)+(BD$7*BD37)+(BE$7*BE37)+(BF$7*BF37)+(BG$7*BG37)) -> 0 | BS37: =IF(OR('Set UP'!$C35=0,'Set UP'!$D35=0,'Set UP'!$E35=0),"",(BI$7*BI37)+(BJ$7*BJ37)+(BK$7*BK37)+(BL$7*BL37)+(BM$7*BM37)+(BN$7*BN37)+(BO$7*BO37)+(BP$7*BP37)+(BQ$7*BQ37)+(BR$7*BR37)) -> 0 | BW37: =IF(OR('Set UP'!$C35=0,'Set UP'!$D35=0,'Set UP'!$E35=0),"",(P37+AA37+AL37+AW37+BH37+BS37)) -> 199 | BX37: =IF(OR('Set UP'!$C35=0,'Set UP'!$D35=0,'Set UP'!$E35=0),"",RANK(BW37,$BW$9:$BW$48,0)) -> 3 | BY37: =IF(OR('Set UP'!K35<>1,'Set UP'!C35=0,'Set UP'!D35=0,'Set UP'!E35=0,'Set UP'!F35=0),"",$BW37) -> 199 | BZ37: =IF(OR('Set UP'!K35<>1,'Set UP'!C35=0,'Set UP'!D35=0,'Set UP'!E35=0,'Set UP'!F35=0),"",RANK(BY37,$BY$9:$BY$48,0)) -> 3 | CA37: =IF(OR('Set UP'!K35<>2,'Set UP'!C35=0,'Set UP'!D35=0,'Set UP'!E35=0,'Set UP'!F35=0),"",$BW37) ->  | CB37: =IF(OR('Set UP'!K35<>2,'Set UP'!C35=0,'Set UP'!D35=0,'Set UP'!E35=0,'Set UP'!F35=0),"",RANK(CA37,$CA$9:$CA$48,0)) -> 
B38: 30 | C38: =IF(OR('Set UP'!$C36=0,'Set UP'!$D36=0,'Set UP'!$E36=0,'Set UP'!F36=0)," --",'Set UP'!C36) -> 523 | D38: =IF(OR('Set UP'!$C36=0,'Set UP'!$D36=0,'Set UP'!$E36=0,'Set UP'!F36=0)," --",'Set UP'!D36&" "&'Set UP'!E36) -> University of London Union A | E38: =IF(OR('Set UP'!$C36=0,'Set UP'!$D36=0,'Set UP'!$E36=0,'Set UP'!F36=0)," --",'Set UP'!F36) -> S | F38: 7 | G38: 7 | H38: 6 | I38: 5 | J38: 4 | K38: 4 | P38: =IF(OR('Set UP'!$C36=0,'Set UP'!$D36=0,'Set UP'!$E36=0),"",(F$7*F38)+(G$7*G38)+(H$7*H38)+(I$7*I38)+(J$7*J38)+(K$7*K38)+(L$7*L38)+(M$7*M38)+(N$7*N38)+(O$7*O38)) -> 51.5 | Q38: 10 | R38: 10 | S38: 8 | T38: 0 | U38: 10 | V38: 0 | W38: 0 | AA38: =IF(OR('Set UP'!$C36=0,'Set UP'!$D36=0,'Set UP'!$E36=0),"",(Q$7*Q38)+(R$7*R38)+(S$7*S38)+(T$7*T38)+(U$7*U38)+(V$7*V38)+(W$7*W38)+(X$7*X38)+(Y$7*Y38)+(Z$7*Z38)) -> 58 | AB38: 7 | AC38: 7 | AD38: 8 | AE38: 8 | AF38: 8 | AG38: 4 | AL38: =IF(OR('Set UP'!$C36=0,'Set UP'!$D36=0,'Set UP'!$E36=0),"",(AB$7*AB38)+(AC$7*AC38)+(AD$7*AD38)+(AE$7*AE38)+(AF$7*AF38)+(AG$7*AG38)+(AH$7*AH38)+(AI$7*AI38)+(AJ$7*AJ38)+(AK$7*AK38)) -> 57 | AM38: 7 | AN38: 7 | AO38: 7 | AP38: 0 | AQ38: 9 | AR38: 3 | AS38: 2 | AT38: 0 | AU38: 0 | AW38: =IF(OR('Set UP'!$C36=0,'Set UP'!$D36=0,'Set UP'!$E36=0),"",(AM$7*AM38)+(AN$7*AN38)+(AO$7*AO38)+(AP$7*AP38)+(AQ$7*AQ38)+(AR$7*AR38)+(AS$7*AS38)+(AT$7*AT38)+(AU$7*AU38)+(AV$7*AV38)) -> 68.5 | BH38: =IF(OR('Set UP'!$C36=0,'Set UP'!$D36=0,'Set UP'!$E36=0),"",(AX$7*AX38)+(AY$7*AY38)+(AZ$7*AZ38)+(BA$7*BA38)+(BB$7*BB38)+(BC$7*BC38)+(BD$7*BD38)+(BE$7*BE38)+(BF$7*BF38)+(BG$7*BG38)) -> 0 | BS38: =IF(OR('Set UP'!$C36=0,'Set UP'!$D36=0,'Set UP'!$E36=0),"",(BI$7*BI38)+(BJ$7*BJ38)+(BK$7*BK38)+(BL$7*BL38)+(BM$7*BM38)+(BN$7*BN38)+(BO$7*BO38)+(BP$7*BP38)+(BQ$7*BQ38)+(BR$7*BR38)) -> 0 | BW38: =IF(OR('Set UP'!$C36=0,'Set UP'!$D36=0,'Set UP'!$E36=0),"",(P38+AA38+AL38+AW38+BH38+BS38)) -> 235 | BX38: =IF(OR('Set UP'!$C36=0,'Set UP'!$D36=0,'Set UP'!$E36=0),"",RANK(BW38,$BW$9:$BW$48,0)) -> 1 | BY38: =IF(OR('Set UP'!K36<>1,'Set UP'!C36=0,'Set UP'!D36=0,'Set UP'!E36=0,'Set UP'!F36=0),"",$BW38) -> 235 | BZ38: =IF(OR('Set UP'!K36<>1,'Set UP'!C36=0,'Set UP'!D36=0,'Set UP'!E36=0,'Set UP'!F36=0),"",RANK(BY38,$BY$9:$BY$48,0)) -> 1 | CA38: =IF(OR('Set UP'!K36<>2,'Set UP'!C36=0,'Set UP'!D36=0,'Set UP'!E36=0,'Set UP'!F36=0),"",$BW38) ->  | CB38: =IF(OR('Set UP'!K36<>2,'Set UP'!C36=0,'Set UP'!D36=0,'Set UP'!E36=0,'Set UP'!F36=0),"",RANK(CA38,$CA$9:$CA$48,0)) -> 
B39: 31 | C39: =IF(OR('Set UP'!$C37=0,'Set UP'!$D37=0,'Set UP'!$E37=0,'Set UP'!F37=0)," --",'Set UP'!C37) -> 505 | D39: =IF(OR('Set UP'!$C37=0,'Set UP'!$D37=0,'Set UP'!$E37=0,'Set UP'!F37=0)," --",'Set UP'!D37&" "&'Set UP'!E37) -> University of Plymouth A | E39: =IF(OR('Set UP'!$C37=0,'Set UP'!$D37=0,'Set UP'!$E37=0,'Set UP'!F37=0)," --",'Set UP'!F37) -> S | F39: 5 | G39: 5 | H39: 5 | I39: 4 | J39: 0 | K39: 0 | P39: =IF(OR('Set UP'!$C37=0,'Set UP'!$D37=0,'Set UP'!$E37=0),"",(F$7*F39)+(G$7*G39)+(H$7*H39)+(I$7*I39)+(J$7*J39)+(K$7*K39)+(L$7*L39)+(M$7*M39)+(N$7*N39)+(O$7*O39)) -> 26.5 | Q39: 4 | R39: 4 | S39: 0 | T39: 0 | U39: 0 | V39: 0 | W39: 0 | AA39: =IF(OR('Set UP'!$C37=0,'Set UP'!$D37=0,'Set UP'!$E37=0),"",(Q$7*Q39)+(R$7*R39)+(S$7*S39)+(T$7*T39)+(U$7*U39)+(V$7*V39)+(W$7*W39)+(X$7*X39)+(Y$7*Y39)+(Z$7*Z39)) -> 16 | AB39: 4 | AC39: 4 | AD39: 4 | AE39: 5 | AF39: 4 | AG39: 4 | AL39: =IF(OR('Set UP'!$C37=0,'Set UP'!$D37=0,'Set UP'!$E37=0),"",(AB$7*AB39)+(AC$7*AC39)+(AD$7*AD39)+(AE$7*AE39)+(AF$7*AF39)+(AG$7*AG39)+(AH$7*AH39)+(AI$7*AI39)+(AJ$7*AJ39)+(AK$7*AK39)) -> 33 | AM39: 8 | AN39: 0 | AO39: 5 | AP39: 0 | AQ39: 4 | AR39: 0 | AS39: 0 | AT39: 0 | AU39: 3 | AW39: =IF(OR('Set UP'!$C37=0,'Set UP'!$D37=0,'Set UP'!$E37=0),"",(AM$7*AM39)+(AN$7*AN39)+(AO$7*AO39)+(AP$7*AP39)+(AQ$7*AQ39)+(AR$7*AR39)+(AS$7*AS39)+(AT$7*AT39)+(AU$7*AU39)+(AV$7*AV39)) -> 37 | BH39: =IF(OR('Set UP'!$C37=0,'Set UP'!$D37=0,'Set UP'!$E37=0),"",(AX$7*AX39)+(AY$7*AY39)+(AZ$7*AZ39)+(BA$7*BA39)+(BB$7*BB39)+(BC$7*BC39)+(BD$7*BD39)+(BE$7*BE39)+(BF$7*BF39)+(BG$7*BG39)) -> 0 | BS39: =IF(OR('Set UP'!$C37=0,'Set UP'!$D37=0,'Set UP'!$E37=0),"",(BI$7*BI39)+(BJ$7*BJ39)+(BK$7*BK39)+(BL$7*BL39)+(BM$7*BM39)+(BN$7*BN39)+(BO$7*BO39)+(BP$7*BP39)+(BQ$7*BQ39)+(BR$7*BR39)) -> 0 | BW39: =IF(OR('Set UP'!$C37=0,'Set UP'!$D37=0,'Set UP'!$E37=0),"",(P39+AA39+AL39+AW39+BH39+BS39)) -> 112.5 | BX39: =IF(OR('Set UP'!$C37=0,'Set UP'!$D37=0,'Set UP'!$E37=0),"",RANK(BW39,$BW$9:$BW$48,0)) -> 23 | BY39: =IF(OR('Set UP'!K37<>1,'Set UP'!C37=0,'Set UP'!D37=0,'Set UP'!E37=0,'Set UP'!F37=0),"",$BW39) -> 112.5 | BZ39: =IF(OR('Set UP'!K37<>1,'Set UP'!C37=0,'Set UP'!D37=0,'Set UP'!E37=0,'Set UP'!F37=0),"",RANK(BY39,$BY$9:$BY$48,0)) -> 10 | CA39: =IF(OR('Set UP'!K37<>2,'Set UP'!C37=0,'Set UP'!D37=0,'Set UP'!E37=0,'Set UP'!F37=0),"",$BW39) ->  | CB39: =IF(OR('Set UP'!K37<>2,'Set UP'!C37=0,'Set UP'!D37=0,'Set UP'!E37=0,'Set UP'!F37=0),"",RANK(CA39,$CA$9:$CA$48,0)) -> 
B40: 32 | C40: =IF(OR('Set UP'!$C38=0,'Set UP'!$D38=0,'Set UP'!$E38=0,'Set UP'!F38=0)," --",'Set UP'!C38) -> 510 | D40: =IF(OR('Set UP'!$C38=0,'Set UP'!$D38=0,'Set UP'!$E38=0,'Set UP'!F38=0)," --",'Set UP'!D38&" "&'Set UP'!E38) -> University of Warwick A | E40: =IF(OR('Set UP'!$C38=0,'Set UP'!$D38=0,'Set UP'!$E38=0,'Set UP'!F38=0)," --",'Set UP'!F38) -> S | F40: 5 | G40: 6 | H40: 6 | I40: 5 | J40: 7 | K40: 6 | P40: =IF(OR('Set UP'!$C38=0,'Set UP'!$D38=0,'Set UP'!$E38=0),"",(F$7*F40)+(G$7*G40)+(H$7*H40)+(I$7*I40)+(J$7*J40)+(K$7*K40)+(L$7*L40)+(M$7*M40)+(N$7*N40)+(O$7*O40)) -> 56 | Q40: 10 | R40: 10 | S40: 10 | T40: 0 | U40: 0 | V40: 0 | W40: 0 | AA40: =IF(OR('Set UP'!$C38=0,'Set UP'!$D38=0,'Set UP'!$E38=0),"",(Q$7*Q40)+(R$7*R40)+(S$7*S40)+(T$7*T40)+(U$7*U40)+(V$7*V40)+(W$7*W40)+(X$7*X40)+(Y$7*Y40)+(Z$7*Z40)) -> 50 | AB40: 7 | AC40: 8 | AD40: 7 | AE40: 6 | AF40: 7 | AG40: 7 | AL40: =IF(OR('Set UP'!$C38=0,'Set UP'!$D38=0,'Set UP'!$E38=0),"",(AB$7*AB40)+(AC$7*AC40)+(AD$7*AD40)+(AE$7*AE40)+(AF$7*AF40)+(AG$7*AG40)+(AH$7*AH40)+(AI$7*AI40)+(AJ$7*AJ40)+(AK$7*AK40)) -> 57 | AM40: 9 | AN40: 2 | AO40: 0 | AP40: 0 | AQ40: 5 | AR40: 0 | AS40: 0 | AT40: 0 | AU40: 4 | AW40: =IF(OR('Set UP'!$C38=0,'Set UP'!$D38=0,'Set UP'!$E38=0),"",(AM$7*AM40)+(AN$7*AN40)+(AO$7*AO40)+(AP$7*AP40)+(AQ$7*AQ40)+(AR$7*AR40)+(AS$7*AS40)+(AT$7*AT40)+(AU$7*AU40)+(AV$7*AV40)) -> 36 | BH40: =IF(OR('Set UP'!$C38=0,'Set UP'!$D38=0,'Set UP'!$E38=0),"",(AX$7*AX40)+(AY$7*AY40)+(AZ$7*AZ40)+(BA$7*BA40)+(BB$7*BB40)+(BC$7*BC40)+(BD$7*BD40)+(BE$7*BE40)+(BF$7*BF40)+(BG$7*BG40)) -> 0 | BS40: =IF(OR('Set UP'!$C38=0,'Set UP'!$D38=0,'Set UP'!$E38=0),"",(BI$7*BI40)+(BJ$7*BJ40)+(BK$7*BK40)+(BL$7*BL40)+(BM$7*BM40)+(BN$7*BN40)+(BO$7*BO40)+(BP$7*BP40)+(BQ$7*BQ40)+(BR$7*BR40)) -> 0 | BW40: =IF(OR('Set UP'!$C38=0,'Set UP'!$D38=0,'Set UP'!$E38=0),"",(P40+AA40+AL40+AW40+BH40+BS40)) -> 199 | BX40: =IF(OR('Set UP'!$C38=0,'Set UP'!$D38=0,'Set UP'!$E38=0),"",RANK(BW40,$BW$9:$BW$48,0)) -> 3 | BY40: =IF(OR('Set UP'!K38<>1,'Set UP'!C38=0,'Set UP'!D38=0,'Set UP'!E38=0,'Set UP'!F38=0),"",$BW40) -> 199 | BZ40: =IF(OR('Set UP'!K38<>1,'Set UP'!C38=0,'Set UP'!D38=0,'Set UP'!E38=0,'Set UP'!F38=0),"",RANK(BY40,$BY$9:$BY$48,0)) -> 3 | CA40: =IF(OR('Set UP'!K38<>2,'Set UP'!C38=0,'Set UP'!D38=0,'Set UP'!E38=0,'Set UP'!F38=0),"",$BW40) ->  | CB40: =IF(OR('Set UP'!K38<>2,'Set UP'!C38=0,'Set UP'!D38=0,'Set UP'!E38=0,'Set UP'!F38=0),"",RANK(CA40,$CA$9:$CA$48,0)) -> 
B41: 33 | C41: =IF(OR('Set UP'!$C39=0,'Set UP'!$D39=0,'Set UP'!$E39=0,'Set UP'!F39=0)," --",'Set UP'!C39) -> -- | D41: =IF(OR('Set UP'!$C39=0,'Set UP'!$D39=0,'Set UP'!$E39=0,'Set UP'!F39=0)," --",'Set UP'!D39&" "&'Set UP'!E39) -> -- | E41: =IF(OR('Set UP'!$C39=0,'Set UP'!$D39=0,'Set UP'!$E39=0,'Set UP'!F39=0)," --",'Set UP'!F39) -> -- | P41: =IF(OR('Set UP'!$C39=0,'Set UP'!$D39=0,'Set UP'!$E39=0),"",(F$7*F41)+(G$7*G41)+(H$7*H41)+(I$7*I41)+(J$7*J41)+(K$7*K41)+(L$7*L41)+(M$7*M41)+(N$7*N41)+(O$7*O41)) ->  | AA41: =IF(OR('Set UP'!$C39=0,'Set UP'!$D39=0,'Set UP'!$E39=0),"",(Q$7*Q41)+(R$7*R41)+(S$7*S41)+(T$7*T41)+(U$7*U41)+(V$7*V41)+(W$7*W41)+(X$7*X41)+(Y$7*Y41)+(Z$7*Z41)) ->  | AL41: =IF(OR('Set UP'!$C39=0,'Set UP'!$D39=0,'Set UP'!$E39=0),"",(AB$7*AB41)+(AC$7*AC41)+(AD$7*AD41)+(AE$7*AE41)+(AF$7*AF41)+(AG$7*AG41)+(AH$7*AH41)+(AI$7*AI41)+(AJ$7*AJ41)+(AK$7*AK41)) ->  | AW41: =IF(OR('Set UP'!$C39=0,'Set UP'!$D39=0,'Set UP'!$E39=0),"",(AM$7*AM41)+(AN$7*AN41)+(AO$7*AO41)+(AP$7*AP41)+(AQ$7*AQ41)+(AR$7*AR41)+(AS$7*AS41)+(AT$7*AT41)+(AU$7*AU41)+(AV$7*AV41)) ->  | BH41: =IF(OR('Set UP'!$C39=0,'Set UP'!$D39=0,'Set UP'!$E39=0),"",(AX$7*AX41)+(AY$7*AY41)+(AZ$7*AZ41)+(BA$7*BA41)+(BB$7*BB41)+(BC$7*BC41)+(BD$7*BD41)+(BE$7*BE41)+(BF$7*BF41)+(BG$7*BG41)) ->  | BS41: =IF(OR('Set UP'!$C39=0,'Set UP'!$D39=0,'Set UP'!$E39=0),"",(BI$7*BI41)+(BJ$7*BJ41)+(BK$7*BK41)+(BL$7*BL41)+(BM$7*BM41)+(BN$7*BN41)+(BO$7*BO41)+(BP$7*BP41)+(BQ$7*BQ41)+(BR$7*BR41)) ->  | BW41: =IF(OR('Set UP'!$C39=0,'Set UP'!$D39=0,'Set UP'!$E39=0),"",(P41+AA41+AL41+AW41+BH41+BS41)) ->  | BX41: =IF(OR('Set UP'!$C39=0,'Set UP'!$D39=0,'Set UP'!$E39=0),"",RANK(BW41,$BW$9:$BW$48,0)) ->  | BY41: =IF(OR('Set UP'!K39<>1,'Set UP'!C39=0,'Set UP'!D39=0,'Set UP'!E39=0,'Set UP'!F39=0),"",$BW41) ->  | BZ41: =IF(OR('Set UP'!K39<>1,'Set UP'!C39=0,'Set UP'!D39=0,'Set UP'!E39=0,'Set UP'!F39=0),"",RANK(BY41,$BY$9:$BY$48,0)) ->  | CA41: =IF(OR('Set UP'!K39<>2,'Set UP'!C39=0,'Set UP'!D39=0,'Set UP'!E39=0,'Set UP'!F39=0),"",$BW41) ->  | CB41: =IF(OR('Set UP'!K39<>2,'Set UP'!C39=0,'Set UP'!D39=0,'Set UP'!E39=0,'Set UP'!F39=0),"",RANK(CA41,$CA$9:$CA$48,0)) -> 
B42: 34 | C42: =IF(OR('Set UP'!$C40=0,'Set UP'!$D40=0,'Set UP'!$E40=0,'Set UP'!F40=0)," --",'Set UP'!C40) -> -- | D42: =IF(OR('Set UP'!$C40=0,'Set UP'!$D40=0,'Set UP'!$E40=0,'Set UP'!F40=0)," --",'Set UP'!D40&" "&'Set UP'!E40) -> -- | E42: =IF(OR('Set UP'!$C40=0,'Set UP'!$D40=0,'Set UP'!$E40=0,'Set UP'!F40=0)," --",'Set UP'!F40) -> -- | P42: =IF(OR('Set UP'!$C40=0,'Set UP'!$D40=0,'Set UP'!$E40=0),"",(F$7*F42)+(G$7*G42)+(H$7*H42)+(I$7*I42)+(J$7*J42)+(K$7*K42)+(L$7*L42)+(M$7*M42)+(N$7*N42)+(O$7*O42)) ->  | AA42: =IF(OR('Set UP'!$C40=0,'Set UP'!$D40=0,'Set UP'!$E40=0),"",(Q$7*Q42)+(R$7*R42)+(S$7*S42)+(T$7*T42)+(U$7*U42)+(V$7*V42)+(W$7*W42)+(X$7*X42)+(Y$7*Y42)+(Z$7*Z42)) ->  | AL42: =IF(OR('Set UP'!$C40=0,'Set UP'!$D40=0,'Set UP'!$E40=0),"",(AB$7*AB42)+(AC$7*AC42)+(AD$7*AD42)+(AE$7*AE42)+(AF$7*AF42)+(AG$7*AG42)+(AH$7*AH42)+(AI$7*AI42)+(AJ$7*AJ42)+(AK$7*AK42)) ->  | AW42: =IF(OR('Set UP'!$C40=0,'Set UP'!$D40=0,'Set UP'!$E40=0),"",(AM$7*AM42)+(AN$7*AN42)+(AO$7*AO42)+(AP$7*AP42)+(AQ$7*AQ42)+(AR$7*AR42)+(AS$7*AS42)+(AT$7*AT42)+(AU$7*AU42)+(AV$7*AV42)) ->  | BH42: =IF(OR('Set UP'!$C40=0,'Set UP'!$D40=0,'Set UP'!$E40=0),"",(AX$7*AX42)+(AY$7*AY42)+(AZ$7*AZ42)+(BA$7*BA42)+(BB$7*BB42)+(BC$7*BC42)+(BD$7*BD42)+(BE$7*BE42)+(BF$7*BF42)+(BG$7*BG42)) ->  | BS42: =IF(OR('Set UP'!$C40=0,'Set UP'!$D40=0,'Set UP'!$E40=0),"",(BI$7*BI42)+(BJ$7*BJ42)+(BK$7*BK42)+(BL$7*BL42)+(BM$7*BM42)+(BN$7*BN42)+(BO$7*BO42)+(BP$7*BP42)+(BQ$7*BQ42)+(BR$7*BR42)) ->  | BW42: =IF(OR('Set UP'!$C40=0,'Set UP'!$D40=0,'Set UP'!$E40=0),"",(P42+AA42+AL42+AW42+BH42+BS42)) ->  | BX42: =IF(OR('Set UP'!$C40=0,'Set UP'!$D40=0,'Set UP'!$E40=0),"",RANK(BW42,$BW$9:$BW$48,0)) ->  | BY42: =IF(OR('Set UP'!K40<>1,'Set UP'!C40=0,'Set UP'!D40=0,'Set UP'!E40=0,'Set UP'!F40=0),"",$BW42) ->  | BZ42: =IF(OR('Set UP'!K40<>1,'Set UP'!C40=0,'Set UP'!D40=0,'Set UP'!E40=0,'Set UP'!F40=0),"",RANK(BY42,$BY$9:$BY$48,0)) ->  | CA42: =IF(OR('Set UP'!K40<>2,'Set UP'!C40=0,'Set UP'!D40=0,'Set UP'!E40=0,'Set UP'!F40=0),"",$BW42) ->  | CB42: =IF(OR('Set UP'!K40<>2,'Set UP'!C40=0,'Set UP'!D40=0,'Set UP'!E40=0,'Set UP'!F40=0),"",RANK(CA42,$CA$9:$CA$48,0)) -> 
B43: 35 | C43: =IF(OR('Set UP'!$C41=0,'Set UP'!$D41=0,'Set UP'!$E41=0,'Set UP'!F41=0)," --",'Set UP'!C41) -> -- | D43: =IF(OR('Set UP'!$C41=0,'Set UP'!$D41=0,'Set UP'!$E41=0,'Set UP'!F41=0)," --",'Set UP'!D41&" "&'Set UP'!E41) -> -- | E43: =IF(OR('Set UP'!$C41=0,'Set UP'!$D41=0,'Set UP'!$E41=0,'Set UP'!F41=0)," --",'Set UP'!F41) -> -- | P43: =IF(OR('Set UP'!$C41=0,'Set UP'!$D41=0,'Set UP'!$E41=0),"",(F$7*F43)+(G$7*G43)+(H$7*H43)+(I$7*I43)+(J$7*J43)+(K$7*K43)+(L$7*L43)+(M$7*M43)+(N$7*N43)+(O$7*O43)) ->  | AA43: =IF(OR('Set UP'!$C41=0,'Set UP'!$D41=0,'Set UP'!$E41=0),"",(Q$7*Q43)+(R$7*R43)+(S$7*S43)+(T$7*T43)+(U$7*U43)+(V$7*V43)+(W$7*W43)+(X$7*X43)+(Y$7*Y43)+(Z$7*Z43)) ->  | AL43: =IF(OR('Set UP'!$C41=0,'Set UP'!$D41=0,'Set UP'!$E41=0),"",(AB$7*AB43)+(AC$7*AC43)+(AD$7*AD43)+(AE$7*AE43)+(AF$7*AF43)+(AG$7*AG43)+(AH$7*AH43)+(AI$7*AI43)+(AJ$7*AJ43)+(AK$7*AK43)) ->  | AW43: =IF(OR('Set UP'!$C41=0,'Set UP'!$D41=0,'Set UP'!$E41=0),"",(AM$7*AM43)+(AN$7*AN43)+(AO$7*AO43)+(AP$7*AP43)+(AQ$7*AQ43)+(AR$7*AR43)+(AS$7*AS43)+(AT$7*AT43)+(AU$7*AU43)+(AV$7*AV43)) ->  | BH43: =IF(OR('Set UP'!$C41=0,'Set UP'!$D41=0,'Set UP'!$E41=0),"",(AX$7*AX43)+(AY$7*AY43)+(AZ$7*AZ43)+(BA$7*BA43)+(BB$7*BB43)+(BC$7*BC43)+(BD$7*BD43)+(BE$7*BE43)+(BF$7*BF43)+(BG$7*BG43)) ->  | BS43: =IF(OR('Set UP'!$C41=0,'Set UP'!$D41=0,'Set UP'!$E41=0),"",(BI$7*BI43)+(BJ$7*BJ43)+(BK$7*BK43)+(BL$7*BL43)+(BM$7*BM43)+(BN$7*BN43)+(BO$7*BO43)+(BP$7*BP43)+(BQ$7*BQ43)+(BR$7*BR43)) ->  | BW43: =IF(OR('Set UP'!$C41=0,'Set UP'!$D41=0,'Set UP'!$E41=0),"",(P43+AA43+AL43+AW43+BH43+BS43)) ->  | BX43: =IF(OR('Set UP'!$C41=0,'Set UP'!$D41=0,'Set UP'!$E41=0),"",RANK(BW43,$BW$9:$BW$48,0)) ->  | BY43: =IF(OR('Set UP'!K41<>1,'Set UP'!C41=0,'Set UP'!D41=0,'Set UP'!E41=0,'Set UP'!F41=0),"",$BW43) ->  | BZ43: =IF(OR('Set UP'!K41<>1,'Set UP'!C41=0,'Set UP'!D41=0,'Set UP'!E41=0,'Set UP'!F41=0),"",RANK(BY43,$BY$9:$BY$48,0)) ->  | CA43: =IF(OR('Set UP'!K41<>2,'Set UP'!C41=0,'Set UP'!D41=0,'Set UP'!E41=0,'Set UP'!F41=0),"",$BW43) ->  | CB43: =IF(OR('Set UP'!K41<>2,'Set UP'!C41=0,'Set UP'!D41=0,'Set UP'!E41=0,'Set UP'!F41=0),"",RANK(CA43,$CA$9:$CA$48,0)) -> 
B44: 36 | C44: =IF(OR('Set UP'!$C42=0,'Set UP'!$D42=0,'Set UP'!$E42=0,'Set UP'!F42=0)," --",'Set UP'!C42) -> -- | D44: =IF(OR('Set UP'!$C42=0,'Set UP'!$D42=0,'Set UP'!$E42=0,'Set UP'!F42=0)," --",'Set UP'!D42&" "&'Set UP'!E42) -> -- | E44: =IF(OR('Set UP'!$C42=0,'Set UP'!$D42=0,'Set UP'!$E42=0,'Set UP'!F42=0)," --",'Set UP'!F42) -> -- | P44: =IF(OR('Set UP'!$C42=0,'Set UP'!$D42=0,'Set UP'!$E42=0),"",(F$7*F44)+(G$7*G44)+(H$7*H44)+(I$7*I44)+(J$7*J44)+(K$7*K44)+(L$7*L44)+(M$7*M44)+(N$7*N44)+(O$7*O44)) ->  | AA44: =IF(OR('Set UP'!$C42=0,'Set UP'!$D42=0,'Set UP'!$E42=0),"",(Q$7*Q44)+(R$7*R44)+(S$7*S44)+(T$7*T44)+(U$7*U44)+(V$7*V44)+(W$7*W44)+(X$7*X44)+(Y$7*Y44)+(Z$7*Z44)) ->  | AL44: =IF(OR('Set UP'!$C42=0,'Set UP'!$D42=0,'Set UP'!$E42=0),"",(AB$7*AB44)+(AC$7*AC44)+(AD$7*AD44)+(AE$7*AE44)+(AF$7*AF44)+(AG$7*AG44)+(AH$7*AH44)+(AI$7*AI44)+(AJ$7*AJ44)+(AK$7*AK44)) ->  | AW44: =IF(OR('Set UP'!$C42=0,'Set UP'!$D42=0,'Set UP'!$E42=0),"",(AM$7*AM44)+(AN$7*AN44)+(AO$7*AO44)+(AP$7*AP44)+(AQ$7*AQ44)+(AR$7*AR44)+(AS$7*AS44)+(AT$7*AT44)+(AU$7*AU44)+(AV$7*AV44)) ->  | BH44: =IF(OR('Set UP'!$C42=0,'Set UP'!$D42=0,'Set UP'!$E42=0),"",(AX$7*AX44)+(AY$7*AY44)+(AZ$7*AZ44)+(BA$7*BA44)+(BB$7*BB44)+(BC$7*BC44)+(BD$7*BD44)+(BE$7*BE44)+(BF$7*BF44)+(BG$7*BG44)) ->  | BS44: =IF(OR('Set UP'!$C42=0,'Set UP'!$D42=0,'Set UP'!$E42=0),"",(BI$7*BI44)+(BJ$7*BJ44)+(BK$7*BK44)+(BL$7*BL44)+(BM$7*BM44)+(BN$7*BN44)+(BO$7*BO44)+(BP$7*BP44)+(BQ$7*BQ44)+(BR$7*BR44)) ->  | BW44: =IF(OR('Set UP'!$C42=0,'Set UP'!$D42=0,'Set UP'!$E42=0),"",(P44+AA44+AL44+AW44+BH44+BS44)) ->  | BX44: =IF(OR('Set UP'!$C42=0,'Set UP'!$D42=0,'Set UP'!$E42=0),"",RANK(BW44,$BW$9:$BW$48,0)) ->  | BY44: =IF(OR('Set UP'!K42<>1,'Set UP'!C42=0,'Set UP'!D42=0,'Set UP'!E42=0,'Set UP'!F42=0),"",$BW44) ->  | BZ44: =IF(OR('Set UP'!K42<>1,'Set UP'!C42=0,'Set UP'!D42=0,'Set UP'!E42=0,'Set UP'!F42=0),"",RANK(BY44,$BY$9:$BY$48,0)) ->  | CA44: =IF(OR('Set UP'!K42<>2,'Set UP'!C42=0,'Set UP'!D42=0,'Set UP'!E42=0,'Set UP'!F42=0),"",$BW44) ->  | CB44: =IF(OR('Set UP'!K42<>2,'Set UP'!C42=0,'Set UP'!D42=0,'Set UP'!E42=0,'Set UP'!F42=0),"",RANK(CA44,$CA$9:$CA$48,0)) -> 
B45: 37 | C45: =IF(OR('Set UP'!$C43=0,'Set UP'!$D43=0,'Set UP'!$E43=0,'Set UP'!F43=0)," --",'Set UP'!C43) -> -- | D45: =IF(OR('Set UP'!$C43=0,'Set UP'!$D43=0,'Set UP'!$E43=0,'Set UP'!F43=0)," --",'Set UP'!D43&" "&'Set UP'!E43) -> -- | E45: =IF(OR('Set UP'!$C43=0,'Set UP'!$D43=0,'Set UP'!$E43=0,'Set UP'!F43=0)," --",'Set UP'!F43) -> -- | P45: =IF(OR('Set UP'!$C43=0,'Set UP'!$D43=0,'Set UP'!$E43=0),"",(F$7*F45)+(G$7*G45)+(H$7*H45)+(I$7*I45)+(J$7*J45)+(K$7*K45)+(L$7*L45)+(M$7*M45)+(N$7*N45)+(O$7*O45)) ->  | AA45: =IF(OR('Set UP'!$C43=0,'Set UP'!$D43=0,'Set UP'!$E43=0),"",(Q$7*Q45)+(R$7*R45)+(S$7*S45)+(T$7*T45)+(U$7*U45)+(V$7*V45)+(W$7*W45)+(X$7*X45)+(Y$7*Y45)+(Z$7*Z45)) ->  | AL45: =IF(OR('Set UP'!$C43=0,'Set UP'!$D43=0,'Set UP'!$E43=0),"",(AB$7*AB45)+(AC$7*AC45)+(AD$7*AD45)+(AE$7*AE45)+(AF$7*AF45)+(AG$7*AG45)+(AH$7*AH45)+(AI$7*AI45)+(AJ$7*AJ45)+(AK$7*AK45)) ->  | AW45: =IF(OR('Set UP'!$C43=0,'Set UP'!$D43=0,'Set UP'!$E43=0),"",(AM$7*AM45)+(AN$7*AN45)+(AO$7*AO45)+(AP$7*AP45)+(AQ$7*AQ45)+(AR$7*AR45)+(AS$7*AS45)+(AT$7*AT45)+(AU$7*AU45)+(AV$7*AV45)) ->  | BH45: =IF(OR('Set UP'!$C43=0,'Set UP'!$D43=0,'Set UP'!$E43=0),"",(AX$7*AX45)+(AY$7*AY45)+(AZ$7*AZ45)+(BA$7*BA45)+(BB$7*BB45)+(BC$7*BC45)+(BD$7*BD45)+(BE$7*BE45)+(BF$7*BF45)+(BG$7*BG45)) ->  | BS45: =IF(OR('Set UP'!$C43=0,'Set UP'!$D43=0,'Set UP'!$E43=0),"",(BI$7*BI45)+(BJ$7*BJ45)+(BK$7*BK45)+(BL$7*BL45)+(BM$7*BM45)+(BN$7*BN45)+(BO$7*BO45)+(BP$7*BP45)+(BQ$7*BQ45)+(BR$7*BR45)) ->  | BW45: =IF(OR('Set UP'!$C43=0,'Set UP'!$D43=0,'Set UP'!$E43=0),"",(P45+AA45+AL45+AW45+BH45+BS45)) ->  | BX45: =IF(OR('Set UP'!$C43=0,'Set UP'!$D43=0,'Set UP'!$E43=0),"",RANK(BW45,$BW$9:$BW$48,0)) ->  | BY45: =IF(OR('Set UP'!K43<>1,'Set UP'!C43=0,'Set UP'!D43=0,'Set UP'!E43=0,'Set UP'!F43=0),"",$BW45) ->  | BZ45: =IF(OR('Set UP'!K43<>1,'Set UP'!C43=0,'Set UP'!D43=0,'Set UP'!E43=0,'Set UP'!F43=0),"",RANK(BY45,$BY$9:$BY$48,0)) ->  | CA45: =IF(OR('Set UP'!K43<>2,'Set UP'!C43=0,'Set UP'!D43=0,'Set UP'!E43=0,'Set UP'!F43=0),"",$BW45) ->  | CB45: =IF(OR('Set UP'!K43<>2,'Set UP'!C43=0,'Set UP'!D43=0,'Set UP'!E43=0,'Set UP'!F43=0),"",RANK(CA45,$CA$9:$CA$48,0)) -> 
B46: 38 | C46: =IF(OR('Set UP'!$C44=0,'Set UP'!$D44=0,'Set UP'!$E44=0,'Set UP'!F44=0)," --",'Set UP'!C44) -> -- | D46: =IF(OR('Set UP'!$C44=0,'Set UP'!$D44=0,'Set UP'!$E44=0,'Set UP'!F44=0)," --",'Set UP'!D44&" "&'Set UP'!E44) -> -- | E46: =IF(OR('Set UP'!$C44=0,'Set UP'!$D44=0,'Set UP'!$E44=0,'Set UP'!F44=0)," --",'Set UP'!F44) -> -- | P46: =IF(OR('Set UP'!$C44=0,'Set UP'!$D44=0,'Set UP'!$E44=0),"",(F$7*F46)+(G$7*G46)+(H$7*H46)+(I$7*I46)+(J$7*J46)+(K$7*K46)+(L$7*L46)+(M$7*M46)+(N$7*N46)+(O$7*O46)) ->  | AA46: =IF(OR('Set UP'!$C44=0,'Set UP'!$D44=0,'Set UP'!$E44=0),"",(Q$7*Q46)+(R$7*R46)+(S$7*S46)+(T$7*T46)+(U$7*U46)+(V$7*V46)+(W$7*W46)+(X$7*X46)+(Y$7*Y46)+(Z$7*Z46)) ->  | AL46: =IF(OR('Set UP'!$C44=0,'Set UP'!$D44=0,'Set UP'!$E44=0),"",(AB$7*AB46)+(AC$7*AC46)+(AD$7*AD46)+(AE$7*AE46)+(AF$7*AF46)+(AG$7*AG46)+(AH$7*AH46)+(AI$7*AI46)+(AJ$7*AJ46)+(AK$7*AK46)) ->  | AW46: =IF(OR('Set UP'!$C44=0,'Set UP'!$D44=0,'Set UP'!$E44=0),"",(AM$7*AM46)+(AN$7*AN46)+(AO$7*AO46)+(AP$7*AP46)+(AQ$7*AQ46)+(AR$7*AR46)+(AS$7*AS46)+(AT$7*AT46)+(AU$7*AU46)+(AV$7*AV46)) ->  | BH46: =IF(OR('Set UP'!$C44=0,'Set UP'!$D44=0,'Set UP'!$E44=0),"",(AX$7*AX46)+(AY$7*AY46)+(AZ$7*AZ46)+(BA$7*BA46)+(BB$7*BB46)+(BC$7*BC46)+(BD$7*BD46)+(BE$7*BE46)+(BF$7*BF46)+(BG$7*BG46)) ->  | BS46: =IF(OR('Set UP'!$C44=0,'Set UP'!$D44=0,'Set UP'!$E44=0),"",(BI$7*BI46)+(BJ$7*BJ46)+(BK$7*BK46)+(BL$7*BL46)+(BM$7*BM46)+(BN$7*BN46)+(BO$7*BO46)+(BP$7*BP46)+(BQ$7*BQ46)+(BR$7*BR46)) ->  | BW46: =IF(OR('Set UP'!$C44=0,'Set UP'!$D44=0,'Set UP'!$E44=0),"",(P46+AA46+AL46+AW46+BH46+BS46)) ->  | BX46: =IF(OR('Set UP'!$C44=0,'Set UP'!$D44=0,'Set UP'!$E44=0),"",RANK(BW46,$BW$9:$BW$48,0)) ->  | BY46: =IF(OR('Set UP'!K44<>1,'Set UP'!C44=0,'Set UP'!D44=0,'Set UP'!E44=0,'Set UP'!F44=0),"",$BW46) ->  | BZ46: =IF(OR('Set UP'!K44<>1,'Set UP'!C44=0,'Set UP'!D44=0,'Set UP'!E44=0,'Set UP'!F44=0),"",RANK(BY46,$BY$9:$BY$48,0)) ->  | CA46: =IF(OR('Set UP'!K44<>2,'Set UP'!C44=0,'Set UP'!D44=0,'Set UP'!E44=0,'Set UP'!F44=0),"",$BW46) ->  | CB46: =IF(OR('Set UP'!K44<>2,'Set UP'!C44=0,'Set UP'!D44=0,'Set UP'!E44=0,'Set UP'!F44=0),"",RANK(CA46,$CA$9:$CA$48,0)) -> 
B47: 39 | C47: =IF(OR('Set UP'!$C45=0,'Set UP'!$D45=0,'Set UP'!$E45=0,'Set UP'!F45=0)," --",'Set UP'!C45) -> -- | D47: =IF(OR('Set UP'!$C45=0,'Set UP'!$D45=0,'Set UP'!$E45=0,'Set UP'!F45=0)," --",'Set UP'!D45&" "&'Set UP'!E45) -> -- | E47: =IF(OR('Set UP'!$C45=0,'Set UP'!$D45=0,'Set UP'!$E45=0,'Set UP'!F45=0)," --",'Set UP'!F45) -> -- | P47: =IF(OR('Set UP'!$C45=0,'Set UP'!$D45=0,'Set UP'!$E45=0),"",(F$7*F47)+(G$7*G47)+(H$7*H47)+(I$7*I47)+(J$7*J47)+(K$7*K47)+(L$7*L47)+(M$7*M47)+(N$7*N47)+(O$7*O47)) ->  | AA47: =IF(OR('Set UP'!$C45=0,'Set UP'!$D45=0,'Set UP'!$E45=0),"",(Q$7*Q47)+(R$7*R47)+(S$7*S47)+(T$7*T47)+(U$7*U47)+(V$7*V47)+(W$7*W47)+(X$7*X47)+(Y$7*Y47)+(Z$7*Z47)) ->  | AL47: =IF(OR('Set UP'!$C45=0,'Set UP'!$D45=0,'Set UP'!$E45=0),"",(AB$7*AB47)+(AC$7*AC47)+(AD$7*AD47)+(AE$7*AE47)+(AF$7*AF47)+(AG$7*AG47)+(AH$7*AH47)+(AI$7*AI47)+(AJ$7*AJ47)+(AK$7*AK47)) ->  | AW47: =IF(OR('Set UP'!$C45=0,'Set UP'!$D45=0,'Set UP'!$E45=0),"",(AM$7*AM47)+(AN$7*AN47)+(AO$7*AO47)+(AP$7*AP47)+(AQ$7*AQ47)+(AR$7*AR47)+(AS$7*AS47)+(AT$7*AT47)+(AU$7*AU47)+(AV$7*AV47)) ->  | BH47: =IF(OR('Set UP'!$C45=0,'Set UP'!$D45=0,'Set UP'!$E45=0),"",(AX$7*AX47)+(AY$7*AY47)+(AZ$7*AZ47)+(BA$7*BA47)+(BB$7*BB47)+(BC$7*BC47)+(BD$7*BD47)+(BE$7*BE47)+(BF$7*BF47)+(BG$7*BG47)) ->  | BS47: =IF(OR('Set UP'!$C45=0,'Set UP'!$D45=0,'Set UP'!$E45=0),"",(BI$7*BI47)+(BJ$7*BJ47)+(BK$7*BK47)+(BL$7*BL47)+(BM$7*BM47)+(BN$7*BN47)+(BO$7*BO47)+(BP$7*BP47)+(BQ$7*BQ47)+(BR$7*BR47)) ->  | BW47: =IF(OR('Set UP'!$C45=0,'Set UP'!$D45=0,'Set UP'!$E45=0),"",(P47+AA47+AL47+AW47+BH47+BS47)) ->  | BX47: =IF(OR('Set UP'!$C45=0,'Set UP'!$D45=0,'Set UP'!$E45=0),"",RANK(BW47,$BW$9:$BW$48,0)) ->  | BY47: =IF(OR('Set UP'!K45<>1,'Set UP'!C45=0,'Set UP'!D45=0,'Set UP'!E45=0,'Set UP'!F45=0),"",$BW47) ->  | BZ47: =IF(OR('Set UP'!K45<>1,'Set UP'!C45=0,'Set UP'!D45=0,'Set UP'!E45=0,'Set UP'!F45=0),"",RANK(BY47,$BY$9:$BY$48,0)) ->  | CA47: =IF(OR('Set UP'!K45<>2,'Set UP'!C45=0,'Set UP'!D45=0,'Set UP'!E45=0,'Set UP'!F45=0),"",$BW47) ->  | CB47: =IF(OR('Set UP'!K45<>2,'Set UP'!C45=0,'Set UP'!D45=0,'Set UP'!E45=0,'Set UP'!F45=0),"",RANK(CA47,$CA$9:$CA$48,0)) -> 
B48: 40 | C48: =IF(OR('Set UP'!$C46=0,'Set UP'!$D46=0,'Set UP'!$E46=0,'Set UP'!F46=0)," --",'Set UP'!C46) -> -- | D48: =IF(OR('Set UP'!$C46=0,'Set UP'!$D46=0,'Set UP'!$E46=0,'Set UP'!F46=0)," --",'Set UP'!D46&" "&'Set UP'!E46) -> -- | E48: =IF(OR('Set UP'!$C46=0,'Set UP'!$D46=0,'Set UP'!$E46=0,'Set UP'!F46=0)," --",'Set UP'!F46) -> -- | P48: =IF(OR('Set UP'!$C46=0,'Set UP'!$D46=0,'Set UP'!$E46=0),"",(F$7*F48)+(G$7*G48)+(H$7*H48)+(I$7*I48)+(J$7*J48)+(K$7*K48)+(L$7*L48)+(M$7*M48)+(N$7*N48)+(O$7*O48)) ->  | AA48: =IF(OR('Set UP'!$C46=0,'Set UP'!$D46=0,'Set UP'!$E46=0),"",(Q$7*Q48)+(R$7*R48)+(S$7*S48)+(T$7*T48)+(U$7*U48)+(V$7*V48)+(W$7*W48)+(X$7*X48)+(Y$7*Y48)+(Z$7*Z48)) ->  | AL48: =IF(OR('Set UP'!$C46=0,'Set UP'!$D46=0,'Set UP'!$E46=0),"",(AB$7*AB48)+(AC$7*AC48)+(AD$7*AD48)+(AE$7*AE48)+(AF$7*AF48)+(AG$7*AG48)+(AH$7*AH48)+(AI$7*AI48)+(AJ$7*AJ48)+(AK$7*AK48)) ->  | AW48: =IF(OR('Set UP'!$C46=0,'Set UP'!$D46=0,'Set UP'!$E46=0),"",(AM$7*AM48)+(AN$7*AN48)+(AO$7*AO48)+(AP$7*AP48)+(AQ$7*AQ48)+(AR$7*AR48)+(AS$7*AS48)+(AT$7*AT48)+(AU$7*AU48)+(AV$7*AV48)) ->  | BH48: =IF(OR('Set UP'!$C46=0,'Set UP'!$D46=0,'Set UP'!$E46=0),"",(AX$7*AX48)+(AY$7*AY48)+(AZ$7*AZ48)+(BA$7*BA48)+(BB$7*BB48)+(BC$7*BC48)+(BD$7*BD48)+(BE$7*BE48)+(BF$7*BF48)+(BG$7*BG48)) ->  | BS48: =IF(OR('Set UP'!$C46=0,'Set UP'!$D46=0,'Set UP'!$E46=0),"",(BI$7*BI48)+(BJ$7*BJ48)+(BK$7*BK48)+(BL$7*BL48)+(BM$7*BM48)+(BN$7*BN48)+(BO$7*BO48)+(BP$7*BP48)+(BQ$7*BQ48)+(BR$7*BR48)) ->  | BW48: =IF(OR('Set UP'!$C46=0,'Set UP'!$D46=0,'Set UP'!$E46=0),"",(P48+AA48+AL48+AW48+BH48+BS48)) ->  | BX48: =IF(OR('Set UP'!$C46=0,'Set UP'!$D46=0,'Set UP'!$E46=0),"",RANK(BW48,$BW$9:$BW$48,0)) ->  | BY48: =IF(OR('Set UP'!K46<>1,'Set UP'!C46=0,'Set UP'!D46=0,'Set UP'!E46=0,'Set UP'!F46=0),"",$BW48) ->  | BZ48: =IF(OR('Set UP'!K46<>1,'Set UP'!C46=0,'Set UP'!D46=0,'Set UP'!E46=0,'Set UP'!F46=0),"",RANK(BY48,$BY$9:$BY$48,0)) ->  | CA48: =IF(OR('Set UP'!K46<>2,'Set UP'!C46=0,'Set UP'!D46=0,'Set UP'!E46=0,'Set UP'!F46=0),"",$BW48) ->  | CB48: =IF(OR('Set UP'!K46<>2,'Set UP'!C46=0,'Set UP'!D46=0,'Set UP'!E46=0,'Set UP'!F46=0),"",RANK(CA48,$CA$9:$CA$48,0)) -> 

Sheet Extra Event
D3: ='Set UP'!Q13 -> Extra Event
F4: JUDGE 1 | Q4: JUDGE 2 | AB4: JUDGE 3 | AM4: JUDGE 4 | AX4: JUDGE 5 | BI4: JUDGE 6 | BW4: ¬ OVERALL TOTAL | BX4: ¬ POSITION (COMPETITION) | BY4: ¬ OVERALL (A LEAGUE RANK) | BZ4: ¬ POSITION ( A LEAGUE) | CA4: ¬ OVERALL (B LEAGUE RANK) | CB4: POSITION ( BLEAGUE)
F5: Judge 1 Stations | Q5: Judge 2 Casualty Care | AB5: Judge 3 Description <Enter Here> | AM5: Judge 4 Description <Enter Here> | AX5: Judge 5 Description <Enter Here> | BI5: Judge 6 Description <Enter Here>
F6: Stations | P6: ¬ JUDGE 1 TOTAL | Q6: Spinal Casualty Assessment | R6: Spinal Casualty Treatment | S6: Spinal Casualty Travel | T6: Spinal Casualty Aftercare | U6: Broken Arm Casualty Assessment | V6: Broken Arm Casualty Treatment | W6: Broken Arm Casualty Aftercare | X6: Phone Call | AA6: ¬ JUDGE 2 TOTAL | AB6: Mark Category 1 <Enter Here> | AC6: Mark Category 2 <Enter Here> | AD6: Mark Category 3 <Enter Here> | AE6: Mark Category 4 <Enter Here> | AF6: Mark Category 5 <Enter Here> | AG6: Mark Category 6 <Enter Here> | AH6: Mark Category 7 <Enter Here> | AI6: Mark Category 8 <Enter Here> | AJ6: Mark Category 9 <Enter Here> | AK6: Mark Category 10 <Enter Here> | AL6: ¬ JUDGE 3 TOTAL | AM6: Mark Category 1 <Enter Here> | AN6: Mark Category 2 <Enter Here> | AO6: Mark Category 3 <Enter Here> | AP6: Mark Category 4 <Enter Here> | AQ6: Mark Category 5 <Enter Here> | AR6: Mark Category 6 <Enter Here> | AS6: Mark Category 7 <Enter Here> | AT6: Mark Category 8 <Enter Here> | AU6: Mark Category 9 <Enter Here> | AV6: Mark Category 10 <Enter Here> | AW6: ¬ JUDGE 4 TOTAL | AX6: Mark Category 1 <Enter Here> | AY6: Mark Category 2 <Enter Here> | AZ6: Mark Category 3 <Enter Here> | BA6: Mark Category 4 <Enter Here> | BB6: Mark Category 5 <Enter Here> | BC6: Mark Category 6 <Enter Here> | BD6: Mark Category 7 <Enter Here> | BE6: Mark Category 8 <Enter Here> | BF6: Mark Category 9 <Enter Here> | BG6: Mark Category 10 <Enter Here> | BH6: ¬ JUDGE 5 TOTAL | BI6: Mark Category 1 <Enter Here> | BJ6: Mark Category 2 <Enter Here> | BK6: Mark Category 3 <Enter Here> | BL6: Mark Category 4 <Enter Here> | BM6: Mark Category 5 <Enter Here> | BN6: Mark Category 6 <Enter Here> | BO6: Mark Category 7 <Enter Here> | BP6: Mark Category 8 <Enter Here> | BQ6: Mark Category 9 <Enter Here> | BR6: Mark Category 10 <Enter Here> | BS6: ¬ JUDGE 6 TOTAL
E7: MARK WEIGHTING → | F7: 3 | Q7: 1 | R7: 2 | S7: 2 | T7: 1.5 | U7: 1 | V7: 2 | W7: 1.5 | X7: 1
C8: WEB | D8: TEAM | E8: CLASS
B9: 1 | C9: =IF(OR('Set UP'!$C7=0,'Set UP'!$D7=0,'Set UP'!$E7=0,'Set UP'!F7=0)," --",'Set UP'!C7) -> 537 | D9: =IF(OR('Set UP'!$C7=0,'Set UP'!$D7=0,'Set UP'!$E7=0,'Set UP'!F7=0)," --",'Set UP'!D7&" "&'Set UP'!E7) -> Heanor A | E9: =IF(OR('Set UP'!$C7=0,'Set UP'!$D7=0,'Set UP'!$E7=0,'Set UP'!F7=0)," --",'Set UP'!F7) -> NS | F9: 1 | P9: =IF(OR('Set UP'!$C7=0,'Set UP'!$D7=0,'Set UP'!$E7=0),"",(F$7*F9)+(G$7*G9)+(H$7*H9)+(I$7*I9)+(J$7*J9)+(K$7*K9)+(L$7*L9)+(M$7*M9)+(N$7*N9)+(O$7*O9)) -> 3 | Q9: 5 | R9: 2 | S9: 5 | T9: 0 | U9: 5 | V9: 5 | W9: 0 | X9: 0 | AA9: =IF(OR('Set UP'!$C7=0,'Set UP'!$D7=0,'Set UP'!$E7=0),"",(Q$7*Q9)+(R$7*R9)+(S$7*S9)+(T$7*T9)+(U$7*U9)+(V$7*V9)+(W$7*W9)+(X$7*X9)+(Y$7*Y9)+(Z$7*Z9)) -> 34 | AL9: =IF(OR('Set UP'!$C7=0,'Set UP'!$D7=0,'Set UP'!$E7=0),"",(AB$7*AB9)+(AC$7*AC9)+(AD$7*AD9)+(AE$7*AE9)+(AF$7*AF9)+(AG$7*AG9)+(AH$7*AH9)+(AI$7*AI9)+(AJ$7*AJ9)+(AK$7*AK9)) -> 0 | AW9: =IF(OR('Set UP'!$C7=0,'Set UP'!$D7=0,'Set UP'!$E7=0),"",(AM$7*AM9)+(AN$7*AN9)+(AO$7*AO9)+(AP$7*AP9)+(AQ$7*AQ9)+(AR$7*AR9)+(AS$7*AS9)+(AT$7*AT9)+(AU$7*AU9)+(AV$7*AV9)) -> 0 | BH9: =IF(OR('Set UP'!$C7=0,'Set UP'!$D7=0,'Set UP'!$E7=0),"",(AX$7*AX9)+(AY$7*AY9)+(AZ$7*AZ9)+(BA$7*BA9)+(BB$7*BB9)+(BC$7*BC9)+(BD$7*BD9)+(BE$7*BE9)+(BF$7*BF9)+(BG$7*BG9)) -> 0 | BS9: =IF(OR('Set UP'!$C7=0,'Set UP'!$D7=0,'Set UP'!$E7=0),"",(BI$7*BI9)+(BJ$7*BJ9)+(BK$7*BK9)+(BL$7*BL9)+(BM$7*BM9)+(BN$7*BN9)+(BO$7*BO9)+(BP$7*BP9)+(BQ$7*BQ9)+(BR$7*BR9)) -> 0 | BW9: =IF(OR('Set UP'!$C7=0,'Set UP'!$D7=0,'Set UP'!$E7=0),"",(P9+AA9+AL9+AW9+BH9+BS9)) -> 37 | BX9: =IF(OR('Set UP'!$C7=0,'Set UP'!$D7=0,'Set UP'!$E7=0),"",RANK(BW9,$BW$9:$BW$48,0)) -> 18 | BY9: =IF(OR('Set UP'!K7<>1,'Set UP'!C7=0,'Set UP'!D7=0,'Set UP'!E7=0,'Set UP'!F7=0),"",$BW9) ->  | BZ9: =IF(OR('Set UP'!K7<>1,'Set UP'!C7=0,'Set UP'!D7=0,'Set UP'!E7=0,'Set UP'!F7=0),"",RANK(BY9,$BY$9:$BY$48,0)) ->  | CA9: =IF(OR('Set UP'!K7<>2,'Set UP'!C7=0,'Set UP'!D7=0,'Set UP'!E7=0,'Set UP'!F7=0),"",$BW9) ->  | CB9: =IF(OR('Set UP'!K7<>2,'Set UP'!C7=0,'Set UP'!D7=0,'Set UP'!E7=0,'Set UP'!F7=0),"",RANK(CA9,$CA$9:$CA$48,0)) -> 
B10: 2 | C10: =IF(OR('Set UP'!$C8=0,'Set UP'!$D8=0,'Set UP'!$E8=0,'Set UP'!F8=0)," --",'Set UP'!C8) -> 483 | D10: =IF(OR('Set UP'!$C8=0,'Set UP'!$D8=0,'Set UP'!$E8=0,'Set UP'!F8=0)," --",'Set UP'!D8&" "&'Set UP'!E8) -> University of Cambridge C | E10: =IF(OR('Set UP'!$C8=0,'Set UP'!$D8=0,'Set UP'!$E8=0,'Set UP'!F8=0)," --",'Set UP'!F8) -> S | F10: 3 | P10: =IF(OR('Set UP'!$C8=0,'Set UP'!$D8=0,'Set UP'!$E8=0),"",(F$7*F10)+(G$7*G10)+(H$7*H10)+(I$7*I10)+(J$7*J10)+(K$7*K10)+(L$7*L10)+(M$7*M10)+(N$7*N10)+(O$7*O10)) -> 9 | Q10: 3 | R10: 0 | S10: 0 | T10: 0 | U10: 3 | V10: 0 | W10: 0 | X10: 0 | AA10: =IF(OR('Set UP'!$C8=0,'Set UP'!$D8=0,'Set UP'!$E8=0),"",(Q$7*Q10)+(R$7*R10)+(S$7*S10)+(T$7*T10)+(U$7*U10)+(V$7*V10)+(W$7*W10)+(X$7*X10)+(Y$7*Y10)+(Z$7*Z10)) -> 6 | AL10: =IF(OR('Set UP'!$C8=0,'Set UP'!$D8=0,'Set UP'!$E8=0),"",(AB$7*AB10)+(AC$7*AC10)+(AD$7*AD10)+(AE$7*AE10)+(AF$7*AF10)+(AG$7*AG10)+(AH$7*AH10)+(AI$7*AI10)+(AJ$7*AJ10)+(AK$7*AK10)) -> 0 | AW10: =IF(OR('Set UP'!$C8=0,'Set UP'!$D8=0,'Set UP'!$E8=0),"",(AM$7*AM10)+(AN$7*AN10)+(AO$7*AO10)+(AP$7*AP10)+(AQ$7*AQ10)+(AR$7*AR10)+(AS$7*AS10)+(AT$7*AT10)+(AU$7*AU10)+(AV$7*AV10)) -> 0 | BH10: =IF(OR('Set UP'!$C8=0,'Set UP'!$D8=0,'Set UP'!$E8=0),"",(AX$7*AX10)+(AY$7*AY10)+(AZ$7*AZ10)+(BA$7*BA10)+(BB$7*BB10)+(BC$7*BC10)+(BD$7*BD10)+(BE$7*BE10)+(BF$7*BF10)+(BG$7*BG10)) -> 0 | BS10: =IF(OR('Set UP'!$C8=0,'Set UP'!$D8=0,'Set UP'!$E8=0),"",(BI$7*BI10)+(BJ$7*BJ10)+(BK$7*BK10)+(BL$7*BL10)+(BM$7*BM10)+(BN$7*BN10)+(BO$7*BO10)+(BP$7*BP10)+(BQ$7*BQ10)+(BR$7*BR10)) -> 0 | BW10: =IF(OR('Set UP'!$C8=0,'Set UP'!$D8=0,'Set UP'!$E8=0),"",(P10+AA10+AL10+AW10+BH10+BS10)) -> 15 | BX10: =IF(OR('Set UP'!$C8=0,'Set UP'!$D8=0,'Set UP'!$E8=0),"",RANK(BW10,$BW$9:$BW$48,0)) -> 28 | BY10: =IF(OR('Set UP'!K8<>1,'Set UP'!C8=0,'Set UP'!D8=0,'Set UP'!E8=0,'Set UP'!F8=0),"",$BW10) ->  | BZ10: =IF(OR('Set UP'!K8<>1,'Set UP'!C8=0,'Set UP'!D8=0,'Set UP'!E8=0,'Set UP'!F8=0),"",RANK(BY10,$BY$9:$BY$48,0)) ->  | CA10: =IF(OR('Set UP'!K8<>2,'Set UP'!C8=0,'Set UP'!D8=0,'Set UP'!E8=0,'Set UP'!F8=0),"",$BW10) -> 15 | CB10: =IF(OR('Set UP'!K8<>2,'Set UP'!C8=0,'Set UP'!D8=0,'Set UP'!E8=0,'Set UP'!F8=0),"",RANK(CA10,$CA$9:$CA$48,0)) -> 13
B11: 3 | C11: =IF(OR('Set UP'!$C9=0,'Set UP'!$D9=0,'Set UP'!$E9=0,'Set UP'!F9=0)," --",'Set UP'!C9) -> 474 | D11: =IF(OR('Set UP'!$C9=0,'Set UP'!$D9=0,'Set UP'!$E9=0,'Set UP'!F9=0)," --",'Set UP'!D9&" "&'Set UP'!E9) -> University of Cambridge B | E11: =IF(OR('Set UP'!$C9=0,'Set UP'!$D9=0,'Set UP'!$E9=0,'Set UP'!F9=0)," --",'Set UP'!F9) -> S | F11: 3 | P11: =IF(OR('Set UP'!$C9=0,'Set UP'!$D9=0,'Set UP'!$E9=0),"",(F$7*F11)+(G$7*G11)+(H$7*H11)+(I$7*I11)+(J$7*J11)+(K$7*K11)+(L$7*L11)+(M$7*M11)+(N$7*N11)+(O$7*O11)) -> 9 | Q11: 7 | R11: 7 | S11: 5 | T11: 0 | U11: 5 | V11: 5 | W11: 0 | X11: 0 | AA11: =IF(OR('Set UP'!$C9=0,'Set UP'!$D9=0,'Set UP'!$E9=0),"",(Q$7*Q11)+(R$7*R11)+(S$7*S11)+(T$7*T11)+(U$7*U11)+(V$7*V11)+(W$7*W11)+(X$7*X11)+(Y$7*Y11)+(Z$7*Z11)) -> 46 | AL11: =IF(OR('Set UP'!$C9=0,'Set UP'!$D9=0,'Set UP'!$E9=0),"",(AB$7*AB11)+(AC$7*AC11)+(AD$7*AD11)+(AE$7*AE11)+(AF$7*AF11)+(AG$7*AG11)+(AH$7*AH11)+(AI$7*AI11)+(AJ$7*AJ11)+(AK$7*AK11)) -> 0 | AW11: =IF(OR('Set UP'!$C9=0,'Set UP'!$D9=0,'Set UP'!$E9=0),"",(AM$7*AM11)+(AN$7*AN11)+(AO$7*AO11)+(AP$7*AP11)+(AQ$7*AQ11)+(AR$7*AR11)+(AS$7*AS11)+(AT$7*AT11)+(AU$7*AU11)+(AV$7*AV11)) -> 0 | BH11: =IF(OR('Set UP'!$C9=0,'Set UP'!$D9=0,'Set UP'!$E9=0),"",(AX$7*AX11)+(AY$7*AY11)+(AZ$7*AZ11)+(BA$7*BA11)+(BB$7*BB11)+(BC$7*BC11)+(BD$7*BD11)+(BE$7*BE11)+(BF$7*BF11)+(BG$7*BG11)) -> 0 | BS11: =IF(OR('Set UP'!$C9=0,'Set UP'!$D9=0,'Set UP'!$E9=0),"",(BI$7*BI11)+(BJ$7*BJ11)+(BK$7*BK11)+(BL$7*BL11)+(BM$7*BM11)+(BN$7*BN11)+(BO$7*BO11)+(BP$7*BP11)+(BQ$7*BQ11)+(BR$7*BR11)) -> 0 | BW11: =IF(OR('Set UP'!$C9=0,'Set UP'!$D9=0,'Set UP'!$E9=0),"",(P11+AA11+AL11+AW11+BH11+BS11)) -> 55 | BX11: =IF(OR('Set UP'!$C9=0,'Set UP'!$D9=0,'Set UP'!$E9=0),"",RANK(BW11,$BW$9:$BW$48,0)) -> 5 | BY11: =IF(OR('Set UP'!K9<>1,'Set UP'!C9=0,'Set UP'!D9=0,'Set UP'!E9=0,'Set UP'!F9=0),"",$BW11) ->  | BZ11: =IF(OR('Set UP'!K9<>1,'Set UP'!C9=0,'Set UP'!D9=0,'Set UP'!E9=0,'Set UP'!F9=0),"",RANK(BY11,$BY$9:$BY$48,0)) ->  | CA11: =IF(OR('Set UP'!K9<>2,'Set UP'!C9=0,'Set UP'!D9=0,'Set UP'!E9=0,'Set UP'!F9=0),"",$BW11) -> 55 | CB11: =IF(OR('Set UP'!K9<>2,'Set UP'!C9=0,'Set UP'!D9=0,'Set UP'!E9=0,'Set UP'!F9=0),"",RANK(CA11,$CA$9:$CA$48,0)) -> 2
B12: 4 | C12: =IF(OR('Set UP'!$C10=0,'Set UP'!$D10=0,'Set UP'!$E10=0,'Set UP'!F10=0)," --",'Set UP'!C10) -> 513 | D12: =IF(OR('Set UP'!$C10=0,'Set UP'!$D10=0,'Set UP'!$E10=0,'Set UP'!F10=0)," --",'Set UP'!D10&" "&'Set UP'!E10) -> University of Warwick D | E12: =IF(OR('Set UP'!$C10=0,'Set UP'!$D10=0,'Set UP'!$E10=0,'Set UP'!F10=0)," --",'Set UP'!F10) -> S | P12: =IF(OR('Set UP'!$C10=0,'Set UP'!$D10=0,'Set UP'!$E10=0),"",(F$7*F12)+(G$7*G12)+(H$7*H12)+(I$7*I12)+(J$7*J12)+(K$7*K12)+(L$7*L12)+(M$7*M12)+(N$7*N12)+(O$7*O12)) -> 0 | AA12: =IF(OR('Set UP'!$C10=0,'Set UP'!$D10=0,'Set UP'!$E10=0),"",(Q$7*Q12)+(R$7*R12)+(S$7*S12)+(T$7*T12)+(U$7*U12)+(V$7*V12)+(W$7*W12)+(X$7*X12)+(Y$7*Y12)+(Z$7*Z12)) -> 0 | AL12: =IF(OR('Set UP'!$C10=0,'Set UP'!$D10=0,'Set UP'!$E10=0),"",(AB$7*AB12)+(AC$7*AC12)+(AD$7*AD12)+(AE$7*AE12)+(AF$7*AF12)+(AG$7*AG12)+(AH$7*AH12)+(AI$7*AI12)+(AJ$7*AJ12)+(AK$7*AK12)) -> 0 | AW12: =IF(OR('Set UP'!$C10=0,'Set UP'!$D10=0,'Set UP'!$E10=0),"",(AM$7*AM12)+(AN$7*AN12)+(AO$7*AO12)+(AP$7*AP12)+(AQ$7*AQ12)+(AR$7*AR12)+(AS$7*AS12)+(AT$7*AT12)+(AU$7*AU12)+(AV$7*AV12)) -> 0 | BH12: =IF(OR('Set UP'!$C10=0,'Set UP'!$D10=0,'Set UP'!$E10=0),"",(AX$7*AX12)+(AY$7*AY12)+(AZ$7*AZ12)+(BA$7*BA12)+(BB$7*BB12)+(BC$7*BC12)+(BD$7*BD12)+(BE$7*BE12)+(BF$7*BF12)+(BG$7*BG12)) -> 0 | BS12: =IF(OR('Set UP'!$C10=0,'Set UP'!$D10=0,'Set UP'!$E10=0),"",(BI$7*BI12)+(BJ$7*BJ12)+(BK$7*BK12)+(BL$7*BL12)+(BM$7*BM12)+(BN$7*BN12)+(BO$7*BO12)+(BP$7*BP12)+(BQ$7*BQ12)+(BR$7*BR12)) -> 0 | BW12: =IF(OR('Set UP'!$C10=0,'Set UP'!$D10=0,'Set UP'!$E10=0),"",(P12+AA12+AL12+AW12+BH12+BS12)) -> 0 | BX12: =IF(OR('Set UP'!$C10=0,'Set UP'!$D10=0,'Set UP'!$E10=0),"",RANK(BW12,$BW$9:$BW$48,0)) -> 31 | BY12: =IF(OR('Set UP'!K10<>1,'Set UP'!C10=0,'Set UP'!D10=0,'Set UP'!E10=0,'Set UP'!F10=0),"",$BW12) ->  | BZ12: =IF(OR('Set UP'!K10<>1,'Set UP'!C10=0,'Set UP'!D10=0,'Set UP'!E10=0,'Set UP'!F10=0),"",RANK(BY12,$BY$9:$BY$48,0)) ->  | CA12: =IF(OR('Set UP'!K10<>2,'Set UP'!C10=0,'Set UP'!D10=0,'Set UP'!E10=0,'Set UP'!F10=0),"",$BW12) -> 0 | CB12: =IF(OR('Set UP'!K10<>2,'Set UP'!C10=0,'Set UP'!D10=0,'Set UP'!E10=0,'Set UP'!F10=0),"",RANK(CA12,$CA$9:$CA$48,0)) -> 15
B13: 5 | C13: =IF(OR('Set UP'!$C11=0,'Set UP'!$D11=0,'Set UP'!$E11=0,'Set UP'!F11=0)," --",'Set UP'!C11) -> 499 | D13: =IF(OR('Set UP'!$C11=0,'Set UP'!$D11=0,'Set UP'!$E11=0,'Set UP'!F11=0)," --",'Set UP'!D11&" "&'Set UP'!E11) -> University of St Andrews B | E13: =IF(OR('Set UP'!$C11=0,'Set UP'!$D11=0,'Set UP'!$E11=0,'Set UP'!F11=0)," --",'Set UP'!F11) -> NC | P13: =IF(OR('Set UP'!$C11=0,'Set UP'!$D11=0,'Set UP'!$E11=0),"",(F$7*F13)+(G$7*G13)+(H$7*H13)+(I$7*I13)+(J$7*J13)+(K$7*K13)+(L$7*L13)+(M$7*M13)+(N$7*N13)+(O$7*O13)) -> 0 | AA13: =IF(OR('Set UP'!$C11=0,'Set UP'!$D11=0,'Set UP'!$E11=0),"",(Q$7*Q13)+(R$7*R13)+(S$7*S13)+(T$7*T13)+(U$7*U13)+(V$7*V13)+(W$7*W13)+(X$7*X13)+(Y$7*Y13)+(Z$7*Z13)) -> 0 | AL13: =IF(OR('Set UP'!$C11=0,'Set UP'!$D11=0,'Set UP'!$E11=0),"",(AB$7*AB13)+(AC$7*AC13)+(AD$7*AD13)+(AE$7*AE13)+(AF$7*AF13)+(AG$7*AG13)+(AH$7*AH13)+(AI$7*AI13)+(AJ$7*AJ13)+(AK$7*AK13)) -> 0 | AW13: =IF(OR('Set UP'!$C11=0,'Set UP'!$D11=0,'Set UP'!$E11=0),"",(AM$7*AM13)+(AN$7*AN13)+(AO$7*AO13)+(AP$7*AP13)+(AQ$7*AQ13)+(AR$7*AR13)+(AS$7*AS13)+(AT$7*AT13)+(AU$7*AU13)+(AV$7*AV13)) -> 0 | BH13: =IF(OR('Set UP'!$C11=0,'Set UP'!$D11=0,'Set UP'!$E11=0),"",(AX$7*AX13)+(AY$7*AY13)+(AZ$7*AZ13)+(BA$7*BA13)+(BB$7*BB13)+(BC$7*BC13)+(BD$7*BD13)+(BE$7*BE13)+(BF$7*BF13)+(BG$7*BG13)) -> 0 | BS13: =IF(OR('Set UP'!$C11=0,'Set UP'!$D11=0,'Set UP'!$E11=0),"",(BI$7*BI13)+(BJ$7*BJ13)+(BK$7*BK13)+(BL$7*BL13)+(BM$7*BM13)+(BN$7*BN13)+(BO$7*BO13)+(BP$7*BP13)+(BQ$7*BQ13)+(BR$7*BR13)) -> 0 | BW13: =IF(OR('Set UP'!$C11=0,'Set UP'!$D11=0,'Set UP'!$E11=0),"",(P13+AA13+AL13+AW13+BH13+BS13)) -> 0 | BX13: =IF(OR('Set UP'!$C11=0,'Set UP'!$D11=0,'Set UP'!$E11=0),"",RANK(BW13,$BW$9:$BW$48,0)) -> 31 | BY13: =IF(OR('Set UP'!K11<>1,'Set UP'!C11=0,'Set UP'!D11=0,'Set UP'!E11=0,'Set UP'!F11=0),"",$BW13) ->  | BZ13: =IF(OR('Set UP'!K11<>1,'Set UP'!C11=0,'Set UP'!D11=0,'Set UP'!E11=0,'Set UP'!F11=0),"",RANK(BY13,$BY$9:$BY$48,0)) ->  | CA13: =IF(OR('Set UP'!K11<>2,'Set UP'!C11=0,'Set UP'!D11=0,'Set UP'!E11=0,'Set UP'!F11=0),"",$BW13) ->  | CB13: =IF(OR('Set UP'!K11<>2,'Set UP'!C11=0,'Set UP'!D11=0,'Set UP'!E11=0,'Set UP'!F11=0),"",RANK(CA13,$CA$9:$CA$48,0)) -> 
B14: 6 | C14: =IF(OR('Set UP'!$C12=0,'Set UP'!$D12=0,'Set UP'!$E12=0,'Set UP'!F12=0)," --",'Set UP'!C12) -> 507 | D14: =IF(OR('Set UP'!$C12=0,'Set UP'!$D12=0,'Set UP'!$E12=0,'Set UP'!F12=0)," --",'Set UP'!D12&" "&'Set UP'!E12) -> University of Plymouth C | E14: =IF(OR('Set UP'!$C12=0,'Set UP'!$D12=0,'Set UP'!$E12=0,'Set UP'!F12=0)," --",'Set UP'!F12) -> S | F14: 3 | P14: =IF(OR('Set UP'!$C12=0,'Set UP'!$D12=0,'Set UP'!$E12=0),"",(F$7*F14)+(G$7*G14)+(H$7*H14)+(I$7*I14)+(J$7*J14)+(K$7*K14)+(L$7*L14)+(M$7*M14)+(N$7*N14)+(O$7*O14)) -> 9 | Q14: 4 | R14: 0 | S14: 0 | T14: 0 | U14: 4 | V14: 0 | W14: 0 | X14: 0 | AA14: =IF(OR('Set UP'!$C12=0,'Set UP'!$D12=0,'Set UP'!$E12=0),"",(Q$7*Q14)+(R$7*R14)+(S$7*S14)+(T$7*T14)+(U$7*U14)+(V$7*V14)+(W$7*W14)+(X$7*X14)+(Y$7*Y14)+(Z$7*Z14)) -> 8 | AL14: =IF(OR('Set UP'!$C12=0,'Set UP'!$D12=0,'Set UP'!$E12=0),"",(AB$7*AB14)+(AC$7*AC14)+(AD$7*AD14)+(AE$7*AE14)+(AF$7*AF14)+(AG$7*AG14)+(AH$7*AH14)+(AI$7*AI14)+(AJ$7*AJ14)+(AK$7*AK14)) -> 0 | AW14: =IF(OR('Set UP'!$C12=0,'Set UP'!$D12=0,'Set UP'!$E12=0),"",(AM$7*AM14)+(AN$7*AN14)+(AO$7*AO14)+(AP$7*AP14)+(AQ$7*AQ14)+(AR$7*AR14)+(AS$7*AS14)+(AT$7*AT14)+(AU$7*AU14)+(AV$7*AV14)) -> 0 | BH14: =IF(OR('Set UP'!$C12=0,'Set UP'!$D12=0,'Set UP'!$E12=0),"",(AX$7*AX14)+(AY$7*AY14)+(AZ$7*AZ14)+(BA$7*BA14)+(BB$7*BB14)+(BC$7*BC14)+(BD$7*BD14)+(BE$7*BE14)+(BF$7*BF14)+(BG$7*BG14)) -> 0 | BS14: =IF(OR('Set UP'!$C12=0,'Set UP'!$D12=0,'Set UP'!$E12=0),"",(BI$7*BI14)+(BJ$7*BJ14)+(BK$7*BK14)+(BL$7*BL14)+(BM$7*BM14)+(BN$7*BN14)+(BO$7*BO14)+(BP$7*BP14)+(BQ$7*BQ14)+(BR$7*BR14)) -> 0 | BW14: =IF(OR('Set UP'!$C12=0,'Set UP'!$D12=0,'Set UP'!$E12=0),"",(P14+AA14+AL14+AW14+BH14+BS14)) -> 17 | BX14: =IF(OR('Set UP'!$C12=0,'Set UP'!$D12=0,'Set UP'!$E12=0),"",RANK(BW14,$BW$9:$BW$48,0)) -> 26 | BY14: =IF(OR('Set UP'!K12<>1,'Set UP'!C12=0,'Set UP'!D12=0,'Set UP'!E12=0,'Set UP'!F12=0),"",$BW14) ->  | BZ14: =IF(OR('Set UP'!K12<>1,'Set UP'!C12=0,'Set UP'!D12=0,'Set UP'!E12=0,'Set UP'!F12=0),"",RANK(BY14,$BY$9:$BY$48,0)) ->  | CA14: =IF(OR('Set UP'!K12<>2,'Set UP'!C12=0,'Set UP'!D12=0,'Set UP'!E12=0,'Set UP'!F12=0),"",$BW14) -> 17 | CB14: =IF(OR('Set UP'!K12<>2,'Set UP'!C12=0,'Set UP'!D12=0,'Set UP'!E12=0,'Set UP'!F12=0),"",RANK(CA14,$CA$9:$CA$48,0)) -> 12
B15: 7 | C15: =IF(OR('Set UP'!$C13=0,'Set UP'!$D13=0,'Set UP'!$E13=0,'Set UP'!F13=0)," --",'Set UP'!C13) -> 519 | D15: =IF(OR('Set UP'!$C13=0,'Set UP'!$D13=0,'Set UP'!$E13=0,'Set UP'!F13=0)," --",'Set UP'!D13&" "&'Set UP'!E13) -> University of Aberdeen B | E15: =IF(OR('Set UP'!$C13=0,'Set UP'!$D13=0,'Set UP'!$E13=0,'Set UP'!F13=0)," --",'Set UP'!F13) -> NC | F15: 2 | P15: =IF(OR('Set UP'!$C13=0,'Set UP'!$D13=0,'Set UP'!$E13=0),"",(F$7*F15)+(G$7*G15)+(H$7*H15)+(I$7*I15)+(J$7*J15)+(K$7*K15)+(L$7*L15)+(M$7*M15)+(N$7*N15)+(O$7*O15)) -> 6 | Q15: 6 | R15: 4 | S15: 3 | T15: 0 | U15: 7 | V15: 6 | W15: 0 | X15: 0 | AA15: =IF(OR('Set UP'!$C13=0,'Set UP'!$D13=0,'Set UP'!$E13=0),"",(Q$7*Q15)+(R$7*R15)+(S$7*S15)+(T$7*T15)+(U$7*U15)+(V$7*V15)+(W$7*W15)+(X$7*X15)+(Y$7*Y15)+(Z$7*Z15)) -> 39 | AL15: =IF(OR('Set UP'!$C13=0,'Set UP'!$D13=0,'Set UP'!$E13=0),"",(AB$7*AB15)+(AC$7*AC15)+(AD$7*AD15)+(AE$7*AE15)+(AF$7*AF15)+(AG$7*AG15)+(AH$7*AH15)+(AI$7*AI15)+(AJ$7*AJ15)+(AK$7*AK15)) -> 0 | AW15: =IF(OR('Set UP'!$C13=0,'Set UP'!$D13=0,'Set UP'!$E13=0),"",(AM$7*AM15)+(AN$7*AN15)+(AO$7*AO15)+(AP$7*AP15)+(AQ$7*AQ15)+(AR$7*AR15)+(AS$7*AS15)+(AT$7*AT15)+(AU$7*AU15)+(AV$7*AV15)) -> 0 | BH15: =IF(OR('Set UP'!$C13=0,'Set UP'!$D13=0,'Set UP'!$E13=0),"",(AX$7*AX15)+(AY$7*AY15)+(AZ$7*AZ15)+(BA$7*BA15)+(BB$7*BB15)+(BC$7*BC15)+(BD$7*BD15)+(BE$7*BE15)+(BF$7*BF15)+(BG$7*BG15)) -> 0 | BS15: =IF(OR('Set UP'!$C13=0,'Set UP'!$D13=0,'Set UP'!$E13=0),"",(BI$7*BI15)+(BJ$7*BJ15)+(BK$7*BK15)+(BL$7*BL15)+(BM$7*BM15)+(BN$7*BN15)+(BO$7*BO15)+(BP$7*BP15)+(BQ$7*BQ15)+(BR$7*BR15)) -> 0 | BW15: =IF(OR('Set UP'!$C13=0,'Set UP'!$D13=0,'Set UP'!$E13=0),"",(P15+AA15+AL15+AW15+BH15+BS15)) -> 45 | BX15: =IF(OR('Set UP'!$C13=0,'Set UP'!$D13=0,'Set UP'!$E13=0),"",RANK(BW15,$BW$9:$BW$48,0)) -> 11 | BY15: =IF(OR('Set UP'!K13<>1,'Set UP'!C13=0,'Set UP'!D13=0,'Set UP'!E13=0,'Set UP'!F13=0),"",$BW15) ->  | BZ15: =IF(OR('Set UP'!K13<>1,'Set UP'!C13=0,'Set UP'!D13=0,'Set UP'!E13=0,'Set UP'!F13=0),"",RANK(BY15,$BY$9:$BY$48,0)) ->  | CA15: =IF(OR('Set UP'!K13<>2,'Set UP'!C13=0,'Set UP'!D13=0,'Set UP'!E13=0,'Set UP'!F13=0),"",$BW15) ->  | CB15: =IF(OR('Set UP'!K13<>2,'Set UP'!C13=0,'Set UP'!D13=0,'Set UP'!E13=0,'Set UP'!F13=0),"",RANK(CA15,$CA$9:$CA$48,0)) -> 
B16: 8 | C16: =IF(OR('Set UP'!$C14=0,'Set UP'!$D14=0,'Set UP'!$E14=0,'Set UP'!F14=0)," --",'Set UP'!C14) -> 532 | D16: =IF(OR('Set UP'!$C14=0,'Set UP'!$D14=0,'Set UP'!$E14=0,'Set UP'!F14=0)," --",'Set UP'!D14&" "&'Set UP'!E14) -> University of London Union E | E16: =IF(OR('Set UP'!$C14=0,'Set UP'!$D14=0,'Set UP'!$E14=0,'Set UP'!F14=0)," --",'Set UP'!F14) -> S | F16: 4 | P16: =IF(OR('Set UP'!$C14=0,'Set UP'!$D14=0,'Set UP'!$E14=0),"",(F$7*F16)+(G$7*G16)+(H$7*H16)+(I$7*I16)+(J$7*J16)+(K$7*K16)+(L$7*L16)+(M$7*M16)+(N$7*N16)+(O$7*O16)) -> 12 | Q16: 5 | R16: 2 | S16: 6 | T16: 0 | U16: 5 | V16: 4 | W16: 0 | X16: 0 | AA16: =IF(OR('Set UP'!$C14=0,'Set UP'!$D14=0,'Set UP'!$E14=0),"",(Q$7*Q16)+(R$7*R16)+(S$7*S16)+(T$7*T16)+(U$7*U16)+(V$7*V16)+(W$7*W16)+(X$7*X16)+(Y$7*Y16)+(Z$7*Z16)) -> 34 | AL16: =IF(OR('Set UP'!$C14=0,'Set UP'!$D14=0,'Set UP'!$E14=0),"",(AB$7*AB16)+(AC$7*AC16)+(AD$7*AD16)+(AE$7*AE16)+(AF$7*AF16)+(AG$7*AG16)+(AH$7*AH16)+(AI$7*AI16)+(AJ$7*AJ16)+(AK$7*AK16)) -> 0 | AW16: =IF(OR('Set UP'!$C14=0,'Set UP'!$D14=0,'Set UP'!$E14=0),"",(AM$7*AM16)+(AN$7*AN16)+(AO$7*AO16)+(AP$7*AP16)+(AQ$7*AQ16)+(AR$7*AR16)+(AS$7*AS16)+(AT$7*AT16)+(AU$7*AU16)+(AV$7*AV16)) -> 0 | BH16: =IF(OR('Set UP'!$C14=0,'Set UP'!$D14=0,'Set UP'!$E14=0),"",(AX$7*AX16)+(AY$7*AY16)+(AZ$7*AZ16)+(BA$7*BA16)+(BB$7*BB16)+(BC$7*BC16)+(BD$7*BD16)+(BE$7*BE16)+(BF$7*BF16)+(BG$7*BG16)) -> 0 | BS16: =IF(OR('Set UP'!$C14=0,'Set UP'!$D14=0,'Set UP'!$E14=0),"",(BI$7*BI16)+(BJ$7*BJ16)+(BK$7*BK16)+(BL$7*BL16)+(BM$7*BM16)+(BN$7*BN16)+(BO$7*BO16)+(BP$7*BP16)+(BQ$7*BQ16)+(BR$7*BR16)) -> 0 | BW16: =IF(OR('Set UP'!$C14=0,'Set UP'!$D14=0,'Set UP'!$E14=0),"",(P16+AA16+AL16+AW16+BH16+BS16)) -> 46 | BX16: =IF(OR('Set UP'!$C14=0,'Set UP'!$D14=0,'Set UP'!$E14=0),"",RANK(BW16,$BW$9:$BW$48,0)) -> 9 | BY16: =IF(OR('Set UP'!K14<>1,'Set UP'!C14=0,'Set UP'!D14=0,'Set UP'!E14=0,'Set UP'!F14=0),"",$BW16) ->  | BZ16: =IF(OR('Set UP'!K14<>1,'Set UP'!C14=0,'Set UP'!D14=0,'Set UP'!E14=0,'Set UP'!F14=0),"",RANK(BY16,$BY$9:$BY$48,0)) ->  | CA16: =IF(OR('Set UP'!K14<>2,'Set UP'!C14=0,'Set UP'!D14=0,'Set UP'!E14=0,'Set UP'!F14=0),"",$BW16) -> 46 | CB16: =IF(OR('Set UP'!K14<>2,'Set UP'!C14=0,'Set UP'!D14=0,'Set UP'!E14=0,'Set UP'!F14=0),"",RANK(CA16,$CA$9:$CA$48,0)) -> 5
B17: 9 | C17: =IF(OR('Set UP'!$C15=0,'Set UP'!$D15=0,'Set UP'!$E15=0,'Set UP'!F15=0)," --",'Set UP'!C15) -> 530 | D17: =IF(OR('Set UP'!$C15=0,'Set UP'!$D15=0,'Set UP'!$E15=0,'Set UP'!F15=0)," --",'Set UP'!D15&" "&'Set UP'!E15) -> University of London Union C | E17: =IF(OR('Set UP'!$C15=0,'Set UP'!$D15=0,'Set UP'!$E15=0,'Set UP'!F15=0)," --",'Set UP'!F15) -> S | F17: 2 | P17: =IF(OR('Set UP'!$C15=0,'Set UP'!$D15=0,'Set UP'!$E15=0),"",(F$7*F17)+(G$7*G17)+(H$7*H17)+(I$7*I17)+(J$7*J17)+(K$7*K17)+(L$7*L17)+(M$7*M17)+(N$7*N17)+(O$7*O17)) -> 6 | Q17: 1 | R17: 1 | S17: 0 | T17: 0 | U17: 2 | V17: 0 | W17: 0 | X17: 0 | AA17: =IF(OR('Set UP'!$C15=0,'Set UP'!$D15=0,'Set UP'!$E15=0),"",(Q$7*Q17)+(R$7*R17)+(S$7*S17)+(T$7*T17)+(U$7*U17)+(V$7*V17)+(W$7*W17)+(X$7*X17)+(Y$7*Y17)+(Z$7*Z17)) -> 5 | AL17: =IF(OR('Set UP'!$C15=0,'Set UP'!$D15=0,'Set UP'!$E15=0),"",(AB$7*AB17)+(AC$7*AC17)+(AD$7*AD17)+(AE$7*AE17)+(AF$7*AF17)+(AG$7*AG17)+(AH$7*AH17)+(AI$7*AI17)+(AJ$7*AJ17)+(AK$7*AK17)) -> 0 | AW17: =IF(OR('Set UP'!$C15=0,'Set UP'!$D15=0,'Set UP'!$E15=0),"",(AM$7*AM17)+(AN$7*AN17)+(AO$7*AO17)+(AP$7*AP17)+(AQ$7*AQ17)+(AR$7*AR17)+(AS$7*AS17)+(AT$7*AT17)+(AU$7*AU17)+(AV$7*AV17)) -> 0 | BH17: =IF(OR('Set UP'!$C15=0,'Set UP'!$D15=0,'Set UP'!$E15=0),"",(AX$7*AX17)+(AY$7*AY17)+(AZ$7*AZ17)+(BA$7*BA17)+(BB$7*BB17)+(BC$7*BC17)+(BD$7*BD17)+(BE$7*BE17)+(BF$7*BF17)+(BG$7*BG17)) -> 0 | BS17: =IF(OR('Set UP'!$C15=0,'Set UP'!$D15=0,'Set UP'!$E15=0),"",(BI$7*BI17)+(BJ$7*BJ17)+(BK$7*BK17)+(BL$7*BL17)+(BM$7*BM17)+(BN$7*BN17)+(BO$7*BO17)+(BP$7*BP17)+(BQ$7*BQ17)+(BR$7*BR17)) -> 0 | BW17: =IF(OR('Set UP'!$C15=0,'Set UP'!$D15=0,'Set UP'!$E15=0),"",(P17+AA17+AL17+AW17+BH17+BS17)) -> 11 | BX17: =IF(OR('Set UP'!$C15=0,'Set UP'!$D15=0,'Set UP'!$E15=0),"",RANK(BW17,$BW$9:$BW$48,0)) -> 29 | BY17: =IF(OR('Set UP'!K15<>1,'Set UP'!C15=0,'Set UP'!D15=0,'Set UP'!E15=0,'Set UP'!F15=0),"",$BW17) ->  | BZ17: =IF(OR('Set UP'!K15<>1,'Set UP'!C15=0,'Set UP'!D15=0,'Set UP'!E15=0,'Set UP'!F15=0),"",RANK(BY17,$BY$9:$BY$48,0)) ->  | CA17: =IF(OR('Set UP'!K15<>2,'Set UP'!C15=0,'Set UP'!D15=0,'Set UP'!E15=0,'Set UP'!F15=0),"",$BW17) -> 11 | CB17: =IF(OR('Set UP'!K15<>2,'Set UP'!C15=0,'Set UP'!D15=0,'Set UP'!E15=0,'Set UP'!F15=0),"",RANK(CA17,$CA$9:$CA$48,0)) -> 14
B18: 10 | C18: =IF(OR('Set UP'!$C16=0,'Set UP'!$D16=0,'Set UP'!$E16=0,'Set UP'!F16=0)," --",'Set UP'!C16) -> 506 | D18: =IF(OR('Set UP'!$C16=0,'Set UP'!$D16=0,'Set UP'!$E16=0,'Set UP'!F16=0)," --",'Set UP'!D16&" "&'Set UP'!E16) -> University of Plymouth B | E18: =IF(OR('Set UP'!$C16=0,'Set UP'!$D16=0,'Set UP'!$E16=0,'Set UP'!F16=0)," --",'Set UP'!F16) -> S | F18: 4 | P18: =IF(OR('Set UP'!$C16=0,'Set UP'!$D16=0,'Set UP'!$E16=0),"",(F$7*F18)+(G$7*G18)+(H$7*H18)+(I$7*I18)+(J$7*J18)+(K$7*K18)+(L$7*L18)+(M$7*M18)+(N$7*N18)+(O$7*O18)) -> 12 | Q18: 5 | R18: 1 | S18: 0 | T18: 0 | U18: 4 | V18: 0 | W18: 0 | X18: 0 | AA18: =IF(OR('Set UP'!$C16=0,'Set UP'!$D16=0,'Set UP'!$E16=0),"",(Q$7*Q18)+(R$7*R18)+(S$7*S18)+(T$7*T18)+(U$7*U18)+(V$7*V18)+(W$7*W18)+(X$7*X18)+(Y$7*Y18)+(Z$7*Z18)) -> 11 | AL18: =IF(OR('Set UP'!$C16=0,'Set UP'!$D16=0,'Set UP'!$E16=0),"",(AB$7*AB18)+(AC$7*AC18)+(AD$7*AD18)+(AE$7*AE18)+(AF$7*AF18)+(AG$7*AG18)+(AH$7*AH18)+(AI$7*AI18)+(AJ$7*AJ18)+(AK$7*AK18)) -> 0 | AW18: =IF(OR('Set UP'!$C16=0,'Set UP'!$D16=0,'Set UP'!$E16=0),"",(AM$7*AM18)+(AN$7*AN18)+(AO$7*AO18)+(AP$7*AP18)+(AQ$7*AQ18)+(AR$7*AR18)+(AS$7*AS18)+(AT$7*AT18)+(AU$7*AU18)+(AV$7*AV18)) -> 0 | BH18: =IF(OR('Set UP'!$C16=0,'Set UP'!$D16=0,'Set UP'!$E16=0),"",(AX$7*AX18)+(AY$7*AY18)+(AZ$7*AZ18)+(BA$7*BA18)+(BB$7*BB18)+(BC$7*BC18)+(BD$7*BD18)+(BE$7*BE18)+(BF$7*BF18)+(BG$7*BG18)) -> 0 | BS18: =IF(OR('Set UP'!$C16=0,'Set UP'!$D16=0,'Set UP'!$E16=0),"",(BI$7*BI18)+(BJ$7*BJ18)+(BK$7*BK18)+(BL$7*BL18)+(BM$7*BM18)+(BN$7*BN18)+(BO$7*BO18)+(BP$7*BP18)+(BQ$7*BQ18)+(BR$7*BR18)) -> 0 | BW18: =IF(OR('Set UP'!$C16=0,'Set UP'!$D16=0,'Set UP'!$E16=0),"",(P18+AA18+AL18+AW18+BH18+BS18)) -> 23 | BX18: =IF(OR('Set UP'!$C16=0,'Set UP'!$D16=0,'Set UP'!$E16=0),"",RANK(BW18,$BW$9:$BW$48,0)) -> 24 | BY18: =IF(OR('Set UP'!K16<>1,'Set UP'!C16=0,'Set UP'!D16=0,'Set UP'!E16=0,'Set UP'!F16=0),"",$BW18) ->  | BZ18: =IF(OR('Set UP'!K16<>1,'Set UP'!C16=0,'Set UP'!D16=0,'Set UP'!E16=0,'Set UP'!F16=0),"",RANK(BY18,$BY$9:$BY$48,0)) ->  | CA18: =IF(OR('Set UP'!K16<>2,'Set UP'!C16=0,'Set UP'!D16=0,'Set UP'!E16=0,'Set UP'!F16=0),"",$BW18) -> 23 | CB18: =IF(OR('Set UP'!K16<>2,'Set UP'!C16=0,'Set UP'!D16=0,'Set UP'!E16=0,'Set UP'!F16=0),"",RANK(CA18,$CA$9:$CA$48,0)) -> 10
B19: 11 | C19: =IF(OR('Set UP'!$C17=0,'Set UP'!$D17=0,'Set UP'!$E17=0,'Set UP'!F17=0)," --",'Set UP'!C17) -> 518 | D19: =IF(OR('Set UP'!$C17=0,'Set UP'!$D17=0,'Set UP'!$E17=0,'Set UP'!F17=0)," --",'Set UP'!D17&" "&'Set UP'!E17) -> University of Aberdeen A | E19: =IF(OR('Set UP'!$C17=0,'Set UP'!$D17=0,'Set UP'!$E17=0,'Set UP'!F17=0)," --",'Set UP'!F17) -> S | F19: 4 | P19: =IF(OR('Set UP'!$C17=0,'Set UP'!$D17=0,'Set UP'!$E17=0),"",(F$7*F19)+(G$7*G19)+(H$7*H19)+(I$7*I19)+(J$7*J19)+(K$7*K19)+(L$7*L19)+(M$7*M19)+(N$7*N19)+(O$7*O19)) -> 12 | Q19: 5 | R19: 1 | S19: 0 | T19: 0 | U19: 5 | V19: 0 | W19: 0 | X19: 0 | AA19: =IF(OR('Set UP'!$C17=0,'Set UP'!$D17=0,'Set UP'!$E17=0),"",(Q$7*Q19)+(R$7*R19)+(S$7*S19)+(T$7*T19)+(U$7*U19)+(V$7*V19)+(W$7*W19)+(X$7*X19)+(Y$7*Y19)+(Z$7*Z19)) -> 12 | AL19: =IF(OR('Set UP'!$C17=0,'Set UP'!$D17=0,'Set UP'!$E17=0),"",(AB$7*AB19)+(AC$7*AC19)+(AD$7*AD19)+(AE$7*AE19)+(AF$7*AF19)+(AG$7*AG19)+(AH$7*AH19)+(AI$7*AI19)+(AJ$7*AJ19)+(AK$7*AK19)) -> 0 | AW19: =IF(OR('Set UP'!$C17=0,'Set UP'!$D17=0,'Set UP'!$E17=0),"",(AM$7*AM19)+(AN$7*AN19)+(AO$7*AO19)+(AP$7*AP19)+(AQ$7*AQ19)+(AR$7*AR19)+(AS$7*AS19)+(AT$7*AT19)+(AU$7*AU19)+(AV$7*AV19)) -> 0 | BH19: =IF(OR('Set UP'!$C17=0,'Set UP'!$D17=0,'Set UP'!$E17=0),"",(AX$7*AX19)+(AY$7*AY19)+(AZ$7*AZ19)+(BA$7*BA19)+(BB$7*BB19)+(BC$7*BC19)+(BD$7*BD19)+(BE$7*BE19)+(BF$7*BF19)+(BG$7*BG19)) -> 0 | BS19: =IF(OR('Set UP'!$C17=0,'Set UP'!$D17=0,'Set UP'!$E17=0),"",(BI$7*BI19)+(BJ$7*BJ19)+(BK$7*BK19)+(BL$7*BL19)+(BM$7*BM19)+(BN$7*BN19)+(BO$7*BO19)+(BP$7*BP19)+(BQ$7*BQ19)+(BR$7*BR19)) -> 0 | BW19: =IF(OR('Set UP'!$C17=0,'Set UP'!$D17=0,'Set UP'!$E17=0),"",(P19+AA19+AL19+AW19+BH19+BS19)) -> 24 | BX19: =IF(OR('Set UP'!$C17=0,'Set UP'!$D17=0,'Set UP'!$E17=0),"",RANK(BW19,$BW$9:$BW$48,0)) -> 23 | BY19: =IF(OR('Set UP'!K17<>1,'Set UP'!C17=0,'Set UP'!D17=0,'Set UP'!E17=0,'Set UP'!F17=0),"",$BW19) -> 24 | BZ19: =IF(OR('Set UP'!K17<>1,'Set UP'!C17=0,'Set UP'!D17=0,'Set UP'!E17=0,'Set UP'!F17=0),"",RANK(BY19,$BY$9:$BY$48,0)) -> 9 | CA19: =IF(OR('Set UP'!K17<>2,'Set UP'!C17=0,'Set UP'!D17=0,'Set UP'!E17=0,'Set UP'!F17=0),"",$BW19) ->  | CB19: =IF(OR('Set UP'!K17<>2,'Set UP'!C17=0,'Set UP'!D17=0,'Set UP'!E17=0,'Set UP'!F17=0),"",RANK(CA19,$CA$9:$CA$48,0)) -> 
B20: 12 | C20: =IF(OR('Set UP'!$C18=0,'Set UP'!$D18=0,'Set UP'!$E18=0,'Set UP'!F18=0)," --",'Set UP'!C18) -> 538 | D20: =IF(OR('Set UP'!$C18=0,'Set UP'!$D18=0,'Set UP'!$E18=0,'Set UP'!F18=0)," --",'Set UP'!D18&" "&'Set UP'!E18) -> University of Southampton C | E20: =IF(OR('Set UP'!$C18=0,'Set UP'!$D18=0,'Set UP'!$E18=0,'Set UP'!F18=0)," --",'Set UP'!F18) -> S | F20: 5 | P20: =IF(OR('Set UP'!$C18=0,'Set UP'!$D18=0,'Set UP'!$E18=0),"",(F$7*F20)+(G$7*G20)+(H$7*H20)+(I$7*I20)+(J$7*J20)+(K$7*K20)+(L$7*L20)+(M$7*M20)+(N$7*N20)+(O$7*O20)) -> 15 | Q20: 6 | R20: 0 | S20: 0 | T20: 0 | U20: 6 | V20: 0 | W20: 0 | X20: 0 | AA20: =IF(OR('Set UP'!$C18=0,'Set UP'!$D18=0,'Set UP'!$E18=0),"",(Q$7*Q20)+(R$7*R20)+(S$7*S20)+(T$7*T20)+(U$7*U20)+(V$7*V20)+(W$7*W20)+(X$7*X20)+(Y$7*Y20)+(Z$7*Z20)) -> 12 | AL20: =IF(OR('Set UP'!$C18=0,'Set UP'!$D18=0,'Set UP'!$E18=0),"",(AB$7*AB20)+(AC$7*AC20)+(AD$7*AD20)+(AE$7*AE20)+(AF$7*AF20)+(AG$7*AG20)+(AH$7*AH20)+(AI$7*AI20)+(AJ$7*AJ20)+(AK$7*AK20)) -> 0 | AW20: =IF(OR('Set UP'!$C18=0,'Set UP'!$D18=0,'Set UP'!$E18=0),"",(AM$7*AM20)+(AN$7*AN20)+(AO$7*AO20)+(AP$7*AP20)+(AQ$7*AQ20)+(AR$7*AR20)+(AS$7*AS20)+(AT$7*AT20)+(AU$7*AU20)+(AV$7*AV20)) -> 0 | BH20: =IF(OR('Set UP'!$C18=0,'Set UP'!$D18=0,'Set UP'!$E18=0),"",(AX$7*AX20)+(AY$7*AY20)+(AZ$7*AZ20)+(BA$7*BA20)+(BB$7*BB20)+(BC$7*BC20)+(BD$7*BD20)+(BE$7*BE20)+(BF$7*BF20)+(BG$7*BG20)) -> 0 | BS20: =IF(OR('Set UP'!$C18=0,'Set UP'!$D18=0,'Set UP'!$E18=0),"",(BI$7*BI20)+(BJ$7*BJ20)+(BK$7*BK20)+(BL$7*BL20)+(BM$7*BM20)+(BN$7*BN20)+(BO$7*BO20)+(BP$7*BP20)+(BQ$7*BQ20)+(BR$7*BR20)) -> 0 | BW20: =IF(OR('Set UP'!$C18=0,'Set UP'!$D18=0,'Set UP'!$E18=0),"",(P20+AA20+AL20+AW20+BH20+BS20)) -> 27 | BX20: =IF(OR('Set UP'!$C18=0,'Set UP'!$D18=0,'Set UP'!$E18=0),"",RANK(BW20,$BW$9:$BW$48,0)) -> 21 | BY20: =IF(OR('Set UP'!K18<>1,'Set UP'!C18=0,'Set UP'!D18=0,'Set UP'!E18=0,'Set UP'!F18=0),"",$BW20) ->  | BZ20: =IF(OR('Set UP'!K18<>1,'Set UP'!C18=0,'Set UP'!D18=0,'Set UP'!E18=0,'Set UP'!F18=0),"",RANK(BY20,$BY$9:$BY$48,0)) ->  | CA20: =IF(OR('Set UP'!K18<>2,'Set UP'!C18=0,'Set UP'!D18=0,'Set UP'!E18=0,'Set UP'!F18=0),"",$BW20) -> 27 | CB20: =IF(OR('Set UP'!K18<>2,'Set UP'!C18=0,'Set UP'!D18=0,'Set UP'!E18=0,'Set UP'!F18=0),"",RANK(CA20,$CA$9:$CA$48,0)) -> 9
B21: 13 | C21: =IF(OR('Set UP'!$C19=0,'Set UP'!$D19=0,'Set UP'!$E19=0,'Set UP'!F19=0)," --",'Set UP'!C19) -> 515 | D21: =IF(OR('Set UP'!$C19=0,'Set UP'!$D19=0,'Set UP'!$E19=0,'Set UP'!F19=0)," --",'Set UP'!D19&" "&'Set UP'!E19) -> Loughborough University C | E21: =IF(OR('Set UP'!$C19=0,'Set UP'!$D19=0,'Set UP'!$E19=0,'Set UP'!F19=0)," --",'Set UP'!F19) -> S | F21: 4 | P21: =IF(OR('Set UP'!$C19=0,'Set UP'!$D19=0,'Set UP'!$E19=0),"",(F$7*F21)+(G$7*G21)+(H$7*H21)+(I$7*I21)+(J$7*J21)+(K$7*K21)+(L$7*L21)+(M$7*M21)+(N$7*N21)+(O$7*O21)) -> 12 | Q21: 4 | R21: 1 | S21: 5 | T21: 0 | U21: 3 | V21: 5 | W21: 0 | X21: 0 | AA21: =IF(OR('Set UP'!$C19=0,'Set UP'!$D19=0,'Set UP'!$E19=0),"",(Q$7*Q21)+(R$7*R21)+(S$7*S21)+(T$7*T21)+(U$7*U21)+(V$7*V21)+(W$7*W21)+(X$7*X21)+(Y$7*Y21)+(Z$7*Z21)) -> 29 | AL21: =IF(OR('Set UP'!$C19=0,'Set UP'!$D19=0,'Set UP'!$E19=0),"",(AB$7*AB21)+(AC$7*AC21)+(AD$7*AD21)+(AE$7*AE21)+(AF$7*AF21)+(AG$7*AG21)+(AH$7*AH21)+(AI$7*AI21)+(AJ$7*AJ21)+(AK$7*AK21)) -> 0 | AW21: =IF(OR('Set UP'!$C19=0,'Set UP'!$D19=0,'Set UP'!$E19=0),"",(AM$7*AM21)+(AN$7*AN21)+(AO$7*AO21)+(AP$7*AP21)+(AQ$7*AQ21)+(AR$7*AR21)+(AS$7*AS21)+(AT$7*AT21)+(AU$7*AU21)+(AV$7*AV21)) -> 0 | BH21: =IF(OR('Set UP'!$C19=0,'Set UP'!$D19=0,'Set UP'!$E19=0),"",(AX$7*AX21)+(AY$7*AY21)+(AZ$7*AZ21)+(BA$7*BA21)+(BB$7*BB21)+(BC$7*BC21)+(BD$7*BD21)+(BE$7*BE21)+(BF$7*BF21)+(BG$7*BG21)) -> 0 | BS21: =IF(OR('Set UP'!$C19=0,'Set UP'!$D19=0,'Set UP'!$E19=0),"",(BI$7*BI21)+(BJ$7*BJ21)+(BK$7*BK21)+(BL$7*BL21)+(BM$7*BM21)+(BN$7*BN21)+(BO$7*BO21)+(BP$7*BP21)+(BQ$7*BQ21)+(BR$7*BR21)) -> 0 | BW21: =IF(OR('Set UP'!$C19=0,'Set UP'!$D19=0,'Set UP'!$E19=0),"",(P21+AA21+AL21+AW21+BH21+BS21)) -> 41 | BX21: =IF(OR('Set UP'!$C19=0,'Set UP'!$D19=0,'Set UP'!$E19=0),"",RANK(BW21,$BW$9:$BW$48,0)) -> 15 | BY21: =IF(OR('Set UP'!K19<>1,'Set UP'!C19=0,'Set UP'!D19=0,'Set UP'!E19=0,'Set UP'!F19=0),"",$BW21) ->  | BZ21: =IF(OR('Set UP'!K19<>1,'Set UP'!C19=0,'Set UP'!D19=0,'Set UP'!E19=0,'Set UP'!F19=0),"",RANK(BY21,$BY$9:$BY$48,0)) ->  | CA21: =IF(OR('Set UP'!K19<>2,'Set UP'!C19=0,'Set UP'!D19=0,'Set UP'!E19=0,'Set UP'!F19=0),"",$BW21) -> 41 | CB21: =IF(OR('Set UP'!K19<>2,'Set UP'!C19=0,'Set UP'!D19=0,'Set UP'!E19=0,'Set UP'!F19=0),"",RANK(CA21,$CA$9:$CA$48,0)) -> 6
B22: 14 | C22: =IF(OR('Set UP'!$C20=0,'Set UP'!$D20=0,'Set UP'!$E20=0,'Set UP'!F20=0)," --",'Set UP'!C20) -> 520 | D22: =IF(OR('Set UP'!$C20=0,'Set UP'!$D20=0,'Set UP'!$E20=0,'Set UP'!F20=0)," --",'Set UP'!D20&" "&'Set UP'!E20) -> Loughborough University D | E22: =IF(OR('Set UP'!$C20=0,'Set UP'!$D20=0,'Set UP'!$E20=0,'Set UP'!F20=0)," --",'Set UP'!F20) -> NS | F22: 2 | P22: =IF(OR('Set UP'!$C20=0,'Set UP'!$D20=0,'Set UP'!$E20=0),"",(F$7*F22)+(G$7*G22)+(H$7*H22)+(I$7*I22)+(J$7*J22)+(K$7*K22)+(L$7*L22)+(M$7*M22)+(N$7*N22)+(O$7*O22)) -> 6 | Q22: 6 | R22: 0 | S22: 0 | T22: 0 | U22: 4 | V22: 0 | W22: 0 | X22: 0 | AA22: =IF(OR('Set UP'!$C20=0,'Set UP'!$D20=0,'Set UP'!$E20=0),"",(Q$7*Q22)+(R$7*R22)+(S$7*S22)+(T$7*T22)+(U$7*U22)+(V$7*V22)+(W$7*W22)+(X$7*X22)+(Y$7*Y22)+(Z$7*Z22)) -> 10 | AL22: =IF(OR('Set UP'!$C20=0,'Set UP'!$D20=0,'Set UP'!$E20=0),"",(AB$7*AB22)+(AC$7*AC22)+(AD$7*AD22)+(AE$7*AE22)+(AF$7*AF22)+(AG$7*AG22)+(AH$7*AH22)+(AI$7*AI22)+(AJ$7*AJ22)+(AK$7*AK22)) -> 0 | AW22: =IF(OR('Set UP'!$C20=0,'Set UP'!$D20=0,'Set UP'!$E20=0),"",(AM$7*AM22)+(AN$7*AN22)+(AO$7*AO22)+(AP$7*AP22)+(AQ$7*AQ22)+(AR$7*AR22)+(AS$7*AS22)+(AT$7*AT22)+(AU$7*AU22)+(AV$7*AV22)) -> 0 | BH22: =IF(OR('Set UP'!$C20=0,'Set UP'!$D20=0,'Set UP'!$E20=0),"",(AX$7*AX22)+(AY$7*AY22)+(AZ$7*AZ22)+(BA$7*BA22)+(BB$7*BB22)+(BC$7*BC22)+(BD$7*BD22)+(BE$7*BE22)+(BF$7*BF22)+(BG$7*BG22)) -> 0 | BS22: =IF(OR('Set UP'!$C20=0,'Set UP'!$D20=0,'Set UP'!$E20=0),"",(BI$7*BI22)+(BJ$7*BJ22)+(BK$7*BK22)+(BL$7*BL22)+(BM$7*BM22)+(BN$7*BN22)+(BO$7*BO22)+(BP$7*BP22)+(BQ$7*BQ22)+(BR$7*BR22)) -> 0 | BW22: =IF(OR('Set UP'!$C20=0,'Set UP'!$D20=0,'Set UP'!$E20=0),"",(P22+AA22+AL22+AW22+BH22+BS22)) -> 16 | BX22: =IF(OR('Set UP'!$C20=0,'Set UP'!$D20=0,'Set UP'!$E20=0),"",RANK(BW22,$BW$9:$BW$48,0)) -> 27 | BY22: =IF(OR('Set UP'!K20<>1,'Set UP'!C20=0,'Set UP'!D20=0,'Set UP'!E20=0,'Set UP'!F20=0),"",$BW22) ->  | BZ22: =IF(OR('Set UP'!K20<>1,'Set UP'!C20=0,'Set UP'!D20=0,'Set UP'!E20=0,'Set UP'!F20=0),"",RANK(BY22,$BY$9:$BY$48,0)) ->  | CA22: =IF(OR('Set UP'!K20<>2,'Set UP'!C20=0,'Set UP'!D20=0,'Set UP'!E20=0,'Set UP'!F20=0),"",$BW22) ->  | CB22: =IF(OR('Set UP'!K20<>2,'Set UP'!C20=0,'Set UP'!D20=0,'Set UP'!E20=0,'Set UP'!F20=0),"",RANK(CA22,$CA$9:$CA$48,0)) -> 
B23: 15 | C23: =IF(OR('Set UP'!$C21=0,'Set UP'!$D21=0,'Set UP'!$E21=0,'Set UP'!F21=0)," --",'Set UP'!C21) -> 512 | D23: =IF(OR('Set UP'!$C21=0,'Set UP'!$D21=0,'Set UP'!$E21=0,'Set UP'!F21=0)," --",'Set UP'!D21&" "&'Set UP'!E21) -> University of Warwick C | E23: =IF(OR('Set UP'!$C21=0,'Set UP'!$D21=0,'Set UP'!$E21=0,'Set UP'!F21=0)," --",'Set UP'!F21) -> NC | F23: 3 | P23: =IF(OR('Set UP'!$C21=0,'Set UP'!$D21=0,'Set UP'!$E21=0),"",(F$7*F23)+(G$7*G23)+(H$7*H23)+(I$7*I23)+(J$7*J23)+(K$7*K23)+(L$7*L23)+(M$7*M23)+(N$7*N23)+(O$7*O23)) -> 9 | Q23: 6 | R23: 3 | S23: 6 | T23: 0 | U23: 5 | V23: 4 | W23: 0 | X23: 0 | AA23: =IF(OR('Set UP'!$C21=0,'Set UP'!$D21=0,'Set UP'!$E21=0),"",(Q$7*Q23)+(R$7*R23)+(S$7*S23)+(T$7*T23)+(U$7*U23)+(V$7*V23)+(W$7*W23)+(X$7*X23)+(Y$7*Y23)+(Z$7*Z23)) -> 37 | AL23: =IF(OR('Set UP'!$C21=0,'Set UP'!$D21=0,'Set UP'!$E21=0),"",(AB$7*AB23)+(AC$7*AC23)+(AD$7*AD23)+(AE$7*AE23)+(AF$7*AF23)+(AG$7*AG23)+(AH$7*AH23)+(AI$7*AI23)+(AJ$7*AJ23)+(AK$7*AK23)) -> 0 | AW23: =IF(OR('Set UP'!$C21=0,'Set UP'!$D21=0,'Set UP'!$E21=0),"",(AM$7*AM23)+(AN$7*AN23)+(AO$7*AO23)+(AP$7*AP23)+(AQ$7*AQ23)+(AR$7*AR23)+(AS$7*AS23)+(AT$7*AT23)+(AU$7*AU23)+(AV$7*AV23)) -> 0 | BH23: =IF(OR('Set UP'!$C21=0,'Set UP'!$D21=0,'Set UP'!$E21=0),"",(AX$7*AX23)+(AY$7*AY23)+(AZ$7*AZ23)+(BA$7*BA23)+(BB$7*BB23)+(BC$7*BC23)+(BD$7*BD23)+(BE$7*BE23)+(BF$7*BF23)+(BG$7*BG23)) -> 0 | BS23: =IF(OR('Set UP'!$C21=0,'Set UP'!$D21=0,'Set UP'!$E21=0),"",(BI$7*BI23)+(BJ$7*BJ23)+(BK$7*BK23)+(BL$7*BL23)+(BM$7*BM23)+(BN$7*BN23)+(BO$7*BO23)+(BP$7*BP23)+(BQ$7*BQ23)+(BR$7*BR23)) -> 0 | BW23: =IF(OR('Set UP'!$C21=0,'Set UP'!$D21=0,'Set UP'!$E21=0),"",(P23+AA23+AL23+AW23+BH23+BS23)) -> 46 | BX23: =IF(OR('Set UP'!$C21=0,'Set UP'!$D21=0,'Set UP'!$E21=0),"",RANK(BW23,$BW$9:$BW$48,0)) -> 9 | BY23: =IF(OR('Set UP'!K21<>1,'Set UP'!C21=0,'Set UP'!D21=0,'Set UP'!E21=0,'Set UP'!F21=0),"",$BW23) ->  | BZ23: =IF(OR('Set UP'!K21<>1,'Set UP'!C21=0,'Set UP'!D21=0,'Set UP'!E21=0,'Set UP'!F21=0),"",RANK(BY23,$BY$9:$BY$48,0)) ->  | CA23: =IF(OR('Set UP'!K21<>2,'Set UP'!C21=0,'Set UP'!D21=0,'Set UP'!E21=0,'Set UP'!F21=0),"",$BW23) ->  | CB23: =IF(OR('Set UP'!K21<>2,'Set UP'!C21=0,'Set UP'!D21=0,'Set UP'!E21=0,'Set UP'!F21=0),"",RANK(CA23,$CA$9:$CA$48,0)) -> 
B24: 16 | C24: =IF(OR('Set UP'!$C22=0,'Set UP'!$D22=0,'Set UP'!$E22=0,'Set UP'!F22=0)," --",'Set UP'!C22) -> 531 | D24: =IF(OR('Set UP'!$C22=0,'Set UP'!$D22=0,'Set UP'!$E22=0,'Set UP'!F22=0)," --",'Set UP'!D22&" "&'Set UP'!E22) -> University of London Union D | E24: =IF(OR('Set UP'!$C22=0,'Set UP'!$D22=0,'Set UP'!$E22=0,'Set UP'!F22=0)," --",'Set UP'!F22) -> NC | F24: 7 | P24: =IF(OR('Set UP'!$C22=0,'Set UP'!$D22=0,'Set UP'!$E22=0),"",(F$7*F24)+(G$7*G24)+(H$7*H24)+(I$7*I24)+(J$7*J24)+(K$7*K24)+(L$7*L24)+(M$7*M24)+(N$7*N24)+(O$7*O24)) -> 21 | Q24: 5 | R24: 2 | S24: 6 | T24: 0 | U24: 4 | V24: 5 | W24: 0 | X24: 0 | AA24: =IF(OR('Set UP'!$C22=0,'Set UP'!$D22=0,'Set UP'!$E22=0),"",(Q$7*Q24)+(R$7*R24)+(S$7*S24)+(T$7*T24)+(U$7*U24)+(V$7*V24)+(W$7*W24)+(X$7*X24)+(Y$7*Y24)+(Z$7*Z24)) -> 35 | AL24: =IF(OR('Set UP'!$C22=0,'Set UP'!$D22=0,'Set UP'!$E22=0),"",(AB$7*AB24)+(AC$7*AC24)+(AD$7*AD24)+(AE$7*AE24)+(AF$7*AF24)+(AG$7*AG24)+(AH$7*AH24)+(AI$7*AI24)+(AJ$7*AJ24)+(AK$7*AK24)) -> 0 | AW24: =IF(OR('Set UP'!$C22=0,'Set UP'!$D22=0,'Set UP'!$E22=0),"",(AM$7*AM24)+(AN$7*AN24)+(AO$7*AO24)+(AP$7*AP24)+(AQ$7*AQ24)+(AR$7*AR24)+(AS$7*AS24)+(AT$7*AT24)+(AU$7*AU24)+(AV$7*AV24)) -> 0 | BH24: =IF(OR('Set UP'!$C22=0,'Set UP'!$D22=0,'Set UP'!$E22=0),"",(AX$7*AX24)+(AY$7*AY24)+(AZ$7*AZ24)+(BA$7*BA24)+(BB$7*BB24)+(BC$7*BC24)+(BD$7*BD24)+(BE$7*BE24)+(BF$7*BF24)+(BG$7*BG24)) -> 0 | BS24: =IF(OR('Set UP'!$C22=0,'Set UP'!$D22=0,'Set UP'!$E22=0),"",(BI$7*BI24)+(BJ$7*BJ24)+(BK$7*BK24)+(BL$7*BL24)+(BM$7*BM24)+(BN$7*BN24)+(BO$7*BO24)+(BP$7*BP24)+(BQ$7*BQ24)+(BR$7*BR24)) -> 0 | BW24: =IF(OR('Set UP'!$C22=0,'Set UP'!$D22=0,'Set UP'!$E22=0),"",(P24+AA24+AL24+AW24+BH24+BS24)) -> 56 | BX24: =IF(OR('Set UP'!$C22=0,'Set UP'!$D22=0,'Set UP'!$E22=0),"",RANK(BW24,$BW$9:$BW$48,0)) -> 4 | BY24: =IF(OR('Set UP'!K22<>1,'Set UP'!C22=0,'Set UP'!D22=0,'Set UP'!E22=0,'Set UP'!F22=0),"",$BW24) ->  | BZ24: =IF(OR('Set UP'!K22<>1,'Set UP'!C22=0,'Set UP'!D22=0,'Set UP'!E22=0,'Set UP'!F22=0),"",RANK(BY24,$BY$9:$BY$48,0)) ->  | CA24: =IF(OR('Set UP'!K22<>2,'Set UP'!C22=0,'Set UP'!D22=0,'Set UP'!E22=0,'Set UP'!F22=0),"",$BW24) ->  | CB24: =IF(OR('Set UP'!K22<>2,'Set UP'!C22=0,'Set UP'!D22=0,'Set UP'!E22=0,'Set UP'!F22=0),"",RANK(CA24,$CA$9:$CA$48,0)) -> 
B25: 17 | C25: =IF(OR('Set UP'!$C23=0,'Set UP'!$D23=0,'Set UP'!$E23=0,'Set UP'!F23=0)," --",'Set UP'!C23) -> 471 | D25: =IF(OR('Set UP'!$C23=0,'Set UP'!$D23=0,'Set UP'!$E23=0,'Set UP'!F23=0)," --",'Set UP'!D23&" "&'Set UP'!E23) -> University of Cambridge A | E25: =IF(OR('Set UP'!$C23=0,'Set UP'!$D23=0,'Set UP'!$E23=0,'Set UP'!F23=0)," --",'Set UP'!F23) -> S | F25: 2 | P25: =IF(OR('Set UP'!$C23=0,'Set UP'!$D23=0,'Set UP'!$E23=0),"",(F$7*F25)+(G$7*G25)+(H$7*H25)+(I$7*I25)+(J$7*J25)+(K$7*K25)+(L$7*L25)+(M$7*M25)+(N$7*N25)+(O$7*O25)) -> 6 | Q25: 6 | R25: 2 | S25: 6 | T25: 0 | U25: 5 | V25: 5 | W25: 0 | X25: 0 | AA25: =IF(OR('Set UP'!$C23=0,'Set UP'!$D23=0,'Set UP'!$E23=0),"",(Q$7*Q25)+(R$7*R25)+(S$7*S25)+(T$7*T25)+(U$7*U25)+(V$7*V25)+(W$7*W25)+(X$7*X25)+(Y$7*Y25)+(Z$7*Z25)) -> 37 | AL25: =IF(OR('Set UP'!$C23=0,'Set UP'!$D23=0,'Set UP'!$E23=0),"",(AB$7*AB25)+(AC$7*AC25)+(AD$7*AD25)+(AE$7*AE25)+(AF$7*AF25)+(AG$7*AG25)+(AH$7*AH25)+(AI$7*AI25)+(AJ$7*AJ25)+(AK$7*AK25)) -> 0 | AW25: =IF(OR('Set UP'!$C23=0,'Set UP'!$D23=0,'Set UP'!$E23=0),"",(AM$7*AM25)+(AN$7*AN25)+(AO$7*AO25)+(AP$7*AP25)+(AQ$7*AQ25)+(AR$7*AR25)+(AS$7*AS25)+(AT$7*AT25)+(AU$7*AU25)+(AV$7*AV25)) -> 0 | BH25: =IF(OR('Set UP'!$C23=0,'Set UP'!$D23=0,'Set UP'!$E23=0),"",(AX$7*AX25)+(AY$7*AY25)+(AZ$7*AZ25)+(BA$7*BA25)+(BB$7*BB25)+(BC$7*BC25)+(BD$7*BD25)+(BE$7*BE25)+(BF$7*BF25)+(BG$7*BG25)) -> 0 | BS25: =IF(OR('Set UP'!$C23=0,'Set UP'!$D23=0,'Set UP'!$E23=0),"",(BI$7*BI25)+(BJ$7*BJ25)+(BK$7*BK25)+(BL$7*BL25)+(BM$7*BM25)+(BN$7*BN25)+(BO$7*BO25)+(BP$7*BP25)+(BQ$7*BQ25)+(BR$7*BR25)) -> 0 | BW25: =IF(OR('Set UP'!$C23=0,'Set UP'!$D23=0,'Set UP'!$E23=0),"",(P25+AA25+AL25+AW25+BH25+BS25)) -> 43 | BX25: =IF(OR('Set UP'!$C23=0,'Set UP'!$D23=0,'Set UP'!$E23=0),"",RANK(BW25,$BW$9:$BW$48,0)) -> 13 | BY25: =IF(OR('Set UP'!K23<>1,'Set UP'!C23=0,'Set UP'!D23=0,'Set UP'!E23=0,'Set UP'!F23=0),"",$BW25) -> 43 | BZ25: =IF(OR('Set UP'!K23<>1,'Set UP'!C23=0,'Set UP'!D23=0,'Set UP'!E23=0,'Set UP'!F23=0),"",RANK(BY25,$BY$9:$BY$48,0)) -> 5 | CA25: =IF(OR('Set UP'!K23<>2,'Set UP'!C23=0,'Set UP'!D23=0,'Set UP'!E23=0,'Set UP'!F23=0),"",$BW25) ->  | CB25: =IF(OR('Set UP'!K23<>2,'Set UP'!C23=0,'Set UP'!D23=0,'Set UP'!E23=0,'Set UP'!F23=0),"",RANK(CA25,$CA$9:$CA$48,0)) -> 
B26: 18 | C26: =IF(OR('Set UP'!$C24=0,'Set UP'!$D24=0,'Set UP'!$E24=0,'Set UP'!F24=0)," --",'Set UP'!C24) -> 522 | D26: =IF(OR('Set UP'!$C24=0,'Set UP'!$D24=0,'Set UP'!$E24=0,'Set UP'!F24=0)," --",'Set UP'!D24&" "&'Set UP'!E24) -> University of Birmingham B | E26: =IF(OR('Set UP'!$C24=0,'Set UP'!$D24=0,'Set UP'!$E24=0,'Set UP'!F24=0)," --",'Set UP'!F24) -> S | F26: 4 | P26: =IF(OR('Set UP'!$C24=0,'Set UP'!$D24=0,'Set UP'!$E24=0),"",(F$7*F26)+(G$7*G26)+(H$7*H26)+(I$7*I26)+(J$7*J26)+(K$7*K26)+(L$7*L26)+(M$7*M26)+(N$7*N26)+(O$7*O26)) -> 12 | Q26: 5 | R26: 4 | S26: 6 | T26: 0 | U26: 5 | V26: 6 | W26: 0 | X26: 0 | AA26: =IF(OR('Set UP'!$C24=0,'Set UP'!$D24=0,'Set UP'!$E24=0),"",(Q$7*Q26)+(R$7*R26)+(S$7*S26)+(T$7*T26)+(U$7*U26)+(V$7*V26)+(W$7*W26)+(X$7*X26)+(Y$7*Y26)+(Z$7*Z26)) -> 42 | AL26: =IF(OR('Set UP'!$C24=0,'Set UP'!$D24=0,'Set UP'!$E24=0),"",(AB$7*AB26)+(AC$7*AC26)+(AD$7*AD26)+(AE$7*AE26)+(AF$7*AF26)+(AG$7*AG26)+(AH$7*AH26)+(AI$7*AI26)+(AJ$7*AJ26)+(AK$7*AK26)) -> 0 | AW26: =IF(OR('Set UP'!$C24=0,'Set UP'!$D24=0,'Set UP'!$E24=0),"",(AM$7*AM26)+(AN$7*AN26)+(AO$7*AO26)+(AP$7*AP26)+(AQ$7*AQ26)+(AR$7*AR26)+(AS$7*AS26)+(AT$7*AT26)+(AU$7*AU26)+(AV$7*AV26)) -> 0 | BH26: =IF(OR('Set UP'!$C24=0,'Set UP'!$D24=0,'Set UP'!$E24=0),"",(AX$7*AX26)+(AY$7*AY26)+(AZ$7*AZ26)+(BA$7*BA26)+(BB$7*BB26)+(BC$7*BC26)+(BD$7*BD26)+(BE$7*BE26)+(BF$7*BF26)+(BG$7*BG26)) -> 0 | BS26: =IF(OR('Set UP'!$C24=0,'Set UP'!$D24=0,'Set UP'!$E24=0),"",(BI$7*BI26)+(BJ$7*BJ26)+(BK$7*BK26)+(BL$7*BL26)+(BM$7*BM26)+(BN$7*BN26)+(BO$7*BO26)+(BP$7*BP26)+(BQ$7*BQ26)+(BR$7*BR26)) -> 0 | BW26: =IF(OR('Set UP'!$C24=0,'Set UP'!$D24=0,'Set UP'!$E24=0),"",(P26+AA26+AL26+AW26+BH26+BS26)) -> 54 | BX26: =IF(OR('Set UP'!$C24=0,'Set UP'!$D24=0,'Set UP'!$E24=0),"",RANK(BW26,$BW$9:$BW$48,0)) -> 7 | BY26: =IF(OR('Set UP'!K24<>1,'Set UP'!C24=0,'Set UP'!D24=0,'Set UP'!E24=0,'Set UP'!F24=0),"",$BW26) ->  | BZ26: =IF(OR('Set UP'!K24<>1,'Set UP'!C24=0,'Set UP'!D24=0,'Set UP'!E24=0,'Set UP'!F24=0),"",RANK(BY26,$BY$9:$BY$48,0)) ->  | CA26: =IF(OR('Set UP'!K24<>2,'Set UP'!C24=0,'Set UP'!D24=0,'Set UP'!E24=0,'Set UP'!F24=0),"",$BW26) -> 54 | CB26: =IF(OR('Set UP'!K24<>2,'Set UP'!C24=0,'Set UP'!D24=0,'Set UP'!E24=0,'Set UP'!F24=0),"",RANK(CA26,$CA$9:$CA$48,0)) -> 3
B27: 19 | C27: =IF(OR('Set UP'!$C25=0,'Set UP'!$D25=0,'Set UP'!$E25=0,'Set UP'!F25=0)," --",'Set UP'!C25) -> 498 | D27: =IF(OR('Set UP'!$C25=0,'Set UP'!$D25=0,'Set UP'!$E25=0,'Set UP'!F25=0)," --",'Set UP'!D25&" "&'Set UP'!E25) -> University of St Andrews A | E27: =IF(OR('Set UP'!$C25=0,'Set UP'!$D25=0,'Set UP'!$E25=0,'Set UP'!F25=0)," --",'Set UP'!F25) -> S | F27: 4 | P27: =IF(OR('Set UP'!$C25=0,'Set UP'!$D25=0,'Set UP'!$E25=0),"",(F$7*F27)+(G$7*G27)+(H$7*H27)+(I$7*I27)+(J$7*J27)+(K$7*K27)+(L$7*L27)+(M$7*M27)+(N$7*N27)+(O$7*O27)) -> 12 | Q27: 6 | R27: 7 | S27: 4 | T27: 0 | U27: 5 | V27: 5 | W27: 0 | X27: 0 | AA27: =IF(OR('Set UP'!$C25=0,'Set UP'!$D25=0,'Set UP'!$E25=0),"",(Q$7*Q27)+(R$7*R27)+(S$7*S27)+(T$7*T27)+(U$7*U27)+(V$7*V27)+(W$7*W27)+(X$7*X27)+(Y$7*Y27)+(Z$7*Z27)) -> 43 | AL27: =IF(OR('Set UP'!$C25=0,'Set UP'!$D25=0,'Set UP'!$E25=0),"",(AB$7*AB27)+(AC$7*AC27)+(AD$7*AD27)+(AE$7*AE27)+(AF$7*AF27)+(AG$7*AG27)+(AH$7*AH27)+(AI$7*AI27)+(AJ$7*AJ27)+(AK$7*AK27)) -> 0 | AW27: =IF(OR('Set UP'!$C25=0,'Set UP'!$D25=0,'Set UP'!$E25=0),"",(AM$7*AM27)+(AN$7*AN27)+(AO$7*AO27)+(AP$7*AP27)+(AQ$7*AQ27)+(AR$7*AR27)+(AS$7*AS27)+(AT$7*AT27)+(AU$7*AU27)+(AV$7*AV27)) -> 0 | BH27: =IF(OR('Set UP'!$C25=0,'Set UP'!$D25=0,'Set UP'!$E25=0),"",(AX$7*AX27)+(AY$7*AY27)+(AZ$7*AZ27)+(BA$7*BA27)+(BB$7*BB27)+(BC$7*BC27)+(BD$7*BD27)+(BE$7*BE27)+(BF$7*BF27)+(BG$7*BG27)) -> 0 | BS27: =IF(OR('Set UP'!$C25=0,'Set UP'!$D25=0,'Set UP'!$E25=0),"",(BI$7*BI27)+(BJ$7*BJ27)+(BK$7*BK27)+(BL$7*BL27)+(BM$7*BM27)+(BN$7*BN27)+(BO$7*BO27)+(BP$7*BP27)+(BQ$7*BQ27)+(BR$7*BR27)) -> 0 | BW27: =IF(OR('Set UP'!$C25=0,'Set UP'!$D25=0,'Set UP'!$E25=0),"",(P27+AA27+AL27+AW27+BH27+BS27)) -> 55 | BX27: =IF(OR('Set UP'!$C25=0,'Set UP'!$D25=0,'Set UP'!$E25=0),"",RANK(BW27,$BW$9:$BW$48,0)) -> 5 | BY27: =IF(OR('Set UP'!K25<>1,'Set UP'!C25=0,'Set UP'!D25=0,'Set UP'!E25=0,'Set UP'!F25=0),"",$BW27) -> 55 | BZ27: =IF(OR('Set UP'!K25<>1,'Set UP'!C25=0,'Set UP'!D25=0,'Set UP'!E25=0,'Set UP'!F25=0),"",RANK(BY27,$BY$9:$BY$48,0)) -> 3 | CA27: =IF(OR('Set UP'!K25<>2,'Set UP'!C25=0,'Set UP'!D25=0,'Set UP'!E25=0,'Set UP'!F25=0),"",$BW27) ->  | CB27: =IF(OR('Set UP'!K25<>2,'Set UP'!C25=0,'Set UP'!D25=0,'Set UP'!E25=0,'Set UP'!F25=0),"",RANK(CA27,$CA$9:$CA$48,0)) -> 
B28: 20 | C28: =IF(OR('Set UP'!$C26=0,'Set UP'!$D26=0,'Set UP'!$E26=0,'Set UP'!F26=0)," --",'Set UP'!C26) -> 535 | D28: =IF(OR('Set UP'!$C26=0,'Set UP'!$D26=0,'Set UP'!$E26=0,'Set UP'!F26=0)," --",'Set UP'!D26&" "&'Set UP'!E26) -> University of Birmingham A | E28: =IF(OR('Set UP'!$C26=0,'Set UP'!$D26=0,'Set UP'!$E26=0,'Set UP'!F26=0)," --",'Set UP'!F26) -> S | F28: 7 | P28: =IF(OR('Set UP'!$C26=0,'Set UP'!$D26=0,'Set UP'!$E26=0),"",(F$7*F28)+(G$7*G28)+(H$7*H28)+(I$7*I28)+(J$7*J28)+(K$7*K28)+(L$7*L28)+(M$7*M28)+(N$7*N28)+(O$7*O28)) -> 21 | Q28: 4 | R28: 6 | S28: 0 | T28: 0 | U28: 5 | V28: 0 | W28: 0 | X28: 0 | AA28: =IF(OR('Set UP'!$C26=0,'Set UP'!$D26=0,'Set UP'!$E26=0),"",(Q$7*Q28)+(R$7*R28)+(S$7*S28)+(T$7*T28)+(U$7*U28)+(V$7*V28)+(W$7*W28)+(X$7*X28)+(Y$7*Y28)+(Z$7*Z28)) -> 21 | AL28: =IF(OR('Set UP'!$C26=0,'Set UP'!$D26=0,'Set UP'!$E26=0),"",(AB$7*AB28)+(AC$7*AC28)+(AD$7*AD28)+(AE$7*AE28)+(AF$7*AF28)+(AG$7*AG28)+(AH$7*AH28)+(AI$7*AI28)+(AJ$7*AJ28)+(AK$7*AK28)) -> 0 | AW28: =IF(OR('Set UP'!$C26=0,'Set UP'!$D26=0,'Set UP'!$E26=0),"",(AM$7*AM28)+(AN$7*AN28)+(AO$7*AO28)+(AP$7*AP28)+(AQ$7*AQ28)+(AR$7*AR28)+(AS$7*AS28)+(AT$7*AT28)+(AU$7*AU28)+(AV$7*AV28)) -> 0 | BH28: =IF(OR('Set UP'!$C26=0,'Set UP'!$D26=0,'Set UP'!$E26=0),"",(AX$7*AX28)+(AY$7*AY28)+(AZ$7*AZ28)+(BA$7*BA28)+(BB$7*BB28)+(BC$7*BC28)+(BD$7*BD28)+(BE$7*BE28)+(BF$7*BF28)+(BG$7*BG28)) -> 0 | BS28: =IF(OR('Set UP'!$C26=0,'Set UP'!$D26=0,'Set UP'!$E26=0),"",(BI$7*BI28)+(BJ$7*BJ28)+(BK$7*BK28)+(BL$7*BL28)+(BM$7*BM28)+(BN$7*BN28)+(BO$7*BO28)+(BP$7*BP28)+(BQ$7*BQ28)+(BR$7*BR28)) -> 0 | BW28: =IF(OR('Set UP'!$C26=0,'Set UP'!$D26=0,'Set UP'!$E26=0),"",(P28+AA28+AL28+AW28+BH28+BS28)) -> 42 | BX28: =IF(OR('Set UP'!$C26=0,'Set UP'!$D26=0,'Set UP'!$E26=0),"",RANK(BW28,$BW$9:$BW$48,0)) -> 14 | BY28: =IF(OR('Set UP'!K26<>1,'Set UP'!C26=0,'Set UP'!D26=0,'Set UP'!E26=0,'Set UP'!F26=0),"",$BW28) -> 42 | BZ28: =IF(OR('Set UP'!K26<>1,'Set UP'!C26=0,'Set UP'!D26=0,'Set UP'!E26=0,'Set UP'!F26=0),"",RANK(BY28,$BY$9:$BY$48,0)) -> 6 | CA28: =IF(OR('Set UP'!K26<>2,'Set UP'!C26=0,'Set UP'!D26=0,'Set UP'!E26=0,'Set UP'!F26=0),"",$BW28) ->  | CB28: =IF(OR('Set UP'!K26<>2,'Set UP'!C26=0,'Set UP'!D26=0,'Set UP'!E26=0,'Set UP'!F26=0),"",RANK(CA28,$CA$9:$CA$48,0)) -> 
B29: 21 | C29: =IF(OR('Set UP'!$C27=0,'Set UP'!$D27=0,'Set UP'!$E27=0,'Set UP'!F27=0)," --",'Set UP'!C27) -> 508 | D29: =IF(OR('Set UP'!$C27=0,'Set UP'!$D27=0,'Set UP'!$E27=0,'Set UP'!F27=0)," --",'Set UP'!D27&" "&'Set UP'!E27) -> University of Nottingham A | E29: =IF(OR('Set UP'!$C27=0,'Set UP'!$D27=0,'Set UP'!$E27=0,'Set UP'!F27=0)," --",'Set UP'!F27) -> S | F29: 4 | P29: =IF(OR('Set UP'!$C27=0,'Set UP'!$D27=0,'Set UP'!$E27=0),"",(F$7*F29)+(G$7*G29)+(H$7*H29)+(I$7*I29)+(J$7*J29)+(K$7*K29)+(L$7*L29)+(M$7*M29)+(N$7*N29)+(O$7*O29)) -> 12 | Q29: 6 | R29: 1 | S29: 2 | T29: 0 | U29: 4 | V29: 0 | W29: 0 | X29: 0 | AA29: =IF(OR('Set UP'!$C27=0,'Set UP'!$D27=0,'Set UP'!$E27=0),"",(Q$7*Q29)+(R$7*R29)+(S$7*S29)+(T$7*T29)+(U$7*U29)+(V$7*V29)+(W$7*W29)+(X$7*X29)+(Y$7*Y29)+(Z$7*Z29)) -> 16 | AL29: =IF(OR('Set UP'!$C27=0,'Set UP'!$D27=0,'Set UP'!$E27=0),"",(AB$7*AB29)+(AC$7*AC29)+(AD$7*AD29)+(AE$7*AE29)+(AF$7*AF29)+(AG$7*AG29)+(AH$7*AH29)+(AI$7*AI29)+(AJ$7*AJ29)+(AK$7*AK29)) -> 0 | AW29: =IF(OR('Set UP'!$C27=0,'Set UP'!$D27=0,'Set UP'!$E27=0),"",(AM$7*AM29)+(AN$7*AN29)+(AO$7*AO29)+(AP$7*AP29)+(AQ$7*AQ29)+(AR$7*AR29)+(AS$7*AS29)+(AT$7*AT29)+(AU$7*AU29)+(AV$7*AV29)) -> 0 | BH29: =IF(OR('Set UP'!$C27=0,'Set UP'!$D27=0,'Set UP'!$E27=0),"",(AX$7*AX29)+(AY$7*AY29)+(AZ$7*AZ29)+(BA$7*BA29)+(BB$7*BB29)+(BC$7*BC29)+(BD$7*BD29)+(BE$7*BE29)+(BF$7*BF29)+(BG$7*BG29)) -> 0 | BS29: =IF(OR('Set UP'!$C27=0,'Set UP'!$D27=0,'Set UP'!$E27=0),"",(BI$7*BI29)+(BJ$7*BJ29)+(BK$7*BK29)+(BL$7*BL29)+(BM$7*BM29)+(BN$7*BN29)+(BO$7*BO29)+(BP$7*BP29)+(BQ$7*BQ29)+(BR$7*BR29)) -> 0 | BW29: =IF(OR('Set UP'!$C27=0,'Set UP'!$D27=0,'Set UP'!$E27=0),"",(P29+AA29+AL29+AW29+BH29+BS29)) -> 28 | BX29: =IF(OR('Set UP'!$C27=0,'Set UP'!$D27=0,'Set UP'!$E27=0),"",RANK(BW29,$BW$9:$BW$48,0)) -> 19 | BY29: =IF(OR('Set UP'!K27<>1,'Set UP'!C27=0,'Set UP'!D27=0,'Set UP'!E27=0,'Set UP'!F27=0),"",$BW29) -> 28 | BZ29: =IF(OR('Set UP'!K27<>1,'Set UP'!C27=0,'Set UP'!D27=0,'Set UP'!E27=0,'Set UP'!F27=0),"",RANK(BY29,$BY$9:$BY$48,0)) -> 7 | CA29: =IF(OR('Set UP'!K27<>2,'Set UP'!C27=0,'Set UP'!D27=0,'Set UP'!E27=0,'Set UP'!F27=0),"",$BW29) ->  | CB29: =IF(OR('Set UP'!K27<>2,'Set UP'!C27=0,'Set UP'!D27=0,'Set UP'!E27=0,'Set UP'!F27=0),"",RANK(CA29,$CA$9:$CA$48,0)) -> 
B30: 22 | C30: =IF(OR('Set UP'!$C28=0,'Set UP'!$D28=0,'Set UP'!$E28=0,'Set UP'!F28=0)," --",'Set UP'!C28) -> 528 | D30: =IF(OR('Set UP'!$C28=0,'Set UP'!$D28=0,'Set UP'!$E28=0,'Set UP'!F28=0)," --",'Set UP'!D28&" "&'Set UP'!E28) -> University of London Union B | E30: =IF(OR('Set UP'!$C28=0,'Set UP'!$D28=0,'Set UP'!$E28=0,'Set UP'!F28=0)," --",'Set UP'!F28) -> S | F30: 2 | P30: =IF(OR('Set UP'!$C28=0,'Set UP'!$D28=0,'Set UP'!$E28=0),"",(F$7*F30)+(G$7*G30)+(H$7*H30)+(I$7*I30)+(J$7*J30)+(K$7*K30)+(L$7*L30)+(M$7*M30)+(N$7*N30)+(O$7*O30)) -> 6 | Q30: 6 | R30: 7 | S30: 7 | T30: 0 | U30: 6 | V30: 3 | W30: 0 | X30: 0 | AA30: =IF(OR('Set UP'!$C28=0,'Set UP'!$D28=0,'Set UP'!$E28=0),"",(Q$7*Q30)+(R$7*R30)+(S$7*S30)+(T$7*T30)+(U$7*U30)+(V$7*V30)+(W$7*W30)+(X$7*X30)+(Y$7*Y30)+(Z$7*Z30)) -> 46 | AL30: =IF(OR('Set UP'!$C28=0,'Set UP'!$D28=0,'Set UP'!$E28=0),"",(AB$7*AB30)+(AC$7*AC30)+(AD$7*AD30)+(AE$7*AE30)+(AF$7*AF30)+(AG$7*AG30)+(AH$7*AH30)+(AI$7*AI30)+(AJ$7*AJ30)+(AK$7*AK30)) -> 0 | AW30: =IF(OR('Set UP'!$C28=0,'Set UP'!$D28=0,'Set UP'!$E28=0),"",(AM$7*AM30)+(AN$7*AN30)+(AO$7*AO30)+(AP$7*AP30)+(AQ$7*AQ30)+(AR$7*AR30)+(AS$7*AS30)+(AT$7*AT30)+(AU$7*AU30)+(AV$7*AV30)) -> 0 | BH30: =IF(OR('Set UP'!$C28=0,'Set UP'!$D28=0,'Set UP'!$E28=0),"",(AX$7*AX30)+(AY$7*AY30)+(AZ$7*AZ30)+(BA$7*BA30)+(BB$7*BB30)+(BC$7*BC30)+(BD$7*BD30)+(BE$7*BE30)+(BF$7*BF30)+(BG$7*BG30)) -> 0 | BS30: =IF(OR('Set UP'!$C28=0,'Set UP'!$D28=0,'Set UP'!$E28=0),"",(BI$7*BI30)+(BJ$7*BJ30)+(BK$7*BK30)+(BL$7*BL30)+(BM$7*BM30)+(BN$7*BN30)+(BO$7*BO30)+(BP$7*BP30)+(BQ$7*BQ30)+(BR$7*BR30)) -> 0 | BW30: =IF(OR('Set UP'!$C28=0,'Set UP'!$D28=0,'Set UP'!$E28=0),"",(P30+AA30+AL30+AW30+BH30+BS30)) -> 52 | BX30: =IF(OR('Set UP'!$C28=0,'Set UP'!$D28=0,'Set UP'!$E28=0),"",RANK(BW30,$BW$9:$BW$48,0)) -> 8 | BY30: =IF(OR('Set UP'!K28<>1,'Set UP'!C28=0,'Set UP'!D28=0,'Set UP'!E28=0,'Set UP'!F28=0),"",$BW30) ->  | BZ30: =IF(OR('Set UP'!K28<>1,'Set UP'!C28=0,'Set UP'!D28=0,'Set UP'!E28=0,'Set UP'!F28=0),"",RANK(BY30,$BY$9:$BY$48,0)) ->  | CA30: =IF(OR('Set UP'!K28<>2,'Set UP'!C28=0,'Set UP'!D28=0,'Set UP'!E28=0,'Set UP'!F28=0),"",$BW30) -> 52 | CB30: =IF(OR('Set UP'!K28<>2,'Set UP'!C28=0,'Set UP'!D28=0,'Set UP'!E28=0,'Set UP'!F28=0),"",RANK(CA30,$CA$9:$CA$48,0)) -> 4
B31: 23 | C31: =IF(OR('Set UP'!$C29=0,'Set UP'!$D29=0,'Set UP'!$E29=0,'Set UP'!F29=0)," --",'Set UP'!C29) -> 511 | D31: =IF(OR('Set UP'!$C29=0,'Set UP'!$D29=0,'Set UP'!$E29=0,'Set UP'!F29=0)," --",'Set UP'!D29&" "&'Set UP'!E29) -> University of Warwick B | E31: =IF(OR('Set UP'!$C29=0,'Set UP'!$D29=0,'Set UP'!$E29=0,'Set UP'!F29=0)," --",'Set UP'!F29) -> S | F31: 6 | P31: =IF(OR('Set UP'!$C29=0,'Set UP'!$D29=0,'Set UP'!$E29=0),"",(F$7*F31)+(G$7*G31)+(H$7*H31)+(I$7*I31)+(J$7*J31)+(K$7*K31)+(L$7*L31)+(M$7*M31)+(N$7*N31)+(O$7*O31)) -> 18 | Q31: 6 | R31: 0 | S31: 0 | T31: 0 | U31: 4 | V31: 0 | W31: 0 | X31: 0 | AA31: =IF(OR('Set UP'!$C29=0,'Set UP'!$D29=0,'Set UP'!$E29=0),"",(Q$7*Q31)+(R$7*R31)+(S$7*S31)+(T$7*T31)+(U$7*U31)+(V$7*V31)+(W$7*W31)+(X$7*X31)+(Y$7*Y31)+(Z$7*Z31)) -> 10 | AL31: =IF(OR('Set UP'!$C29=0,'Set UP'!$D29=0,'Set UP'!$E29=0),"",(AB$7*AB31)+(AC$7*AC31)+(AD$7*AD31)+(AE$7*AE31)+(AF$7*AF31)+(AG$7*AG31)+(AH$7*AH31)+(AI$7*AI31)+(AJ$7*AJ31)+(AK$7*AK31)) -> 0 | AW31: =IF(OR('Set UP'!$C29=0,'Set UP'!$D29=0,'Set UP'!$E29=0),"",(AM$7*AM31)+(AN$7*AN31)+(AO$7*AO31)+(AP$7*AP31)+(AQ$7*AQ31)+(AR$7*AR31)+(AS$7*AS31)+(AT$7*AT31)+(AU$7*AU31)+(AV$7*AV31)) -> 0 | BH31: =IF(OR('Set UP'!$C29=0,'Set UP'!$D29=0,'Set UP'!$E29=0),"",(AX$7*AX31)+(AY$7*AY31)+(AZ$7*AZ31)+(BA$7*BA31)+(BB$7*BB31)+(BC$7*BC31)+(BD$7*BD31)+(BE$7*BE31)+(BF$7*BF31)+(BG$7*BG31)) -> 0 | BS31: =IF(OR('Set UP'!$C29=0,'Set UP'!$D29=0,'Set UP'!$E29=0),"",(BI$7*BI31)+(BJ$7*BJ31)+(BK$7*BK31)+(BL$7*BL31)+(BM$7*BM31)+(BN$7*BN31)+(BO$7*BO31)+(BP$7*BP31)+(BQ$7*BQ31)+(BR$7*BR31)) -> 0 | BW31: =IF(OR('Set UP'!$C29=0,'Set UP'!$D29=0,'Set UP'!$E29=0),"",(P31+AA31+AL31+AW31+BH31+BS31)) -> 28 | BX31: =IF(OR('Set UP'!$C29=0,'Set UP'!$D29=0,'Set UP'!$E29=0),"",RANK(BW31,$BW$9:$BW$48,0)) -> 19 | BY31: =IF(OR('Set UP'!K29<>1,'Set UP'!C29=0,'Set UP'!D29=0,'Set UP'!E29=0,'Set UP'!F29=0),"",$BW31) ->  | BZ31: =IF(OR('Set UP'!K29<>1,'Set UP'!C29=0,'Set UP'!D29=0,'Set UP'!E29=0,'Set UP'!F29=0),"",RANK(BY31,$BY$9:$BY$48,0)) ->  | CA31: =IF(OR('Set UP'!K29<>2,'Set UP'!C29=0,'Set UP'!D29=0,'Set UP'!E29=0,'Set UP'!F29=0),"",$BW31) -> 28 | CB31: =IF(OR('Set UP'!K29<>2,'Set UP'!C29=0,'Set UP'!D29=0,'Set UP'!E29=0,'Set UP'!F29=0),"",RANK(CA31,$CA$9:$CA$48,0)) -> 8
B32: 24 | C32: =IF(OR('Set UP'!$C30=0,'Set UP'!$D30=0,'Set UP'!$E30=0,'Set UP'!F30=0)," --",'Set UP'!C30) -> 509 | D32: =IF(OR('Set UP'!$C30=0,'Set UP'!$D30=0,'Set UP'!$E30=0,'Set UP'!F30=0)," --",'Set UP'!D30&" "&'Set UP'!E30) -> University of Nottingham B | E32: =IF(OR('Set UP'!$C30=0,'Set UP'!$D30=0,'Set UP'!$E30=0,'Set UP'!F30=0)," --",'Set UP'!F30) -> S | F32: 5 | P32: =IF(OR('Set UP'!$C30=0,'Set UP'!$D30=0,'Set UP'!$E30=0),"",(F$7*F32)+(G$7*G32)+(H$7*H32)+(I$7*I32)+(J$7*J32)+(K$7*K32)+(L$7*L32)+(M$7*M32)+(N$7*N32)+(O$7*O32)) -> 15 | Q32: 5 | R32: 2 | S32: 2 | T32: 0 | U32: 4 | V32: 4 | W32: 0 | X32: 0 | AA32: =IF(OR('Set UP'!$C30=0,'Set UP'!$D30=0,'Set UP'!$E30=0),"",(Q$7*Q32)+(R$7*R32)+(S$7*S32)+(T$7*T32)+(U$7*U32)+(V$7*V32)+(W$7*W32)+(X$7*X32)+(Y$7*Y32)+(Z$7*Z32)) -> 25 | AL32: =IF(OR('Set UP'!$C30=0,'Set UP'!$D30=0,'Set UP'!$E30=0),"",(AB$7*AB32)+(AC$7*AC32)+(AD$7*AD32)+(AE$7*AE32)+(AF$7*AF32)+(AG$7*AG32)+(AH$7*AH32)+(AI$7*AI32)+(AJ$7*AJ32)+(AK$7*AK32)) -> 0 | AW32: =IF(OR('Set UP'!$C30=0,'Set UP'!$D30=0,'Set UP'!$E30=0),"",(AM$7*AM32)+(AN$7*AN32)+(AO$7*AO32)+(AP$7*AP32)+(AQ$7*AQ32)+(AR$7*AR32)+(AS$7*AS32)+(AT$7*AT32)+(AU$7*AU32)+(AV$7*AV32)) -> 0 | BH32: =IF(OR('Set UP'!$C30=0,'Set UP'!$D30=0,'Set UP'!$E30=0),"",(AX$7*AX32)+(AY$7*AY32)+(AZ$7*AZ32)+(BA$7*BA32)+(BB$7*BB32)+(BC$7*BC32)+(BD$7*BD32)+(BE$7*BE32)+(BF$7*BF32)+(BG$7*BG32)) -> 0 | BS32: =IF(OR('Set UP'!$C30=0,'Set UP'!$D30=0,'Set UP'!$E30=0),"",(BI$7*BI32)+(BJ$7*BJ32)+(BK$7*BK32)+(BL$7*BL32)+(BM$7*BM32)+(BN$7*BN32)+(BO$7*BO32)+(BP$7*BP32)+(BQ$7*BQ32)+(BR$7*BR32)) -> 0 | BW32: =IF(OR('Set UP'!$C30=0,'Set UP'!$D30=0,'Set UP'!$E30=0),"",(P32+AA32+AL32+AW32+BH32+BS32)) -> 40 | BX32: =IF(OR('Set UP'!$C30=0,'Set UP'!$D30=0,'Set UP'!$E30=0),"",RANK(BW32,$BW$9:$BW$48,0)) -> 16 | BY32: =IF(OR('Set UP'!K30<>1,'Set UP'!C30=0,'Set UP'!D30=0,'Set UP'!E30=0,'Set UP'!F30=0),"",$BW32) ->  | BZ32: =IF(OR('Set UP'!K30<>1,'Set UP'!C30=0,'Set UP'!D30=0,'Set UP'!E30=0,'Set UP'!F30=0),"",RANK(BY32,$BY$9:$BY$48,0)) ->  | CA32: =IF(OR('Set UP'!K30<>2,'Set UP'!C30=0,'Set UP'!D30=0,'Set UP'!E30=0,'Set UP'!F30=0),"",$BW32) -> 40 | CB32: =IF(OR('Set UP'!K30<>2,'Set UP'!C30=0,'Set UP'!D30=0,'Set UP'!E30=0,'Set UP'!F30=0),"",RANK(CA32,$CA$9:$CA$48,0)) -> 7
B33: 25 | C33: =IF(OR('Set UP'!$C31=0,'Set UP'!$D31=0,'Set UP'!$E31=0,'Set UP'!F31=0)," --",'Set UP'!C31) -> 517 | D33: =IF(OR('Set UP'!$C31=0,'Set UP'!$D31=0,'Set UP'!$E31=0,'Set UP'!F31=0)," --",'Set UP'!D31&" "&'Set UP'!E31) -> Loughborough University B | E33: =IF(OR('Set UP'!$C31=0,'Set UP'!$D31=0,'Set UP'!$E31=0,'Set UP'!F31=0)," --",'Set UP'!F31) -> S | F33: 2 | P33: =IF(OR('Set UP'!$C31=0,'Set UP'!$D31=0,'Set UP'!$E31=0),"",(F$7*F33)+(G$7*G33)+(H$7*H33)+(I$7*I33)+(J$7*J33)+(K$7*K33)+(L$7*L33)+(M$7*M33)+(N$7*N33)+(O$7*O33)) -> 6 | Q33: 6 | R33: 2 | S33: 0 | T33: 0 | U33: 6 | V33: 0 | W33: 0 | X33: 0 | AA33: =IF(OR('Set UP'!$C31=0,'Set UP'!$D31=0,'Set UP'!$E31=0),"",(Q$7*Q33)+(R$7*R33)+(S$7*S33)+(T$7*T33)+(U$7*U33)+(V$7*V33)+(W$7*W33)+(X$7*X33)+(Y$7*Y33)+(Z$7*Z33)) -> 16 | AL33: =IF(OR('Set UP'!$C31=0,'Set UP'!$D31=0,'Set UP'!$E31=0),"",(AB$7*AB33)+(AC$7*AC33)+(AD$7*AD33)+(AE$7*AE33)+(AF$7*AF33)+(AG$7*AG33)+(AH$7*AH33)+(AI$7*AI33)+(AJ$7*AJ33)+(AK$7*AK33)) -> 0 | AW33: =IF(OR('Set UP'!$C31=0,'Set UP'!$D31=0,'Set UP'!$E31=0),"",(AM$7*AM33)+(AN$7*AN33)+(AO$7*AO33)+(AP$7*AP33)+(AQ$7*AQ33)+(AR$7*AR33)+(AS$7*AS33)+(AT$7*AT33)+(AU$7*AU33)+(AV$7*AV33)) -> 0 | BH33: =IF(OR('Set UP'!$C31=0,'Set UP'!$D31=0,'Set UP'!$E31=0),"",(AX$7*AX33)+(AY$7*AY33)+(AZ$7*AZ33)+(BA$7*BA33)+(BB$7*BB33)+(BC$7*BC33)+(BD$7*BD33)+(BE$7*BE33)+(BF$7*BF33)+(BG$7*BG33)) -> 0 | BS33: =IF(OR('Set UP'!$C31=0,'Set UP'!$D31=0,'Set UP'!$E31=0),"",(BI$7*BI33)+(BJ$7*BJ33)+(BK$7*BK33)+(BL$7*BL33)+(BM$7*BM33)+(BN$7*BN33)+(BO$7*BO33)+(BP$7*BP33)+(BQ$7*BQ33)+(BR$7*BR33)) -> 0 | BW33: =IF(OR('Set UP'!$C31=0,'Set UP'!$D31=0,'Set UP'!$E31=0),"",(P33+AA33+AL33+AW33+BH33+BS33)) -> 22 | BX33: =IF(OR('Set UP'!$C31=0,'Set UP'!$D31=0,'Set UP'!$E31=0),"",RANK(BW33,$BW$9:$BW$48,0)) -> 25 | BY33: =IF(OR('Set UP'!K31<>1,'Set UP'!C31=0,'Set UP'!D31=0,'Set UP'!E31=0,'Set UP'!F31=0),"",$BW33) ->  | BZ33: =IF(OR('Set UP'!K31<>1,'Set UP'!C31=0,'Set UP'!D31=0,'Set UP'!E31=0,'Set UP'!F31=0),"",RANK(BY33,$BY$9:$BY$48,0)) ->  | CA33: =IF(OR('Set UP'!K31<>2,'Set UP'!C31=0,'Set UP'!D31=0,'Set UP'!E31=0,'Set UP'!F31=0),"",$BW33) -> 22 | CB33: =IF(OR('Set UP'!K31<>2,'Set UP'!C31=0,'Set UP'!D31=0,'Set UP'!E31=0,'Set UP'!F31=0),"",RANK(CA33,$CA$9:$CA$48,0)) -> 11
B34: 26 | C34: =IF(OR('Set UP'!$C32=0,'Set UP'!$D32=0,'Set UP'!$E32=0,'Set UP'!F32=0)," --",'Set UP'!C32) -> 534 | D34: =IF(OR('Set UP'!$C32=0,'Set UP'!$D32=0,'Set UP'!$E32=0,'Set UP'!F32=0)," --",'Set UP'!D32&" "&'Set UP'!E32) -> University of Southampton B | E34: =IF(OR('Set UP'!$C32=0,'Set UP'!$D32=0,'Set UP'!$E32=0,'Set UP'!F32=0)," --",'Set UP'!F32) -> S | F34: 4 | P34: =IF(OR('Set UP'!$C32=0,'Set UP'!$D32=0,'Set UP'!$E32=0),"",(F$7*F34)+(G$7*G34)+(H$7*H34)+(I$7*I34)+(J$7*J34)+(K$7*K34)+(L$7*L34)+(M$7*M34)+(N$7*N34)+(O$7*O34)) -> 12 | Q34: 6 | R34: 8 | S34: 6 | T34: 0 | U34: 5 | V34: 6 | W34: 0 | X34: 0 | AA34: =IF(OR('Set UP'!$C32=0,'Set UP'!$D32=0,'Set UP'!$E32=0),"",(Q$7*Q34)+(R$7*R34)+(S$7*S34)+(T$7*T34)+(U$7*U34)+(V$7*V34)+(W$7*W34)+(X$7*X34)+(Y$7*Y34)+(Z$7*Z34)) -> 51 | AL34: =IF(OR('Set UP'!$C32=0,'Set UP'!$D32=0,'Set UP'!$E32=0),"",(AB$7*AB34)+(AC$7*AC34)+(AD$7*AD34)+(AE$7*AE34)+(AF$7*AF34)+(AG$7*AG34)+(AH$7*AH34)+(AI$7*AI34)+(AJ$7*AJ34)+(AK$7*AK34)) -> 0 | AW34: =IF(OR('Set UP'!$C32=0,'Set UP'!$D32=0,'Set UP'!$E32=0),"",(AM$7*AM34)+(AN$7*AN34)+(AO$7*AO34)+(AP$7*AP34)+(AQ$7*AQ34)+(AR$7*AR34)+(AS$7*AS34)+(AT$7*AT34)+(AU$7*AU34)+(AV$7*AV34)) -> 0 | BH34: =IF(OR('Set UP'!$C32=0,'Set UP'!$D32=0,'Set UP'!$E32=0),"",(AX$7*AX34)+(AY$7*AY34)+(AZ$7*AZ34)+(BA$7*BA34)+(BB$7*BB34)+(BC$7*BC34)+(BD$7*BD34)+(BE$7*BE34)+(BF$7*BF34)+(BG$7*BG34)) -> 0 | BS34: =IF(OR('Set UP'!$C32=0,'Set UP'!$D32=0,'Set UP'!$E32=0),"",(BI$7*BI34)+(BJ$7*BJ34)+(BK$7*BK34)+(BL$7*BL34)+(BM$7*BM34)+(BN$7*BN34)+(BO$7*BO34)+(BP$7*BP34)+(BQ$7*BQ34)+(BR$7*BR34)) -> 0 | BW34: =IF(OR('Set UP'!$C32=0,'Set UP'!$D32=0,'Set UP'!$E32=0),"",(P34+AA34+AL34+AW34+BH34+BS34)) -> 63 | BX34: =IF(OR('Set UP'!$C32=0,'Set UP'!$D32=0,'Set UP'!$E32=0),"",RANK(BW34,$BW$9:$BW$48,0)) -> 3 | BY34: =IF(OR('Set UP'!K32<>1,'Set UP'!C32=0,'Set UP'!D32=0,'Set UP'!E32=0,'Set UP'!F32=0),"",$BW34) ->  | BZ34: =IF(OR('Set UP'!K32<>1,'Set UP'!C32=0,'Set UP'!D32=0,'Set UP'!E32=0,'Set UP'!F32=0),"",RANK(BY34,$BY$9:$BY$48,0)) ->  | CA34: =IF(OR('Set UP'!K32<>2,'Set UP'!C32=0,'Set UP'!D32=0,'Set UP'!E32=0,'Set UP'!F32=0),"",$BW34) -> 63 | CB34: =IF(OR('Set UP'!K32<>2,'Set UP'!C32=0,'Set UP'!D32=0,'Set UP'!E32=0,'Set UP'!F32=0),"",RANK(CA34,$CA$9:$CA$48,0)) -> 1
B35: 27 | C35: =IF(OR('Set UP'!$C33=0,'Set UP'!$D33=0,'Set UP'!$E33=0,'Set UP'!F33=0)," --",'Set UP'!C33) -> 479 | D35: =IF(OR('Set UP'!$C33=0,'Set UP'!$D33=0,'Set UP'!$E33=0,'Set UP'!F33=0)," --",'Set UP'!D33&" "&'Set UP'!E33) -> Loughborough University A | E35: =IF(OR('Set UP'!$C33=0,'Set UP'!$D33=0,'Set UP'!$E33=0,'Set UP'!F33=0)," --",'Set UP'!F33) -> S | F35: 4 | P35: =IF(OR('Set UP'!$C33=0,'Set UP'!$D33=0,'Set UP'!$E33=0),"",(F$7*F35)+(G$7*G35)+(H$7*H35)+(I$7*I35)+(J$7*J35)+(K$7*K35)+(L$7*L35)+(M$7*M35)+(N$7*N35)+(O$7*O35)) -> 12 | Q35: 5 | R35: 2 | S35: 5 | T35: 0 | U35: 3 | V35: 5 | W35: 0 | X35: 0 | AA35: =IF(OR('Set UP'!$C33=0,'Set UP'!$D33=0,'Set UP'!$E33=0),"",(Q$7*Q35)+(R$7*R35)+(S$7*S35)+(T$7*T35)+(U$7*U35)+(V$7*V35)+(W$7*W35)+(X$7*X35)+(Y$7*Y35)+(Z$7*Z35)) -> 32 | AL35: =IF(OR('Set UP'!$C33=0,'Set UP'!$D33=0,'Set UP'!$E33=0),"",(AB$7*AB35)+(AC$7*AC35)+(AD$7*AD35)+(AE$7*AE35)+(AF$7*AF35)+(AG$7*AG35)+(AH$7*AH35)+(AI$7*AI35)+(AJ$7*AJ35)+(AK$7*AK35)) -> 0 | AW35: =IF(OR('Set UP'!$C33=0,'Set UP'!$D33=0,'Set UP'!$E33=0),"",(AM$7*AM35)+(AN$7*AN35)+(AO$7*AO35)+(AP$7*AP35)+(AQ$7*AQ35)+(AR$7*AR35)+(AS$7*AS35)+(AT$7*AT35)+(AU$7*AU35)+(AV$7*AV35)) -> 0 | BH35: =IF(OR('Set UP'!$C33=0,'Set UP'!$D33=0,'Set UP'!$E33=0),"",(AX$7*AX35)+(AY$7*AY35)+(AZ$7*AZ35)+(BA$7*BA35)+(BB$7*BB35)+(BC$7*BC35)+(BD$7*BD35)+(BE$7*BE35)+(BF$7*BF35)+(BG$7*BG35)) -> 0 | BS35: =IF(OR('Set UP'!$C33=0,'Set UP'!$D33=0,'Set UP'!$E33=0),"",(BI$7*BI35)+(BJ$7*BJ35)+(BK$7*BK35)+(BL$7*BL35)+(BM$7*BM35)+(BN$7*BN35)+(BO$7*BO35)+(BP$7*BP35)+(BQ$7*BQ35)+(BR$7*BR35)) -> 0 | BW35: =IF(OR('Set UP'!$C33=0,'Set UP'!$D33=0,'Set UP'!$E33=0),"",(P35+AA35+AL35+AW35+BH35+BS35)) -> 44 | BX35: =IF(OR('Set UP'!$C33=0,'Set UP'!$D33=0,'Set UP'!$E33=0),"",RANK(BW35,$BW$9:$BW$48,0)) -> 12 | BY35: =IF(OR('Set UP'!K33<>1,'Set UP'!C33=0,'Set UP'!D33=0,'Set UP'!E33=0,'Set UP'!F33=0),"",$BW35) -> 44 | BZ35: =IF(OR('Set UP'!K33<>1,'Set UP'!C33=0,'Set UP'!D33=0,'Set UP'!E33=0,'Set UP'!F33=0),"",RANK(BY35,$BY$9:$BY$48,0)) -> 4 | CA35: =IF(OR('Set UP'!K33<>2,'Set UP'!C33=0,'Set UP'!D33=0,'Set UP'!E33=0,'Set UP'!F33=0),"",$BW35) ->  | CB35: =IF(OR('Set UP'!K33<>2,'Set UP'!C33=0,'Set UP'!D33=0,'Set UP'!E33=0,'Set UP'!F33=0),"",RANK(CA35,$CA$9:$CA$48,0)) -> 
B36: 28 | C36: =IF(OR('Set UP'!$C34=0,'Set UP'!$D34=0,'Set UP'!$E34=0,'Set UP'!F34=0)," --",'Set UP'!C34) -> 545 | D36: =IF(OR('Set UP'!$C34=0,'Set UP'!$D34=0,'Set UP'!$E34=0,'Set UP'!F34=0)," --",'Set UP'!D34&" "&'Set UP'!E34) -> Colwick Park A | E36: =IF(OR('Set UP'!$C34=0,'Set UP'!$D34=0,'Set UP'!$E34=0,'Set UP'!F34=0)," --",'Set UP'!F34) -> NS | F36: 3 | P36: =IF(OR('Set UP'!$C34=0,'Set UP'!$D34=0,'Set UP'!$E34=0),"",(F$7*F36)+(G$7*G36)+(H$7*H36)+(I$7*I36)+(J$7*J36)+(K$7*K36)+(L$7*L36)+(M$7*M36)+(N$7*N36)+(O$7*O36)) -> 9 | Q36: 4 | R36: 0 | S36: 6 | T36: 0 | U36: 3 | V36: 5 | W36: 0 | X36: 0 | AA36: =IF(OR('Set UP'!$C34=0,'Set UP'!$D34=0,'Set UP'!$E34=0),"",(Q$7*Q36)+(R$7*R36)+(S$7*S36)+(T$7*T36)+(U$7*U36)+(V$7*V36)+(W$7*W36)+(X$7*X36)+(Y$7*Y36)+(Z$7*Z36)) -> 29 | AL36: =IF(OR('Set UP'!$C34=0,'Set UP'!$D34=0,'Set UP'!$E34=0),"",(AB$7*AB36)+(AC$7*AC36)+(AD$7*AD36)+(AE$7*AE36)+(AF$7*AF36)+(AG$7*AG36)+(AH$7*AH36)+(AI$7*AI36)+(AJ$7*AJ36)+(AK$7*AK36)) -> 0 | AW36: =IF(OR('Set UP'!$C34=0,'Set UP'!$D34=0,'Set UP'!$E34=0),"",(AM$7*AM36)+(AN$7*AN36)+(AO$7*AO36)+(AP$7*AP36)+(AQ$7*AQ36)+(AR$7*AR36)+(AS$7*AS36)+(AT$7*AT36)+(AU$7*AU36)+(AV$7*AV36)) -> 0 | BH36: =IF(OR('Set UP'!$C34=0,'Set UP'!$D34=0,'Set UP'!$E34=0),"",(AX$7*AX36)+(AY$7*AY36)+(AZ$7*AZ36)+(BA$7*BA36)+(BB$7*BB36)+(BC$7*BC36)+(BD$7*BD36)+(BE$7*BE36)+(BF$7*BF36)+(BG$7*BG36)) -> 0 | BS36: =IF(OR('Set UP'!$C34=0,'Set UP'!$D34=0,'Set UP'!$E34=0),"",(BI$7*BI36)+(BJ$7*BJ36)+(BK$7*BK36)+(BL$7*BL36)+(BM$7*BM36)+(BN$7*BN36)+(BO$7*BO36)+(BP$7*BP36)+(BQ$7*BQ36)+(BR$7*BR36)) -> 0 | BW36: =IF(OR('Set UP'!$C34=0,'Set UP'!$D34=0,'Set UP'!$E34=0),"",(P36+AA36+AL36+AW36+BH36+BS36)) -> 38 | BX36: =IF(OR('Set UP'!$C34=0,'Set UP'!$D34=0,'Set UP'!$E34=0),"",RANK(BW36,$BW$9:$BW$48,0)) -> 17 | BY36: =IF(OR('Set UP'!K34<>1,'Set UP'!C34=0,'Set UP'!D34=0,'Set UP'!E34=0,'Set UP'!F34=0),"",$BW36) ->  | BZ36: =IF(OR('Set UP'!K34<>1,'Set UP'!C34=0,'Set UP'!D34=0,'Set UP'!E34=0,'Set UP'!F34=0),"",RANK(BY36,$BY$9:$BY$48,0)) ->  | CA36: =IF(OR('Set UP'!K34<>2,'Set UP'!C34=0,'Set UP'!D34=0,'Set UP'!E34=0,'Set UP'!F34=0),"",$BW36) ->  | CB36: =IF(OR('Set UP'!K34<>2,'Set UP'!C34=0,'Set UP'!D34=0,'Set UP'!E34=0,'Set UP'!F34=0),"",RANK(CA36,$CA$9:$CA$48,0)) -> 
B37: 29 | C37: =IF(OR('Set UP'!$C35=0,'Set UP'!$D35=0,'Set UP'!$E35=0,'Set UP'!F35=0)," --",'Set UP'!C35) -> 533 | D37: =IF(OR('Set UP'!$C35=0,'Set UP'!$D35=0,'Set UP'!$E35=0,'Set UP'!F35=0)," --",'Set UP'!D35&" "&'Set UP'!E35) -> University of Southampton A | E37: =IF(OR('Set UP'!$C35=0,'Set UP'!$D35=0,'Set UP'!$E35=0,'Set UP'!F35=0)," --",'Set UP'!F35) -> S | F37: 10 | P37: =IF(OR('Set UP'!$C35=0,'Set UP'!$D35=0,'Set UP'!$E35=0),"",(F$7*F37)+(G$7*G37)+(H$7*H37)+(I$7*I37)+(J$7*J37)+(K$7*K37)+(L$7*L37)+(M$7*M37)+(N$7*N37)+(O$7*O37)) -> 30 | Q37: 6 | R37: 7 | S37: 6 | T37: 0 | U37: 7 | V37: 5 | W37: 0 | X37: 0 | AA37: =IF(OR('Set UP'!$C35=0,'Set UP'!$D35=0,'Set UP'!$E35=0),"",(Q$7*Q37)+(R$7*R37)+(S$7*S37)+(T$7*T37)+(U$7*U37)+(V$7*V37)+(W$7*W37)+(X$7*X37)+(Y$7*Y37)+(Z$7*Z37)) -> 49 | AL37: =IF(OR('Set UP'!$C35=0,'Set UP'!$D35=0,'Set UP'!$E35=0),"",(AB$7*AB37)+(AC$7*AC37)+(AD$7*AD37)+(AE$7*AE37)+(AF$7*AF37)+(AG$7*AG37)+(AH$7*AH37)+(AI$7*AI37)+(AJ$7*AJ37)+(AK$7*AK37)) -> 0 | AW37: =IF(OR('Set UP'!$C35=0,'Set UP'!$D35=0,'Set UP'!$E35=0),"",(AM$7*AM37)+(AN$7*AN37)+(AO$7*AO37)+(AP$7*AP37)+(AQ$7*AQ37)+(AR$7*AR37)+(AS$7*AS37)+(AT$7*AT37)+(AU$7*AU37)+(AV$7*AV37)) -> 0 | BH37: =IF(OR('Set UP'!$C35=0,'Set UP'!$D35=0,'Set UP'!$E35=0),"",(AX$7*AX37)+(AY$7*AY37)+(AZ$7*AZ37)+(BA$7*BA37)+(BB$7*BB37)+(BC$7*BC37)+(BD$7*BD37)+(BE$7*BE37)+(BF$7*BF37)+(BG$7*BG37)) -> 0 | BS37: =IF(OR('Set UP'!$C35=0,'Set UP'!$D35=0,'Set UP'!$E35=0),"",(BI$7*BI37)+(BJ$7*BJ37)+(BK$7*BK37)+(BL$7*BL37)+(BM$7*BM37)+(BN$7*BN37)+(BO$7*BO37)+(BP$7*BP37)+(BQ$7*BQ37)+(BR$7*BR37)) -> 0 | BW37: =IF(OR('Set UP'!$C35=0,'Set UP'!$D35=0,'Set UP'!$E35=0),"",(P37+AA37+AL37+AW37+BH37+BS37)) -> 79 | BX37: =IF(OR('Set UP'!$C35=0,'Set UP'!$D35=0,'Set UP'!$E35=0),"",RANK(BW37,$BW$9:$BW$48,0)) -> 1 | BY37: =IF(OR('Set UP'!K35<>1,'Set UP'!C35=0,'Set UP'!D35=0,'Set UP'!E35=0,'Set UP'!F35=0),"",$BW37) -> 79 | BZ37: =IF(OR('Set UP'!K35<>1,'Set UP'!C35=0,'Set UP'!D35=0,'Set UP'!E35=0,'Set UP'!F35=0),"",RANK(BY37,$BY$9:$BY$48,0)) -> 1 | CA37: =IF(OR('Set UP'!K35<>2,'Set UP'!C35=0,'Set UP'!D35=0,'Set UP'!E35=0,'Set UP'!F35=0),"",$BW37) ->  | CB37: =IF(OR('Set UP'!K35<>2,'Set UP'!C35=0,'Set UP'!D35=0,'Set UP'!E35=0,'Set UP'!F35=0),"",RANK(CA37,$CA$9:$CA$48,0)) -> 
B38: 30 | C38: =IF(OR('Set UP'!$C36=0,'Set UP'!$D36=0,'Set UP'!$E36=0,'Set UP'!F36=0)," --",'Set UP'!C36) -> 523 | D38: =IF(OR('Set UP'!$C36=0,'Set UP'!$D36=0,'Set UP'!$E36=0,'Set UP'!F36=0)," --",'Set UP'!D36&" "&'Set UP'!E36) -> University of London Union A | E38: =IF(OR('Set UP'!$C36=0,'Set UP'!$D36=0,'Set UP'!$E36=0,'Set UP'!F36=0)," --",'Set UP'!F36) -> S | F38: 12 | P38: =IF(OR('Set UP'!$C36=0,'Set UP'!$D36=0,'Set UP'!$E36=0),"",(F$7*F38)+(G$7*G38)+(H$7*H38)+(I$7*I38)+(J$7*J38)+(K$7*K38)+(L$7*L38)+(M$7*M38)+(N$7*N38)+(O$7*O38)) -> 36 | Q38: 6 | R38: 0 | S38: 6 | T38: 0 | U38: 6 | V38: 5 | W38: 0 | X38: 0 | AA38: =IF(OR('Set UP'!$C36=0,'Set UP'!$D36=0,'Set UP'!$E36=0),"",(Q$7*Q38)+(R$7*R38)+(S$7*S38)+(T$7*T38)+(U$7*U38)+(V$7*V38)+(W$7*W38)+(X$7*X38)+(Y$7*Y38)+(Z$7*Z38)) -> 34 | AL38: =IF(OR('Set UP'!$C36=0,'Set UP'!$D36=0,'Set UP'!$E36=0),"",(AB$7*AB38)+(AC$7*AC38)+(AD$7*AD38)+(AE$7*AE38)+(AF$7*AF38)+(AG$7*AG38)+(AH$7*AH38)+(AI$7*AI38)+(AJ$7*AJ38)+(AK$7*AK38)) -> 0 | AW38: =IF(OR('Set UP'!$C36=0,'Set UP'!$D36=0,'Set UP'!$E36=0),"",(AM$7*AM38)+(AN$7*AN38)+(AO$7*AO38)+(AP$7*AP38)+(AQ$7*AQ38)+(AR$7*AR38)+(AS$7*AS38)+(AT$7*AT38)+(AU$7*AU38)+(AV$7*AV38)) -> 0 | BH38: =IF(OR('Set UP'!$C36=0,'Set UP'!$D36=0,'Set UP'!$E36=0),"",(AX$7*AX38)+(AY$7*AY38)+(AZ$7*AZ38)+(BA$7*BA38)+(BB$7*BB38)+(BC$7*BC38)+(BD$7*BD38)+(BE$7*BE38)+(BF$7*BF38)+(BG$7*BG38)) -> 0 | BS38: =IF(OR('Set UP'!$C36=0,'Set UP'!$D36=0,'Set UP'!$E36=0),"",(BI$7*BI38)+(BJ$7*BJ38)+(BK$7*BK38)+(BL$7*BL38)+(BM$7*BM38)+(BN$7*BN38)+(BO$7*BO38)+(BP$7*BP38)+(BQ$7*BQ38)+(BR$7*BR38)) -> 0 | BW38: =IF(OR('Set UP'!$C36=0,'Set UP'!$D36=0,'Set UP'!$E36=0),"",(P38+AA38+AL38+AW38+BH38+BS38)) -> 70 | BX38: =IF(OR('Set UP'!$C36=0,'Set UP'!$D36=0,'Set UP'!$E36=0),"",RANK(BW38,$BW$9:$BW$48,0)) -> 2 | BY38: =IF(OR('Set UP'!K36<>1,'Set UP'!C36=0,'Set UP'!D36=0,'Set UP'!E36=0,'Set UP'!F36=0),"",$BW38) -> 70 | BZ38: =IF(OR('Set UP'!K36<>1,'Set UP'!C36=0,'Set UP'!D36=0,'Set UP'!E36=0,'Set UP'!F36=0),"",RANK(BY38,$BY$9:$BY$48,0)) -> 2 | CA38: =IF(OR('Set UP'!K36<>2,'Set UP'!C36=0,'Set UP'!D36=0,'Set UP'!E36=0,'Set UP'!F36=0),"",$BW38) ->  | CB38: =IF(OR('Set UP'!K36<>2,'Set UP'!C36=0,'Set UP'!D36=0,'Set UP'!E36=0,'Set UP'!F36=0),"",RANK(CA38,$CA$9:$CA$48,0)) -> 
B39: 31 | C39: =IF(OR('Set UP'!$C37=0,'Set UP'!$D37=0,'Set UP'!$E37=0,'Set UP'!F37=0)," --",'Set UP'!C37) -> 505 | D39: =IF(OR('Set UP'!$C37=0,'Set UP'!$D37=0,'Set UP'!$E37=0,'Set UP'!F37=0)," --",'Set UP'!D37&" "&'Set UP'!E37) -> University of Plymouth A | E39: =IF(OR('Set UP'!$C37=0,'Set UP'!$D37=0,'Set UP'!$E37=0,'Set UP'!F37=0)," --",'Set UP'!F37) -> S | F39: 3 | P39: =IF(OR('Set UP'!$C37=0,'Set UP'!$D37=0,'Set UP'!$E37=0),"",(F$7*F39)+(G$7*G39)+(H$7*H39)+(I$7*I39)+(J$7*J39)+(K$7*K39)+(L$7*L39)+(M$7*M39)+(N$7*N39)+(O$7*O39)) -> 9 | Q39: 4 | R39: 2 | S39: 1 | T39: 0 | U39: 6 | V39: 1 | W39: 0 | X39: 0 | AA39: =IF(OR('Set UP'!$C37=0,'Set UP'!$D37=0,'Set UP'!$E37=0),"",(Q$7*Q39)+(R$7*R39)+(S$7*S39)+(T$7*T39)+(U$7*U39)+(V$7*V39)+(W$7*W39)+(X$7*X39)+(Y$7*Y39)+(Z$7*Z39)) -> 18 | AL39: =IF(OR('Set UP'!$C37=0,'Set UP'!$D37=0,'Set UP'!$E37=0),"",(AB$7*AB39)+(AC$7*AC39)+(AD$7*AD39)+(AE$7*AE39)+(AF$7*AF39)+(AG$7*AG39)+(AH$7*AH39)+(AI$7*AI39)+(AJ$7*AJ39)+(AK$7*AK39)) -> 0 | AW39: =IF(OR('Set UP'!$C37=0,'Set UP'!$D37=0,'Set UP'!$E37=0),"",(AM$7*AM39)+(AN$7*AN39)+(AO$7*AO39)+(AP$7*AP39)+(AQ$7*AQ39)+(AR$7*AR39)+(AS$7*AS39)+(AT$7*AT39)+(AU$7*AU39)+(AV$7*AV39)) -> 0 | BH39: =IF(OR('Set UP'!$C37=0,'Set UP'!$D37=0,'Set UP'!$E37=0),"",(AX$7*AX39)+(AY$7*AY39)+(AZ$7*AZ39)+(BA$7*BA39)+(BB$7*BB39)+(BC$7*BC39)+(BD$7*BD39)+(BE$7*BE39)+(BF$7*BF39)+(BG$7*BG39)) -> 0 | BS39: =IF(OR('Set UP'!$C37=0,'Set UP'!$D37=0,'Set UP'!$E37=0),"",(BI$7*BI39)+(BJ$7*BJ39)+(BK$7*BK39)+(BL$7*BL39)+(BM$7*BM39)+(BN$7*BN39)+(BO$7*BO39)+(BP$7*BP39)+(BQ$7*BQ39)+(BR$7*BR39)) -> 0 | BW39: =IF(OR('Set UP'!$C37=0,'Set UP'!$D37=0,'Set UP'!$E37=0),"",(P39+AA39+AL39+AW39+BH39+BS39)) -> 27 | BX39: =IF(OR('Set UP'!$C37=0,'Set UP'!$D37=0,'Set UP'!$E37=0),"",RANK(BW39,$BW$9:$BW$48,0)) -> 21 | BY39: =IF(OR('Set UP'!K37<>1,'Set UP'!C37=0,'Set UP'!D37=0,'Set UP'!E37=0,'Set UP'!F37=0),"",$BW39) -> 27 | BZ39: =IF(OR('Set UP'!K37<>1,'Set UP'!C37=0,'Set UP'!D37=0,'Set UP'!E37=0,'Set UP'!F37=0),"",RANK(BY39,$BY$9:$BY$48,0)) -> 8 | CA39: =IF(OR('Set UP'!K37<>2,'Set UP'!C37=0,'Set UP'!D37=0,'Set UP'!E37=0,'Set UP'!F37=0),"",$BW39) ->  | CB39: =IF(OR('Set UP'!K37<>2,'Set UP'!C37=0,'Set UP'!D37=0,'Set UP'!E37=0,'Set UP'!F37=0),"",RANK(CA39,$CA$9:$CA$48,0)) -> 
B40: 32 | C40: =IF(OR('Set UP'!$C38=0,'Set UP'!$D38=0,'Set UP'!$E38=0,'Set UP'!F38=0)," --",'Set UP'!C38) -> 510 | D40: =IF(OR('Set UP'!$C38=0,'Set UP'!$D38=0,'Set UP'!$E38=0,'Set UP'!F38=0)," --",'Set UP'!D38&" "&'Set UP'!E38) -> University of Warwick A | E40: =IF(OR('Set UP'!$C38=0,'Set UP'!$D38=0,'Set UP'!$E38=0,'Set UP'!F38=0)," --",'Set UP'!F38) -> S | F40: 0 | P40: =IF(OR('Set UP'!$C38=0,'Set UP'!$D38=0,'Set UP'!$E38=0),"",(F$7*F40)+(G$7*G40)+(H$7*H40)+(I$7*I40)+(J$7*J40)+(K$7*K40)+(L$7*L40)+(M$7*M40)+(N$7*N40)+(O$7*O40)) -> 0 | Q40: 2 | R40: 0 | S40: 0 | T40: 0 | U40: 5 | V40: 0 | W40: 0 | X40: 0 | AA40: =IF(OR('Set UP'!$C38=0,'Set UP'!$D38=0,'Set UP'!$E38=0),"",(Q$7*Q40)+(R$7*R40)+(S$7*S40)+(T$7*T40)+(U$7*U40)+(V$7*V40)+(W$7*W40)+(X$7*X40)+(Y$7*Y40)+(Z$7*Z40)) -> 7 | AL40: =IF(OR('Set UP'!$C38=0,'Set UP'!$D38=0,'Set UP'!$E38=0),"",(AB$7*AB40)+(AC$7*AC40)+(AD$7*AD40)+(AE$7*AE40)+(AF$7*AF40)+(AG$7*AG40)+(AH$7*AH40)+(AI$7*AI40)+(AJ$7*AJ40)+(AK$7*AK40)) -> 0 | AW40: =IF(OR('Set UP'!$C38=0,'Set UP'!$D38=0,'Set UP'!$E38=0),"",(AM$7*AM40)+(AN$7*AN40)+(AO$7*AO40)+(AP$7*AP40)+(AQ$7*AQ40)+(AR$7*AR40)+(AS$7*AS40)+(AT$7*AT40)+(AU$7*AU40)+(AV$7*AV40)) -> 0 | BH40: =IF(OR('Set UP'!$C38=0,'Set UP'!$D38=0,'Set UP'!$E38=0),"",(AX$7*AX40)+(AY$7*AY40)+(AZ$7*AZ40)+(BA$7*BA40)+(BB$7*BB40)+(BC$7*BC40)+(BD$7*BD40)+(BE$7*BE40)+(BF$7*BF40)+(BG$7*BG40)) -> 0 | BS40: =IF(OR('Set UP'!$C38=0,'Set UP'!$D38=0,'Set UP'!$E38=0),"",(BI$7*BI40)+(BJ$7*BJ40)+(BK$7*BK40)+(BL$7*BL40)+(BM$7*BM40)+(BN$7*BN40)+(BO$7*BO40)+(BP$7*BP40)+(BQ$7*BQ40)+(BR$7*BR40)) -> 0 | BW40: =IF(OR('Set UP'!$C38=0,'Set UP'!$D38=0,'Set UP'!$E38=0),"",(P40+AA40+AL40+AW40+BH40+BS40)) -> 7 | BX40: =IF(OR('Set UP'!$C38=0,'Set UP'!$D38=0,'Set UP'!$E38=0),"",RANK(BW40,$BW$9:$BW$48,0)) -> 30 | BY40: =IF(OR('Set UP'!K38<>1,'Set UP'!C38=0,'Set UP'!D38=0,'Set UP'!E38=0,'Set UP'!F38=0),"",$BW40) -> 7 | BZ40: =IF(OR('Set UP'!K38<>1,'Set UP'!C38=0,'Set UP'!D38=0,'Set UP'!E38=0,'Set UP'!F38=0),"",RANK(BY40,$BY$9:$BY$48,0)) -> 10 | CA40: =IF(OR('Set UP'!K38<>2,'Set UP'!C38=0,'Set UP'!D38=0,'Set UP'!E38=0,'Set UP'!F38=0),"",$BW40) ->  | CB40: =IF(OR('Set UP'!K38<>2,'Set UP'!C38=0,'Set UP'!D38=0,'Set UP'!E38=0,'Set UP'!F38=0),"",RANK(CA40,$CA$9:$CA$48,0)) -> 
B41: 33 | C41: =IF(OR('Set UP'!$C39=0,'Set UP'!$D39=0,'Set UP'!$E39=0,'Set UP'!F39=0)," --",'Set UP'!C39) -> -- | D41: =IF(OR('Set UP'!$C39=0,'Set UP'!$D39=0,'Set UP'!$E39=0,'Set UP'!F39=0)," --",'Set UP'!D39&" "&'Set UP'!E39) -> -- | E41: =IF(OR('Set UP'!$C39=0,'Set UP'!$D39=0,'Set UP'!$E39=0,'Set UP'!F39=0)," --",'Set UP'!F39) -> -- | P41: =IF(OR('Set UP'!$C39=0,'Set UP'!$D39=0,'Set UP'!$E39=0),"",(F$7*F41)+(G$7*G41)+(H$7*H41)+(I$7*I41)+(J$7*J41)+(K$7*K41)+(L$7*L41)+(M$7*M41)+(N$7*N41)+(O$7*O41)) ->  | AA41: =IF(OR('Set UP'!$C39=0,'Set UP'!$D39=0,'Set UP'!$E39=0),"",(Q$7*Q41)+(R$7*R41)+(S$7*S41)+(T$7*T41)+(U$7*U41)+(V$7*V41)+(W$7*W41)+(X$7*X41)+(Y$7*Y41)+(Z$7*Z41)) ->  | AL41: =IF(OR('Set UP'!$C39=0,'Set UP'!$D39=0,'Set UP'!$E39=0),"",(AB$7*AB41)+(AC$7*AC41)+(AD$7*AD41)+(AE$7*AE41)+(AF$7*AF41)+(AG$7*AG41)+(AH$7*AH41)+(AI$7*AI41)+(AJ$7*AJ41)+(AK$7*AK41)) ->  | AW41: =IF(OR('Set UP'!$C39=0,'Set UP'!$D39=0,'Set UP'!$E39=0),"",(AM$7*AM41)+(AN$7*AN41)+(AO$7*AO41)+(AP$7*AP41)+(AQ$7*AQ41)+(AR$7*AR41)+(AS$7*AS41)+(AT$7*AT41)+(AU$7*AU41)+(AV$7*AV41)) ->  | BH41: =IF(OR('Set UP'!$C39=0,'Set UP'!$D39=0,'Set UP'!$E39=0),"",(AX$7*AX41)+(AY$7*AY41)+(AZ$7*AZ41)+(BA$7*BA41)+(BB$7*BB41)+(BC$7*BC41)+(BD$7*BD41)+(BE$7*BE41)+(BF$7*BF41)+(BG$7*BG41)) ->  | BS41: =IF(OR('Set UP'!$C39=0,'Set UP'!$D39=0,'Set UP'!$E39=0),"",(BI$7*BI41)+(BJ$7*BJ41)+(BK$7*BK41)+(BL$7*BL41)+(BM$7*BM41)+(BN$7*BN41)+(BO$7*BO41)+(BP$7*BP41)+(BQ$7*BQ41)+(BR$7*BR41)) ->  | BW41: =IF(OR('Set UP'!$C39=0,'Set UP'!$D39=0,'Set UP'!$E39=0),"",(P41+AA41+AL41+AW41+BH41+BS41)) ->  | BX41: =IF(OR('Set UP'!$C39=0,'Set UP'!$D39=0,'Set UP'!$E39=0),"",RANK(BW41,$BW$9:$BW$48,0)) ->  | BY41: =IF(OR('Set UP'!K39<>1,'Set UP'!C39=0,'Set UP'!D39=0,'Set UP'!E39=0,'Set UP'!F39=0),"",$BW41) ->  | BZ41: =IF(OR('Set UP'!K39<>1,'Set UP'!C39=0,'Set UP'!D39=0,'Set UP'!E39=0,'Set UP'!F39=0),"",RANK(BY41,$BY$9:$BY$48,0)) ->  | CA41: =IF(OR('Set UP'!K39<>2,'Set UP'!C39=0,'Set UP'!D39=0,'Set UP'!E39=0,'Set UP'!F39=0),"",$BW41) ->  | CB41: =IF(OR('Set UP'!K39<>2,'Set UP'!C39=0,'Set UP'!D39=0,'Set UP'!E39=0,'Set UP'!F39=0),"",RANK(CA41,$CA$9:$CA$48,0)) -> 
B42: 34 | C42: =IF(OR('Set UP'!$C40=0,'Set UP'!$D40=0,'Set UP'!$E40=0,'Set UP'!F40=0)," --",'Set UP'!C40) -> -- | D42: =IF(OR('Set UP'!$C40=0,'Set UP'!$D40=0,'Set UP'!$E40=0,'Set UP'!F40=0)," --",'Set UP'!D40&" "&'Set UP'!E40) -> -- | E42: =IF(OR('Set UP'!$C40=0,'Set UP'!$D40=0,'Set UP'!$E40=0,'Set UP'!F40=0)," --",'Set UP'!F40) -> -- | P42: =IF(OR('Set UP'!$C40=0,'Set UP'!$D40=0,'Set UP'!$E40=0),"",(F$7*F42)+(G$7*G42)+(H$7*H42)+(I$7*I42)+(J$7*J42)+(K$7*K42)+(L$7*L42)+(M$7*M42)+(N$7*N42)+(O$7*O42)) ->  | AA42: =IF(OR('Set UP'!$C40=0,'Set UP'!$D40=0,'Set UP'!$E40=0),"",(Q$7*Q42)+(R$7*R42)+(S$7*S42)+(T$7*T42)+(U$7*U42)+(V$7*V42)+(W$7*W42)+(X$7*X42)+(Y$7*Y42)+(Z$7*Z42)) ->  | AL42: =IF(OR('Set UP'!$C40=0,'Set UP'!$D40=0,'Set UP'!$E40=0),"",(AB$7*AB42)+(AC$7*AC42)+(AD$7*AD42)+(AE$7*AE42)+(AF$7*AF42)+(AG$7*AG42)+(AH$7*AH42)+(AI$7*AI42)+(AJ$7*AJ42)+(AK$7*AK42)) ->  | AW42: =IF(OR('Set UP'!$C40=0,'Set UP'!$D40=0,'Set UP'!$E40=0),"",(AM$7*AM42)+(AN$7*AN42)+(AO$7*AO42)+(AP$7*AP42)+(AQ$7*AQ42)+(AR$7*AR42)+(AS$7*AS42)+(AT$7*AT42)+(AU$7*AU42)+(AV$7*AV42)) ->  | BH42: =IF(OR('Set UP'!$C40=0,'Set UP'!$D40=0,'Set UP'!$E40=0),"",(AX$7*AX42)+(AY$7*AY42)+(AZ$7*AZ42)+(BA$7*BA42)+(BB$7*BB42)+(BC$7*BC42)+(BD$7*BD42)+(BE$7*BE42)+(BF$7*BF42)+(BG$7*BG42)) ->  | BS42: =IF(OR('Set UP'!$C40=0,'Set UP'!$D40=0,'Set UP'!$E40=0),"",(BI$7*BI42)+(BJ$7*BJ42)+(BK$7*BK42)+(BL$7*BL42)+(BM$7*BM42)+(BN$7*BN42)+(BO$7*BO42)+(BP$7*BP42)+(BQ$7*BQ42)+(BR$7*BR42)) ->  | BW42: =IF(OR('Set UP'!$C40=0,'Set UP'!$D40=0,'Set UP'!$E40=0),"",(P42+AA42+AL42+AW42+BH42+BS42)) ->  | BX42: =IF(OR('Set UP'!$C40=0,'Set UP'!$D40=0,'Set UP'!$E40=0),"",RANK(BW42,$BW$9:$BW$48,0)) ->  | BY42: =IF(OR('Set UP'!K40<>1,'Set UP'!C40=0,'Set UP'!D40=0,'Set UP'!E40=0,'Set UP'!F40=0),"",$BW42) ->  | BZ42: =IF(OR('Set UP'!K40<>1,'Set UP'!C40=0,'Set UP'!D40=0,'Set UP'!E40=0,'Set UP'!F40=0),"",RANK(BY42,$BY$9:$BY$48,0)) ->  | CA42: =IF(OR('Set UP'!K40<>2,'Set UP'!C40=0,'Set UP'!D40=0,'Set UP'!E40=0,'Set UP'!F40=0),"",$BW42) ->  | CB42: =IF(OR('Set UP'!K40<>2,'Set UP'!C40=0,'Set UP'!D40=0,'Set UP'!E40=0,'Set UP'!F40=0),"",RANK(CA42,$CA$9:$CA$48,0)) -> 
B43: 35 | C43: =IF(OR('Set UP'!$C41=0,'Set UP'!$D41=0,'Set UP'!$E41=0,'Set UP'!F41=0)," --",'Set UP'!C41) -> -- | D43: =IF(OR('Set UP'!$C41=0,'Set UP'!$D41=0,'Set UP'!$E41=0,'Set UP'!F41=0)," --",'Set UP'!D41&" "&'Set UP'!E41) -> -- | E43: =IF(OR('Set UP'!$C41=0,'Set UP'!$D41=0,'Set UP'!$E41=0,'Set UP'!F41=0)," --",'Set UP'!F41) -> -- | P43: =IF(OR('Set UP'!$C41=0,'Set UP'!$D41=0,'Set UP'!$E41=0),"",(F$7*F43)+(G$7*G43)+(H$7*H43)+(I$7*I43)+(J$7*J43)+(K$7*K43)+(L$7*L43)+(M$7*M43)+(N$7*N43)+(O$7*O43)) ->  | AA43: =IF(OR('Set UP'!$C41=0,'Set UP'!$D41=0,'Set UP'!$E41=0),"",(Q$7*Q43)+(R$7*R43)+(S$7*S43)+(T$7*T43)+(U$7*U43)+(V$7*V43)+(W$7*W43)+(X$7*X43)+(Y$7*Y43)+(Z$7*Z43)) ->  | AL43: =IF(OR('Set UP'!$C41=0,'Set UP'!$D41=0,'Set UP'!$E41=0),"",(AB$7*AB43)+(AC$7*AC43)+(AD$7*AD43)+(AE$7*AE43)+(AF$7*AF43)+(AG$7*AG43)+(AH$7*AH43)+(AI$7*AI43)+(AJ$7*AJ43)+(AK$7*AK43)) ->  | AW43: =IF(OR('Set UP'!$C41=0,'Set UP'!$D41=0,'Set UP'!$E41=0),"",(AM$7*AM43)+(AN$7*AN43)+(AO$7*AO43)+(AP$7*AP43)+(AQ$7*AQ43)+(AR$7*AR43)+(AS$7*AS43)+(AT$7*AT43)+(AU$7*AU43)+(AV$7*AV43)) ->  | BH43: =IF(OR('Set UP'!$C41=0,'Set UP'!$D41=0,'Set UP'!$E41=0),"",(AX$7*AX43)+(AY$7*AY43)+(AZ$7*AZ43)+(BA$7*BA43)+(BB$7*BB43)+(BC$7*BC43)+(BD$7*BD43)+(BE$7*BE43)+(BF$7*BF43)+(BG$7*BG43)) ->  | BS43: =IF(OR('Set UP'!$C41=0,'Set UP'!$D41=0,'Set UP'!$E41=0),"",(BI$7*BI43)+(BJ$7*BJ43)+(BK$7*BK43)+(BL$7*BL43)+(BM$7*BM43)+(BN$7*BN43)+(BO$7*BO43)+(BP$7*BP43)+(BQ$7*BQ43)+(BR$7*BR43)) ->  | BW43: =IF(OR('Set UP'!$C41=0,'Set UP'!$D41=0,'Set UP'!$E41=0),"",(P43+AA43+AL43+AW43+BH43+BS43)) ->  | BX43: =IF(OR('Set UP'!$C41=0,'Set UP'!$D41=0,'Set UP'!$E41=0),"",RANK(BW43,$BW$9:$BW$48,0)) ->  | BY43: =IF(OR('Set UP'!K41<>1,'Set UP'!C41=0,'Set UP'!D41=0,'Set UP'!E41=0,'Set UP'!F41=0),"",$BW43) ->  | BZ43: =IF(OR('Set UP'!K41<>1,'Set UP'!C41=0,'Set UP'!D41=0,'Set UP'!E41=0,'Set UP'!F41=0),"",RANK(BY43,$BY$9:$BY$48,0)) ->  | CA43: =IF(OR('Set UP'!K41<>2,'Set UP'!C41=0,'Set UP'!D41=0,'Set UP'!E41=0,'Set UP'!F41=0),"",$BW43) ->  | CB43: =IF(OR('Set UP'!K41<>2,'Set UP'!C41=0,'Set UP'!D41=0,'Set UP'!E41=0,'Set UP'!F41=0),"",RANK(CA43,$CA$9:$CA$48,0)) -> 
B44: 36 | C44: =IF(OR('Set UP'!$C42=0,'Set UP'!$D42=0,'Set UP'!$E42=0,'Set UP'!F42=0)," --",'Set UP'!C42) -> -- | D44: =IF(OR('Set UP'!$C42=0,'Set UP'!$D42=0,'Set UP'!$E42=0,'Set UP'!F42=0)," --",'Set UP'!D42&" "&'Set UP'!E42) -> -- | E44: =IF(OR('Set UP'!$C42=0,'Set UP'!$D42=0,'Set UP'!$E42=0,'Set UP'!F42=0)," --",'Set UP'!F42) -> -- | P44: =IF(OR('Set UP'!$C42=0,'Set UP'!$D42=0,'Set UP'!$E42=0),"",(F$7*F44)+(G$7*G44)+(H$7*H44)+(I$7*I44)+(J$7*J44)+(K$7*K44)+(L$7*L44)+(M$7*M44)+(N$7*N44)+(O$7*O44)) ->  | AA44: =IF(OR('Set UP'!$C42=0,'Set UP'!$D42=0,'Set UP'!$E42=0),"",(Q$7*Q44)+(R$7*R44)+(S$7*S44)+(T$7*T44)+(U$7*U44)+(V$7*V44)+(W$7*W44)+(X$7*X44)+(Y$7*Y44)+(Z$7*Z44)) ->  | AL44: =IF(OR('Set UP'!$C42=0,'Set UP'!$D42=0,'Set UP'!$E42=0),"",(AB$7*AB44)+(AC$7*AC44)+(AD$7*AD44)+(AE$7*AE44)+(AF$7*AF44)+(AG$7*AG44)+(AH$7*AH44)+(AI$7*AI44)+(AJ$7*AJ44)+(AK$7*AK44)) ->  | AW44: =IF(OR('Set UP'!$C42=0,'Set UP'!$D42=0,'Set UP'!$E42=0),"",(AM$7*AM44)+(AN$7*AN44)+(AO$7*AO44)+(AP$7*AP44)+(AQ$7*AQ44)+(AR$7*AR44)+(AS$7*AS44)+(AT$7*AT44)+(AU$7*AU44)+(AV$7*AV44)) ->  | BH44: =IF(OR('Set UP'!$C42=0,'Set UP'!$D42=0,'Set UP'!$E42=0),"",(AX$7*AX44)+(AY$7*AY44)+(AZ$7*AZ44)+(BA$7*BA44)+(BB$7*BB44)+(BC$7*BC44)+(BD$7*BD44)+(BE$7*BE44)+(BF$7*BF44)+(BG$7*BG44)) ->  | BS44: =IF(OR('Set UP'!$C42=0,'Set UP'!$D42=0,'Set UP'!$E42=0),"",(BI$7*BI44)+(BJ$7*BJ44)+(BK$7*BK44)+(BL$7*BL44)+(BM$7*BM44)+(BN$7*BN44)+(BO$7*BO44)+(BP$7*BP44)+(BQ$7*BQ44)+(BR$7*BR44)) ->  | BW44: =IF(OR('Set UP'!$C42=0,'Set UP'!$D42=0,'Set UP'!$E42=0),"",(P44+AA44+AL44+AW44+BH44+BS44)) ->  | BX44: =IF(OR('Set UP'!$C42=0,'Set UP'!$D42=0,'Set UP'!$E42=0),"",RANK(BW44,$BW$9:$BW$48,0)) ->  | BY44: =IF(OR('Set UP'!K42<>1,'Set UP'!C42=0,'Set UP'!D42=0,'Set UP'!E42=0,'Set UP'!F42=0),"",$BW44) ->  | BZ44: =IF(OR('Set UP'!K42<>1,'Set UP'!C42=0,'Set UP'!D42=0,'Set UP'!E42=0,'Set UP'!F42=0),"",RANK(BY44,$BY$9:$BY$48,0)) ->  | CA44: =IF(OR('Set UP'!K42<>2,'Set UP'!C42=0,'Set UP'!D42=0,'Set UP'!E42=0,'Set UP'!F42=0),"",$BW44) ->  | CB44: =IF(OR('Set UP'!K42<>2,'Set UP'!C42=0,'Set UP'!D42=0,'Set UP'!E42=0,'Set UP'!F42=0),"",RANK(CA44,$CA$9:$CA$48,0)) -> 
B45: 37 | C45: =IF(OR('Set UP'!$C43=0,'Set UP'!$D43=0,'Set UP'!$E43=0,'Set UP'!F43=0)," --",'Set UP'!C43) -> -- | D45: =IF(OR('Set UP'!$C43=0,'Set UP'!$D43=0,'Set UP'!$E43=0,'Set UP'!F43=0)," --",'Set UP'!D43&" "&'Set UP'!E43) -> -- | E45: =IF(OR('Set UP'!$C43=0,'Set UP'!$D43=0,'Set UP'!$E43=0,'Set UP'!F43=0)," --",'Set UP'!F43) -> -- | P45: =IF(OR('Set UP'!$C43=0,'Set UP'!$D43=0,'Set UP'!$E43=0),"",(F$7*F45)+(G$7*G45)+(H$7*H45)+(I$7*I45)+(J$7*J45)+(K$7*K45)+(L$7*L45)+(M$7*M45)+(N$7*N45)+(O$7*O45)) ->  | AA45: =IF(OR('Set UP'!$C43=0,'Set UP'!$D43=0,'Set UP'!$E43=0),"",(Q$7*Q45)+(R$7*R45)+(S$7*S45)+(T$7*T45)+(U$7*U45)+(V$7*V45)+(W$7*W45)+(X$7*X45)+(Y$7*Y45)+(Z$7*Z45)) ->  | AL45: =IF(OR('Set UP'!$C43=0,'Set UP'!$D43=0,'Set UP'!$E43=0),"",(AB$7*AB45)+(AC$7*AC45)+(AD$7*AD45)+(AE$7*AE45)+(AF$7*AF45)+(AG$7*AG45)+(AH$7*AH45)+(AI$7*AI45)+(AJ$7*AJ45)+(AK$7*AK45)) ->  | AW45: =IF(OR('Set UP'!$C43=0,'Set UP'!$D43=0,'Set UP'!$E43=0),"",(AM$7*AM45)+(AN$7*AN45)+(AO$7*AO45)+(AP$7*AP45)+(AQ$7*AQ45)+(AR$7*AR45)+(AS$7*AS45)+(AT$7*AT45)+(AU$7*AU45)+(AV$7*AV45)) ->  | BH45: =IF(OR('Set UP'!$C43=0,'Set UP'!$D43=0,'Set UP'!$E43=0),"",(AX$7*AX45)+(AY$7*AY45)+(AZ$7*AZ45)+(BA$7*BA45)+(BB$7*BB45)+(BC$7*BC45)+(BD$7*BD45)+(BE$7*BE45)+(BF$7*BF45)+(BG$7*BG45)) ->  | BS45: =IF(OR('Set UP'!$C43=0,'Set UP'!$D43=0,'Set UP'!$E43=0),"",(BI$7*BI45)+(BJ$7*BJ45)+(BK$7*BK45)+(BL$7*BL45)+(BM$7*BM45)+(BN$7*BN45)+(BO$7*BO45)+(BP$7*BP45)+(BQ$7*BQ45)+(BR$7*BR45)) ->  | BW45: =IF(OR('Set UP'!$C43=0,'Set UP'!$D43=0,'Set UP'!$E43=0),"",(P45+AA45+AL45+AW45+BH45+BS45)) ->  | BX45: =IF(OR('Set UP'!$C43=0,'Set UP'!$D43=0,'Set UP'!$E43=0),"",RANK(BW45,$BW$9:$BW$48,0)) ->  | BY45: =IF(OR('Set UP'!K43<>1,'Set UP'!C43=0,'Set UP'!D43=0,'Set UP'!E43=0,'Set UP'!F43=0),"",$BW45) ->  | BZ45: =IF(OR('Set UP'!K43<>1,'Set UP'!C43=0,'Set UP'!D43=0,'Set UP'!E43=0,'Set UP'!F43=0),"",RANK(BY45,$BY$9:$BY$48,0)) ->  | CA45: =IF(OR('Set UP'!K43<>2,'Set UP'!C43=0,'Set UP'!D43=0,'Set UP'!E43=0,'Set UP'!F43=0),"",$BW45) ->  | CB45: =IF(OR('Set UP'!K43<>2,'Set UP'!C43=0,'Set UP'!D43=0,'Set UP'!E43=0,'Set UP'!F43=0),"",RANK(CA45,$CA$9:$CA$48,0)) -> 
B46: 38 | C46: =IF(OR('Set UP'!$C44=0,'Set UP'!$D44=0,'Set UP'!$E44=0,'Set UP'!F44=0)," --",'Set UP'!C44) -> -- | D46: =IF(OR('Set UP'!$C44=0,'Set UP'!$D44=0,'Set UP'!$E44=0,'Set UP'!F44=0)," --",'Set UP'!D44&" "&'Set UP'!E44) -> -- | E46: =IF(OR('Set UP'!$C44=0,'Set UP'!$D44=0,'Set UP'!$E44=0,'Set UP'!F44=0)," --",'Set UP'!F44) -> -- | P46: =IF(OR('Set UP'!$C44=0,'Set UP'!$D44=0,'Set UP'!$E44=0),"",(F$7*F46)+(G$7*G46)+(H$7*H46)+(I$7*I46)+(J$7*J46)+(K$7*K46)+(L$7*L46)+(M$7*M46)+(N$7*N46)+(O$7*O46)) ->  | AA46: =IF(OR('Set UP'!$C44=0,'Set UP'!$D44=0,'Set UP'!$E44=0),"",(Q$7*Q46)+(R$7*R46)+(S$7*S46)+(T$7*T46)+(U$7*U46)+(V$7*V46)+(W$7*W46)+(X$7*X46)+(Y$7*Y46)+(Z$7*Z46)) ->  | AL46: =IF(OR('Set UP'!$C44=0,'Set UP'!$D44=0,'Set UP'!$E44=0),"",(AB$7*AB46)+(AC$7*AC46)+(AD$7*AD46)+(AE$7*AE46)+(AF$7*AF46)+(AG$7*AG46)+(AH$7*AH46)+(AI$7*AI46)+(AJ$7*AJ46)+(AK$7*AK46)) ->  | AW46: =IF(OR('Set UP'!$C44=0,'Set UP'!$D44=0,'Set UP'!$E44=0),"",(AM$7*AM46)+(AN$7*AN46)+(AO$7*AO46)+(AP$7*AP46)+(AQ$7*AQ46)+(AR$7*AR46)+(AS$7*AS46)+(AT$7*AT46)+(AU$7*AU46)+(AV$7*AV46)) ->  | BH46: =IF(OR('Set UP'!$C44=0,'Set UP'!$D44=0,'Set UP'!$E44=0),"",(AX$7*AX46)+(AY$7*AY46)+(AZ$7*AZ46)+(BA$7*BA46)+(BB$7*BB46)+(BC$7*BC46)+(BD$7*BD46)+(BE$7*BE46)+(BF$7*BF46)+(BG$7*BG46)) ->  | BS46: =IF(OR('Set UP'!$C44=0,'Set UP'!$D44=0,'Set UP'!$E44=0),"",(BI$7*BI46)+(BJ$7*BJ46)+(BK$7*BK46)+(BL$7*BL46)+(BM$7*BM46)+(BN$7*BN46)+(BO$7*BO46)+(BP$7*BP46)+(BQ$7*BQ46)+(BR$7*BR46)) ->  | BW46: =IF(OR('Set UP'!$C44=0,'Set UP'!$D44=0,'Set UP'!$E44=0),"",(P46+AA46+AL46+AW46+BH46+BS46)) ->  | BX46: =IF(OR('Set UP'!$C44=0,'Set UP'!$D44=0,'Set UP'!$E44=0),"",RANK(BW46,$BW$9:$BW$48,0)) ->  | BY46: =IF(OR('Set UP'!K44<>1,'Set UP'!C44=0,'Set UP'!D44=0,'Set UP'!E44=0,'Set UP'!F44=0),"",$BW46) ->  | BZ46: =IF(OR('Set UP'!K44<>1,'Set UP'!C44=0,'Set UP'!D44=0,'Set UP'!E44=0,'Set UP'!F44=0),"",RANK(BY46,$BY$9:$BY$48,0)) ->  | CA46: =IF(OR('Set UP'!K44<>2,'Set UP'!C44=0,'Set UP'!D44=0,'Set UP'!E44=0,'Set UP'!F44=0),"",$BW46) ->  | CB46: =IF(OR('Set UP'!K44<>2,'Set UP'!C44=0,'Set UP'!D44=0,'Set UP'!E44=0,'Set UP'!F44=0),"",RANK(CA46,$CA$9:$CA$48,0)) -> 
B47: 39 | C47: =IF(OR('Set UP'!$C45=0,'Set UP'!$D45=0,'Set UP'!$E45=0,'Set UP'!F45=0)," --",'Set UP'!C45) -> -- | D47: =IF(OR('Set UP'!$C45=0,'Set UP'!$D45=0,'Set UP'!$E45=0,'Set UP'!F45=0)," --",'Set UP'!D45&" "&'Set UP'!E45) -> -- | E47: =IF(OR('Set UP'!$C45=0,'Set UP'!$D45=0,'Set UP'!$E45=0,'Set UP'!F45=0)," --",'Set UP'!F45) -> -- | P47: =IF(OR('Set UP'!$C45=0,'Set UP'!$D45=0,'Set UP'!$E45=0),"",(F$7*F47)+(G$7*G47)+(H$7*H47)+(I$7*I47)+(J$7*J47)+(K$7*K47)+(L$7*L47)+(M$7*M47)+(N$7*N47)+(O$7*O47)) ->  | AA47: =IF(OR('Set UP'!$C45=0,'Set UP'!$D45=0,'Set UP'!$E45=0),"",(Q$7*Q47)+(R$7*R47)+(S$7*S47)+(T$7*T47)+(U$7*U47)+(V$7*V47)+(W$7*W47)+(X$7*X47)+(Y$7*Y47)+(Z$7*Z47)) ->  | AL47: =IF(OR('Set UP'!$C45=0,'Set UP'!$D45=0,'Set UP'!$E45=0),"",(AB$7*AB47)+(AC$7*AC47)+(AD$7*AD47)+(AE$7*AE47)+(AF$7*AF47)+(AG$7*AG47)+(AH$7*AH47)+(AI$7*AI47)+(AJ$7*AJ47)+(AK$7*AK47)) ->  | AW47: =IF(OR('Set UP'!$C45=0,'Set UP'!$D45=0,'Set UP'!$E45=0),"",(AM$7*AM47)+(AN$7*AN47)+(AO$7*AO47)+(AP$7*AP47)+(AQ$7*AQ47)+(AR$7*AR47)+(AS$7*AS47)+(AT$7*AT47)+(AU$7*AU47)+(AV$7*AV47)) ->  | BH47: =IF(OR('Set UP'!$C45=0,'Set UP'!$D45=0,'Set UP'!$E45=0),"",(AX$7*AX47)+(AY$7*AY47)+(AZ$7*AZ47)+(BA$7*BA47)+(BB$7*BB47)+(BC$7*BC47)+(BD$7*BD47)+(BE$7*BE47)+(BF$7*BF47)+(BG$7*BG47)) ->  | BS47: =IF(OR('Set UP'!$C45=0,'Set UP'!$D45=0,'Set UP'!$E45=0),"",(BI$7*BI47)+(BJ$7*BJ47)+(BK$7*BK47)+(BL$7*BL47)+(BM$7*BM47)+(BN$7*BN47)+(BO$7*BO47)+(BP$7*BP47)+(BQ$7*BQ47)+(BR$7*BR47)) ->  | BW47: =IF(OR('Set UP'!$C45=0,'Set UP'!$D45=0,'Set UP'!$E45=0),"",(P47+AA47+AL47+AW47+BH47+BS47)) ->  | BX47: =IF(OR('Set UP'!$C45=0,'Set UP'!$D45=0,'Set UP'!$E45=0),"",RANK(BW47,$BW$9:$BW$48,0)) ->  | BY47: =IF(OR('Set UP'!K45<>1,'Set UP'!C45=0,'Set UP'!D45=0,'Set UP'!E45=0,'Set UP'!F45=0),"",$BW47) ->  | BZ47: =IF(OR('Set UP'!K45<>1,'Set UP'!C45=0,'Set UP'!D45=0,'Set UP'!E45=0,'Set UP'!F45=0),"",RANK(BY47,$BY$9:$BY$48,0)) ->  | CA47: =IF(OR('Set UP'!K45<>2,'Set UP'!C45=0,'Set UP'!D45=0,'Set UP'!E45=0,'Set UP'!F45=0),"",$BW47) ->  | CB47: =IF(OR('Set UP'!K45<>2,'Set UP'!C45=0,'Set UP'!D45=0,'Set UP'!E45=0,'Set UP'!F45=0),"",RANK(CA47,$CA$9:$CA$48,0)) -> 
